Workbook

Sheet Instructivo
F1: Visor de desempeño fiscal y herramienta de generación de recursos propios
B4: El visor de desempeño fiscal le permite a las entidades territoriales visualizar de manera más sencilla los resultados obtenidos históricamente en los indicadores del Índice de Desempeño Fiscal - IDF. Adicionalmente, les permite compararse con años anteriores y con otros grupos de entidades territoriales; por ejemplo, a las gobernaciones les permite compararse con el promedio de los otros departamentos del país, o a las alcaldías les permite contrastar sus resultados con el promedio obtenido por los otros municipios del departamento, entre otras agrupaciones territoriales. Finalmente, el visor contiene en la última parte una gráfica que les indica a las entidades territoriales su resultado en cuanto a las dos dimensiones del IDF (Dimensión de Resultados Fiscales y de Gestión Financiera territorial), junto a dos párrafos que le indican cuánto le hace falta para lograr los puntajes máximos que se pueden obtener en estas dos dimensiones, con el fin de saber en qué indicadores debe desempeñar en mayor medida sus esfuerzos. Por su parte, la herramienta de recursos propios busca entregarles a los municipios una guía con acciones puntuales para promover la generación de este tipo de recursos, desde las gestiones financiera y fiscal, administrativa, y de planificación. La priorización de estas acciones dependerá del comportamiento histórico de algunas variables que son fundamentales para medir en términos fiscales como está la entidad frente al recaudo financiero, y hacen parte de mediciones que hace el Departamento Nacional de Planeación para medir el desempeño fiscal (IDF) y la gestión de recursos (uso de instrumentos de ordenamiento territorial de la medición de Desempeño Municipal MDM).
B6: Instrucciones para hacer uso de la herramienta y analizar la información
B7: 1. Visor de desempeño fiscal
B8: 1.1 Dirigirse a la hoja denominada "Visor" e indicar el departamento o del municipio a revisar.
B9: 1.2 La primera sección contiene información territorial como código DANE, región, departamento, subregión, categoría y grupo de dotaciones iniciales (vigencia 2018 informe MDM).
B11: 1.3 La segunda sección muestra los resultados de la entidad territorial establecida en el paso 1. Al lado izquierdo de esta tabla se encuentran los indicadores que componen el IDF, organizados de acuerdo con las dos dimensiones de gestión; a la derecha de estos, se encuentra la vigencia actual de revisión, en este caso 2019, y con esta, los resultados propiamente dichos. Los resultados están organizados en dos partes: por un lado, el resultado exacto obtenido de la operación matemática correspondiente a cada indicador y, al lado, la calificación que obtiene la entidad territorial en el respectivo indicador, según el resultado anteriormente visto. Junto a esto (resultados de la vigencia actual) hay un componente con la misma estructura que contiene los resultados de vigencias anteriores. Es importante aclarar que en este caso el año de comparación es el 2018, sin embargo los puntajes mostrados corresponden a una simulación realizada de acuerdo con la nueva metodología de cálculo del IDF y no a los resultados oficiales de la entidad territorial, ya que esta nueva metodología aplica oficialmente a partir del año 2019. Finalmente, en esta sección hay una parte que le indica a la entidad la diferencia entre los puntajes obtenidos en los años 2019 y 2018 y le dice si al final su desempeño fiscal empeoró o mejoró en comparación con el año anterior.
B12: 1.4 La siguiente sección contiene las variables que componen cada uno de los indicadores del IDF. Esta sección lo que hace es traer la información que reporta la entidad territorial en el FUT, a través del CHIP, y la muestra para los año 2019 y 2018 (año de comparación). La información de las variables del año 2018 se encuentra deflactada, es decir a precios constantes del año 2019. Por esta razón, puede no coincidir exactamente con la reportada por la entidad territorial. Igual que en la sección anterior, al final de esta se encuentra una columna que muestra el cambio encontrado entre una vigencia y la otra, e indica si la variable creció o disminuyó en comparación con el año anterior.
B13: 1.5 La sección posterior contiene la comparación entre la entidad territorial (municipio o departamento) y el promedio de sus pares a un nivel indicado: en el caso de los municipios las agrupaciones con las que se puede comparar son los otros municipios de la misma región, los otros municipios del mismo departamento, los otros municipios de la misma subregión departamental y los municipios con las mismas capacidades iniciales (definidas en el MDM). Por su parte, para los departamentos, los posibles niveles de comparación son los demás departamentos del país, los demás departamentos de la misma región y los departamentos clasificados en la misma categoría seún la Ley 617 de 2000. El nivel de comparación debe ser elegido en el cuadro con fondo verde, ubicado en la celda D71. Inicialmente, la sección le muestra la posición que obtiene la entidad territorial en contraste con sus pares del nivel de comparación elegido. Debajo nuevamente muestra los indicadores del IDF y los resultados de la respectiva entidad territorial al costado derecho, en el centro muestra el promedio de los resultados obtenidos por los municipios o departamentos del nivel de comparación seleccionado.
B14: 1.6 Al final el visor contiene una gráfica que le muestra a la entidad territorial su resultado en las dos dimensiones y le indica al lado cuántos puntos le hicieron falta para obtener el máximo posible de las dos dimensiones de gestión. Por otro lado, tiene un botón que le permite generar un archivo PDF con los resultados obtenidos en el IDF y otro botón denominado "¿Cómo aumentar mis ingresos propios?" que lo lleva a la herramienta de recursos propios.
B15: 2. Herramienta de recursos propios
B16: 2.1 La primera sección contiene información territorial del municipio o departamento como código DANE, región, departamento, subregión, categoría y grupo de dotaciones iniciales (vigencia 2018 informe MDM).
B17: 2.2 La segunda sección contiene un promedio de cada una de las variables y le permite a la entidad analizar cómo ha sido su desempeño en términos de generación de recursos propios durante los últimos 4 años para las tres variables del indicador de desempeño fiscal (Capacidad de ahorro, Generación de ingresos propios, dependencia de las trasferencias) y los últimos 3 años de las dos variables de MDM (Tasa efectiva de recaudo predial, y Uso de instrumentos de OT). A continuación, se muestra una breve explicación de los indicadores objeto de análisis:
B18: i. Bonificación de generación de recursos propios. Mide la capacidad de la entidad de generar recursos propios continuamente (por más de dos vigencias).
B19: ii. Dependencia de las transferencias. Mide la importancia de las transferencias nacionales en los ingresos totales
B20: iii. Ahorro corriente. Determinar el grado en el cual se liberan excedentes para financiar la inversión, luego de cubrir el funcionamiento, el pago de intereses de deuda. Es una medida de solvencia financiera.
B21: iv. Tasa efectivo de recaudo por cada mil pesos de avalúo. (recaudo de predial/ avalúo de los predios de la vigencia) x 1000
B22: v. Uso de instrumentos de OT. (Número de instrumentos usados por la entidad territorial durante las últimas vigencias. (Predial, delineación urbana, valorización y plusvalía).
B23: 2.3 En esta misma sección la entidad podrá revisar el rango de clasificación para cada una de las variables mencionadas en el punto 3, se aclara que esta clasificación se realizó a partir de los resultados que ha tenido en los últimos años la entidad tanto para los indicadores de desempeño fiscal como de gestión de instrumentos de OT. Los indicadores se clasifican en tres categorías: "sobresaliente", "sostenible" y "por mejorar", lOs cuales están alineadas con las categorizaciones del índice de desempeño fiscal y las de MDM y se definieron realizando un análisis estadístico y cada denominación se define a continuación:
B27: Sobresaliente: Existe una fortaleza significativa en la entidad, en términos de esfuerzo para tener la variable en un aspecto positivo
B28: Sostenible: Existe una fortaleza significativa en la entidad, en términos de esfuerzo para tener la variable en un aspecto estable, sin embargo, debe buscar nuevos esfuerzos para seguir mejorando.
B29: Por mejorar: Es necesario que la entidad haga esfuerzos por mejorar su recaudo, por lo que se le sugiere que implemente acciones para mejorar su recaudo y mejorar esta variable.
B31: 2.4 En la tercera sección se hace un breve resumen histórico del comportamiento de las variables analizadas en la sección anterior. Las variables de desempeño fiscal se analizan desde el 2015 al 2018, y las variables de OT y recaudo se analizan desde el 2016 al 2018.
B32: 2.5 Una vez se identifique y se prioricen aquellas variables que requieren generar un mayor esfuerzo, teniendo en cuenta que las que aparece en rojo e indican una clasificación “por mejorar". Se podrá seleccionar la dimensión de gestión que considere más pertinente (fiscal y financiera, administrativa y planificación), una vez se selecciona al final la entidad podrá encontrar diferentes acciones sujetas a implementar para mejorar las fuentes de financiación.
B33: 2.6 Por último, la herramienta también le permitirá encontrar otras acciones para aquellas variables categorizadas en los rangos sobresaliente y sostenible.
B34: Se aclara que las acciones de cada una de las dimensiones de gestión (fiscal y financiera, administrativa y planificación) que define el instrumento dependerá del comportamiento de cada una de las cinco (5) variables objeto de análisis.

Sheet Visor
G2: VISOR DE DESEMPEÑO FISCAL
B11: Escoger tipo de entidad territorial | G11: SELECCIONAR
B12: =IF(G11="Municipio","Indique el municipio a revisar",IF(G11="Departamento","Indique el departamento a revisar","")) ->  | C12: =IF(OR(G11="Municipio",G11="Departamento"),"(Puede escribir el nombre)","") ->  | G12: SELECCIONAR
G13: =VLOOKUP(G12,Listas!A2:C1137,3,FALSE) -> 0
B14: Información Entidad Territorial
B15: Código DANE: | D15: =IFERROR(VLOOKUP(G12,Listas!A1:B1136,2,FALSE),"") ->  | G15: Categoría: | I15: =IFERROR(VLOOKUP(D15,Base!$A$2:$I$1137,Base!H1137,FALSE),"") -> 
B16: Región: | D16: =IFERROR(UPPER(VLOOKUP(D15,Base!$A$2:$I$1137,Base!E1137,FALSE)),"") ->  | G16: Grupo capacidades iniciales: | I16: =IFERROR(VLOOKUP(D15,Base!$A$2:$I$1137,Base!I1137,FALSE),"") -> 
B17: Departamento: | D17: =IFERROR(VLOOKUP(D15,Base!$A$2:$I$1137,Base!F1137,FALSE),"") ->  | G17: Subregión: | I17: =IFERROR(VLOOKUP(D15,Base!$A$2:$I$1137,Base!G1137,FALSE),"") -> 
B19: Resultados Desempeño Fiscal | D19: Vigencia Actual | G19: Año de comparación | I19: Contribución al cambio
B20: Indicadores | D20: 2019 | G20: 2018
D21: Resultado | E21: Calificación | G21: Resultado | H21: Calificación | I21: =IF(G20="SELECCIONAR"," ",G20& " - 2019") -> 2018 - 2019
B22: Dependencia de las transferencias | D22: =+IFERROR(VLOOKUP($D$15,Base!$A$2:$JA$1135,MATCH("i"&RIGHT(D$20,2)&"1",Base!$1:$1,0),FALSE),"") ->  | E22: =+IFERROR(VLOOKUP($D$15,Base!$A$2:$JA$1135,MATCH("c"&RIGHT(D$20,2)&"1",Base!$1:$1,0),FALSE),"") ->  | G22: =+IFERROR(VLOOKUP($D$15,Base!$A$2:$JA$1135,MATCH("i"&RIGHT(G$20,2)&"1",Base!$1:$1,0),FALSE),"") ->  | H22: =+IFERROR(VLOOKUP($D$15,Base!$A$2:$JA$1135,MATCH("c"&RIGHT(G$20,2)&"1",Base!$1:$1,0),FALSE),"") ->  | I22: =IFERROR(((E22-H22))*(1/6)*0.8,"") -> 
B23: Relevancia formación bruta de capital (FBK) fijo | D23: =+IFERROR(VLOOKUP($D$15,Base!$A$2:$JA$1135,MATCH("i"&RIGHT(D$20,2)&"2",Base!$1:$1,0),FALSE),"") ->  | E23: =+IFERROR(VLOOKUP($D$15,Base!$A$2:$JA$1135,MATCH("c"&RIGHT(D$20,2)&"2",Base!$1:$1,0),FALSE),"") ->  | G23: =+IFERROR(VLOOKUP($D$15,Base!$A$2:$JA$1135,MATCH("i"&RIGHT(G$20,2)&"2",Base!$1:$1,0),FALSE),"") ->  | H23: =+IFERROR(VLOOKUP($D$15,Base!$A$2:$JA$1135,MATCH("c"&RIGHT(G$20,2)&"2",Base!$1:$1,0),FALSE),"") ->  | I23: =IFERROR(((E23-H23))*(1/6)*0.8,"") -> 
B24: Sostenibilidad de la deuda | D24: =+IFERROR(VLOOKUP($D$15,Base!$A$2:$JA$1135,MATCH("i"&RIGHT(D$20,2)&"3",Base!$1:$1,0),FALSE),"") ->  | E24: =+IFERROR(VLOOKUP($D$15,Base!$A$2:$JA$1135,MATCH("c"&RIGHT(D$20,2)&"3",Base!$1:$1,0),FALSE),"") ->  | G24: =+IFERROR(VLOOKUP($D$15,Base!$A$2:$JA$1135,MATCH("i"&RIGHT(G$20,2)&"3",Base!$1:$1,0),FALSE),"") ->  | H24: =+IFERROR(VLOOKUP($D$15,Base!$A$2:$JA$1135,MATCH("c"&RIGHT(G$20,2)&"3",Base!$1:$1,0),FALSE),"") ->  | I24: =IFERROR(((E24-H24))*(1/6)*0.8,"") -> 
B25: Endeudamiento de corto plazo | D25: =+IFERROR(VLOOKUP($D$15,Base!$A$2:$JA$1135,MATCH("i"&RIGHT(D$20,2)&"4",Base!$1:$1,0),FALSE),"") ->  | E25: =+IFERROR(VLOOKUP($D$15,Base!$A$2:$JA$1135,MATCH("c"&RIGHT(D$20,2)&"4",Base!$1:$1,0),FALSE),"") ->  | G25: =+IFERROR(VLOOKUP($D$15,Base!$A$2:$JA$1135,MATCH("i"&RIGHT(G$20,2)&"4",Base!$1:$1,0),FALSE),"") ->  | H25: =+IFERROR(VLOOKUP($D$15,Base!$A$2:$JA$1135,MATCH("c"&RIGHT(G$20,2)&"4",Base!$1:$1,0),FALSE),"") -> 
B26: Ahorro corriente | D26: =+IFERROR(VLOOKUP($D$15,Base!$A$2:$JA$1135,MATCH("i"&RIGHT(D$20,2)&"5",Base!$1:$1,0),FALSE),"") ->  | E26: =+IFERROR(VLOOKUP($D$15,Base!$A$2:$JA$1135,MATCH("c"&RIGHT(D$20,2)&"5",Base!$1:$1,0),FALSE),"") ->  | G26: =+IFERROR(VLOOKUP($D$15,Base!$A$2:$JA$1135,MATCH("i"&RIGHT(G$20,2)&"5",Base!$1:$1,0),FALSE),"") ->  | H26: =+IFERROR(VLOOKUP($D$15,Base!$A$2:$JA$1135,MATCH("i"&RIGHT(G$20,2)&"5",Base!$1:$1,0),FALSE),"") -> 
B27: Resultado fiscal | D27: =+IFERROR(VLOOKUP($D$15,Base!$A$2:$JA$1135,MATCH("i"&RIGHT(D$20,2)&"6",Base!$1:$1,0),FALSE),"") ->  | E27: =+IFERROR(VLOOKUP($D$15,Base!$A$2:$JA$1135,MATCH("c"&RIGHT(D$20,2)&"6",Base!$1:$1,0),FALSE),"") ->  | G27: =+IFERROR(VLOOKUP($D$15,Base!$A$2:$JA$1135,MATCH("i"&RIGHT(G$20,2)&"6",Base!$1:$1,0),FALSE),"") ->  | H27: =+IFERROR(VLOOKUP($D$15,Base!$A$2:$JA$1135,MATCH("c"&RIGHT(G$20,2)&"6",Base!$1:$1,0),FALSE),"") ->  | I27: =IFERROR(((E27-H27))*(1/6)*0.8,"") -> 
B28: Dimensión Resultados Fiscales | D28: =+IFERROR(VLOOKUP($D$15,Base!$A$2:$JA$1135,MATCH("i"&RIGHT(D$20,2)&"r",Base!$1:$1,0),FALSE),"") ->  | E28: =+IFERROR(VLOOKUP($D$15,Base!$A$2:$JA$1135,MATCH("c"&RIGHT(D$20,2)&"r",Base!$1:$1,0),FALSE),"") ->  | G28: =+IFERROR(VLOOKUP($D$15,Base!$A$2:$JA$1135,MATCH("i"&RIGHT(G$20,2)&"r",Base!$1:$1,0),FALSE),"") ->  | H28: =+IFERROR(VLOOKUP($D$15,Base!$A$2:$JA$1135,MATCH("c"&RIGHT(G$20,2)&"r",Base!$1:$1,0),FALSE),"") ->  | I28: =IFERROR((E28-H28),"") -> 
B29: Capacidad de programación y ejecución de recursos | D29: =+IFERROR(VLOOKUP($D$15,Base!$A$2:$JA$1135,MATCH("i"&RIGHT(D$20,2)&"7",Base!$1:$1,0),FALSE),"") ->  | E29: =+IFERROR(VLOOKUP($D$15,Base!$A$2:$JA$1135,MATCH("c"&RIGHT(D$20,2)&"7",Base!$1:$1,0),FALSE),"") ->  | G29: =+IFERROR(VLOOKUP($D$15,Base!$A$2:$JA$1135,MATCH("i"&RIGHT(G$20,2)&"7",Base!$1:$1,0),FALSE),"") ->  | H29: =+IFERROR(VLOOKUP($D$15,Base!$A$2:$JA$1135,MATCH("c"&RIGHT(G$20,2)&"7",Base!$1:$1,0),FALSE),"") ->  | I29: =IFERROR((E29-H29)*(1/3)*0.2,"") -> 
B30: Capacidad de ejecución del gasto de inversión | D30: =+IFERROR(VLOOKUP($D$15,Base!$A$2:$JA$1135,MATCH("i"&RIGHT(D$20,2)&"8",Base!$1:$1,0),FALSE),"") ->  | E30: =+IFERROR(VLOOKUP($D$15,Base!$A$2:$JA$1135,MATCH("c"&RIGHT(D$20,2)&"8",Base!$1:$1,0),FALSE),"") ->  | G30: =+IFERROR(VLOOKUP($D$15,Base!$A$2:$JA$1135,MATCH("i"&RIGHT(G$20,2)&"8",Base!$1:$1,0),FALSE),"") ->  | H30: =+IFERROR(VLOOKUP($D$15,Base!$A$2:$JA$1135,MATCH("c"&RIGHT(G$20,2)&"8",Base!$1:$1,0),FALSE),"") ->  | I30: =IFERROR((E30-H30)*(1/3)*0.2,"") -> 
B31: Nivel de holgura | D31: =+IFERROR(VLOOKUP($D$15,Base!$A$2:$JA$1135,MATCH("i"&RIGHT(D$20,2)&"9",Base!$1:$1,0),FALSE),"") ->  | E31: =+IFERROR(VLOOKUP($D$15,Base!$A$2:$JA$1135,MATCH("c"&RIGHT(D$20,2)&"9",Base!$1:$1,0),FALSE),"") ->  | G31: =+IFERROR(VLOOKUP($D$15,Base!$A$2:$JA$1135,MATCH("i"&RIGHT(G$20,2)&"9",Base!$1:$1,0),FALSE),"") ->  | H31: =+IFERROR(VLOOKUP($D$15,Base!$A$2:$JA$1135,MATCH("c"&RIGHT(G$20,2)&"9",Base!$1:$1,0),FALSE),"") -> 
B32: Bonificación Catastro | D32: =+IFERROR(VLOOKUP($D$15,Base!$A$2:$JA$1135,MATCH("b"&RIGHT(D$20,2)&"1",Base!$1:$1,0),FALSE),"") ->  | E32: =+IFERROR(VLOOKUP($D$15,Base!$A$2:$JA$1135,MATCH("b"&RIGHT(D$20,2)&"1",Base!$1:$1,0),FALSE),"") ->  | G32: =+IFERROR(VLOOKUP($D$15,Base!$A$2:$JA$1135,MATCH("b"&RIGHT(G$20,2)&"1",Base!$1:$1,0),FALSE),"") ->  | H32: =+IFERROR(VLOOKUP($D$15,Base!$A$2:$JA$1135,MATCH("b"&RIGHT(G$20,2)&"1",Base!$1:$1,0),FALSE),"") ->  | I32: =IFERROR(IF(G11="Departamento","NA",(E32-H32)*0.2),"") -> 
B33: Bonificación esfuerzo propio | D33: =+IFERROR(VLOOKUP($D$15,Base!$A$2:$JA$1135,MATCH("b"&RIGHT(D$20,2)&"2",Base!$1:$1,0),FALSE),"") ->  | E33: =+IFERROR(VLOOKUP($D$15,Base!$A$2:$JA$1135,MATCH("b"&RIGHT(D$20,2)&"2",Base!$1:$1,0),FALSE),"") ->  | G33: =+IFERROR(VLOOKUP($D$15,Base!$A$2:$JA$1135,MATCH("b"&RIGHT(G$20,2)&"2",Base!$1:$1,0),FALSE),"") ->  | H33: =+IFERROR(VLOOKUP($D$15,Base!$A$2:$JA$1135,MATCH("b"&RIGHT(G$20,2)&"2",Base!$1:$1,0),FALSE),"") ->  | I33: =IFERROR((E33-H33)*0.2,"") -> 
B34: Dimensión Gestión Financiera Territorial | D34: =+IFERROR(VLOOKUP($D$15,Base!$A$2:$JA$1135,MATCH("i"&RIGHT(D$20,2)&"g",Base!$1:$1,0),FALSE),"") ->  | E34: =+IFERROR(VLOOKUP($D$15,Base!$A$2:$JA$1135,MATCH("c"&RIGHT(D$20,2)&"g",Base!$1:$1,0),FALSE),"") ->  | G34: =+IFERROR(VLOOKUP($D$15,Base!$A$2:$JA$1135,MATCH("i"&RIGHT(G$20,2)&"g",Base!$1:$1,0),FALSE),"") ->  | H34: =+IFERROR(VLOOKUP($D$15,Base!$A$2:$JA$1135,MATCH("c"&RIGHT(G$20,2)&"g",Base!$1:$1,0),FALSE),"") ->  | I34: =IFERROR((E34-H34),"") -> 
B35: Índice de Desempeño Fiscal | D35: =IFERROR((D28*0.8)+(D34*0.2),"") ->  | G35: =IFERROR((H28+H34),"") ->  | I35: =IFERROR(D35-G35,"") -> 
B36: Clasificación Desempeño Fiscal | D36: =+IFERROR(VLOOKUP($D$15,Base!$A$2:$ID$1135,MATCH("c"&RIGHT(D$20,2),Base!$1:$1,0),FALSE),"") ->  | G36: =+IFERROR(VLOOKUP($D$15,Base!$A$2:$ID$1135,MATCH("c"&RIGHT(G$20,2),Base!$1:$1,0),FALSE),"") ->  | I36: =IF(I35="","",IF(I35>0,"Mejoró",IF(I35<0,"Empeoró",FALSE))) -> 
J38: Millones de pesos constantes 2019
B39: Variables Indicadores Desempeño Fiscal | D39: 2019 | G39: =G20 -> 2018 | I39: Dif. Abs | J39: Var Rel. (%)
B40: 1. Dependencias de las transferencias
B41: SGP + otras transferencias nacionales | D41: =IFERROR(VLOOKUP($D$15,Base!$A$2:$JA$1134,MATCH("var"&RIGHT($D$39,2)&"1",Base!1:1,0),FALSE),"") ->  | G41: =IFERROR(VLOOKUP($D$15,Base!$A$2:$JA$1136,MATCH("var"&RIGHT($G$39,2)&"1",Base!$1:$1,0),FALSE)/Listas!Q36,"") ->  | I41: =IFERROR(IF($G$39<>"SELECCIONAR",D41-G41,""),"") ->  | J41: =IFERROR(IF($G$39<>"SELECCIONAR",(D41/G41-1),""),"") -> 
B42: Ingresos Totales | D42: =IFERROR(VLOOKUP($D$15,Base!$A$2:$JA$1134,MATCH("var"&RIGHT($D$39,2)&"2",Base!1:1,0),FALSE),"") ->  | G42: =IFERROR(VLOOKUP($D$15,Base!$A$2:$JA$1136,MATCH("var"&RIGHT($G$39,2)&"2",Base!$1:$1,0),FALSE)/Listas!Q36,"") ->  | I42: =IFERROR(IF($G$39<>"SELECCIONAR",D42-G42,""),"") ->  | J42: =IFERROR(IF($G$39<>"SELECCIONAR",(D42/G42-1),""),"") -> 
B43: 2. Relevancia formación bruta de capital (FBK) fijo
B44: Formación bruta de capital fijo | D44: =IFERROR(VLOOKUP($D$15,Base!$A$2:$JA$1134,MATCH("var"&RIGHT($D$39,2)&"3",Base!1:1,0),FALSE),"") ->  | G44: =IFERROR(VLOOKUP($D$15,Base!$A$2:$JA$1136,MATCH("var"&RIGHT($G$39,2)&"3",Base!$1:$1,0),FALSE)/Listas!Q36,"") ->  | I44: =IFERROR(IF($G$39<>"SELECCIONAR",D44-G44,""),"") ->  | J44: =IFERROR(IF($G$39<>"SELECCIONAR",(D44/G44-1),""),"") -> 
B45: Gasto de inversión | D45: =IFERROR(VLOOKUP($D$15,Base!$A$2:$JA$1134,MATCH("var"&RIGHT($D$39,2)&"4",Base!1:1,0),FALSE),"") ->  | G45: =IFERROR(VLOOKUP($D$15,Base!$A$2:$JA$1136,MATCH("var"&RIGHT($G$39,2)&"4",Base!$1:$1,0),FALSE)/Listas!Q36,"") ->  | I45: =IFERROR(IF($G$39<>"SELECCIONAR",D45-G45,""),"") ->  | J45: =IFERROR(IF($G$39<>"SELECCIONAR",(D45/G45-1),""),"") -> 
B46: 3. Sostenibilidad de la deuda
B47: Saldo de la deuda | D47: =IFERROR(VLOOKUP($D$15,Base!$A$2:$JA$1134,MATCH("var"&RIGHT($D$39,2)&"5",Base!1:1,0),FALSE),"") ->  | G47: =IFERROR(VLOOKUP($D$15,Base!$A$2:$JA$1136,MATCH("var"&RIGHT($G$39,2)&"5",Base!$1:$1,0),FALSE)/Listas!Q36,"") ->  | I47: =IFERROR(IF($G$39<>"SELECCIONAR",D47-G47,""),"") ->  | J47: =IFERROR(IF($G$39<>"SELECCIONAR",(D47/G47-1),""),"") -> 
B48: Ingreso corriente | D48: =IFERROR(VLOOKUP($D$15,Base!$A$2:$JA$1134,MATCH("var"&RIGHT($D$39,2)&"6",Base!1:1,0),FALSE),"") ->  | G48: =IFERROR(VLOOKUP($D$15,Base!$A$2:$JA$1136,MATCH("var"&RIGHT($G$39,2)&"6",Base!$1:$1,0),FALSE)/Listas!Q36,"") ->  | I48: =IFERROR(IF($G$39<>"SELECCIONAR",D48-G48,""),"") ->  | J48: =IFERROR(IF($G$39<>"SELECCIONAR",(D48/G48-1),""),"") -> 
B49: 4. Endeudamiento de corto plazo
B50: Pasivo corriente | D50: =IFERROR(VLOOKUP($D$15,Base!$A$2:$JA$1134,MATCH("var"&RIGHT($D$39,2)&"7",Base!1:1,0),FALSE),"") ->  | G50: =IFERROR(VLOOKUP($D$15,Base!$A$2:$JA$1136,MATCH("var"&RIGHT($G$39,2)&"7",Base!$1:$1,0),FALSE)/Listas!Q36,"") ->  | I50: =IFERROR(IF($G$39<>"SELECCIONAR",D50-G50,""),"") ->  | J50: =IFERROR(IF($G$39<>"SELECCIONAR",(D50/G50-1),""),"") -> 
B51: Activo corriente | D51: =IFERROR(VLOOKUP($D$15,Base!$A$2:$JA$1134,MATCH("var"&RIGHT($D$39,2)&"8",Base!1:1,0),FALSE),"") ->  | G51: =IFERROR(VLOOKUP($D$15,Base!$A$2:$JA$1136,MATCH("var"&RIGHT($G$39,2)&"8",Base!$1:$1,0),FALSE)/Listas!Q36,"") ->  | I51: =IFERROR(IF($G$39<>"SELECCIONAR",D51-G51,""),"") ->  | J51: =IFERROR(IF($G$39<>"SELECCIONAR",(D51/G51-1),""),"") -> 
B52: 5. Ahorro corriente
B53: Ahorro corriente | D53: =IFERROR(VLOOKUP($D$15,Base!$A$2:$JA$1134,MATCH("var"&RIGHT($D$39,2)&"9",Base!1:1,0),FALSE),"") ->  | G53: =IFERROR(VLOOKUP($D$15,Base!$A$2:$JA$1136,MATCH("var"&RIGHT($G$39,2)&"9",Base!$1:$1,0),FALSE)/Listas!Q36,"") ->  | I53: =IFERROR(IF($G$39<>"SELECCIONAR",D53-G53,""),"") ->  | J53: =IFERROR(IF($G$39<>"SELECCIONAR",(D53/G53-1),""),"") -> 
B54: Ingreso corriente | D54: =IFERROR(VLOOKUP($D$15,Base!$A$2:$JA$1134,MATCH("var"&RIGHT($D$39,2)&"10",Base!1:1,0),FALSE),"") ->  | G54: =IFERROR(VLOOKUP($D$15,Base!$A$2:$JA$1136,MATCH("var"&RIGHT($G$39,2)&"10",Base!$1:$1,0),FALSE)/Listas!Q36,"") ->  | I54: =IFERROR(IF($G$39<>"SELECCIONAR",D54-G54,""),"") ->  | J54: =IFERROR(IF($G$39<>"SELECCIONAR",(D54/G54-1),""),"") -> 
B55: 6. Resultado fiscal
B56: Déficit o superávit | D56: =IFERROR(VLOOKUP($D$15,Base!$A$2:$JA$1134,MATCH("var"&RIGHT($D$39,2)&"11",Base!1:1,0),FALSE),"") ->  | G56: =IFERROR(VLOOKUP($D$15,Base!$A$2:$JA$1136,MATCH("var"&RIGHT($G$39,2)&"11",Base!$1:$1,0),FALSE)/Listas!Q36,"") ->  | I56: =IFERROR(IF($G$39<>"SELECCIONAR",D56-G56,""),"") ->  | J56: =IFERROR(IF($G$39<>"SELECCIONAR",(D56/G56-1),""),"") -> 
B57: Ingresos totales | D57: =IFERROR(VLOOKUP($D$15,Base!$A$2:$JA$1134,MATCH("var"&RIGHT($D$39,2)&"12",Base!1:1,0),FALSE),"") ->  | G57: =IFERROR(VLOOKUP($D$15,Base!$A$2:$JA$1136,MATCH("var"&RIGHT($G$39,2)&"12",Base!$1:$1,0),FALSE)/Listas!Q36,"") ->  | I57: =IFERROR(IF($G$39<>"SELECCIONAR",D57-G57,""),"") ->  | J57: =IFERROR(IF($G$39<>"SELECCIONAR",(D57/G57-1),""),"") -> 
B58: 7. Capacidad de programación y ejecución de recursos
B59: Recaudo | D59: =IFERROR(VLOOKUP($D$15,Base!$A$2:$JA$1134,MATCH("var"&RIGHT($D$39,2)&"13",Base!1:1,0),FALSE),"") ->  | G59: =IFERROR(VLOOKUP($D$15,Base!$A$2:$JA$1136,MATCH("var"&RIGHT($G$39,2)&"13",Base!$1:$1,0),FALSE)/Listas!Q36,"") ->  | I59: =IFERROR(IF($G$39<>"SELECCIONAR",D59-G59,""),"") ->  | J59: =IFERROR(IF($G$39<>"SELECCIONAR",(D59/G59-1),""),"") -> 
B60: Presupuesto inicial | D60: =IFERROR(VLOOKUP($D$15,Base!$A$2:$JA$1134,MATCH("var"&RIGHT($D$39,2)&"14",Base!1:1,0),FALSE),"") ->  | G60: =IFERROR(VLOOKUP($D$15,Base!$A$2:$JA$1136,MATCH("var"&RIGHT($G$39,2)&"14",Base!$1:$1,0),FALSE)/Listas!Q36,"") ->  | I60: =IFERROR(IF($G$39<>"SELECCIONAR",D60-G60,""),"") ->  | J60: =IFERROR(IF($G$39<>"SELECCIONAR",(D60/G60-1),""),"") -> 
B61: 8. Capacidad de ejecución del gasto de inversión
B62: Pagos | D62: =IFERROR(VLOOKUP($D$15,Base!$A$2:$JA$1134,MATCH("var"&RIGHT($D$39,2)&"15",Base!1:1,0),FALSE),"") ->  | G62: =IFERROR(VLOOKUP($D$15,Base!$A$2:$JA$1136,MATCH("var"&RIGHT($G$39,2)&"15",Base!$1:$1,0),FALSE)/Listas!Q36,"") ->  | I62: =IFERROR(IF($G$39<>"SELECCIONAR",D62-G62,""),"") ->  | J62: =IFERROR(IF($G$39<>"SELECCIONAR",(D62/G62-1),""),"") -> 
B63: Compromisos | D63: =IFERROR(VLOOKUP($D$15,Base!$A$2:$JA$1134,MATCH("var"&RIGHT($D$39,2)&"16",Base!1:1,0),FALSE),"") ->  | G63: =IFERROR(VLOOKUP($D$15,Base!$A$2:$JA$1136,MATCH("var"&RIGHT($G$39,2)&"16",Base!$1:$1,0),FALSE)/Listas!Q36,"") ->  | I63: =IFERROR(IF($G$39<>"SELECCIONAR",D63-G63,""),"") ->  | J63: =IFERROR(IF($G$39<>"SELECCIONAR",(D63/G63-1),""),"") -> 
B64: 9. Nivel de holgura
B65: Límite Ley 617 de 2000 | D65: =IFERROR(VLOOKUP($D$15,Base!$A$2:$JA$1134,MATCH("var"&RIGHT($D$39,2)&"17",Base!1:1,0),FALSE),"") ->  | G65: =IFERROR(VLOOKUP($D$15,Base!$A$2:$JA$1136,MATCH("var"&RIGHT($G$39,2)&"17",Base!$1:$1,0),FALSE),"") ->  | I65: =IFERROR(IF($G$39<>"SELECCIONAR",D65-G65,""),"") ->  | J65: =IFERROR(IF($G$39<>"SELECCIONAR",(D65/G65-1),""),"") -> 
B66: Gastos de funcionamiento / ICLD | D66: =IFERROR(VLOOKUP($D$15,Base!$A$2:$JA$1134,MATCH("var"&RIGHT($D$39,2)&"18",Base!1:1,0),FALSE),"") ->  | G66: =IFERROR(VLOOKUP($D$15,Base!$A$2:$JA$1136,MATCH("var"&RIGHT($G$39,2)&"18",Base!$1:$1,0),FALSE),"") ->  | I66: =IFERROR(IF($G$39<>"SELECCIONAR",D66-G66,""),"") ->  | J66: =IFERROR(IF($G$39<>"SELECCIONAR",(D66/G66-1),""),"") -> 
B67: Holgura | D67: =IFERROR(D65-D66,"") ->  | G67: =IFERROR(G65-G66,"") ->  | I67: =IFERROR(IF($G$39<>"SELECCIONAR",D67-G67,""),"") ->  | J67: =IFERROR(IF($G$39<>"SELECCIONAR",(D67/G67-1),""),"") -> 
B70: Comparación territorial del desempeño fiscal 2019 | G70: =IF(D71<>"SELECCIONAR",UPPER(D71)&":","") ->  | I70: =IF(D71="Nación","Colombia",IF(D71="Región",D16,IF(D71="Departamento",D17,IF(D71="Subregión",I17,IF(D71="Categoría Ley 617",I15,IF(D71="Grupo capacidades iniciales",I16,"")))))) -> 
B71: Nivel de comparación | D71: SELECCIONAR | G71: Posición Ranking 2019 | I71: =IFERROR(VLOOKUP($D$15,Base!$A:$IZ,MATCH("r"&VLOOKUP(D71,Listas!$L$8:$M$13,2,FALSE),Base!1:1,0),FALSE)&" de "&VLOOKUP($D$15,Base!$A:$IZ,MATCH("t"&VLOOKUP(D71,Listas!$L$8:$M$13,2,FALSE),Base!1:1,0),FALSE),"") ->  | L71: =IFERROR(VLOOKUP($D$15,Base!$A$2:$ID$1135,IF($D$71="Nación",EP1154,IF($D$71="Región",EQ1154,IF($D$71="Departamento",ER1154,IF($D$71="Subregión",ES1154,IF($D$71="Tipología",ET1154,IF($D$71="Entorno de desarrollo municipal",EU1154,IF($D$71="Entorno de desarrollo departamental",EV1154,IF($D$71="Esfuerzo en cierre de brechas",EW1154,IF($D$71="Categoría",EX1154,IF($D$71="Grupo capacidades iniciales",EY1154,FALSE)))))))))),FALSE),"") -> 
B73: Indicadores | G73: ="Promedio Desempeño Fiscal 2019 "&IF(G11="Departamento","de departamentos ",IF(G11="Municipio","de municipios ",""))&IF(D71="Nación","en Colombia",IF(D71="Región","en "&D16,IF(D71="Departamento","en "&D17,IF(D71="Subregión","en la subregión "&I17,IF(D71="Grupo capacidades iniciales","con capacidades iniciales de "&I16,IF(D71="Categoría Ley 617","de categoría "&I15,"")))))) -> Promedio Desempeño Fiscal 2019 | I73: =IF(AND(G12<>"SELECCIONAR",D71<>"SELECCIONAR"),G12,"") -> 
B74: Dependencia de las transferencias | G74: =IFERROR(VLOOKUP($D$15,Base!$A:$JA,MATCH("P"&VLOOKUP(D71,Listas!$L$8:$M$13,2,FALSE)&"ian1",Base!1:1,0),FALSE),"") ->  | I74: =IF($I$73<>"",E22,"") -> 
B75: Relevancia formación bruta de capital (FBK) fijo | G75: =IFERROR(VLOOKUP($D$15,Base!$A:$JA,MATCH("P"&VLOOKUP(D71,Listas!$L$8:$M$13,2,FALSE)&"ian2",Base!1:1,0),FALSE),"") ->  | I75: =IF($I$73<>"",E23,"") -> 
B76: Sostenibilidad de la deuda | G76: =IFERROR(VLOOKUP($D$15,Base!$A:$JA,MATCH("P"&VLOOKUP(D71,Listas!$L$8:$M$13,2,FALSE)&"ian3",Base!1:1,0),FALSE),"") -> 
B77: Endeudamiento total | G77: =IFERROR(VLOOKUP($D$15,Base!$A:$JA,MATCH("P"&VLOOKUP(D71,Listas!$L$8:$M$13,2,FALSE)&"ian4",Base!1:1,0),FALSE),"") ->  | I77: =IF($I$73<>"",E25,"") -> 
B78: Ahorro corriente | G78: =IFERROR(VLOOKUP($D$15,Base!$A:$JA,MATCH("P"&VLOOKUP(D71,Listas!$L$8:$M$13,2,FALSE)&"ian5",Base!1:1,0),FALSE),"") ->  | I78: =IF($I$73<>"",E26,"") -> 
B79: Resultado fiscal | G79: =IFERROR(VLOOKUP($D$15,Base!$A:$JA,MATCH("P"&VLOOKUP(D71,Listas!$L$8:$M$13,2,FALSE)&"ian6",Base!1:1,0),FALSE),"") ->  | I79: =IF($I$73<>"",E27,"") -> 
B80: Dimensión Resultados Fiscales | G80: =IFERROR(VLOOKUP($D$15,Base!$A:$JA,MATCH("P"&VLOOKUP(D71,Listas!$L$8:$M$13,2,FALSE)&"ian12",Base!1:1,0),FALSE),"") ->  | I80: =IF($I$73<>"",E28,"") -> 
B81: Capacidad de programación y ejecución de recursos | G81: =IFERROR(VLOOKUP($D$15,Base!$A:$JA,MATCH("P"&VLOOKUP(D71,Listas!$L$8:$M$13,2,FALSE)&"ian7",Base!1:1,0),FALSE),"") ->  | I81: =IF($I$73<>"",E29,"") -> 
B82: Capacidad de ejecución del gasto de inversión | G82: =IFERROR(VLOOKUP($D$15,Base!$A:$JA,MATCH("P"&VLOOKUP(D71,Listas!$L$8:$M$13,2,FALSE)&"ian8",Base!1:1,0),FALSE),"") ->  | I82: =IF($I$73<>"",E30,"") -> 
B83: Nivel de holgura | G83: =IFERROR(VLOOKUP($D$15,Base!$A:$JA,MATCH("P"&VLOOKUP(D71,Listas!$L$8:$M$13,2,FALSE)&"ian9",Base!1:1,0),FALSE),"") ->  | I83: =IF($I$73<>"",E31,"") -> 
B84: Bonificación Catastro | G84: =IFERROR(VLOOKUP($D$15,Base!$A:$JA,MATCH("P"&VLOOKUP(D71,Listas!$L$8:$M$13,2,FALSE)&"ian10",Base!1:1,0),FALSE),"") -> 
B85: Bonificación esfuerzo propio | G85: =IFERROR(VLOOKUP($D$15,Base!$A:$JA,MATCH("P"&VLOOKUP(D71,Listas!$L$8:$M$13,2,FALSE)&"ian11",Base!1:1,0),FALSE),"") ->  | I85: =IF($I$73<>"",E33,"") -> 
B86: Dimensión Gestión Financiera Territorial | G86: =IFERROR(VLOOKUP($D$15,Base!$A:$JA,MATCH("P"&VLOOKUP(D71,Listas!$L$8:$M$13,2,FALSE)&"ian13",Base!1:1,0),FALSE),"") ->  | I86: =IF($I$73<>"",E34,"") -> 
B87: Índice de Desempeño Fiscal | G87: =IFERROR(VLOOKUP($D$15,Base!$A:$JA,MATCH("P"&VLOOKUP(D71,Listas!$L$8:$M$13,2,FALSE)&"iant",Base!1:1,0),FALSE),"") ->  | I87: =IF($I$73<>"",D35,"") -> 
F90: Si tu Dimensión de Resultados Fiscales se acerca a 80 y tu Dimensión de Gestión Financiera Territorial se acerca a 20, tendrás un excelente desempeño fiscal. | I90: Para saber cómo mejorar tu desempeño generando más recursos propios, da clic en el botón de abajo▿▿▿
F97: Te hacen falta | H97: =IFERROR((80-E28),"0") -> 0
F98: puntos para llegar a los 80 puntos de la Dimensión de Resultados Fiscales.
F101: Te hacen falta | H101: =IFERROR((20-E34),"0") -> 0
F102: puntos para llegar a los 20 puntos de la Dimensión de Gestión Financiera. | I102: Para generar un PDF de tu IDF, presiona el siguiente ícono:
B106: * Las categorizaciones de las entidades territoriales por tipología, esfuerzo de cierre de brechas y grupo de capacidades iniciales corresponden a análisis y ejercicios técnicos desarrollados por la Dirección de Descentralización y Desarrollo Regional del DNP. Para consultar sobre la metodología de estos ejercicios, referirse a los distintos programas de Desarrollo Territorial en la página web del DNP. ** Los puntajes del año 2018 corresponden a simulaciones realizadas con la nueva metodología de cálculo y no a resultados oficiales de la entidad territorial.
E220: =+IF(G11="Departamentos",1,IF(G11="Municipios",2,0)) -> 0
E221: 1
B222: ESCRIBIRNOMBRE | E222: =+IF(G11="Departamentos","SELECCIONAR",IF(G11="Municipios","ESCRIBANOMBRE","")) -> 
B223: ANTIOQUIA | E223: ANTIOQUIA
B224: ATLANTICO | E224: ATLANTICO
B225: BOLIVAR | E225: BOLIVAR
B226: BOYACA | E226: BOYACA
B227: CALDAS | E227: CALDAS
B228: CAQUETA | E228: CAQUETA
B229: CAUCA | E229: CAUCA
B230: CESAR | E230: CESAR
B231: CORDOBA | E231: CORDOBA
B232: CUNDINAMARCA | E232: CUNDINAMARCA
B233: CHOCO | E233: CHOCO
B234: HUILA | E234: HUILA
B235: GUAJIRA | E235: GUAJIRA
B236: MAGDALENA | E236: MAGDALENA
B237: META | E237: META
B238: NARIÑO | E238: NARIÑO
B239: NORTESANTANDER | E239: NORTESANTANDER
B240: QUINDIO | E240: QUINDIO
B241: RISARALDA | E241: RISARALDA
B242: SANTANDER | E242: SANTANDER
B243: SUCRE | E243: SUCRE
B244: TOLIMA | E244: TOLIMA
B245: VALLE | E245: VALLE
B246: ARAUCA | E246: ARAUCA
B247: CASANARE | E247: CASANARE
B248: PUTUMAYO | E248: PUTUMAYO
B249: SANANDRES | E249: SANANDRES
B250: AMAZONAS | E250: AMAZONAS
B251: GUAINIA | E251: GUAINIA
B252: GUAVIARE | E252: GUAVIARE
B253: VAUPES | E253: VAUPES
B254: VICHADA | E254: VICHADA
B256: ESCRIBIR NOMBRE | E256: -
B257: ABEJORRAL
B258: ABREGO
B259: ABRIAQUÍ
B260: ACACÍAS
B261: ACANDÍ
B262: ACEVEDO
B263: ACHÍ
B264: AGRADO
B265: AGUACHICA
B266: AGUADA
B267: AGUADAS
B268: AGUADEDIOS
B269: AGUAZUL
B270: AGUSTÍNCODAZZI
B271: AIPE
B272: ALBÁN (CUNDINAMARCA)
B273: ALBÁN (NARIÑO)
B274: ALBANIA (CAQUETA)
B275: ALBANIA (LA GUAJIRA)
B276: ALBANIA (SANTANDER)
B277: ALCALÁ
B278: ALDANA
B279: ALEJANDRÍA
B280: ALGARROBO
B281: ALGECIRAS
B282: ALMAGUER
B283: ALMEIDA
B284: ALPUJARRA
B285: ALTAMIRA
B286: ALTOBAUDO
B287: ALTOSDELROSARIO
B288: ALVARADO
B289: AMAGÁ
B290: AMALFI
B291: AMBALEMA
B292: ANAPOIMA
B293: ANCUYÁ
B294: ANDALUCÍA
B295: ANDES
B296: ANGELÓPOLIS
B297: ANGOSTURA
B298: ANOLAIMA
B299: ANORÍ
B300: ANSERMA
B301: ANSERMANUEVO
B302: ANZA
B303: ANZOÁTEGUI
B304: APARTADÓ
B305: APÍA
B306: APULO
B307: AQUITANIA
B308: ARACATACA
B309: ARANZAZU
B310: ARATOCA
B311: ARAUCA
B312: ARAUQUITA
B313: ARBELÁEZ
B314: ARBOLEDA
B315: ARBOLEDAS
B316: ARBOLETES
B317: ARCABUCO
B318: ARENAL
B319: ARGELIA (ANTIOQUIA)
B320: ARGELIA (CAUCA)
B321: ARGELIA (VALLE DEL CAUCA)
B322: ARIGUANÍ
B323: ARJONA
B324: ARMENIA (ANTIOQUIA)
B325: ARMENIA (QUINDIO)
B326: ARMERO
B327: ARROYOHONDO
B328: ASTREA
B329: ATACO
B330: ATRATO
B331: AYAPEL
B332: BAGADÓ
B333: BAHÍASOLANO
B334: BAJOBAUDÓ
B335: BALBOA (CAUCA)
B336: BALBOA (RISARALDA)
B337: BARANOA
B338: BARAYA
B339: BARBACOAS
B340: BARBOSA (ANTIOQUIA)
B341: BARBOSA (SANTANDER)
... 1016 more rows

Sheet Herramienta recursos propios (hidden)
C2: DEPARTAMENTO | H2: =IF(Visor!G11="Departamento",Visor!G12,IF(Visor!G11="Municipio",Visor!D17,"")) -> 
C4: Información Entidad Territorial
C5: Entidad: | D5: =Visor!G12 -> SELECCIONAR | G5: Subregión: | I5: =IFERROR(VLOOKUP(D6,Base!$A$2:$I$1137,Base!G1137,FALSE),"") -> 
C6: Código DANE: | D6: =IFERROR(VLOOKUP(D5,Listas!A1:B1136,2,FALSE),"") ->  | G6: Categoría: | I6: =IFERROR(VLOOKUP(D6,Base!$A$2:$I$1137,Base!H1137,FALSE),"") -> 
C7: Región: | D7: =IFERROR(UPPER(VLOOKUP(D6,Base!$A$2:$I$1137,Base!E1137,FALSE)),"") ->  | G7: Grupo capacidades iniciales: | I7: =IFERROR(VLOOKUP(D6,Base!$A$2:$I$1137,Base!I1137,FALSE),"") -> 
C9: =Visor!G11 -> SELECCIONAR
C10: Indicador | D10: Promedio | E10: Calificación | F10: Diagnóstico | J10: Gestión
C11: Ahorro corriente | D11: =+IFERROR(AVERAGE(F18:I18),"") ->  | E11: =+IF(D11="","",IFERROR(IF(D11>=40,"Sobresaliente",IF(D11<=20,"Por Mejorar","Sostenible")),"")) ->  | F11: =+IFERROR(VLOOKUP(C11&E11,Hoja10!B:E,4,FALSE),"") -> 
C12: Bonificación esfuerzo propio (porcentaje de crecimiento de los recursos propios durante dos viencias o más) | D12: =+IFERROR(AVERAGE(F19:I19),"") ->  | E12: =+IF(D12="","",IFERROR(IF(D12>=25%,"Sobresaliente",IF(D12<=5%,"Por Mejorar","Sostenible")),"")) ->  | F12: =+IFERROR(VLOOKUP(C12&E12,Hoja10!B:E,4,FALSE),"") -> 
C13: Dependencia de las transferencias | D13: =+IFERROR(AVERAGE(F20:I20),"") ->  | E13: =+IF(D13="","",IFERROR(IF(D13<=40,"Sobresaliente",IF(D13>=50,"Por Mejorar","Sostenible")),"")) ->  | F13: =+IFERROR(VLOOKUP(C13&E13,Hoja10!B:E,4,FALSE),"") -> 
C14: Tasa efectiva de recuado predial | D14: =+IFERROR(AVERAGE(F21:I21),"") ->  | E14: =+IF(D14="","",IFERROR(IF(D14>=7,"Sobresaliente",IF(D14<=3,"Por Mejorar","Sostenible")),"")) ->  | F14: =+IFERROR(VLOOKUP(C14&E14,Hoja10!B:E,4,FALSE),"") -> 
C15: Gestión de instrumentos de OT MDM | D15: =+IFERROR(AVERAGE(F22:I22),"") ->  | E15: =+IF(D15="","",IFERROR(IF(D15>=0.75,"Sobresaliente",IF(D15<=0.25,"Por Mejorar","Sostenible")),"")) ->  | F15: =+IFERROR(VLOOKUP(C15&E15,Hoja10!B:E,4,FALSE),"") -> 
C17: INDICADOR (Variable) | E17: FUENTE | F17: 2016 | G17: 2017 | H17: 2018 | I17: 2019 | J17: COMPORTAMIENTO HISTÓRICO DEL INDICADOR
C18: Ahorro corriente | E18: IDF | F18: =IFERROR(VLOOKUP($D$6,Base!$A$2:$JA$1134,MATCH("hrp"&RIGHT($F$17,2)&"1",Base!1:1,0),FALSE),"") ->  | G18: =IFERROR(VLOOKUP($D$6,Base!$A$2:$JA$1134,MATCH("hrp"&RIGHT($G$17,2)&"1",Base!1:1,0),FALSE),"") ->  | H18: =IFERROR(VLOOKUP($D$6,Base!$A$2:$JA$1134,MATCH("hrp"&RIGHT($H$17,2)&"1",Base!1:1,0),FALSE),"") ->  | I18: =IFERROR(VLOOKUP($D$6,Base!$A$2:$JA$1134,MATCH("hrp"&RIGHT($I$17,2)&"1",Base!1:1,0),FALSE),"") -> 
C19: =C12 -> Bonificación esfuerzo propio (porcentaje de crecimiento de los recursos propios durante dos viencias o más) | E19: IDF | F19: =IFERROR(VLOOKUP($D$6,Base!$A$2:$JA$1134,MATCH("hrp"&RIGHT($F$17,2)&"2",Base!1:1,0),FALSE),"") ->  | G19: =IFERROR(VLOOKUP($D$6,Base!$A$2:$JA$1134,MATCH("hrp"&RIGHT($G$17,2)&"2",Base!1:1,0),FALSE),"") ->  | H19: =IFERROR(VLOOKUP($D$6,Base!$A$2:$JA$1134,MATCH("hrp"&RIGHT($H$17,2)&"2",Base!1:1,0),FALSE),"") ->  | I19: =IFERROR(VLOOKUP($D$6,Base!$A$2:$JA$1134,MATCH("hrp"&RIGHT($I$17,2)&"2",Base!1:1,0),FALSE),"") -> 
C20: Dependencia de las transferencias | E20: IDF | F20: =IFERROR(VLOOKUP($D$6,Base!$A$2:$JA$1134,MATCH("hrp"&RIGHT($F$17,2)&"3",Base!1:1,0),FALSE),"") ->  | G20: =IFERROR(VLOOKUP($D$6,Base!$A$2:$JA$1134,MATCH("hrp"&RIGHT($G$17,2)&"3",Base!1:1,0),FALSE),"") ->  | H20: =IFERROR(VLOOKUP($D$6,Base!$A$2:$JA$1134,MATCH("hrp"&RIGHT($H$17,2)&"3",Base!1:1,0),FALSE),"") ->  | I20: =IFERROR(VLOOKUP($D$6,Base!$A$2:$JA$1134,MATCH("hrp"&RIGHT($I$17,2)&"3",Base!1:1,0),FALSE),"") -> 
C21: Tasa efectiva de recaudo predial | E21: MDM | F21: =IFERROR(VLOOKUP($D$6,Base!$A$2:$JA$1134,MATCH("hrp"&RIGHT($F$17,2)&"4",Base!1:1,0),FALSE),"") ->  | G21: =IFERROR(VLOOKUP($D$6,Base!$A$2:$JA$1134,MATCH("hrp"&RIGHT($G$17,2)&"4",Base!1:1,0),FALSE),"") ->  | H21: =IFERROR(VLOOKUP($D$6,Base!$A$2:$JA$1134,MATCH("hrp"&RIGHT($H$17,2)&"4",Base!1:1,0),FALSE),"") ->  | I21: =IFERROR(VLOOKUP($D$6,Base!$A$2:$JA$1134,MATCH("hrp"&RIGHT($I$17,2)&"4",Base!1:1,0),FALSE),"") -> 
C22: Gestión de instrumentos de OT MDM (Uso de instrumentos de OT) | E22: MDM | F22: =IFERROR(VLOOKUP($D$6,Base!$A$2:$JA$1134,MATCH("hrp"&RIGHT($F$17,2)&"5",Base!1:1,0),FALSE),"") ->  | G22: =IFERROR(VLOOKUP($D$6,Base!$A$2:$JA$1134,MATCH("hrp"&RIGHT($G$17,2)&"5",Base!1:1,0),FALSE),"") ->  | H22: =IFERROR(VLOOKUP($D$6,Base!$A$2:$JA$1134,MATCH("hrp"&RIGHT($H$17,2)&"5",Base!1:1,0),FALSE),"") ->  | I22: =IFERROR(VLOOKUP($D$6,Base!$A$2:$JA$1134,MATCH("hrp"&RIGHT($I$17,2)&"5",Base!1:1,0),FALSE),"") -> 
C23: * Los puntajes de los años 2017 y 2018 de los indicadores del IDF corresponden a simulaciones realizadas con la nueva metodología de cálculo y no a resultados oficiales de la entidad territorial.
C25: GESTION FISCAL Y FINANCIERA - AHORRRO CORRIENTE
C28: Costo de la deuda | D28: Secretaría de Hacienda | E28: Reperfilar los tiempos de pago de la deuda | H28: Decreto 2681 de 1993
C29: Costo de la deuda | D29: Secretaría de Hacienda | E29: Renegociaciar de la deuda para acceder a tasas más bajas del mercado | H29: Decreto 2681 2681 DE 1994
C30: Costo de la deuda | D30: Secretaría de Hacienda | E30: Cambiar deuda externa a interna para compensar aumentos del costo en divisas extranjeras | H30: Decreto 2681 2681 DE 1995
C31: Costo de la deuda | D31: Secretaría de Hacienda | E31: Realizar seguimiento a los indicadores de la Ley 358 de 1997 en el horizonte proyectado en el Marco Fiscal de Mediano Plazo | H31: Ley 358 de 1997 y Decreto 2681 DE 1993
C32: Recursos para pago de deuda | D32: Secretaría de Hacienda | E32: Incrementar ingresos corrientes de libre destinación para el pago de deuda | H32: Estatuto Organico de Presupuesto, Decreto 2681 DE 1993, Ley 617 del 2000
C33: Recursos para pago de deuda | D33: Secretaría de Hacienda | E33: Ajustar los niveles de endeudamiento según las proyecciones de ICLD | H33: Ley 358 de 1997, ley 617 del 2000
C34: Recursos para pago de deuda | D34: Secretaría de Hacienda | E34: Establecer metas de ahorro operacional y superávit primario en los cierres fiscales | H34: Ley 819 de 2003

Sheet Base (hidden)
A1: cod | B1: cod2 | C1: nombre | D1: et | E1: region | F1: depar | G1: subreg | H1: cat | I1: capini | J1: var171 | K1: var172 | L1: var173 | M1: var174 | N1: var175 | O1: var176 | P1: var177 | Q1: var178 | R1: var179 | S1: var1710 | T1: var1711 | U1: var1712 | V1: var1713 | W1: var1714 | X1: var1715 | Y1: var1716 | Z1: var1717 | AA1: var1718 | AB1: c171 | AC1: c172 | AD1: c173 | AE1: c174 | AF1: c176 | AG1: c177 | AH1: c178 | AI1: MAX | AJ1: c179 | AK1: c17r | AL1: c17g | AM1: i171 | AN1: i172 | AO1: i173 | AP1: i174 | AQ1: i175 | AR1: i176 | AS1: i177 | AT1: i178 | AU1: i179 | AV1: b171 | AW1: b172 | AX1: i17r | AY1: i17g | AZ1: i17t | BA1: c17 | BB1: var181 | BC1: var182 | BD1: var183 | BE1: var184 | BF1: var185 | BG1: var186 | BH1: var187 | BI1: var188 | BJ1: var189 | BK1: var1810 | BL1: var1811 | BM1: var1812 | BN1: var1813 | BO1: var1814 | BP1: var1815 | BQ1: var1816 | BR1: var1817 | BS1: var1818 | BT1: C181 | BU1: C182 | BV1: C183 | BW1: C184 | BX1: C185 | BY1: C186 | BZ1: C187 | CA1: C188 | CB1: MAX | CC1: C189 | CD1: c18r | CE1: c18g | CF1: i181 | CG1: i182 | CH1: i183 | CI1: i184 | CJ1: i185 | CK1: i186 | CL1: i187 | CM1: i188 | CN1: i189 | CO1: b181 | CP1: b182 | CQ1: i18r | CR1: i18g | CS1: i18t | CT1: c18 | CU1: var191 | CV1: var192 | CW1: var193 | CX1: var194 | CY1: var195 | CZ1: var196 | DA1: var197 | DB1: var198 | DC1: var199 | DD1: var1910 | DE1: var1911 | DF1: var1912 | DG1: var1913 | DH1: var1914 | DI1: var1915 | DJ1: var1916 | DK1: var1917 | DL1: var1918 | DM1: C191 | DN1: C192 | DO1: C193 | DP1: C194 | DQ1: C195 | DR1: C196 | DS1: C197 | DT1: C198 | DU1: MAX | DV1: C199 | DW1: c19r | DX1: c19g | DY1: i191 | DZ1: i192 | EA1: i193 | EB1: i194 | EC1: i195 | ED1: i196 | EE1: i197 | EF1: i198 | EG1: i199 | EH1: b191 | EI1: b192 | EJ1: i19r | EK1: i19g | EL1: i19t | EM1: c19 | EN1: r1 | EO1: r2 | EP1: r3 | EQ1: r4 | ER1: r5 | ES1: r6 | ET1: t1 | EU1: t2 | EV1: t3 | EW1: t4 | EX1: t5 | EY1: t6 | EZ1: P1ian1 | FA1: P2ian1 | FB1: P3ian1 | FC1: P4ian1 | FD1: P5ian1 | FE1: P6ian1 | FF1: P1ian2 | FG1: P2ian2 | FH1: P3ian2 | FI1: P4ian2 | FJ1: P5ian2 | FK1: P6ian2 | FL1: P1ian3 | FM1: P2ian3 | FN1: P3ian3 | FO1: P4ian3 | FP1: P5ian3 | FQ1: P6ian3 | FR1: P1ian4 | FS1: P2ian4 | FT1: P3ian4 | FU1: P4ian4 | FV1: P5ian4 | FW1: P6ian4 | FX1: P1ian5 | FY1: P2ian5 | FZ1: P3ian5 | GA1: P4ian5 | GB1: P5ian5 | GC1: P6ian5 | GD1: P1ian6 | GE1: P2ian6 | GF1: P3ian6 | GG1: P4ian6 | GH1: P5ian6 | GI1: P6ian6 | GJ1: P1ian7 | GK1: P2ian7 | GL1: P3ian7 | GM1: P4ian7 | GN1: P5ian7 | GO1: P6ian7 | GP1: P1ian8 | GQ1: P2ian8 | GR1: P3ian8 | GS1: P4ian8 | GT1: P5ian8 | GU1: P6ian8 | GV1: P1ian9 | GW1: P2ian9 | GX1: P3ian9 | GY1: P4ian9 | GZ1: P5ian9 | HA1: P6ian9 | HB1: P1ian10 | HC1: P2ian10 | HD1: P3ian10 | HE1: P4ian10 | HF1: P5ian10 | HG1: P6ian10 | HH1: P1ian11 | HI1: P2ian11 | HJ1: P3ian11 | HK1: P4ian11 | HL1: P5ian11 | HM1: P6ian11 | HN1: P1ian12 | HO1: P2ian12 | HP1: P3ian12 | HQ1: P4ian12 | HR1: P5ian12 | HS1: P6ian12 | HT1: P1ian13 | HU1: P2ian13 | HV1: P3ian13 | HW1: P4ian13 | HX1: P5ian13 | HY1: P6ian13 | HZ1: P1iant | IA1: P2iant | IB1: P3iant | IC1: P4iant | ID1: P5iant | IE1: P6iant | IF1: hrp164 | IG1: hrp165 | IH1: hrp171 | II1: hrp172 | IJ1: hrp173 | IK1: hrp174 | IL1: hrp175 | IM1: hrp181 | IN1: hrp182 | IO1: hrp183 | IP1: hrp184 | IQ1: hrp185 | IR1: hrp191 | IS1: hrp192 | IT1: hrp193 | IU1: hrp194 | IV1: hrp195
A2: 5 | B2: 05 | C2: ANTIOQUIA | D2: 2 | E2: EJE CAFETERO Y ANTIOQUIA | F2: NA | G2: NA | H2: E | I2: NA | J2: 1263330.898 | K2: 3827801.61 | L2: 1208420.609 | M2: 2659345.501 | P2: 1324890.193 | Q2: 3333049.734 | R2: 1089298.085 | S2: 2212604.617 | T2: 45149.57653 | U2: 3827801.61 | V2: 557809.9804 | W2: 517341.2029 | X2: 3721704.681 | Y2: 4413975.115 | Z2: 55 | AA2: 29.9 | AB2: =(100-AM2) -> 66.99591497 | AC2: =(AN2/(MAX($AN$2:$AN$33))*100) -> 69.24075484 | AD2: =IF(AND(AO2>=0,AO2<=20),100,IF(AND(AO2>20,AO2<=35),80,IF(AND(AO2>35,AO2<=50),60,IF(AND(AO2>50,AO2<=65),40,IF(AND(AO2>65,AO2<=80),20,0))))) -> 20 | AE2: =IF(AP2<100,100-AP2,0) -> 60.24991228 | AF2: =IF(AND(ABS(AR2)<=5),100,IF(AND(ABS(AR2)>5,ABS(AR2)<=10),80,IF(AND(ABS(AR2)>10,ABS(AR2)<=15),60,IF(AND(ABS(AR2)>15,ABS(AR2)<=20),40,IF(AND(ABS(AR2)>20,ABS(AR2)<30),20,0))))) -> 100 | AG2: =IF(AND(ABS(100-AS2)>=0,ABS(100-AS2)<=10),100,IF(AND(ABS(100-AS2)>10,ABS(100-AS2)<=20),80,IF(AND(ABS(100-AS2)>20,ABS(100-AS2)<=30),60,IF(AND(ABS(100-AS2)>30,ABS(100-AS2)<=40),40,IF(AND(ABS(100-AS2)>40,ABS(100-AS2)<=50),20,IF(ABS(100-AS2)>50,0)))))) -> 100 | AH2: =IF(AND(ABS(100-AT2)>=0,ABS(100-AT2)<=10),100,IF(AND(ABS(100-AT2)>10,ABS(100-AT2)<=20),80,IF(AND(ABS(100-AT2)>20,ABS(100-AT2)<=30),60,IF(AND(ABS(100-AT2)>30,ABS(100-AT2)<=40),40,IF(AND(ABS(100-AT2)>40,ABS(100-AT2)<=50),20,IF(ABS(100-AT2)>50,0)))))) -> 80 | AI2: =_xlfn.MAXIFS($AU$2:$AU$33,$H$2:$H$33,$H$2:$H$33) -> 25.1 | AJ2: =IF(AU2*100/AI2>0,AU2*100/AI2,0) -> 100 | AK2: =AX2*0.8 -> 48.76240879 | AL2: =AY2*0.2 -> 18.66666667 | AM2: =(J2/K2)*100 -> 33.00408503 | AN2: =(L2/M2)*100 -> 45.44052694 | AO2: 66 | AP2: =(P2/Q2)*100 -> 39.75008772 | AQ2: =(R2/S2)*100 -> 49.23148386 | AR2: =(T2/U2)*100 -> 1.179517152 | AS2: =(V2/W2)*100 -> 107.822454 | AT2: =(X2/Y2)*100 -> 84.31639471 | AU2: =IFERROR(IF(Z2-AA2>0,Z2-AA2,0),0) -> 25.1 | AV2: NA | AW2: 0 | AX2: =AVERAGE(AB2,AC2,AD2,AE2,AQ2,AF2) -> 60.95301099 | AY2: =AVERAGE(AG2,AH2,AJ2)+AW2 -> 93.33333333 | AZ2: =AK2+AL2 -> 67.42907546 | BA2: =IF(OR(AZ2=999),"6. Sin info.",IF(AZ2=8888,"0. No evaluado",IF(AZ2<40,"1. Deterioro (<40)",IF(AND(AZ2>=40,AZ2<60),"2. Riesgo (>=40 y <60)",IF(AND(AZ2>=60,AZ2<70),"3. Vulnerable (>=60 y <70)",IF(AND(AZ2>=70,AZ2<80),"4. Solvente (>=70 y <80)","5. Sostenible (>=80)")))))) -> 3. Vulnerable (>=60 y <70) | BB2: 1354203.187 | BC2: 4143183.061 | BD2: 1229849.684 | BE2: 3225226.693 | BF2: 1358366 | BG2: 2177680 | BH2: 1324890.193 | BI2: 3333049.734 | BJ2: 1053734.33 | BK2: 2103923.246 | BL2: -36230.14315 | BM2: 4143183.061 | BN2: 2068162.221 | BO2: 2313339.306 | BP2: 2761233.948 | BQ2: 3129845.344 | BR2: 50 | BS2: 35.39407913 | BT2: =100-CF2 -> 67.3149082 | BU2: =(CG2/MAX($CG$2:$CG$33))*100 -> 64.87761275 | BV2: =IF(AND(CH2>=0,CH2<=20),100,IF(AND(CH2>20,CH2<=35),80,IF(AND(CH2>35,CH2<=50),60,IF(AND(CH2>50,CH2<=65),40,IF(AND(CH2>65,CH2<=80),20,0))))) -> 40 | BW2: =IF(CI2<100,100-CI2,0) -> 60.24991228 | BX2: =IF(CJ2>0,CJ2,0) -> 50.0842572 | BY2: =IF(AND(ABS(CK2)<=5),100,IF(AND(ABS(CK2)>5,ABS(CK2)<=10),80,IF(AND(ABS(CK2)>10,ABS(CK2)<=15),60,IF(AND(ABS(CK2)>15,ABS(CK2)<=20),40,IF(AND(ABS(CK2)>20,ABS(CK2)<30),20,0))))) -> 100 | BZ2: =IF(AND(ABS(100-CL2)>=0,ABS(100-CL2)<=10),100,IF(AND(ABS(100-CL2)>10,ABS(100-CL2)<=20),80,IF(AND(ABS(100-CL2)>20,ABS(100-CL2)<=30),60,IF(AND(ABS(100-CL2)>30,ABS(100-CL2)<=40),40,IF(AND(ABS(100-CL2)>40,ABS(100-CL2)<=50),20,IF(ABS(100-CL2)>50,0)))))) -> 80 | CA2: =IF(AND(ABS(100-CM2)>=0,ABS(100-CM2)<=10),100,IF(AND(ABS(100-CM2)>10,ABS(100-CM2)<=20),80,IF(AND(ABS(100-CM2)>20,ABS(100-CM2)<=30),60,IF(AND(ABS(100-CM2)>30,ABS(100-CM2)<=40),40,IF(AND(ABS(100-CM2)>40,ABS(100-CM2)<=50),20,IF(ABS(100-CM2)>50,0)))))) -> 80 | CB2: =_xlfn.MAXIFS($CN$2:$CN$33,$H$2:$H$33,$H$2:$H$33) -> 14.60592087 | CC2: =IF(CN2*100/CB2>0,CN2*100/CB2,0) -> 100 | CD2: =CQ2*0.8 -> 51.00355872 | CE2: =CR2*0.2 -> 17.33333333 | CF2: =(BB2/BC2)*100 -> 32.6850918 | CG2: =(BD2/BE2)*100 -> 38.13219352 | CH2: =(BF2/BG2)*100 -> 62.37674957 | CI2: =(BH2/BI2)*100 -> 39.75008772 | CJ2: =(BJ2/BK2)*100 -> 50.0842572 | CK2: =(BL2/BM2)*100 -> -0.8744519036 | CL2: =(BN2/BO2)*100 -> 89.40159427 | CM2: =(BP2/BQ2)*100 -> 88.22269614 | CN2: =BR2-BS2 -> 14.60592087 | CO2: NA | CP2: 0 | CQ2: =AVERAGE(BT2,BU2,BV2,BW2,BX2,BY2) -> 63.75444841 | CR2: =AVERAGE(BZ2,CA2,CC2)+CP2 -> 86.66666667 | CS2: =CD2+CE2 -> 68.33689206 | CT2: =IF(OR(CS2=999),"6. Sin info.",IF(CS2=8888,"0. No evaluado",IF(CS2<40,"1. Deterioro (<40)",IF(AND(CS2>=40,CS2<60),"2. Riesgo (>=40 y <60)",IF(AND(CS2>=60,CS2<70),"3. Vulnerable (>=60 y <70)",IF(AND(CS2>=70,CS2<80),"4. Solvente (>=70 y <80)","5. Sostenible (>=80)")))))) -> 3. Vulnerable (>=60 y <70) | CU2: 1493225.156 | CV2: 4665246.445 | CW2: 1497996.703 | CX2: 3812101.304 | CY2: 1367851.472 | CZ2: 2716785.483 | DA2: 1265678.259 | DB2: 2625484.045 | DC2: 1447467.358 | DD2: 2598715.101 | DE2: -212484.4417 | DF2: 4665246.445 | DG2: 2300868.927 | DH2: 2265104.808 | DI2: 3548585.729 | DJ2: 3726483.144 | DK2: 50 | DL2: 30.5932378 | DM2: =100-DY2 -> 67.99257716 | DN2: =(DZ2/MAX($DZ$2:$DZ$33))*100 -> 69.38671105 | DO2: =IF(AND(EA2>=0,EA2<=20),100,IF(AND(EA2>20,EA2<=35),80,IF(AND(EA2>35,EA2<=50),60,IF(AND(EA2>50,EA2<=65),40,IF(AND(EA2>65,EA2<=80),20,0))))) -> 40 | DP2: =IF(EB2<100,100-EB2,0) -> 51.79257472 | DQ2: =IF(EC2>0,EC2,0) -> 55.69934762 | DR2: =IF(AND(ABS(ED2)<=5),100,IF(AND(ABS(ED2)>5,ABS(ED2)<=10),80,IF(AND(ABS(ED2)>10,ABS(ED2)<=15),60,IF(AND(ABS(ED2)>15,ABS(ED2)<=20),40,IF(AND(ABS(ED2)>20,ABS(ED2)<30),20,0))))) -> 100 | DS2: =IF(AND(ABS(100-EE2)>=0,ABS(100-EE2)<=10),100,IF(AND(ABS(100-EE2)>10,ABS(100-EE2)<=20),80,IF(AND(ABS(100-EE2)>20,ABS(100-EE2)<=30),60,IF(AND(ABS(100-EE2)>30,ABS(100-EE2)<=40),40,IF(AND(ABS(100-EE2)>40,ABS(100-EE2)<=50),20,IF(ABS(100-EE2)>50,0)))))) -> 100 | DT2: =IF(AND(ABS(100-EF2)>=0,ABS(100-EF2)<=10),100,IF(AND(ABS(100-EF2)>10,ABS(100-EF2)<=20),80,IF(AND(ABS(100-EF2)>20,ABS(100-EF2)<=30),60,IF(AND(ABS(100-EF2)>30,ABS(100-EF2)<=40),40,IF(AND(ABS(100-EF2)>40,ABS(100-EF2)<=50),20,IF(ABS(100-EF2)>50,0)))))) -> 100 | DU2: 19.4067622 | DV2: =IFERROR(IF(EG2*100/DU2>0,EG2*100/DU2,0),0) -> 100 | DW2: =EJ2*0.8 -> 51.31616141 | DX2: =EK2*0.2 -> 20 | DY2: =(CU2/CV2)*100 -> 32.00742284 | DZ2: =(CW2/CX2)*100 -> 39.29582619 | EA2: =(CY2/CZ2)*100 -> 50.3481589 | EB2: =IFERROR(DA2*100/DB2,"nd") -> 48.20742528 | EC2: =(DC2/DD2)*100 -> 55.69934762 | ED2: =(DE2/DF2)*100 -> -4.554624159 | EE2: =(DG2/DH2)*100 -> 101.5789167 | EF2: =(DI2/DJ2)*100 -> 95.22613123 | EG2: 19.4067622 | EH2: NA | EI2: 0.2574949122 | EJ2: =AVERAGE(DM2,DN2,DO2,DP2,DQ2,DR2) -> 64.14520176 | EK2: =IF(AVERAGE(DS2,DT2,DV2)+EI2>100,100,AVERAGE(DS2,DT2,DV2)+EI2) -> 100 | EL2: =DW2+DX2 -> 71.31616141 | EM2: =IF(OR(EL2=999),"6. Sin info.",IF(EL2=8888,"0. No evaluado",IF(EL2<40,"1. Deterioro (<40)",IF(AND(EL2>=40,EL2<60),"2. Riesgo (>=40 y <60)",IF(AND(EL2>=60,EL2<70),"3. Vulnerable (>=60 y <70)",IF(AND(EL2>=70,EL2<80),"4. Solvente (>=70 y <80)","5. Sostenible (>=80)")))))) -> 4. Solvente (>=70 y <80) | EN2: 2 | EO2: =+COUNTIFS($E$2:$E$33,E2,$EN$2:$EN$33,"<"&EN2)+1 -> 1 | EP2: NA | EQ2: NA | ER2: NA | ES2: =+COUNTIFS($H$2:$H$33,H2,$EN$2:$EN$33,"<"&EN2)+1 -> 1 | ET2: 32 | EU2: =+COUNTIFS($ET:$ET,$ET2,$E:$E,$E2) -> 4 | EV2: NA | EW2: NA | EX2: NA | EY2: =+COUNTIFS($ET:$ET,$ET2,$H:$H,$H2) -> 3 | EZ2: =+AVERAGEIFS($DM:$DM,$ET:$ET,$ET2) -> 39.19212543 | FA2: =+AVERAGEIFS($DM$2:$DM$33,$E$2:$E$33,E2) -> 56.37089336 | FB2: NA | FC2: NA | FD2: NA | FE2: =+AVERAGEIFS($DM$2:$DM$33,$H$2:$H$33,H2) -> 67.47588608 | FF2: =+AVERAGEIFS($DN:$DN,$ET:$ET,$ET2) -> 48.11297454 | FG2: =+AVERAGEIFS($DN$2:$DN$33,$E$2:$E$33,E2) -> 41.19088174 | FH2: NA | FI2: NA | FJ2: NA | FK2: =+AVERAGEIFS($DN$2:$DN$33,$H$2:$H$33,H2) -> 51.44057922 | FL2: =+AVERAGEIFS($DO:$DO,$ET:$ET,$ET2) -> 87.5 | FM2: =+AVERAGEIFS($DO$2:$DO$33,$E$2:$E$33,E2) -> 80 | FN2: NA | FO2: NA | FP2: NA | FQ2: =+AVERAGEIFS($DO$2:$DO$33,$H$2:$H$33,H2) -> 66.66666667 | FR2: =+AVERAGEIFS($DP:$DP,$ET:$ET,$ET2) -> 62.84994595 | FS2: =+AVERAGEIFS($DP$2:$DP$33,$E$2:$E$33,E2) -> 68.55445496 | FT2: NA | FU2: NA | FV2: NA | FW2: =+AVERAGEIFS($DP$2:$DP$33,$H$2:$H$33,H2) -> 27.87798585 | FX2: =+AVERAGEIFS($DQ:$DQ,$ET:$ET,$ET2) -> 48.60983704 | FY2: =+AVERAGEIFS($DQ$2:$DQ$33,$E$2:$E$33,E2) -> 53.39461479 | FZ2: NA | GA2: NA | GB2: NA | GC2: =+AVERAGEIFS($DQ$2:$DQ$33,$H$2:$H$33,H2) -> 60.05440638 | GD2: =+AVERAGEIFS($DR:$DR,$ET:$ET,$ET2) -> 76.25 | GE2: =+AVERAGEIFS($DR$2:$DR$33,$E$2:$E$33,E2) -> 90 | GF2: NA | GG2: NA | GH2: NA | GI2: =+AVERAGEIFS($DR$2:$DR$33,$H$2:$H$33,H2) -> 100 | GJ2: =+AVERAGEIFS($DS:$DS,$ET:$ET,$ET2) -> 73.75 | GK2: =+AVERAGEIFS($DS$2:$DS$33,$E$2:$E$33,E2) -> 95 | GL2: NA | GM2: NA | GN2: NA | GO2: =+AVERAGEIFS($DS$2:$DS$33,$H$2:$H$33,H2) -> 100 | GP2: =+AVERAGEIFS($DT:$DT,$ET:$ET,$ET2) -> 87.5 | GQ2: =+AVERAGEIFS($DT$2:$DT$33,$E$2:$E$33,E2) -> 100 | GR2: NA | GS2: NA | GT2: NA | GU2: =+AVERAGEIFS($DT$2:$DT$33,$H$2:$H$33,H2) -> 93.33333333 | GV2: =+AVERAGEIFS($DV:$DV,$ET:$ET,$ET2) -> 21.82227597 | GW2: =+AVERAGEIFS($DV$2:$DV$33,$E$2:$E$33,E2) -> 41.23122156 | GX2: NA | GY2: NA | GZ2: NA | HA2: =+AVERAGEIFS($DV$2:$DV$33,$H$2:$H$33,H2) -> 59.71843483 | HB2: NA | HC2: NA | HD2: NA | HE2: NA | HF2: NA | HG2: NA | HH2: =+AVERAGEIFS($EI:$EI,$ET:$ET,$ET2) -> 0.3108418055 | HI2: =+AVERAGEIFS($EI$2:$EI$33,$E$2:$E$33,E2) -> 0.2158437438 | HJ2: NA | HK2: NA | HL2: NA | HM2: =+AVERAGEIFS($EI$2:$EI$33,$H$2:$H$33,H2) -> 0.2608788909 | HN2: =+AVERAGEIFS($DW:$DW,$ET:$ET,$ET2) -> 48.33531773 | HO2: =+AVERAGEIFS($DW$2:$DW$33,$E$2:$E$33,E2) -> 51.93477931 | HP2: NA | HQ2: NA | HR2: NA | HS2: =+AVERAGEIFS($DW$2:$DW$33,$H$2:$H$33,H2) -> 49.80206989 | HT2: =+AVERAGEIFS($DX:$DX,$ET:$ET,$ET2) -> 12.26302679 | HU2: =+AVERAGEIFS($DX$2:$DX$33,$E$2:$E$33,E2) -> 15.77904211 | HV2: NA | HW2: NA | HX2: NA | HY2: =+AVERAGEIFS($DX$2:$DX$33,$H$2:$H$33,H2) -> 16.90512733 | HZ2: =+AVERAGEIFS($EL:$EL,$ET:$ET,$ET2) -> 60.59834451 | IA2: =+AVERAGEIFS($EL$2:$EL$33,$E$2:$E$33,E2) -> 67.71382142 | IB2: NA | IC2: NA | ID2: NA | IE2: =+AVERAGEIFS($EL$2:$EL$33,$H$2:$H$33,H2) -> 66.70719722 | IF2: NA | IG2: NA | IH2: 49.23148386 | II2: 0 | IJ2: 33.00408503 | IK2: NA | IL2: NA | IM2: 50.0842572 | IN2: 0 | IO2: 32.6850918 | IP2: NA | IQ2: NA | IR2: 55.69934762 | IS2: 0.2574949122 | IT2: 32.00742284 | IU2: NA | IV2: NA
A3: 8 | B3: 08 | C3: ATLANTICO | D3: 2 | E3: CARIBE | F3: NA | G3: NA | H3: 1 | I3: NA | J3: 376758.308 | K3: 1076462.437 | L3: 541523.481 | M3: 975035.6723 | P3: 1562459.634 | Q3: 1983597.7 | R3: 415087.933 | S3: 626846.786 | T3: -110332.0883 | U3: 1076462.437 | V3: 311766.3043 | W3: 282750.015 | X3: 2228377.954 | Y3: 2566896.892 | Z3: 55 | AA3: 51.4 | AB3: 65.00032931 | AC3: 84.62822319 | AD3: 60 | AE3: 21.23102207 | AF3: 60 | AG3: 80 | AH3: 80 | AI3: 35.5 | AJ3: 10.14084507 | AK3: 47.61039705 | AL3: 11.342723 | AM3: 34.99967069 | AN3: 55.53883785 | AO3: 40 | AP3: 78.76897793 | AQ3: 66.21840333 | AR3: -10.24950658 | AS3: 110.2621707 | AT3: 86.8121334 | AU3: 3.6 | AV3: NA | AW3: 0 | AX3: 59.51299632 | AY3: 56.71361502 | AZ3: 58.95312006 | BA3: 2. Riesgo (>=40 y <60) | BB3: 364206.3284 | BC3: 1096226.421 | BD3: 528934.5145 | BE3: 1121052.09 | BF3: 298910 | BG3: 538750 | BH3: 1562459.634 | BI3: 1983597.7 | BJ3: 464649.9219 | BK3: 673857.7949 | BL3: -160198.4281 | BM3: 1096226.421 | BN3: 635836.5151 | BO3: 582241.726 | BP3: 796611.8236 | BQ3: 1047216.976 | BR3: 55 | BS3: 29.10077539 | BT3: 66.7763592 | BU3: 80.27479163 | BV3: 40 | BW3: 21.23102207 | BX3: 68.95370587 | BY3: 60 | BZ3: 100 | CA3: 60 | CB3: 30.23401694 | CC3: 85.66253257 | CD3: 44.96478384 | CE3: 16.37750217 | CF3: 33.2236408 | CG3: 47.18197478 | CH3: 55.48213457 | CI3: 78.76897793 | CJ3: 68.95370587 | CK3: -14.6136259 | CL3: 109.2049035 | CM3: 76.06941463 | CN3: 25.89922461 | CO3: NA | CP3: 0 | CQ3: 56.20597979 | CR3: 81.88751086 | CS3: 61.34228601 | CT3: 3. Vulnerable (>=60 y <70) | CU3: 411793.8626 | CV3: 1185531.549 | CW3: 486452.2539 | CX3: 1224652.377 | CY3: 350140.46 | CZ3: 664972.598 | DA3: 292002.9059 | DB3: 2022293.296 | DC3: 488520.0268 | DD3: 715601.6208 | DE3: -140220.7255 | DF3: 1185531.549 | DG3: 664817.7136 | DH3: 604668.0607 | DI3: 894134.3647 | DJ3: 1098670.68 | DK3: 55 | DL3: 27.30123931 | DM3: 65.26504394 | DN3: 70.13862833 | DO3: 40 | DP3: 85.56080334 | DQ3: 68.26703749 | DR3: 60 | DS3: 100 | DT3: 80 | DU3: 27.69876069 | DV3: 100 | DW3: 51.89753508 | DX3: 18.72021685 | DY3: 34.73495606 | DZ3: 39.72166005 | EA3: 52.65487045 | EB3: 14.43919666 | EC3: 68.26703749 | ED3: -11.82766714 | EE3: 109.9475492 | EF3: 81.38329171 | EG3: 27.69876069 | EH3: NA | EI3: 0.2677509035 | EJ3: 64.87191885 | EK3: 93.60108424 | EL3: 70.61775193 | EM3: 4. Solvente (>=70 y <80) | EN3: 3 | EO3: 1 | EP3: NA | EQ3: NA | ER3: NA | ES3: 1 | ET3: 32 | EU3: 7 | EV3: NA | EW3: NA | EX3: NA | EY3: 6 | EZ3: 39.19212543 | FA3: 37.0814882 | FB3: NA | FC3: NA | FD3: NA | FE3: 46.54158517 | FF3: 48.11297454 | FG3: 49.49263109 | FH3: NA | FI3: NA | FJ3: NA | FK3: 48.02436429 | FL3: 87.5 | FM3: 85.71428571 | FN3: NA | FO3: NA | FP3: NA | FQ3: 80 | FR3: 62.84994595 | FS3: 62.97660963 | FT3: NA | FU3: NA | FV3: NA | FW3: 70.19690334 | FX3: 48.60983704 | FY3: 51.83074711 | FZ3: NA | GA3: NA | GB3: NA | GC3: 51.88673961 | GD3: 76.25 | GE3: 85.71428571 | GF3: NA | GG3: NA | GH3: NA | GI3: 83.33333333 | GJ3: 73.75 | GK3: 88.57142857 | GL3: NA | GM3: NA | GN3: NA | GO3: 86.66666667 | GP3: 87.5 | GQ3: 94.28571429 | GR3: NA | GS3: NA | GT3: NA | GU3: 86.66666667 | GV3: 21.82227597 | GW3: 14.28571429 | GX3: NA | GY3: NA | GZ3: NA | HA3: 21.57151829 | HB3: NA | HC3: NA | HD3: NA | HE3: NA | HF3: NA | HG3: NA | HH3: 0.3108418055 | HI3: 0.1023209302 | HJ3: NA | HK3: NA | HL3: NA | HM3: 0.1889201447 | HN3: 48.33531773 | HO3: 49.70800633 | HP3: NA | HQ3: NA | HR3: NA | HS3: 50.6643901 | HT3: 12.26302679 | HU3: 13.16332133 | HV3: NA | HW3: NA | HX3: NA | HY3: 13.0314408 | HZ3: 60.59834451 | IA3: 62.87132766 | IB3: NA | IC3: NA | ID3: NA | IE3: 63.6958309 | IF3: NA | IG3: NA | IH3: 66.21840333 | II3: 0 | IJ3: 34.99967069 | IK3: NA | IL3: NA | IM3: 68.95370587 | IN3: 0 | IO3: 33.2236408 | IP3: NA | IQ3: NA | IR3: 68.26703749 | IS3: 0.2677509035 | IT3: 34.73495606 | IU3: NA | IV3: NA
A4: 13 | B4: 13 | C4: BOLIVAR | D4: 2 | E4: CARIBE | F4: NA | G4: NA | H4: 1 | I4: NA | J4: 677015.91 | K4: 1155518.541 | L4: 307532.216 | M4: 995580.119 | P4: 456893.6092 | Q4: 870376.2814 | R4: 172800.428 | S4: 369103.409 | T4: -36364.559 | U4: 1155518.541 | V4: 198803.0366 | W4: 204613.7582 | X4: 1307260.954 | Y4: 1377427.397 | Z4: 60 | AA4: 57.2 | AB4: 41.41020797 | AC4: 47.06876865 | AD4: 80 | AE4: 47.50619716 | AF4: 100 | AG4: 100 | AH4: 100 | AI4: 18.4 | AJ4: 15.2173913 | AK4: 48.3735251 | AL4: 14.34782609 | AM4: 58.58979203 | AN4: 30.88975062 | AO4: 24 | AP4: 52.49380284 | AQ4: 46.81626444 | AR4: -3.147033796 | AS4: 97.16015105 | AT4: 94.90597882 | AU4: 2.8 | AV4: NA | AW4: 0 | AX4: 60.46690637 | AY4: 71.73913043 | AZ4: 62.72135118 | BA4: 3. Vulnerable (>=60 y <70) | BB4: 691194.2783 | BC4: 1296385.457 | BD4: 419103.9029 | BE4: 1267293.674 | BF4: 89487 | BG4: 459337 | BH4: 456893.6092 | BI4: 870376.2814 | BJ4: 195420.7405 | BK4: 399509.5485 | BL4: 64987.94654 | BM4: 1296385.457 | BN4: 399509.5485 | BO4: 367308.7218 | BP4: 827840.4792 | BQ4: 1027308.703 | BR4: 55 | BS4: 65.90901649 | BT4: 46.68296575 | BU4: 56.26619033 | BV4: 100 | BW4: 47.50619716 | BX4: 48.91516142 | BY4: 80 | BZ4: 100 | CA4: 80 | CB4: 24.81301135 | CC4: 0 | CD4: 50.58273529 | CE4: 12 | CF4: 53.31703425 | CG4: 33.07077999 | CH4: 19.48177482 | CI4: 52.49380284 | CJ4: 48.91516142 | CK4: 5.013011074 | CL4: 108.7666926 | CM4: 80.58341927 | CN4: -10.90901649 | CO4: NA | CP4: 0 | CQ4: 63.22841911 | CR4: 60 | CS4: 62.58273529 | CT4: 3. Vulnerable (>=60 y <70) | CU4: 769940.5733 | CV4: 1375490.295 | CW4: 485880.2261 | CX4: 1474329.254 | CY4: 121441.836 | CZ4: 520709.3552 | DA4: 391352.3384 | DB4: 2568537.47 | DC4: 193198.3922 | DD4: 416041.5445 | DE4: -20925.74898 | DF4: 1375490.295 | DG4: 416041.5445 | DH4: 391559.8199 | DI4: 984598.6276 | DJ4: 1173572.891 | DK4: 55 | DL4: 47.68974316 | DM4: 44.02428164 | DN4: 58.19217904 | DO4: 80 | DP4: 84.76361186 | DQ4: 46.43728367 | DR4: 100 | DS4: 100 | DT4: 80 | DU4: 27.69876069 | DV4: 0 | DW4: 55.12231416 | DX4: 12.03471352 | DY4: 55.97571836 | DZ4: 32.95601879 | EA4: 23.32238413 | EB4: 15.23638814 | EC4: 46.43728367 | ED4: -1.52133018 | EE4: 106.2523587 | EF4: 83.89752651 | EG4: 0 | EH4: NA | EI4: 0.1735675756 | EJ4: 68.9028927 | EK4: 60.17356758 | EL4: 67.15702768 | EM4: 3. Vulnerable (>=60 y <70) | EN4: 8 | EO4: 2 | EP4: NA | EQ4: NA | ER4: NA | ES4: 3 | ET4: 32 | EU4: 7 | EV4: NA | EW4: NA | EX4: NA | EY4: 6 | EZ4: 39.19212543 | FA4: 37.0814882 | FB4: NA | FC4: NA | FD4: NA | FE4: 46.54158517 | FF4: 48.11297454 | FG4: 49.49263109 | FH4: NA | FI4: NA | FJ4: NA | FK4: 48.02436429 | FL4: 87.5 | FM4: 85.71428571 | FN4: NA | FO4: NA | FP4: NA | FQ4: 80 | FR4: 62.84994595 | FS4: 62.97660963 | FT4: NA | FU4: NA | FV4: NA | FW4: 70.19690334 | FX4: 48.60983704 | FY4: 51.83074711 | FZ4: NA | GA4: NA | GB4: NA | GC4: 51.88673961 | GD4: 76.25 | GE4: 85.71428571 | GF4: NA | GG4: NA | GH4: NA | GI4: 83.33333333 | GJ4: 73.75 | GK4: 88.57142857 | GL4: NA | GM4: NA | GN4: NA | GO4: 86.66666667 | GP4: 87.5 | GQ4: 94.28571429 | GR4: NA | GS4: NA | GT4: NA | GU4: 86.66666667 | GV4: 21.82227597 | GW4: 14.28571429 | GX4: NA | GY4: NA | GZ4: NA | HA4: 21.57151829 | HB4: NA | HC4: NA | HD4: NA | HE4: NA | HF4: NA | HG4: NA | HH4: 0.3108418055 | HI4: 0.1023209302 | HJ4: NA | HK4: NA | HL4: NA | HM4: 0.1889201447 | HN4: 48.33531773 | HO4: 49.70800633 | HP4: NA | HQ4: NA | HR4: NA | HS4: 50.6643901 | HT4: 12.26302679 | HU4: 13.16332133 | HV4: NA | HW4: NA | HX4: NA | HY4: 13.0314408 | HZ4: 60.59834451 | IA4: 62.87132766 | IB4: NA | IC4: NA | ID4: NA | IE4: 63.6958309 | IF4: NA | IG4: NA | IH4: 46.81626444 | II4: 0 | IJ4: 58.58979203 | IK4: NA | IL4: NA | IM4: 48.91516142 | IN4: 0 | IO4: 53.31703425 | IP4: NA | IQ4: NA | IR4: 46.43728367 | IS4: 0.1735675756 | IT4: 55.97571836 | IU4: NA | IV4: NA
A5: 15 | B5: 15 | C5: BOYACA | D5: 2 | E5: CENTRAL | F5: NA | G5: NA | H5: 1 | I5: NA | J5: 601306.867 | K5: 982891.539 | L5: 302069.2244 | M5: 1022349.978 | P5: 366559.9544 | Q5: 2153505.662 | R5: 157340.89 | S5: 318681.198 | T5: -189359.4569 | U5: 982891.539 | V5: 57163.20656 | W5: 58167.945 | X5: 644098.1527 | Y5: 746523.0378 | Z5: 70 | AA5: 59.5 | AB5: 38.82266322 | AC5: 45.02205593 | AD5: 100 | AE5: 82.97845412 | AF5: 40 | AG5: 100 | AH5: 80 | AI5: 35.5 | AJ5: 29.57746479 | AK5: 47.49275709 | AL5: 13.97183099 | AM5: 61.17733678 | AN5: 29.54655752 | AO5: 18 | AP5: 17.02154588 | AQ5: 49.37250487 | AR5: -19.26554959 | AS5: 98.27269394 | AT5: 86.27974223 | AU5: 10.5 | AV5: NA | AW5: 0 | AX5: 59.36594636 | AY5: 69.85915493 | AZ5: 61.46458807 | BA5: 3. Vulnerable (>=60 y <70) | BB5: 610265.7386 | BC5: 1133610.915 | BD5: 334034.1193 | BE5: 1167596.309 | BF5: 99880 | BG5: 327202 | BH5: 366559.9544 | BI5: 2153505.662 | BJ5: 139097.421 | BK5: 319814.3415 | BL5: -35538.54369 | BM5: 1133610.915 | BN5: 306194.9566 | BO5: 307130.5005 | BP5: 800475.699 | BQ5: 955634.8318 | BR5: 55 | BS5: 51.02249717 | BT5: 46.16620832 | BU5: 48.67446521 | BV5: 80 | BW5: 82.97845412 | BX5: 43.49317805 | BY5: 100 | BZ5: 100 | CA5: 80 | CB5: 30.23401694 | CC5: 13.15572072 | CD5: 53.50830743 | CE5: 12.87704805 | CF5: 53.83379168 | CG5: 28.60869949 | CH5: 30.52548579 | CI5: 17.02154588 | CJ5: 43.49317805 | CK5: -3.134986017 | CL5: 99.69539207 | CM5: 83.76376335 | CN5: 3.97750283 | CO5: NA | CP5: 0 | CQ5: 66.88538428 | CR5: 64.38524024 | CS5: 66.38535547 | CT5: 3. Vulnerable (>=60 y <70) | CU5: 675405.0505 | CV5: 1211254.45 | CW5: 369307.1477 | CX5: 1275151.475 | CY5: 122201.008 | CZ5: 383309.2024 | DA5: 394511.6034 | DB5: 1134128.671 | DC5: 172430.5149 | DD5: 368156.4647 | DE5: -111324.5836 | DF5: 1211254.45 | DG5: 337446.0444 | DH5: 331172.5947 | DI5: 896402.1877 | DJ5: 1088559.681 | DK5: 55 | DL5: 46.84850133 | DM5: 44.23920997 | DN5: 51.13942181 | DO5: 80 | DP5: 65.21456398 | DQ5: 46.83620455 | DR5: 80 | DS5: 100 | DT5: 80 | DU5: 27.69876069 | DV5: 29.42910972 | DW5: 48.99058671 | DX5: 13.99415694 | DY5: 55.76079003 | DZ5: 28.9618257 | EA5: 31.88053071 | EB5: 34.78543602 | EC5: 46.83620455 | ED5: -9.190850332 | EE5: 101.8943143 | EF5: 82.34754632 | EG5: 8.151498674 | EH5: NA | EI5: 0.1610814825 | EJ5: 61.23823338 | EK5: 69.97078472 | EL5: 62.98474365 | EM5: 3. Vulnerable (>=60 y <70) | EN5: 17 | EO5: 4 | EP5: NA | EQ5: NA | ER5: NA | ES5: 4 | ET5: 32 | EU5: 4 | EV5: NA | EW5: NA | EX5: NA | EY5: 6 | EZ5: 39.19212543 | FA5: 45.82331044 | FB5: NA | FC5: NA | FD5: NA | FE5: 46.54158517 | FF5: 48.11297454 | FG5: 47.41717216 | FH5: NA | FI5: NA | FJ5: NA | FK5: 48.02436429 | FL5: 87.5 | FM5: 80 | FN5: NA | FO5: NA | FP5: NA | FQ5: 80 | FR5: 62.84994595 | FS5: 62.73009973 | FT5: NA | FU5: NA | FV5: NA | FW5: 70.19690334 | FX5: 48.60983704 | FY5: 51.10010106 | FZ5: NA | GA5: NA | GB5: NA | GC5: 51.88673961 | GD5: 76.25 | GE5: 90 | GF5: NA | GG5: NA | GH5: NA | GI5: 83.33333333 | GJ5: 73.75 | GK5: 95 | GL5: NA | GM5: NA | GN5: NA | GO5: 86.66666667 | GP5: 87.5 | GQ5: 85 | GR5: NA | GS5: NA | GT5: NA | GU5: 86.66666667 | GV5: 21.82227597 | GW5: 33.35847382 | GX5: NA | GY5: NA | GZ5: NA | HA5: 21.57151829 | HB5: NA | HC5: NA | HD5: NA | HE5: NA | HF5: NA | HG5: NA | HH5: 0.3108418055 | HI5: 0.1759640756 | HJ5: NA | HK5: NA | HL5: NA | HM5: 0.1889201447 | HN5: 48.33531773 | HO5: 50.27609112 | HP5: NA | HQ5: NA | HR5: NA | HS5: 50.6643901 | HT5: 12.26302679 | HU5: 14.25909107 | HV5: NA | HW5: NA | HX5: NA | HY5: 13.0314408 | HZ5: 60.59834451 | IA5: 64.53518219 | IB5: NA | IC5: NA | ID5: NA | IE5: 63.6958309 | IF5: NA | IG5: NA | IH5: 49.37250487 | II5: 0 | IJ5: 61.17733678 | IK5: NA | IL5: NA | IM5: 43.49317805 | IN5: 0 | IO5: 53.83379168 | IP5: NA | IQ5: NA | IR5: 46.83620455 | IS5: 0.1610814825 | IT5: 55.76079003 | IU5: NA | IV5: NA
A6: 17 | B6: 17 | C6: CALDAS | D6: 2 | E6: EJE CAFETERO Y ANTIOQUIA | F6: NA | G6: NA | H6: 2 | I6: NA | J6: 341877.328 | K6: 637002.051 | L6: 106885.791 | M6: 495220.8958 | P6: 110777.3708 | Q6: 441702.5556 | R6: 96376.354 | S6: 225470.013 | T6: 12687.49624 | U6: 637002.051 | V6: 125093.2612 | W6: 127317.4672 | X6: 1986690.755 | Y6: 2181867.244 | Z6: 70 | AA6: 35.8 | AB6: 46.3302626 | AC6: 32.88815034 | AD6: 100 | AE6: 74.92036905 | AF6: 100 | AG6: 100 | AH6: 100 | AI6: 34.2 | AJ6: 100 | AK6: 52.91779011 | AL6: 20 | AM6: 53.6697374 | AN6: 21.58345739 | AO6: 6 | AP6: 25.07963095 | AQ6: 42.74464383 | AR6: 1.991751238 | AS6: 98.25302368 | AT6: 91.05461207 | AU6: 34.2 | AV6: NA | AW6: 0 | AX6: 66.14723764 | AY6: 100 | AZ6: 72.91779011 | BA6: 4. Solvente (>=70 y <80) | BB6: 328090.3814 | BC6: 647274.5983 | BD6: 90489.75613 | BE6: 522357.8971 | BF6: 19930 | BG6: 217870 | BH6: 110777.3708 | BI6: 441702.5556 | BJ6: 112696.618 | BK6: 236457.1902 | BL6: 1389.230973 | BM6: 647274.5983 | BN6: 207916.4682 | BO6: 230059.798 | BP6: 511047.7033 | BQ6: 522124.795 | BR6: 60 | BS6: 49.0550892 | BT6: 49.31202579 | BU6: 29.4736774 | BV6: 100 | BW6: 74.92036905 | BX6: 47.66047412 | BY6: 100 | BZ6: 100 | CA6: 100 | CB6: 21.43473544 | CC6: 51.06156234 | CD6: 53.51553952 | CE6: 16.73743749 | CF6: 50.68797421 | CG6: 17.32332499 | CH6: 9.14765686 | CI6: 25.07963095 | CJ6: 47.66047412 | CK6: 0.2146277603 | CL6: 90.37496772 | CM6: 97.87845897 | CN6: 10.9449108 | CO6: NA | CP6: 0 | CQ6: 66.89442439 | CR6: 83.68718745 | CS6: 70.252977 | CT6: 4. Solvente (>=70 y <80) | CU6: 348896.5841 | CV6: 705677.3517 | CW6: 133046.6492 | CX6: 660592.1483 | CY6: 86456.763 | CZ6: 253660.8276 | DA6: 126076.9976 | DB6: 544469.8676 | DC6: 137277.2344 | DD6: 266128.8236 | DE6: -53231.62246 | DF6: 705677.3517 | DG6: 205974.4737 | DH6: 227471.2942 | DI6: 597522.4115 | DJ6: 630057.3849 | DK6: 60 | DL6: 42.71511922 | DM6: 50.55862524 | DN6: 35.56316559 | DO6: 80 | DP6: 76.84408172 | DQ6: 51.58300125 | DR6: 80 | DS6: 100 | DT6: 100 | DU6: 26.62288959 | DV6: 64.92488625 | DW6: 49.93984984 | DX6: 17.71598726 | DY6: 49.44137476 | DZ6: 20.14051326 | EA6: 34.08360835 | EB6: 23.15591828 | EC6: 51.58300125 | ED6: -7.54333724 | EE6: 90.54965572 | EF6: 94.83618886 | EG6: 17.28488078 | EH6: NA | EI6: 0.2716408915 | EJ6: 62.4248123 | EK6: 88.57993631 | EL6: 67.6558371 | EM6: 3. Vulnerable (>=60 y <70) | EN6: 7 | EO6: 3 | EP6: NA | EQ6: NA | ER6: NA | ES6: 4 | ET6: 32 | EU6: 4 | EV6: NA | EW6: NA | EX6: NA | EY6: 9 | EZ6: 39.19212543 | FA6: 56.37089336 | FB6: NA | FC6: NA | FD6: NA | FE6: 44.54741736 | FF6: 48.11297454 | FG6: 41.19088174 | FH6: NA | FI6: NA | FJ6: NA | FK6: 42.17611394 | FL6: 87.5 | FM6: 80 | FN6: NA | FO6: NA | FP6: NA | FQ6: 86.66666667 | FR6: 62.84994595 | FS6: 68.55445496 | FT6: NA | FU6: NA | FV6: NA | FW6: 63.84180029 | FX6: 48.60983704 | FY6: 53.39461479 | FZ6: NA | GA6: NA | GB6: NA | GC6: 49.70660357 | GD6: 76.25 | GE6: 90 | GF6: NA | GG6: NA | GH6: NA | GI6: 77.77777778 | GJ6: 73.75 | GK6: 95 | GL6: NA | GM6: NA | GN6: NA | GO6: 95.55555556 | GP6: 87.5 | GQ6: 100 | GR6: NA | GS6: NA | GT6: NA | GU6: 88.88888889 | GV6: 21.82227597 | GW6: 41.23122156 | GX6: NA | GY6: NA | GZ6: NA | HA6: 32.1920463 | HB6: NA | HC6: NA | HD6: NA | HE6: NA | HF6: NA | HG6: NA | HH6: 0.3108418055 | HI6: 0.2158437438 | HJ6: NA | HK6: NA | HL6: NA | HM6: 0.2567170583 | HN6: 48.33531773 | HO6: 51.93477931 | HP6: NA | HQ6: NA | HR6: NA | HS6: 48.62885061 | HT6: 12.26302679 | HU6: 15.77904211 | HV6: NA | HW6: NA | HX6: NA | HY6: 14.48541833 | HZ6: 60.59834451 | IA6: 67.71382142 | IB6: NA | IC6: NA | ID6: NA | IE6: 63.11426895 | IF6: NA | IG6: NA | IH6: 42.74464383 | II6: 0 | IJ6: 53.6697374 | IK6: NA | IL6: NA | IM6: 47.66047412 | IN6: 0 | IO6: 50.68797421 | IP6: NA | IQ6: NA | IR6: 51.58300125 | IS6: 0.2716408915 | IT6: 49.44137476 | IU6: NA | IV6: NA
A7: 18 | B7: 18 | C7: CAQUETA | D7: 2 | E7: AMAZONÍA | F7: NA | G7: NA | H7: 4 | I7: NA | J7: 212576.377 | K7: 328412.43 | L7: 60163.65598 | M7: 311738.9156 | P7: 217703.3034 | Q7: 935318.1057 | R7: 28066.692 | S7: 67500.568 | T7: -9100.519456 | U7: 328412.43 | V7: 140254.1385 | W7: 145133.0145 | X7: 1630161.572 | Y7: 1817484.908 | Z7: 60 | AA7: 52.6 | AB7: 35.27151911 | AC7: 29.4077389 | AD7: 100 | AE7: 76.72414315 | AF7: 100 | AG7: 100 | AH7: 80 | AI7: 27.6 | AJ7: 26.8115942 | AK7: 51.06444476 | AL7: 13.78743961 | AM7: 64.72848089 | AN7: 19.29937296 | AO7: 0 | AP7: 23.27585685 | AQ7: 41.57993456 | AR7: -2.771064255 | AS7: 96.63834167 | AT7: 89.69326589 | AU7: 7.4 | AV7: NA | AW7: 0 | AX7: 63.83055595 | AY7: 68.93719807 | AZ7: 64.85188438 | BA7: 3. Vulnerable (>=60 y <70) | BB7: 230388.8848 | BC7: 347369.0654 | BD7: 89432.23741 | BE7: 395389.9249 | BF7: 0 | BG7: 114137 | BH7: 217703.3034 | BI7: 935318.1057 | BJ7: 37274.26578 | BK7: 78953.71747 | BL7: 10845.618 | BM7: 347369.0654 | BN7: 75878.59776 | BO7: 68083.984 | BP7: 273529.1968 | BQ7: 294843.9957 | BR7: 70 | BS7: 51.05992484 | BT7: 33.67605013 | BU7: 38.48323476 | BV7: 100 | BW7: 76.72414315 | BX7: 47.21027328 | BY7: 100 | BZ7: 80 | CA7: 100 | CB7: 35.19024193 | CC7: 53.82195211 | CD7: 52.81249351 | CE7: 15.61758103 | CF7: 66.32394987 | CG7: 22.61874463 | CH7: 0 | CI7: 23.27585685 | CJ7: 47.21027328 | CK7: 3.122217573 | CL7: 111.4485277 | CM7: 92.77082147 | CN7: 18.94007516 | CO7: NA | CP7: 0.1472544329 | CQ7: 66.01561689 | CR7: 78.08790514 | CS7: 68.43007454 | CT7: 3. Vulnerable (>=60 y <70) | CU7: 242042.9663 | CV7: 331399.3089 | CW7: 144012.0682 | CX7: 464226.9633 | CY7: 0 | CZ7: 111370.3871 | DA7: 644512.9587 | DB7: 420308.5752 | DC7: 31827.10085 | DD7: 78003.18094 | DE7: -34388.97031 | DF7: 331399.3089 | DG7: 69337.6434 | DH7: 73984.174 | DI7: 278894.6878 | DJ7: 319612.1991 | DK7: 70 | DL7: 64.67426833 | DM7: 26.96334609 | DN7: 54.77702024 | DO7: 100 | DP7: 0 | DQ7: 40.80231148 | DR7: 60 | DS7: 100 | DT7: 80 | DU7: 5.801157982 | DV7: 0 | DW7: 37.67235704 | DX7: 12.0566032 | DY7: 73.03665391 | DZ7: 31.02190944 | EA7: 0 | EB7: 153.342805 | EC7: 40.80231148 | ED7: -10.37689862 | EE7: 93.71956144 | EF7: 87.26033881 | EG7: 0 | EH7: NA | EI7: 0.2830160038 | EJ7: 47.0904463 | EK7: 60.283016 | EL7: 49.72896024 | EM7: 2. Riesgo (>=40 y <60) | EN7: 29 | EO7: 4 | EP7: NA | EQ7: NA | ER7: NA | ES7: 7 | ET7: 32 | EU7: 6 | EV7: NA | EW7: NA | EX7: NA | EY7: 10 | EZ7: 39.19212543 | FA7: 21.78816164 | FB7: NA | FC7: NA | FD7: NA | FE7: 22.53890792 | FF7: 48.11297454 | FG7: 51.96666134 | FH7: NA | FI7: NA | FJ7: NA | FK7: 52.39217328 | FL7: 87.5 | FM7: 96.66666667 | FN7: NA | FO7: NA | FP7: NA | FQ7: 94 | FR7: 62.84994595 | FS7: 46.86921324 | FT7: NA | FU7: NA | FV7: NA | FW7: 60.14770097 | FX7: 48.60983704 | FY7: 42.68525603 | FZ7: NA | GA7: NA | GB7: NA | GC7: 42.39898516 | GD7: 76.25 | GE7: 66.66666667 | GF7: NA | GG7: NA | GH7: NA | GI7: 64 | GJ7: 73.75 | GK7: 36.66666667 | GL7: NA | GM7: NA | GN7: NA | GO7: 40 | GP7: 87.5 | GQ7: 80 | GR7: NA | GS7: NA | GT7: NA | GU7: 84 | GV7: 21.82227597 | GW7: 16.66666667 | GX7: NA | GY7: NA | GZ7: NA | HA7: 10 | HB7: NA | HC7: NA | HD7: NA | HE7: NA | HF7: NA | HG7: NA | HH7: 0.3108418055 | HI7: 0.879466645 | HJ7: NA | HK7: NA | HL7: NA | HM7: 0.5389893082 | HN7: 48.33531773 | HO7: 43.55235008 | HP7: NA | HQ7: NA | HR7: NA | HS7: 44.73036898 | HT7: 12.26302679 | HU7: 9.064782218 | HV7: NA | HW7: NA | HX7: NA | HY7: 9.041131195 | HZ7: 60.59834451 | IA7: 52.6171323 | IB7: NA | IC7: NA | ID7: NA | IE7: 53.77150017 | IF7: NA | IG7: NA | IH7: 41.57993456 | II7: 0 | IJ7: 64.72848089 | IK7: NA | IL7: NA | IM7: 47.21027328 | IN7: 0.1472544329 | IO7: 66.32394987 | IP7: NA | IQ7: NA | IR7: 40.80231148 | IS7: 0.2830160038 | IT7: 73.03665391 | IU7: NA | IV7: NA
A8: 19 | B8: 19 | C8: CAUCA | D8: 2 | E8: PACÍFICO | F8: NA | G8: NA | H8: 3 | I8: NA | J8: 785470.83 | K8: 1015548.816 | L8: 90707.9249 | M8: 903249.6689 | P8: 142053.9888 | Q8: 1156553.717 | R8: 76885.54 | S8: 165515.838 | T8: 24820.13 | U8: 1015548.816 | V8: 1184888.096 | W8: 1080780.271 | X8: 3966533.559 | Y8: 4632866.931 | Z8: 50 | AA8: 43 | AB8: 22.6555319 | AC8: 15.30226982 | AD8: 100 | AE8: 87.71747592 | AF8: 100 | AG8: 100 | AH8: 80 | AI8: 18.4 | AJ8: 38.04347826 | AK8: 49.61698026 | AL8: 14.53623188 | AM8: 77.3444681 | AN8: 10.0423978 | AO8: 5 | AP8: 12.28252408 | AQ8: 46.45207427 | AR8: 2.444011515 | AS8: 109.6326541 | AT8: 85.6172564 | AU8: 7 | AV8: NA | AW8: 0 | AX8: 62.02122532 | AY8: 72.68115942 | AZ8: 64.15321214 | BA8: 3. Vulnerable (>=60 y <70) | BB8: 817191.2908 | BC8: 1017376.091 | BD8: 127965.2128 | BE8: 1061640.068 | BF8: 9236 | BG8: 291890 | BH8: 142053.9888 | BI8: 1156553.717 | BJ8: 83857.12294 | BK8: 176280.4279 | BL8: -14370.53025 | BM8: 1017376.091 | BN8: 140623.4552 | BO8: 158897.8606 | BP8: 897267.0684 | BQ8: 938462.9598 | BR8: 70 | BS8: 58.77255093 | BT8: 19.67657804 | BU8: 20.5077349 | BV8: 100 | BW8: 87.71747592 | BX8: 47.57029692 | BY8: 100 | BZ8: 80 | CA8: 100 | CB8: 24.81301135 | CC8: 45.2482325 | CD8: 50.06294477 | CE8: 15.01654883 | CF8: 80.32342196 | CG8: 12.05354024 | CH8: 3.164205694 | CI8: 12.28252408 | CJ8: 47.57029692 | CK8: -1.412509137 | CL8: 88.49927534 | CM8: 95.61028051 | CN8: 11.22744907 | CO8: NA | CP8: 0 | CQ8: 62.57868096 | CR8: 75.08274417 | CS8: 65.0794936 | CT8: 3. Vulnerable (>=60 y <70) | CU8: 896074.134 | CV8: 1163793.601 | CW8: 156057.8667 | CX8: 1173471.771 | CY8: 5693.345 | CZ8: 294212.5384 | DA8: 30409.96451 | DB8: 1509634.764 | DC8: 88371.26077 | DD8: 194530.063 | DE8: -16817.83978 | DF8: 1163793.601 | DG8: 181568.9637 | DH8: 175891.3525 | DI8: 1019464.883 | DJ8: 1073754.197 | DK8: 70 | DL8: 51.10836011 | DM8: 23.00403326 | DN8: 23.48242249 | DO8: 100 | DP8: 97.98560783 | DQ8: 45.4280739 | DR8: 100 | DS8: 100 | DT8: 100 | DU8: 0 | DV8: 0 | DW8: 51.986685 | DX8: 13.36832549 | DY8: 76.99596674 | DZ8: 13.29881729 | EA8: 1.935112974 | EB8: 2.014392172 | EC8: 45.4280739 | ED8: -1.445087837 | EE8: 103.2279081 | EF8: 94.94397189 | EG8: 0 | EH8: NA | EI8: 0.1749607619 | EJ8: 64.98335625 | EK8: 66.84162743 | EL8: 65.35501048 | EM8: 3. Vulnerable (>=60 y <70) | EN8: 10 | EO8: 1 | EP8: NA | EQ8: NA | ER8: NA | ES8: 2 | ET8: 32 | EU8: 4 | EV8: NA | EW8: NA | EX8: NA | EY8: 4 | EZ8: 39.19212543 | FA8: 36.89303215 | FB8: NA | FC8: NA | FD8: NA | FE8: 36.53875227 | FF8: 48.11297454 | FG8: 28.88676438 | FH8: NA | FI8: NA | FJ8: NA | FK8: 48.41012594 | FL8: 87.5 | FM8: 90 | FN8: NA | FO8: NA | FP8: NA | FQ8: 100 | FR8: 62.84994595 | FS8: 65.53456904 | FT8: NA | FU8: NA | FV8: NA | FW8: 82.58242014 | FX8: 48.60983704 | FY8: 43.02354738 | FZ8: NA | GA8: NA | GB8: NA | GC8: 48.1704612 | GD8: 76.25 | GE8: 90 | GF8: NA | GG8: NA | GH8: NA | GI8: 75 | GJ8: 73.75 | GK8: 80 | GL8: NA | GM8: NA | GN8: NA | GO8: 70 | GP8: 87.5 | GQ8: 95 | GR8: NA | GS8: NA | GT8: NA | GU8: 90 | GV8: 21.82227597 | GW8: 0 | GX8: NA | GY8: NA | GZ8: NA | HA8: 0 | HB8: NA | HC8: NA | HD8: NA | HE8: NA | HF8: NA | HG8: NA | HH8: 0.3108418055 | HI8: 0.2350654419 | HJ8: NA | HK8: NA | HL8: NA | HM8: 0.08260840697 | HN8: 48.33531773 | HO8: 47.24505506 | HP8: NA | HQ8: NA | HR8: NA | HS8: 52.09356794 | HT8: 12.26302679 | HU8: 11.71367976 | HV8: NA | HW8: NA | HX8: NA | HY8: 10.68318835 | HZ8: 60.59834451 | IA8: 58.95873482 | IB8: NA | IC8: NA | ID8: NA | IE8: 62.77675629 | IF8: NA | IG8: NA | IH8: 46.45207427 | II8: 0 | IJ8: 77.3444681 | IK8: NA | IL8: NA | IM8: 47.57029692 | IN8: 0 | IO8: 80.32342196 | IP8: NA | IQ8: NA | IR8: 45.4280739 | IS8: 0.1749607619 | IT8: 76.99596674 | IU8: NA | IV8: NA
A9: 20 | B9: 20 | C9: CESAR | D9: 2 | E9: CARIBE | F9: NA | G9: NA | H9: 2 | I9: NA | J9: 474529.443 | K9: 663631.082 | L9: 253602.9346 | M9: 776387.9486 | P9: 69789.78422 | Q9: 671683.2258 | R9: 63963.037 | S9: 149403.726 | T9: -92770.41504 | U9: 663631.082 | V9: 64640.68818 | W9: 77137.55737 | X9: 821485.5474 | Y9: 931781.5174 | Z9: 70 | AA9: 81.6 | AB9: 28.4949943 | AC9: 49.77301215 | AD9: 40 | AE9: 89.60971757 | AF9: 60 | AG9: 80 | AH9: 80 | AI9: 18.4 | AJ9: 0 | AK9: 41.42532454 | AL9: 10.66666667 | AM9: 71.5050057 | AN9: 32.66446047 | AO9: 51 | AP9: 10.39028243 | AQ9: 42.81221005 | AR9: -13.97921489 | AS9: 83.79924175 | AT9: 88.16289356 | AU9: 0 | AV9: NA | AW9: 0 | AX9: 51.78165568 | AY9: 53.33333333 | AZ9: 52.09199121 | BA9: 2. Riesgo (>=40 y <60) | BB9: 499754.177 | BC9: 692758.6987 | BD9: 265032.5029 | BE9: 824570.0298 | BF9: 177735 | BG9: 249438 | BH9: 69789.78422 | BI9: 671683.2258 | BJ9: 79448.66609 | BK9: 166548.8237 | BL9: 16653.89892 | BM9: 692758.6987 | BN9: 143060.2147 | BO9: 149298.8475 | BP9: 551541.7529 | BQ9: 589004.6969 | BR9: 60 | BS9: 53.67660072 | BT9: 27.86028123 | BU9: 54.685812 | BV9: 20 | BW9: 89.60971757 | BX9: 47.70292839 | BY9: 100 | BZ9: 100 | CA9: 100 | CB9: 24.81301135 | CC9: 25.48420742 | CD9: 45.31449856 | CE9: 15.03228049 | CF9: 72.13971877 | CG9: 32.14190346 | CH9: 71.2541794 | CI9: 10.39028243 | CJ9: 47.70292839 | CK9: 2.403997085 | CL9: 95.82137908 | CM9: 93.6396188 | CN9: 6.323399281 | CO9: NA | CP9: 0 | CQ9: 56.6431232 | CR9: 75.16140247 | CS9: 60.34677905 | CT9: 3. Vulnerable (>=60 y <70) | CU9: 570942.4316 | CV9: 844127.4451 | CW9: 332039.6882 | CX9: 1030498.405 | CY9: 92296.94748 | CZ9: 294710.2089 | DA9: 60186.99855 | DB9: 688096.1798 | DC9: 86535.72912 | DD9: 176674.5526 | DE9: 43591.6257 | DF9: 844127.4451 | DG9: 160754.8338 | DH9: 160376.4536 | DI9: 683656.873 | DJ9: 710396.996 | DK9: 60 | DL9: 58.38214074 | DM9: 32.36300573 | DN9: 56.89479692 | DO9: 80 | DP9: 91.25311253 | DQ9: 48.98030184 | DR9: 80 | DS9: 100 | DT9: 100 | DU9: 26.62288959 | DV9: 0 | DW9: 51.93216227 | DX9: 13.33333333 | DY9: 67.63699427 | DZ9: 32.22127144 | EA9: 31.31786572 | EB9: 8.746887473 | EC9: 48.98030184 | ED9: 5.164104775 | EE9: 100.2359325 | EF9: 96.2358902 | EG9: 0 | EH9: NA | EI9: 0 | EJ9: 64.91520284 | EK9: 66.66666667 | EL9: 65.2654956 | EM9: 3. Vulnerable (>=60 y <70) | EN9: 11 | EO9: 4 | EP9: NA | EQ9: NA | ER9: NA | ES9: 5 | ET9: 32 | EU9: 7 | EV9: NA | EW9: NA | EX9: NA | EY9: 9 | EZ9: 39.19212543 | FA9: 37.0814882 | FB9: NA | FC9: NA | FD9: NA | FE9: 44.54741736 | FF9: 48.11297454 | FG9: 49.49263109 | FH9: NA | FI9: NA | FJ9: NA | FK9: 42.17611394 | FL9: 87.5 | FM9: 85.71428571 | FN9: NA | FO9: NA | FP9: NA | FQ9: 86.66666667 | FR9: 62.84994595 | FS9: 62.97660963 | FT9: NA | FU9: NA | FV9: NA | FW9: 63.84180029 | FX9: 48.60983704 | FY9: 51.83074711 | FZ9: NA | GA9: NA | GB9: NA | GC9: 49.70660357 | GD9: 76.25 | GE9: 85.71428571 | GF9: NA | GG9: NA | GH9: NA | GI9: 77.77777778 | GJ9: 73.75 | GK9: 88.57142857 | GL9: NA | GM9: NA | GN9: NA | GO9: 95.55555556 | GP9: 87.5 | GQ9: 94.28571429 | GR9: NA | GS9: NA | GT9: NA | GU9: 88.88888889 | GV9: 21.82227597 | GW9: 14.28571429 | GX9: NA | GY9: NA | GZ9: NA | HA9: 32.1920463 | HB9: NA | HC9: NA | HD9: NA | HE9: NA | HF9: NA | HG9: NA | HH9: 0.3108418055 | HI9: 0.1023209302 | HJ9: NA | HK9: NA | HL9: NA | HM9: 0.2567170583 | HN9: 48.33531773 | HO9: 49.70800633 | HP9: NA | HQ9: NA | HR9: NA | HS9: 48.62885061 | HT9: 12.26302679 | HU9: 13.16332133 | HV9: NA | HW9: NA | HX9: NA | HY9: 14.48541833 | HZ9: 60.59834451 | IA9: 62.87132766 | IB9: NA | IC9: NA | ID9: NA | IE9: 63.11426895 | IF9: NA | IG9: NA | IH9: 42.81221005 | II9: 0 | IJ9: 71.5050057 | IK9: NA | IL9: NA | IM9: 47.70292839 | IN9: 0 | IO9: 72.13971877 | IP9: NA | IQ9: NA | IR9: 48.98030184 | IS9: 0 | IT9: 67.63699427 | IU9: NA | IV9: NA
A10: 23 | B10: 23 | C10: CORDOBA | D10: 2 | E10: CARIBE | F10: NA | G10: NA | H10: 1 | I10: NA | J10: 663804.331 | K10: 1014917.788 | L10: 238051.478 | M10: 954216.3331 | P10: 1919232.015 | Q10: 827464.5665 | R10: 85256.838 | S10: 208455.446 | T10: -53235.93494 | U10: 1014917.788 | V10: 65401.44953 | W10: 62931.02219 | X10: 1215693.823 | Y10: 1370675.08 | Z10: 70 | AA10: 70.6 | AB10: 34.59526093 | AC10: 38.01390378 | AD10: 100 | AE10: 0 | AF10: 80 | AG10: 100 | AH10: 80 | AI10: 34.2 | AJ10: 0 | AK10: 39.13446323 | AL10: 12 | AM10: 65.40473907 | AN10: 24.94732795 | AO10: 15 | AP10: 231.941293 | AQ10: 40.89930949 | AR10: -5.245344556 | AS10: 103.9256113 | AT10: 88.6930711 | AU10: 0 | AV10: NA | AW10: 0 | AX10: 48.91807903 | AY10: 60 | AZ10: 51.13446323 | BA10: 2. Riesgo (>=40 y <60) | BB10: 726744.8768 | BC10: 1047491.628 | BD10: 238461.4905 | BE10: 1057271.086 | BF10: 31739 | BG10: 254303 | BH10: 1919232.015 | BI10: 827464.5665 | BJ10: 87032.68066 | BK10: 214852.4887 | BL10: -23707.25951 | BM10: 1047491.628 | BN10: 208397.2904 | BO10: 194319.5772 | BP10: 892178.4078 | BQ10: 945643.9965 | BR10: 55 | BS10: 55.8239307 | BT10: 30.62045962 | BU10: 38.37381446 | BV10: 100 | BW10: 0 | BX10: 40.50810916 | BY10: 100 | BZ10: 100 | CA10: 100 | CB10: 21.43473544 | CC10: 0 | CD10: 41.26698443 | CE10: 13.33333333 | CF10: 69.37954038 | CG10: 22.55443221 | CH10: 12.4807808 | CI10: 231.941293 | CJ10: 40.50810916 | CK10: -2.263240954 | CL10: 107.2446191 | CM10: 94.34611874 | CN10: -0.8239307 | CO10: NA | CP10: 0 | CQ10: 51.58373054 | CR10: 66.66666667 | CS10: 54.60031777 | CT10: 2. Riesgo (>=40 y <60) | CU10: 829458.8139 | CV10: 1133923.115 | CW10: 177096.5595 | CX10: 1093500.505 | CY10: 54852.149 | CZ10: 320643.0394 | DA10: 1772426.288 | DB10: 762258.8396 | DC10: 89476.33383 | DD10: 217052.2627 | DE10: -16102.05554 | DF10: 1133923.115 | DG10: 208617.7626 | DH10: 233837.7405 | DI10: 978324.1492 | DJ10: 1022449.242 | DK10: 55 | DL10: 43.03532338 | DM10: 26.85052429 | DN10: 28.5970355 | DO10: 100 | DP10: 0 | DQ10: 41.22340523 | DR10: 100 | DS10: 80 | DT10: 100 | DU10: 27.69876069 | DV10: 0 | DW10: 39.55612867 | DX10: 12.01607574 | DY10: 73.14947571 | DZ10: 16.19537977 | EA10: 17.10692024 | EB10: 232.5228907 | EC10: 41.22340523 | ED10: -1.420030628 | EE10: 89.21475299 | EF10: 95.68437325 | EG10: 0 | EH10: NA | EI10: 0.08037870583 | EJ10: 49.44516084 | EK10: 60.08037871 | EL10: 51.57220441 | EM10: 2. Riesgo (>=40 y <60) | EN10: 27 | EO10: 7 | EP10: NA | EQ10: NA | ER10: NA | ES10: 6 | ET10: 32 | EU10: 7 | EV10: NA | EW10: NA | EX10: NA | EY10: 6 | EZ10: 39.19212543 | FA10: 37.0814882 | FB10: NA | FC10: NA | FD10: NA | FE10: 46.54158517 | FF10: 48.11297454 | FG10: 49.49263109 | FH10: NA | FI10: NA | FJ10: NA | FK10: 48.02436429 | FL10: 87.5 | FM10: 85.71428571 | FN10: NA | FO10: NA | FP10: NA | FQ10: 80 | FR10: 62.84994595 | FS10: 62.97660963 | FT10: NA | FU10: NA | FV10: NA | FW10: 70.19690334 | FX10: 48.60983704 | FY10: 51.83074711 | FZ10: NA | GA10: NA | GB10: NA | GC10: 51.88673961 | GD10: 76.25 | GE10: 85.71428571 | GF10: NA | GG10: NA | GH10: NA | GI10: 83.33333333 | GJ10: 73.75 | GK10: 88.57142857 | GL10: NA | GM10: NA | GN10: NA | GO10: 86.66666667 | GP10: 87.5 | GQ10: 94.28571429 | GR10: NA | GS10: NA | GT10: NA | GU10: 86.66666667 | GV10: 21.82227597 | GW10: 14.28571429 | GX10: NA | GY10: NA | GZ10: NA | HA10: 21.57151829 | HB10: NA | HC10: NA | HD10: NA | HE10: NA | HF10: NA | HG10: NA | HH10: 0.3108418055 | HI10: 0.1023209302 | HJ10: NA | HK10: NA | HL10: NA | HM10: 0.1889201447 | HN10: 48.33531773 | HO10: 49.70800633 | HP10: NA | HQ10: NA | HR10: NA | HS10: 50.6643901 | HT10: 12.26302679 | HU10: 13.16332133 | HV10: NA | HW10: NA | HX10: NA | HY10: 13.0314408 | HZ10: 60.59834451 | IA10: 62.87132766 | IB10: NA | IC10: NA | ID10: NA | IE10: 63.6958309 | IF10: NA | IG10: NA | IH10: 40.89930949 | II10: 0 | IJ10: 65.40473907 | IK10: NA | IL10: NA | IM10: 40.50810916 | IN10: 0 | IO10: 69.37954038 | IP10: NA | IQ10: NA | IR10: 41.22340523 | IS10: 0.08037870583 | IT10: 73.14947571 | IU10: NA | IV10: NA
A11: 25 | B11: 25 | C11: CUNDINAMARCA | D11: 2 | E11: CENTRAL | F11: NA | G11: NA | H11: E | I11: NA | J11: 789786.468 | K11: 2201520.121 | L11: 853099.89 | M11: 1896250.436 | P11: 351619.8657 | Q11: 983841.34 | R11: 764172.722 | S11: 1367815.052 | T11: -298372.6451 | U11: 2201520.121 | V11: 191642.9641 | W11: 180664.5253 | X11: 2095675.609 | Y11: 2394086.331 | Z11: 60 | AA11: 36.1 | AB11: 64.12540315 | AC11: 68.55239419 | AD11: 80 | AE11: 64.26051118 | AF11: 60 | AG11: 100 | AH11: 80 | AI11: 25.1 | AJ11: 95.21912351 | AK11: 52.3741921 | AL11: 18.34794157 | AM11: 35.87459685 | AN11: 44.98877753 | AO11: 30 | AP11: 35.73948882 | AQ11: 55.86813224 | AR11: -13.5530283 | AS11: 106.0766987 | AT11: 87.53550705 | AU11: 23.9 | AV11: NA | AW11: 0 | AX11: 65.46774013 | AY11: 91.73970784 | AZ11: 70.72213367 | BA11: 4. Solvente (>=70 y <80) | BB11: 850200.8483 | BC11: 2222686.992 | BD11: 635947.8564 | BE11: 1947537.815 | BF11: 677824 | BG11: 1291855 | BH11: 351619.8657 | BI11: 983841.34 | BJ11: 816749.1745 | BK11: 1340514.297 | BL11: -173575.4984 | BM11: 2222686.992 | BN11: 1339434.832 | BO11: 1361119.617 | BP11: 1684324.744 | BQ11: 1872497.369 | BR11: 50 | BS11: 37.75222586 | BT11: 61.7489619 | BU11: 55.55698659 | BV11: 40 | BW11: 64.26051118 | BX11: 60.92804654 | BY11: 80 | BZ11: 100 | CA11: 80 | CB11: 14.60592087 | CC11: 83.85485754 | CD11: 48.33260083 | CE11: 17.59032384 | CF11: 38.2510381 | CG11: 32.65394138 | CH11: 52.46904645 | CI11: 35.73948882 | CJ11: 60.92804654 | CK11: -7.80926415 | CL11: 98.4068421 | CM11: 89.95071354 | CN11: 12.24777414 | CO11: NA | CP11: 0 | CQ11: 60.41575104 | CR11: 87.95161918 | CS11: 65.92292466 | CT11: 3. Vulnerable (>=60 y <70) | CU11: 912880.3627 | CV11: 2463993.136 | CW11: 613198.6047 | CX11: 1962162.58 | CY11: 599891.516 | CZ11: 1529437.074 | DA11: 5691061.3 | DB11: 1030075.56 | DC11: 943499.3524 | DD11: 1472354.698 | DE11: -27024.78919 | DF11: 2463993.136 | DG11: 1394802.519 | DH11: 1322269.832 | DI11: 1865895.454 | DJ11: 1962162.58 | DK11: 50 | DL11: 34.63851829 | DM11: 62.95118077 | DN11: 55.1818234 | DO11: 60 | DP11: 0 | DQ11: 64.08098224 | DR11: 100 | DS11: 100 | DT11: 100 | DU11: 19.4067622 | DV11: 79.15530449 | DW11: 45.62853152 | DX11: 18.6339324 | DY11: 37.04881923 | DZ11: 31.25116191 | EA11: 39.22302698 | EB11: 552.4896934 | EC11: 64.08098224 | ED11: -1.096788331 | EE11: 105.4854678 | EF11: 95.09382523 | EG11: 15.36148171 | EH11: NA | EI11: 0.117893821 | EJ11: 57.0356644 | EK11: 93.16966199 | EL11: 64.26246392 | EM11: 3. Vulnerable (>=60 y <70) | EN11: 13 | EO11: 2 | EP11: NA | EQ11: NA | ER11: NA | ES11: 3 | ET11: 32 | EU11: 4 | EV11: NA | EW11: NA | EX11: NA | EY11: 3 | EZ11: 39.19212543 | FA11: 45.82331044 | FB11: NA | FC11: NA | FD11: NA | FE11: 67.47588608 | FF11: 48.11297454 | FG11: 47.41717216 | FH11: NA | FI11: NA | FJ11: NA | FK11: 51.44057922 | FL11: 87.5 | FM11: 80 | FN11: NA | FO11: NA | FP11: NA | FQ11: 66.66666667 | FR11: 62.84994595 | FS11: 62.73009973 | FT11: NA | FU11: NA | FV11: NA | FW11: 27.87798585 | FX11: 48.60983704 | FY11: 51.10010106 | FZ11: NA | GA11: NA | GB11: NA | GC11: 60.05440638 | GD11: 76.25 | GE11: 90 | GF11: NA | GG11: NA | GH11: NA | GI11: 100 | GJ11: 73.75 | GK11: 95 | GL11: NA | GM11: NA | GN11: NA | GO11: 100 | GP11: 87.5 | GQ11: 85 | GR11: NA | GS11: NA | GT11: NA | GU11: 93.33333333 | GV11: 21.82227597 | GW11: 33.35847382 | GX11: NA | GY11: NA | GZ11: NA | HA11: 59.71843483 | HB11: NA | HC11: NA | HD11: NA | HE11: NA | HF11: NA | HG11: NA | HH11: 0.3108418055 | HI11: 0.1759640756 | HJ11: NA | HK11: NA | HL11: NA | HM11: 0.2608788909 | HN11: 48.33531773 | HO11: 50.27609112 | HP11: NA | HQ11: NA | HR11: NA | HS11: 49.80206989 | HT11: 12.26302679 | HU11: 14.25909107 | HV11: NA | HW11: NA | HX11: NA | HY11: 16.90512733 | HZ11: 60.59834451 | IA11: 64.53518219 | IB11: NA | IC11: NA | ID11: NA | IE11: 66.70719722 | IF11: NA | IG11: NA | IH11: 55.86813224 | II11: 0 | IJ11: 35.87459685 | IK11: NA | IL11: NA | IM11: 60.92804654 | IN11: 0 | IO11: 38.2510381 | IP11: NA | IQ11: NA | IR11: 64.08098224 | IS11: 0.117893821 | IT11: 37.04881923 | IU11: NA | IV11: NA
A12: 27 | B12: 27 | C12: CHOCO | D12: 2 | E12: PACÍFICO | F12: NA | G12: NA | H12: 4 | I12: NA | J12: 342721.422 | K12: 453262.878 | L12: 59806.40547 | M12: 413943.0679 | P12: 212593.1867 | Q12: 499071.8658 | R12: 6508.19 | S12: 64807.377 | T12: -8479.431448 | U12: 453262.878 | V12: 181250.5356 | W12: 158252.848 | X12: 1631850.407 | Y12: 1816309.15 | Z12: 60 | AA12: 59.2 | AB12: 24.38793499 | AC12: 22.01534632 | AD12: 60 | AE12: 57.40228988 | AF12: 100 | AG12: 80 | AH12: 80 | AI12: 27.6 | AJ12: 2.898550725 | AK12: 36.51305747 | AL12: 10.85990338 | AM12: 75.61206501 | AN12: 14.4479785 | AO12: 46 | AP12: 42.59771012 | AQ12: 10.04235984 | AR12: -1.870753565 | AS12: 114.5322424 | AT12: 89.8443091 | AU12: 0.8 | AV12: NA | AW12: 0 | AX12: 45.64132184 | AY12: 54.29951691 | AZ12: 47.37296085 | BA12: 2. Riesgo (>=40 y <60) | BB12: 343456.8539 | BC12: 432541.7419 | BD12: 154648.158 | BE12: 533564.2645 | BF12: 51769 | BG12: 120853 | BH12: 212593.1867 | BI12: 499071.8658 | BJ12: 5884.804064 | BK12: 70201.8955 | BL12: -8184.851893 | BM12: 432541.7419 | BN12: 68513.09848 | BO12: 133726.8042 | BP12: 322723.1547 | BQ12: 351316.5846 | BR12: 70 | BS12: 85.13252216 | BT12: 20.59567422 | BU12: 49.31296199 | BV12: 60 | BW12: 57.40228988 | BX12: 8.382685428 | BY12: 100 | BZ12: 20 | CA12: 100 | CB12: 35.19024193 | CC12: 0 | CD12: 39.42581487 | CE12: 8 | CF12: 79.40432578 | CG12: 28.98397968 | CH12: 42.83633836 | CI12: 42.59771012 | CJ12: 8.382685428 | CK12: -1.892268676 | CL12: 51.23363179 | CM12: 91.86106459 | CN12: -15.13252216 | CO12: NA | CP12: 0 | CQ12: 49.28226859 | CR12: 40 | CS12: 47.42581487 | CT12: 2. Riesgo (>=40 y <60) | CU12: 383831.161 | CV12: 463040.4356 | CW12: 148233.3314 | CX12: 618156.4507 | CY12: 48360.883 | CZ12: 129744.1813 | DA12: 476545.4286 | DB12: 796692.2161 | DC12: 9962.955003 | DD12: 72749.07015 | DE12: -34018.98398 | DF12: 463040.4356 | DG12: 67489.24677 | DH12: 86132.30267 | DI12: 365677.4988 | DJ12: 400929.2982 | DK12: 70 | DL12: 105.7919768 | DM12: 17.10634072 | DN12: 42.34258242 | DO12: 60 | DP12: 40.18450049 | DQ12: 13.69495855 | DR12: 80 | DS12: 60 | DT12: 100 | DU12: 5.801157982 | DV12: 0 | DW12: 33.77711762 | DX12: 10.68928531 | DY12: 82.89365928 | DZ12: 23.97990529 | EA12: 37.27402842 | EB12: 59.81549951 | EC12: 13.69495855 | ED12: -7.346871107 | EE12: 78.35532626 | EF12: 91.20747732 | EG12: 0 | EH12: NA | EI12: 0.1130932119 | EJ12: 42.22139703 | EK12: 53.44642655 | EL12: 44.46640293 | EM12: 2. Riesgo (>=40 y <60) | EN12: 32 | EO12: 4 | EP12: NA | EQ12: NA | ER12: NA | ES12: 10 | ET12: 32 | EU12: 4 | EV12: NA | EW12: NA | EX12: NA | EY12: 10 | EZ12: 39.19212543 | FA12: 36.89303215 | FB12: NA | FC12: NA | FD12: NA | FE12: 22.53890792 | FF12: 48.11297454 | FG12: 28.88676438 | FH12: NA | FI12: NA | FJ12: NA | FK12: 52.39217328 | FL12: 87.5 | FM12: 90 | FN12: NA | FO12: NA | FP12: NA | FQ12: 94 | FR12: 62.84994595 | FS12: 65.53456904 | FT12: NA | FU12: NA | FV12: NA | FW12: 60.14770097 | FX12: 48.60983704 | FY12: 43.02354738 | FZ12: NA | GA12: NA | GB12: NA | GC12: 42.39898516 | GD12: 76.25 | GE12: 90 | GF12: NA | GG12: NA | GH12: NA | GI12: 64 | GJ12: 73.75 | GK12: 80 | GL12: NA | GM12: NA | GN12: NA | GO12: 40 | GP12: 87.5 | GQ12: 95 | GR12: NA | GS12: NA | GT12: NA | GU12: 84 | GV12: 21.82227597 | GW12: 0 | GX12: NA | GY12: NA | GZ12: NA | HA12: 10 | HB12: NA | HC12: NA | HD12: NA | HE12: NA | HF12: NA | HG12: NA | HH12: 0.3108418055 | HI12: 0.2350654419 | HJ12: NA | HK12: NA | HL12: NA | HM12: 0.5389893082 | HN12: 48.33531773 | HO12: 47.24505506 | HP12: NA | HQ12: NA | HR12: NA | HS12: 44.73036898 | HT12: 12.26302679 | HU12: 11.71367976 | HV12: NA | HW12: NA | HX12: NA | HY12: 9.041131195 | HZ12: 60.59834451 | IA12: 58.95873482 | IB12: NA | IC12: NA | ID12: NA | IE12: 53.77150017 | IF12: NA | IG12: NA | IH12: 10.04235984 | II12: 0 | IJ12: 75.61206501 | IK12: NA | IL12: NA | IM12: 8.382685428 | IN12: 0 | IO12: 79.40432578 | IP12: NA | IQ12: NA | IR12: 13.69495855 | IS12: 0.1130932119 | IT12: 82.89365928 | IU12: NA | IV12: NA
A13: 41 | B13: 41 | C13: HUILA | D13: 2 | E13: CENTRAL | F13: NA | G13: NA | H13: 2 | I13: NA | J13: 428900.288 | K13: 704957.562 | L13: 140185.5389 | M13: 623671.0622 | P13: 1161116.552 | Q13: 762416.2989 | R13: 78785.212 | S13: 203212.237 | T13: -33077.68031 | U13: 704957.562 | V13: 127916.9262 | W13: 114877.0588 | X13: 645871.0713 | Y13: 749588.9884 | Z13: 70 | AA13: 51.8 | AB13: 39.15941737 | AC13: 34.25043225 | AD13: 100 | AE13: 0 | AF13: 100 | AG13: 80 | AH13: 80 | AI13: 18.4 | AJ13: 98.91304348 | AK13: 41.62396865 | AL13: 17.26086957 | AM13: 60.84058263 | AN13: 22.4774801 | AO13: 6 | AP13: 152.2942983 | AQ13: 38.76991522 | AR13: -4.692151995 | AS13: 111.3511501 | AT13: 86.16336169 | AU13: 18.2 | AV13: NA | AW13: 0 | AX13: 52.02996081 | AY13: 86.30434783 | AZ13: 58.88483821 | BA13: 2. Riesgo (>=40 y <60) | BB13: 467483.156 | BC13: 790949.9728 | BD13: 228796.4849 | BE13: 821326.5937 | BF13: 19875 | BG13: 245513 | BH13: 1161116.552 | BI13: 762416.2989 | BJ13: 84500.54106 | BK13: 212325.9161 | BL13: -23287.99842 | BM13: 790949.9728 | BN13: 210209.6243 | BO13: 192843.9671 | BP13: 577124.4659 | BQ13: 686412.5962 | BR13: 60 | BS13: 56.07025937 | BT13: 40.89598937 | BU13: 47.3954374 | BV13: 100 | BW13: 0 | BX13: 39.7975634 | BY13: 100 | BZ13: 100 | CA13: 80 | CB13: 24.81301135 | CC13: 15.83741924 | CD13: 43.74519869 | CE13: 13.05582795 | CF13: 59.10401063 | CG13: 27.85694347 | CH13: 8.095294343 | CI13: 152.2942983 | CJ13: 39.7975634 | CK13: -2.944307379 | CL13: 109.00503 | CM13: 84.07836178 | CN13: 3.929740633 | CO13: NA | CP13: 0 | CQ13: 54.68149836 | CR13: 65.27913975 | CS13: 56.80102664 | CT13: 2. Riesgo (>=40 y <60) | CU13: 495999.7371 | CV13: 813012.1374 | CW13: 252493.4495 | CX13: 847181.7509 | CY13: 64350 | CZ13: 302331.7672 | DA13: 86662.04999 | DB13: 863991.4045 | DC13: 125498.93 | DD13: 234374.6146 | DE13: 720.01944 | DF13: 813012.1374 | DG13: 228804.096 | DH13: 195635.8636 | DI13: 627772.5659 | DJ13: 703416.4333 | DK13: 60 | DL13: 53.38435009 | DM13: 38.99233304 | DN13: 52.62636841 | DO13: 80 | DP13: 89.96957035 | DQ13: 53.54629817 | DR13: 100 | DS13: 80 | DT13: 80 | DU13: 26.62288959 | DV13: 24.84948108 | DW13: 55.351276 | DX13: 12.36569051 | DY13: 61.00766696 | DZ13: 29.80392924 | EA13: 21.2845645 | EB13: 10.03042965 | EC13: 53.54629817 | ED13: 0.08856195459 | EE13: 116.9540654 | EF13: 89.24621833 | EG13: 6.615649913 | EH13: NA | EI13: 0.2119588591 | EJ13: 69.189095 | EK13: 61.82845255 | EL13: 67.71696651 | EM13: 3. Vulnerable (>=60 y <70) | EN13: 6 | EO13: 1 | EP13: NA | EQ13: NA | ER13: NA | ES13: 3 | ET13: 32 | EU13: 4 | EV13: NA | EW13: NA | EX13: NA | EY13: 9 | EZ13: 39.19212543 | FA13: 45.82331044 | FB13: NA | FC13: NA | FD13: NA | FE13: 44.54741736 | FF13: 48.11297454 | FG13: 47.41717216 | FH13: NA | FI13: NA | FJ13: NA | FK13: 42.17611394 | FL13: 87.5 | FM13: 80 | FN13: NA | FO13: NA | FP13: NA | FQ13: 86.66666667 | FR13: 62.84994595 | FS13: 62.73009973 | FT13: NA | FU13: NA | FV13: NA | FW13: 63.84180029 | FX13: 48.60983704 | FY13: 51.10010106 | FZ13: NA | GA13: NA | GB13: NA | GC13: 49.70660357 | GD13: 76.25 | GE13: 90 | GF13: NA | GG13: NA | GH13: NA | GI13: 77.77777778 | GJ13: 73.75 | GK13: 95 | GL13: NA | GM13: NA | GN13: NA | GO13: 95.55555556 | GP13: 87.5 | GQ13: 85 | GR13: NA | GS13: NA | GT13: NA | GU13: 88.88888889 | GV13: 21.82227597 | GW13: 33.35847382 | GX13: NA | GY13: NA | GZ13: NA | HA13: 32.1920463 | HB13: NA | HC13: NA | HD13: NA | HE13: NA | HF13: NA | HG13: NA | HH13: 0.3108418055 | HI13: 0.1759640756 | HJ13: NA | HK13: NA | HL13: NA | HM13: 0.2567170583 | HN13: 48.33531773 | HO13: 50.27609112 | HP13: NA | HQ13: NA | HR13: NA | HS13: 48.62885061 | HT13: 12.26302679 | HU13: 14.25909107 | HV13: NA | HW13: NA | HX13: NA | HY13: 14.48541833 | HZ13: 60.59834451 | IA13: 64.53518219 | IB13: NA | IC13: NA | ID13: NA | IE13: 63.11426895 | IF13: NA | IG13: NA | IH13: 38.76991522 | II13: 0 | IJ13: 60.84058263 | IK13: NA | IL13: NA | IM13: 39.7975634 | IN13: 0 | IO13: 59.10401063 | IP13: NA | IQ13: NA | IR13: 53.54629817 | IS13: 0.2119588591 | IT13: 61.00766696 | IU13: NA | IV13: NA
A14: 44 | B14: 44 | C14: GUAJIRA | D14: 2 | E14: CARIBE | F14: NA | G14: NA | H14: 4 | I14: NA | J14: 304617.126 | K14: 400911.322 | L14: 104332.345 | M14: 379509.4462 | P14: 78174.62839 | Q14: 503908.7222 | R14: 20624.432 | S14: 65869.152 | T14: -5386.01424 | U14: 400911.322 | V14: 223686.7736 | W14: 177338.5769 | X14: 2536434.349 | Y14: 2834738.32 | Z14: 60 | AA14: 38.7 | AB14: 24.01882679 | AC14: 41.89042951 | AD14: 100 | AE14: 84.48635141 | AF14: 100 | AG14: 60 | AH14: 80 | AI14: 27.6 | AJ14: 77.17391304 | AK14: 50.89424307 | AL14: 14.47826087 | AM14: 75.98117321 | AN14: 27.49136971 | AO14: 0 | AP14: 15.51364859 | AQ14: 31.3112153 | AR14: -1.343442788 | AS14: 126.1354283 | AT14: 89.47684274 | AU14: 21.3 | AV14: NA | AW14: 0 | AX14: 63.61780383 | AY14: 72.39130435 | AZ14: 65.37250394 | BA14: 3. Vulnerable (>=60 y <70) | BB14: 317266.8093 | BC14: 431608.6771 | BD14: 256703.3768 | BE14: 626301.9447 | BF14: 0 | BG14: 117859 | BH14: 78174.62839 | BI14: 503908.7222 | BJ14: 17632.76601 | BK14: 71290.1199 | BL14: -86827.05903 | BM14: 431608.6771 | BN14: 70850.1199 | BO14: 83655.10187 | BP14: 389159.8241 | BQ14: 464778.3823 | BR14: 70 | BS14: 79.71841097 | BT14: 26.49202249 | BU14: 69.73501428 | BV14: 100 | BW14: 84.48635141 | BX14: 24.73381449 | BY14: 20 | BZ14: 80 | CA14: 80 | CB14: 35.19024193 | CC14: 0 | CD14: 43.39296036 | CE14: 10.66666667 | CF14: 73.50797751 | CG14: 40.98715946 | CH14: 0 | CI14: 15.51364859 | CJ14: 24.73381449 | CK14: -20.11707911 | CL14: 84.69312489 | CM14: 83.73019034 | CN14: -9.718410965 | CO14: NA | CP14: 0 | CQ14: 54.24120044 | CR14: 53.33333333 | CS14: 54.05962702 | CT14: 2. Riesgo (>=40 y <60) | CU14: 362662.4988 | CV14: 481489.5807 | CW14: 116668.8848 | CX14: 484943.0339 | CY14: 0 | CZ14: 173388.1241 | DA14: 77293.84838 | DB14: 966689.097 | DC14: 56393.6967 | DD14: 99303.05173 | DE14: 28273.32471 | DF14: 481489.5807 | DG14: 95823.63062 | DH14: 77779.38598 | DI14: 375376.2783 | DJ14: 410306.901 | DK14: 70 | DL14: 64.22788536 | DM14: 24.67905573 | DN14: 42.48094796 | DO14: 100 | DP14: 92.00427018 | DQ14: 56.78949007 | DR14: 80 | DS14: 60 | DT14: 100 | DU14: 5.801157982 | DV14: 0 | DW14: 52.79383519 | DX14: 10.66666667 | DY14: 75.32094427 | DZ14: 24.05826594 | EA14: 0 | EB14: 7.995729818 | EC14: 56.78949007 | ED14: 5.872053278 | EE14: 123.1992634 | EF14: 91.48670846 | EG14: 0 | EH14: NA | EI14: 0 | EJ14: 65.99229399 | EK14: 53.33333333 | EL14: 63.46050186 | EM14: 3. Vulnerable (>=60 y <70) | EN14: 15 | EO14: 5 | EP14: NA | EQ14: NA | ER14: NA | ES14: 1 | ET14: 32 | EU14: 7 | EV14: NA | EW14: NA | EX14: NA | EY14: 10 | EZ14: 39.19212543 | FA14: 37.0814882 | FB14: NA | FC14: NA | FD14: NA | FE14: 22.53890792 | FF14: 48.11297454 | FG14: 49.49263109 | FH14: NA | FI14: NA | FJ14: NA | FK14: 52.39217328 | FL14: 87.5 | FM14: 85.71428571 | FN14: NA | FO14: NA | FP14: NA | FQ14: 94 | FR14: 62.84994595 | FS14: 62.97660963 | FT14: NA | FU14: NA | FV14: NA | FW14: 60.14770097 | FX14: 48.60983704 | FY14: 51.83074711 | FZ14: NA | GA14: NA | GB14: NA | GC14: 42.39898516 | GD14: 76.25 | GE14: 85.71428571 | GF14: NA | GG14: NA | GH14: NA | GI14: 64 | GJ14: 73.75 | GK14: 88.57142857 | GL14: NA | GM14: NA | GN14: NA | GO14: 40 | GP14: 87.5 | GQ14: 94.28571429 | GR14: NA | GS14: NA | GT14: NA | GU14: 84 | GV14: 21.82227597 | GW14: 14.28571429 | GX14: NA | GY14: NA | GZ14: NA | HA14: 10 | HB14: NA | HC14: NA | HD14: NA | HE14: NA | HF14: NA | HG14: NA | HH14: 0.3108418055 | HI14: 0.1023209302 | HJ14: NA | HK14: NA | HL14: NA | HM14: 0.5389893082 | HN14: 48.33531773 | HO14: 49.70800633 | HP14: NA | HQ14: NA | HR14: NA | HS14: 44.73036898 | HT14: 12.26302679 | HU14: 13.16332133 | HV14: NA | HW14: NA | HX14: NA | HY14: 9.041131195 | HZ14: 60.59834451 | IA14: 62.87132766 | IB14: NA | IC14: NA | ID14: NA | IE14: 53.77150017 | IF14: NA | IG14: NA | IH14: 31.3112153 | II14: 0 | IJ14: 75.98117321 | IK14: NA | IL14: NA | IM14: 24.73381449 | IN14: 0 | IO14: 73.50797751 | IP14: NA | IQ14: NA | IR14: 56.78949007 | IS14: 0 | IT14: 75.32094427 | IU14: NA | IV14: NA
A15: 47 | B15: 47 | C15: MAGDALENA | D15: 2 | E15: CARIBE | F15: NA | G15: NA | H15: 2 | I15: NA | J15: 549262.493 | K15: 1036784.894 | L15: 350003.656 | M15: 914044.1166 | P15: 799937.3316 | Q15: 278830.5753 | R15: 159849.52 | S15: 294685.769 | T15: -6794.579176 | U15: 1036784.894 | V15: 173868.9678 | W15: 152790.5751 | X15: 1181111.53 | Y15: 1271701.937 | Z15: 60 | AA15: 41.6 | AB15: 47.02252163 | AC15: 58.34771569 | AD15: 100 | AE15: 0 | AF15: 100 | AG15: 80 | AH15: 100 | AI15: 18.4 | AJ15: 100 | AK15: 47.94857273 | AL15: 18.66666667 | AM15: 52.97747837 | AN15: 38.29176838 | AO15: 3 | AP15: 286.8901055 | AQ15: 54.24405819 | AR15: -0.6553509041 | AS15: 113.7956106 | AT15: 92.87644345 | AU15: 18.4 | AV15: NA | AW15: 0 | AX15: 59.93571592 | AY15: 93.33333333 | AZ15: 66.6152394 | BA15: 3. Vulnerable (>=60 y <70) | BB15: 648802.2377 | BC15: 1021630.025 | BD15: 203027.0544 | BE15: 867064.6786 | BF15: 20137 | BG15: 411563 | BH15: 799937.3316 | BI15: 278830.5753 | BJ15: 150101.7748 | BK15: 309444.2735 | BL15: 77224.2382 | BM15: 1021630.025 | BN15: 194984.882 | BO15: 295152.5726 | BP15: 720390.7568 | BQ15: 789821.5192 | BR15: 60 | BS15: 51.99923238 | BT15: 36.49342501 | BU15: 39.83873058 | BV15: 100 | BW15: 0 | BX15: 48.50688398 | BY15: 80 | BZ15: 40 | CA15: 100 | CB15: 24.81301135 | CC15: 32.24424277 | CD15: 40.64520528 | CE15: 11.48294952 | CF15: 63.50657499 | CG15: 23.41544516 | CH15: 4.892811064 | CI15: 286.8901055 | CJ15: 48.50688398 | CK15: 7.558924106 | CL15: 66.06240302 | CM15: 91.20930985 | CN15: 8.000767619 | CO15: NA | CP15: 0 | CQ15: 50.8065066 | CR15: 57.41474759 | CS15: 52.12815479 | CT15: 2. Riesgo (>=40 y <60) | CU15: 642323.1203 | CV15: 1024495.536 | CW15: 310160.7301 | CX15: 1164187.795 | CY15: 73579.844 | CZ15: 394201.6893 | DA15: 961480.7303 | DB15: 662955.4804 | DC15: 165878.0191 | DD15: 332226.2557 | DE15: -88158.9297 | DF15: 1024495.536 | DG15: 324282.5458 | DH15: 324166.0359 | DI15: 908382.4642 | DJ15: 946306.2286 | DK15: 60 | DL15: 51.69657063 | DM15: 37.30347298 | DN15: 47.04285235 | DO15: 100 | DP15: 0 | DQ15: 49.92923233 | DR15: 80 | DS15: 100 | DT15: 100 | DU15: 26.62288959 | DV15: 0 | DW15: 41.90340769 | DX15: 13.3722432 | DY15: 62.69652702 | DZ15: 26.64181256 | EA15: 18.66553239 | EB15: 145.0294565 | EC15: 49.92923233 | ED15: -8.605106284 | EE15: 100.0359414 | EF15: 95.9924427 | EG15: 0 | EH15: NA | EI15: 0.1945493264 | EJ15: 52.37925961 | EK15: 66.86121599 | EL15: 55.27565089 | EM15: 2. Riesgo (>=40 y <60) | EN15: 23 | EO15: 6 | EP15: NA | EQ15: NA | ER15: NA | ES15: 8 | ET15: 32 | EU15: 7 | EV15: NA | EW15: NA | EX15: NA | EY15: 9 | EZ15: 39.19212543 | FA15: 37.0814882 | FB15: NA | FC15: NA | FD15: NA | FE15: 44.54741736 | FF15: 48.11297454 | FG15: 49.49263109 | FH15: NA | FI15: NA | FJ15: NA | FK15: 42.17611394 | FL15: 87.5 | FM15: 85.71428571 | FN15: NA | FO15: NA | FP15: NA | FQ15: 86.66666667 | FR15: 62.84994595 | FS15: 62.97660963 | FT15: NA | FU15: NA | FV15: NA | FW15: 63.84180029 | FX15: 48.60983704 | FY15: 51.83074711 | FZ15: NA | GA15: NA | GB15: NA | GC15: 49.70660357 | GD15: 76.25 | GE15: 85.71428571 | GF15: NA | GG15: NA | GH15: NA | GI15: 77.77777778 | GJ15: 73.75 | GK15: 88.57142857 | GL15: NA | GM15: NA | GN15: NA | GO15: 95.55555556 | GP15: 87.5 | GQ15: 94.28571429 | GR15: NA | GS15: NA | GT15: NA | GU15: 88.88888889 | GV15: 21.82227597 | GW15: 14.28571429 | GX15: NA | GY15: NA | GZ15: NA | HA15: 32.1920463 | HB15: NA | HC15: NA | HD15: NA | HE15: NA | HF15: NA | HG15: NA | HH15: 0.3108418055 | HI15: 0.1023209302 | HJ15: NA | HK15: NA | HL15: NA | HM15: 0.2567170583 | HN15: 48.33531773 | HO15: 49.70800633 | HP15: NA | HQ15: NA | HR15: NA | HS15: 48.62885061 | HT15: 12.26302679 | HU15: 13.16332133 | HV15: NA | HW15: NA | HX15: NA | HY15: 14.48541833 | HZ15: 60.59834451 | IA15: 62.87132766 | IB15: NA | IC15: NA | ID15: NA | IE15: 63.11426895 | IF15: NA | IG15: NA | IH15: 54.24405819 | II15: 0 | IJ15: 52.97747837 | IK15: NA | IL15: NA | IM15: 48.50688398 | IN15: 0 | IO15: 63.50657499 | IP15: NA | IQ15: NA | IR15: 49.92923233 | IS15: 0.1945493264 | IT15: 62.69652702 | IU15: NA | IV15: NA
A16: 50 | B16: 50 | C16: META | D16: 2 | E16: LLANOS Y ORINOQUÍA | F16: NA | G16: NA | H16: 1 | I16: NA | J16: 287656.522 | K16: 735996.747 | L16: 356624.624 | M16: 737888.4106 | P16: 146471.5149 | Q16: 2591934.441 | R16: 157508.184 | S16: 261744.724 | T16: 31036.17042 | U16: 735996.747 | V16: 555837.7888 | W16: 537276.5903 | X16: 3059675.126 | Y16: 3773909.082 | Z16: 60 | AA16: 37.5 | AB16: 60.91606068 | AC16: 73.64428878 | AD16: 100 | AE16: 94.34894986 | AF16: 100 | AG16: 100 | AH16: 80 | AI16: 34.2 | AJ16: 65.78947368 | AK16: 65.21140783 | AL16: 16.38596491 | AM16: 39.08393932 | AN16: 48.33042759 | AO16: 5 | AP16: 5.651050141 | AQ16: 60.17625937 | AR16: 4.216889618 | AS16: 103.4546822 | AT16: 81.07442599 | AU16: 22.5 | AV16: NA | AW16: 0 | AX16: 81.51425978 | AY16: 81.92982456 | AZ16: 81.59737274 | BA16: 5. Sostenible (>=80) | BB16: 295256.3569 | BC16: 741759.7595 | BD16: 728252.1407 | BE16: 1239038.618 | BF16: 60471 | BG16: 319704 | BH16: 146471.5149 | BI16: 2591934.441 | BJ16: 147742.3531 | BK16: 287048.9344 | BL16: -127256.2382 | BM16: 741759.7595 | BN16: 250099.9339 | BO16: 269755.2867 | BP16: 512613.243 | BQ16: 729897.9332 | BR16: 55 | BS16: 33.56526456 | BT16: 60.19515037 | BU16: 100 | BV16: 100 | BW16: 94.34894986 | BX16: 51.46939611 | BY16: 40 | BZ16: 100 | CA16: 60 | CB16: 21.43473544 | CC16: 100 | CD16: 59.46846618 | CE16: 17.33333333 | CF16: 39.80484963 | CG16: 58.77558051 | CH16: 18.91468358 | CI16: 5.651050141 | CJ16: 51.46939611 | CK16: -17.15599109 | CL16: 92.71363573 | CM16: 70.23081169 | CN16: 21.43473544 | CO16: NA | CP16: 0 | CQ16: 74.33558272 | CR16: 86.66666667 | CS16: 76.80179951 | CT16: 4. Solvente (>=70 y <80) | CU16: 342145.8102 | CV16: 922041.9139 | CW16: 325914.3118 | CX16: 957383.7781 | CY16: 104307.145 | CZ16: 370426.7431 | DA16: 164263.6598 | DB16: 2533234.759 | DC16: 173059.5685 | DD16: 309210.316 | DE16: 50748.79438 | DF16: 922041.9139 | DG16: 273072.8942 | DH16: 321873.265 | DI16: 638282.0788 | DJ16: 735142.372 | DK16: 55 | DL16: 41.14728456 | DM16: 62.89259685 | DN16: 60.11007163 | DO16: 80 | DP16: 93.51565586 | DQ16: 55.96823894 | DR16: 80 | DS16: 80 | DT16: 80 | DU16: 27.69876069 | DV16: 0 | DW16: 57.6648751 | DX16: 10.70782314 | DY16: 37.10740315 | DZ16: 34.04218029 | EA16: 28.15864323 | EB16: 6.484344144 | EC16: 55.96823894 | ED16: 5.503957425 | EE16: 84.83863802 | EF16: 86.824281 | EG16: 0 | EH16: NA | EI16: 0.2057823463 | EJ16: 72.08109388 | EK16: 53.53911568 | EL16: 68.37269824 | EM16: 3. Vulnerable (>=60 y <70) | EN16: 4 | EO16: 1 | EP16: NA | EQ16: NA | ER16: NA | ES16: 2 | ET16: 32 | EU16: 4 | EV16: NA | EW16: NA | EX16: NA | EY16: 6 | EZ16: 39.19212543 | FA16: 39.9721239 | FB16: NA | FC16: NA | FD16: NA | FE16: 46.54158517 | FF16: 48.11297454 | FG16: 71.85207651 | FH16: NA | FI16: NA | FJ16: NA | FK16: 48.02436429 | FL16: 87.5 | FM16: 95 | FN16: NA | FO16: NA | FP16: NA | FQ16: 80 | FR16: 62.84994595 | FS16: 89.31524442 | FT16: NA | FU16: NA | FV16: NA | FW16: 70.19690334 | FX16: 48.60983704 | FY16: 51.51777799 | FZ16: NA | GA16: NA | GB16: NA | GC16: 51.88673961 | GD16: 76.25 | GE16: 40 | GF16: NA | GG16: NA | GH16: NA | GI16: 83.33333333 | GJ16: 73.75 | GK16: 40 | GL16: NA | GM16: NA | GN16: NA | GO16: 86.66666667 | GP16: 87.5 | GQ16: 75 | GR16: NA | GS16: NA | GT16: NA | GU16: 86.66666667 | GV16: 21.82227597 | GW16: 0 | GX16: NA | GY16: NA | GZ16: NA | HA16: 21.57151829 | HB16: NA | HC16: NA | HD16: NA | HE16: NA | HF16: NA | HG16: NA | HH16: 0.3108418055 | HI16: 0.05144558657 | HJ16: NA | HK16: NA | HL16: NA | HM16: 0.1889201447 | HN16: 48.33531773 | HO16: 51.68762971 | HP16: NA | HQ16: NA | HR16: NA | HS16: 50.6643901 | HT16: 12.26302679 | HU16: 7.676955784 | HV16: NA | HW16: NA | HX16: NA | HY16: 13.0314408 | HZ16: 60.59834451 | IA16: 59.36458549 | IB16: NA | IC16: NA | ID16: NA | IE16: 63.6958309 | IF16: NA | IG16: NA | IH16: 60.17625937 | II16: 0 | IJ16: 39.08393932 | IK16: NA | IL16: NA | IM16: 51.46939611 | IN16: 0 | IO16: 39.80484963 | IP16: NA | IQ16: NA | IR16: 55.96823894 | IS16: 0.2057823463 | IT16: 37.10740315 | IU16: NA | IV16: NA
A17: 52 | B17: 52 | C17: NARIÑO | D17: 2 | E17: PACÍFICO | F17: NA | G17: NA | H17: 1 | I17: NA | J17: 600003.016 | K17: 1066418.685 | L17: 162840.4638 | M17: 956617.3457 | P17: 168118.0412 | Q17: 2104176.643 | R17: 128647.327 | S17: 239722.418 | T17: 6372.226208 | U17: 1066418.685 | V17: 113668.8926 | W17: 121008.49 | X17: 1475688.455 | Y17: 1596060.99 | Z17: 70 | AA17: 54.5 | AB17: 43.73663699 | AC17: 25.93836003 | AD17: 100 | AE17: 92.01026958 | AF17: 100 | AG17: 100 | AH17: 100 | AI17: 34.2 | AJ17: 45.32163743 | AK17: 55.38005175 | AL17: 16.35477583 | AM17: 56.26336301 | AN17: 17.02252886 | AO17: 1 | AP17: 7.989730416 | AQ17: 53.66512155 | AR17: 0.5975351236 | AS17: 93.93464263 | AT17: 92.4581494 | AU17: 15.5 | AV17: NA | AW17: 0 | AX17: 69.22506469 | AY17: 81.77387914 | AZ17: 71.73482758 | BA17: 4. Solvente (>=70 y <80) | BB17: 663787.0029 | BC17: 1010568.68 | BD17: 110447.5922 | BE17: 938779.6094 | BF17: 0 | BG17: 393112 | BH17: 168118.0412 | BI17: 2104176.643 | BJ17: 129904.823 | BK17: 257076.7459 | BL17: 27740.25907 | BM17: 1010568.68 | BN17: 247564.6044 | BO17: 206309.674 | BP17: 762588.2087 | BQ17: 855656.4982 | BR17: 60 | BS17: 52.76059159 | BT17: 34.3154982 | BU17: 20.01684736 | BV17: 100 | BW17: 92.01026958 | BX17: 50.5315339 | BY17: 100 | BZ17: 80 | CA17: 80 | CB17: 21.43473544 | CC17: 33.77419064 | CD17: 52.9165532 | CE17: 12.91827938 | CF17: 65.6845018 | CG17: 11.76501823 | CH17: 0 | CI17: 7.989730416 | CJ17: 50.5315339 | CK17: 2.745014724 | CL17: 119.9966049 | CM17: 89.12317154 | CN17: 7.239408412 | CO17: NA | CP17: 0 | CQ17: 66.14569151 | CR17: 64.59139688 | CS17: 65.83483258 | CT17: 3. Vulnerable (>=60 y <70) | CU17: 716730.4214 | CV17: 1119503.906 | CW17: 109305.1063 | CX17: 966534.3353 | CY17: 0 | CZ17: 435138.5078 | DA17: 182026.9053 | DB17: 2311976.813 | DC17: 168517.0978 | DD17: 320446.1849 | DE17: 67000.40701 | DF17: 1119503.906 | DG17: 271840.6023 | DH17: 224499.44 | DI17: 834575.9991 | DJ17: 900574.412 | DK17: 55 | DL17: 63.55035136 | DM17: 35.97785434 | DN17: 19.96884943 | DO17: 100 | DP17: 92.126785 | DQ17: 52.5882678 | DR17: 80 | DS17: 60 | DT17: 100 | DU17: 27.69876069 | DV17: 0 | DW17: 50.75490088 | DX17: 10.71565864 | DY17: 64.02214566 | DZ17: 11.30897292 | EA17: 0 | EB17: 7.873215002 | EC17: 52.5882678 | ED17: 5.984830124 | EE17: 121.08743 | EF17: 92.67152031 | EG17: -8.550351359 | EH17: NA | EI17: 0.2449598545 | EJ17: 63.44362609 | EK17: 53.57829319 | EL17: 61.47055951 | EM17: 3. Vulnerable (>=60 y <70) | EN17: 18 | EO17: 3 | EP17: NA | EQ17: NA | ER17: NA | ES17: 5 | ET17: 32 | EU17: 4 | EV17: NA | EW17: NA | EX17: NA | EY17: 6 | EZ17: 39.19212543 | FA17: 36.89303215 | FB17: NA | FC17: NA | FD17: NA | FE17: 46.54158517 | FF17: 48.11297454 | FG17: 28.88676438 | FH17: NA | FI17: NA | FJ17: NA | FK17: 48.02436429 | FL17: 87.5 | FM17: 90 | FN17: NA | FO17: NA | FP17: NA | FQ17: 80 | FR17: 62.84994595 | FS17: 65.53456904 | FT17: NA | FU17: NA | FV17: NA | FW17: 70.19690334 | FX17: 48.60983704 | FY17: 43.02354738 | FZ17: NA | GA17: NA | GB17: NA | GC17: 51.88673961 | GD17: 76.25 | GE17: 90 | GF17: NA | GG17: NA | GH17: NA | GI17: 83.33333333 | GJ17: 73.75 | GK17: 80 | GL17: NA | GM17: NA | GN17: NA | GO17: 86.66666667 | GP17: 87.5 | GQ17: 95 | GR17: NA | GS17: NA | GT17: NA | GU17: 86.66666667 | GV17: 21.82227597 | GW17: 0 | GX17: NA | GY17: NA | GZ17: NA | HA17: 21.57151829 | HB17: NA | HC17: NA | HD17: NA | HE17: NA | HF17: NA | HG17: NA | HH17: 0.3108418055 | HI17: 0.2350654419 | HJ17: NA | HK17: NA | HL17: NA | HM17: 0.1889201447 | HN17: 48.33531773 | HO17: 47.24505506 | HP17: NA | HQ17: NA | HR17: NA | HS17: 50.6643901 | HT17: 12.26302679 | HU17: 11.71367976 | HV17: NA | HW17: NA | HX17: NA | HY17: 13.0314408 | HZ17: 60.59834451 | IA17: 58.95873482 | IB17: NA | IC17: NA | ID17: NA | IE17: 63.6958309 | IF17: NA | IG17: NA | IH17: 53.66512155 | II17: 0 | IJ17: 56.26336301 | IK17: NA | IL17: NA | IM17: 50.5315339 | IN17: 0 | IO17: 65.6845018 | IP17: NA | IQ17: NA | IR17: 52.5882678 | IS17: 0.2449598545 | IT17: 64.02214566 | IU17: NA | IV17: NA
A18: 54 | B18: 54 | C18: NORTE SANTANDER | D18: 2 | E18: SANTANDERES | F18: NA | G18: NA | H18: 2 | I18: NA | J18: 505142.842 | K18: 787462.209 | L18: 190433.1727 | M18: 729079.3383 | P18: 59492.25942 | Q18: 202946.6634 | R18: 91591.156 | S18: 218418.666 | T18: -59671.4456 | U18: 787462.209 | V18: 224131.9323 | W18: 200997.001 | X18: 1960250.61 | Y18: 2201728.924 | Z18: 60 | AA18: 54.3 | AB18: 35.85179883 | AC18: 39.80029097 | AD18: 100 | AE18: 70.68576618 | AF18: 80 | AG18: 80 | AH18: 80 | AI18: 34.2 | AJ18: 16.66666667 | AK18: 49.10288194 | AL18: 11.77777778 | AM18: 64.14820117 | AN18: 26.11967761 | AO18: 11 | AP18: 29.31423382 | AQ18: 41.93375854 | AR18: -7.577690068 | AS18: 111.5100878 | AT18: 89.03233219 | AU18: 5.7 | AV18: NA | AW18: 0 | AX18: 61.37860242 | AY18: 58.88888889 | AZ18: 60.88065971 | BA18: 3. Vulnerable (>=60 y <70) | BB18: 530958.4832 | BC18: 832293.7806 | BD18: 229634.2942 | BE18: 877733.7377 | BF18: 63834 | BG18: 260745 | BH18: 59492.25942 | BI18: 202946.6634 | BJ18: 121059.019 | BK18: 237960.8898 | BL18: -41250.10943 | BM18: 832293.7806 | BN18: 228287.8389 | BO18: 240113.6117 | BP18: 675909.2997 | BQ18: 756392.0193 | BR18: 60 | BS18: 40.74878824 | BT18: 36.2054006 | BU18: 44.5119918 | BV18: 80 | BW18: 70.68576618 | BX18: 50.87349402 | BY18: 100 | BZ18: 100 | CA18: 80 | CB18: 21.43473544 | CC18: 89.81315311 | CD18: 50.97022035 | CE18: 17.98754354 | CF18: 63.7945994 | CG18: 26.16218158 | CH18: 24.48138986 | CI18: 29.31423382 | CJ18: 50.87349402 | CK18: -4.956195804 | CL18: 95.07492612 | CM18: 89.35965511 | CN18: 19.25121176 | CO18: NA | CP18: 0 | CQ18: 63.71277544 | CR18: 89.9377177 | CS18: 68.95776389 | CT18: 3. Vulnerable (>=60 y <70) | CU18: 606809.0068 | CV18: 951695.7877 | CW18: 160952.7001 | CX18: 935840.8954 | CY18: 120129.9517 | CZ18: 349553.2393 | DA18: 53049.14063 | DB18: 680471.6108 | DC18: 146772.1426 | DD18: 277412.8418 | DE18: 12481.89907 | DF18: 951695.7877 | DG18: 264584.0222 | DH18: 248432.5756 | DI18: 748615.2898 | DJ18: 808573.1894 | DK18: 60 | DL18: 33.38934379 | DM18: 36.23918329 | DN18: 30.36869467 | DO18: 80 | DP18: 92.20406263 | DQ18: 52.90747956 | DR18: 100 | DS18: 100 | DT18: 100 | DU18: 26.62288959 | DV18: 99.95404938 | DW18: 52.22925602 | DX18: 20 | DY18: 63.76081671 | DZ18: 17.19872479 | EA18: 34.36671104 | EB18: 7.795937374 | EC18: 52.90747956 | ED18: 1.311542956 | EE18: 106.5013401 | EF18: 92.58472821 | EG18: 26.61065621 | EH18: NA | EI18: 0.3914176192 | EJ18: 65.28657002 | EK18: 100 | EL18: 72.22925602 | EM18: 4. Solvente (>=70 y <80) | EN18: 1 | EO18: 1 | EP18: NA | EQ18: NA | ER18: NA | ES18: 1 | ET18: 32 | EU18: 2 | EV18: NA | EW18: NA | EX18: NA | EY18: 9 | EZ18: 39.19212543 | FA18: 45.9002701 | FB18: NA | FC18: NA | FD18: NA | FE18: 44.54741736 | FF18: 48.11297454 | FG18: 48.71627491 | FH18: NA | FI18: NA | FJ18: NA | FK18: 42.17611394 | FL18: 87.5 | FM18: 70 | FN18: NA | FO18: NA | FP18: NA | FQ18: 86.66666667 | FR18: 62.84994595 | FS18: 46.10203131 | FT18: NA | FU18: NA | FV18: NA | FW18: 63.84180029 | FX18: 48.60983704 | FY18: 46.01484689 | FZ18: NA | GA18: NA | GB18: NA | GC18: 49.70660357 | GD18: 76.25 | GE18: 70 | GF18: NA | GG18: NA | GH18: NA | GI18: 77.77777778 | GJ18: 73.75 | GK18: 90 | GL18: NA | GM18: NA | GN18: NA | GO18: 95.55555556 | GP18: 87.5 | GQ18: 80 | GR18: NA | GS18: NA | GT18: NA | GU18: 88.88888889 | GV18: 21.82227597 | GW18: 99.97702469 | GX18: NA | GY18: NA | GZ18: NA | HA18: 32.1920463 | HB18: NA | HC18: NA | HD18: NA | HE18: NA | HF18: NA | HG18: NA | HH18: 0.3108418055 | HI18: 0.1957088096 | HJ18: NA | HK18: NA | HL18: NA | HM18: 0.2567170583 | HN18: 48.33531773 | HO18: 43.56445643 | HP18: NA | HQ18: NA | HR18: NA | HS18: 48.62885061 | HT18: 12.26302679 | HU18: 18 | HV18: NA | HW18: NA | HX18: NA | HY18: 14.48541833 | HZ18: 60.59834451 | IA18: 61.56445643 | IB18: NA | IC18: NA | ID18: NA | IE18: 63.11426895 | IF18: NA | IG18: NA | IH18: 41.93375854 | II18: 0 | IJ18: 64.14820117 | IK18: NA | IL18: NA | IM18: 50.87349402 | IN18: 0 | IO18: 63.7945994 | IP18: NA | IQ18: NA | IR18: 52.90747956 | IS18: 0.3914176192 | IT18: 63.76081671 | IU18: NA | IV18: NA
A19: 63 | B19: 63 | C19: QUINDIO | D19: 2 | E19: EJE CAFETERO Y ANTIOQUIA | F19: NA | G19: NA | H19: 3 | I19: NA | J19: 144704.582 | K19: 305001.654 | L19: 41980.294 | M19: 221148.609 | P19: 64469.51481 | Q19: 233879.5856 | R19: 62104.228 | S19: 140917.574 | T19: 5039.699 | U19: 305001.654 | V19: 44256.22061 | W19: 35790.30609 | X19: 576834.5995 | Y19: 759683.1908 | Z19: 70 | AA19: 92 | AB19: 52.55613204 | AC19: 28.92542166 | AD19: 100 | AE19: 72.43474045 | AF19: 100 | AG19: 60 | AH19: 60 | AI19: 18.4 | AJ19: 0 | AK19: 53.06501456 | AL19: 8 | AM19: 47.44386796 | AN19: 18.98284334 | AO19: 19 | AP19: 27.56525955 | AQ19: 44.07131505 | AR19: 1.652351367 | AS19: 123.654211 | AT19: 75.93094155 | AU19: 0 | AV19: NA | AW19: 0 | AX19: 66.3312682 | AY19: 40 | AZ19: 61.06501456 | BA19: 3. Vulnerable (>=60 y <70) | BB19: 157748.4078 | BC19: 313252.738 | BD19: 47096.54711 | BE19: 254520.3194 | BF19: 26950 | BG19: 169023 | BH19: 64469.51481 | BI19: 233879.5856 | BJ19: 64858.51982 | BK19: 145950.6162 | BL19: -5031.017856 | BM19: 313252.738 | BN19: 126141.853 | BO19: 139835.4047 | BP19: 223873.6387 | BQ19: 237191.6595 | BR19: 70 | BS19: 51.83226763 | BT19: 49.64181038 | BU19: 31.48253401 | BV19: 100 | BW19: 72.43474045 | BX19: 44.43867488 | BY19: 100 | BZ19: 100 | CA19: 100 | CB19: 24.81301135 | CC19: 73.21857116 | CD19: 53.06636796 | CE19: 18.21457141 | CF19: 50.35818962 | CG19: 18.50404213 | CH19: 15.94457559 | CI19: 27.56525955 | CJ19: 44.43867488 | CK19: -1.606057105 | CL19: 90.20737865 | CM19: 94.38512263 | CN19: 18.16773237 | CO19: NA | CP19: 0 | CQ19: 66.33295995 | CR19: 91.07285705 | CS19: 71.28093937 | CT19: 4. Solvente (>=70 y <80) | CU19: 177071.6554 | CV19: 353752.4627 | CW19: 42917.51117 | CX19: 280090.9987 | CY19: 25090.432 | CZ19: 183943.9648 | DA19: 86729.93925 | DB19: 283590.958 | DC19: 66987.24317 | DD19: 154504.11 | DE19: 1137.858941 | DF19: 353752.4627 | DG19: 131447.0237 | DH19: 152537.4232 | DI19: 252884.5917 | DJ19: 265097.7369 | DK19: 70 | DL19: 57.85457512 | DM19: 49.94475683 | DN19: 27.0561037 | DO19: 100 | DP19: 69.41724099 | DQ19: 43.35628558 | DR19: 100 | DS19: 80 | DT19: 100 | DU19: 0 | DV19: 0 | DW19: 51.96991828 | DX19: 12.03109457 | DY19: 50.05524317 | DZ19: 15.32270275 | EA19: 13.64025834 | EB19: 30.58275901 | EC19: 43.35628558 | ED19: 0.3216539985 | EE19: 86.1736228 | EF19: 95.3929651 | EG19: 0 | EH19: NA | EI19: 0.155472866 | EJ19: 64.96239785 | EK19: 60.15547287 | EL19: 64.00101285 | EM19: 3. Vulnerable (>=60 y <70) | EN19: 14 | EO19: 4 | EP19: NA | EQ19: NA | ER19: NA | ES19: 3 | ET19: 32 | EU19: 4 | EV19: NA | EW19: NA | EX19: NA | EY19: 4 | EZ19: 39.19212543 | FA19: 56.37089336 | FB19: NA | FC19: NA | FD19: NA | FE19: 36.53875227 | FF19: 48.11297454 | FG19: 41.19088174 | FH19: NA | FI19: NA | FJ19: NA | FK19: 48.41012594 | FL19: 87.5 | FM19: 80 | FN19: NA | FO19: NA | FP19: NA | FQ19: 100 | FR19: 62.84994595 | FS19: 68.55445496 | FT19: NA | FU19: NA | FV19: NA | FW19: 82.58242014 | FX19: 48.60983704 | FY19: 53.39461479 | FZ19: NA | GA19: NA | GB19: NA | GC19: 48.1704612 | GD19: 76.25 | GE19: 90 | GF19: NA | GG19: NA | GH19: NA | GI19: 75 | GJ19: 73.75 | GK19: 95 | GL19: NA | GM19: NA | GN19: NA | GO19: 70 | GP19: 87.5 | GQ19: 100 | GR19: NA | GS19: NA | GT19: NA | GU19: 90 | GV19: 21.82227597 | GW19: 41.23122156 | GX19: NA | GY19: NA | GZ19: NA | HA19: 0 | HB19: NA | HC19: NA | HD19: NA | HE19: NA | HF19: NA | HG19: NA | HH19: 0.3108418055 | HI19: 0.2158437438 | HJ19: NA | HK19: NA | HL19: NA | HM19: 0.08260840697 | HN19: 48.33531773 | HO19: 51.93477931 | HP19: NA | HQ19: NA | HR19: NA | HS19: 52.09356794 | HT19: 12.26302679 | HU19: 15.77904211 | HV19: NA | HW19: NA | HX19: NA | HY19: 10.68318835 | HZ19: 60.59834451 | IA19: 67.71382142 | IB19: NA | IC19: NA | ID19: NA | IE19: 62.77675629 | IF19: NA | IG19: NA | IH19: 44.07131505 | II19: 0 | IJ19: 47.44386796 | IK19: NA | IL19: NA | IM19: 44.43867488 | IN19: 0 | IO19: 50.35818962 | IP19: NA | IQ19: NA | IR19: 43.35628558 | IS19: 0.155472866 | IT19: 50.05524317 | IU19: NA | IV19: NA
A20: 66 | B20: 66 | C20: RISARALDA | D20: 2 | E20: EJE CAFETERO Y ANTIOQUIA | F20: NA | G20: NA | H20: 2 | I20: NA | J20: 217783.973 | K20: 424288.812 | L20: 112168.3516 | M20: 361559.1219 | P20: 57945.10595 | Q20: 224152.7818 | R20: 128523.819 | S20: 197875.376 | T20: -1468.26336 | U20: 424288.812 | V20: 94752.86534 | W20: 83328.19244 | X20: 737143.8653 | Y20: 915963.1459 | Z20: 70 | AA20: 68.7 | AB20: 48.67081883 | AC20: 47.27259566 | AD20: 100 | AE20: 74.14928091 | AF20: 100 | AG20: 80 | AH20: 80 | AI20: 34.2 | AJ20: 3.801169591 | AK20: 58.00594623 | AL20: 10.95141435 | AM20: 51.32918117 | AN20: 31.02351587 | AO20: 7 | AP20: 25.85071909 | AQ20: 64.95190134 | AR20: -0.3460528108 | AS20: 113.7104533 | AT20: 80.477459 | AU20: 1.3 | AV20: NA | AW20: 0.1566819048 | AX20: 72.50743279 | AY20: 54.75707177 | AZ20: 68.95736059 | BA20: 3. Vulnerable (>=60 y <70) | BB20: 179749.5324 | BC20: 431317.9103 | BD20: 48713.48166 | BE20: 351169.2493 | BF20: 15398 | BG20: 229838 | BH20: 57945.10595 | BI20: 224152.7818 | BJ20: 86593.0612 | BK20: 199019.2172 | BL20: -27054.43545 | BM20: 431317.9103 | BN20: 198728.6733 | BO20: 182726.8997 | BP20: 336267.4325 | BQ20: 345946.1897 | BR20: 60 | BS20: 41.52146109 | BT20: 58.32551161 | BU20: 23.60129125 | BV20: 100 | BW20: 74.14928091 | BX20: 43.5098994 | BY20: 80 | BZ20: 100 | CA20: 100 | CB20: 21.43473544 | CC20: 86.20838342 | CD20: 50.61146442 | CE20: 19.08055889 | CF20: 41.67448839 | CG20: 13.87179594 | CH20: 6.699501388 | CI20: 25.85071909 | CJ20: 43.5098994 | CK20: -6.272504527 | CL20: 108.7572074 | CM20: 97.2022362 | CN20: 18.47853891 | CO20: NA | CP20: 0 | CQ20: 63.26433053 | CR20: 95.40279447 | CS20: 69.69202332 | CT20: 3. Vulnerable (>=60 y <70) | CU20: 202194.7745 | CV20: 470085.0015 | CW20: 81948.35807 | CX20: 441731.9034 | CY20: 31495.007 | CZ20: 266742.7841 | DA20: 53725.11285 | DB20: 225394.101 | DC20: 149345.5585 | DD20: 237283.0863 | DE20: -27596.09695 | DF20: 470085.0015 | DG20: 219924.4479 | DH20: 214347.9149 | DI20: 392091.4246 | DJ20: 409743.5707 | DK20: 60 | DL20: 39.35019633 | DM20: 56.98761419 | DN20: 32.75754662 | DO20: 100 | DP20: 76.16392239 | DQ20: 62.93982469 | DR20: 80 | DS20: 100 | DT20: 100 | DU20: 26.62288959 | DV20: 0 | DW20: 54.51318772 | DX20: 13.36908659 | DY20: 43.01238581 | DZ20: 18.55160504 | EA20: 11.80725736 | EB20: 23.83607761 | EC20: 62.93982469 | ED20: -5.870448295 | EE20: 102.6016269 | EF20: 95.69190409 | EG20: 0 | EH20: NA | EI20: 0.1787663053 | EJ20: 68.14148465 | EK20: 66.84543297 | EL20: 67.88227431 | EM20: 3. Vulnerable (>=60 y <70) | EN20: 5 | EO20: 2 | EP20: NA | EQ20: NA | ER20: NA | ES20: 2 | ET20: 32 | EU20: 4 | EV20: NA | EW20: NA | EX20: NA | EY20: 9 | EZ20: 39.19212543 | FA20: 56.37089336 | FB20: NA | FC20: NA | FD20: NA | FE20: 44.54741736 | FF20: 48.11297454 | FG20: 41.19088174 | FH20: NA | FI20: NA | FJ20: NA | FK20: 42.17611394 | FL20: 87.5 | FM20: 80 | FN20: NA | FO20: NA | FP20: NA | FQ20: 86.66666667 | FR20: 62.84994595 | FS20: 68.55445496 | FT20: NA | FU20: NA | FV20: NA | FW20: 63.84180029 | FX20: 48.60983704 | FY20: 53.39461479 | FZ20: NA | GA20: NA | GB20: NA | GC20: 49.70660357 | GD20: 76.25 | GE20: 90 | GF20: NA | GG20: NA | GH20: NA | GI20: 77.77777778 | GJ20: 73.75 | GK20: 95 | GL20: NA | GM20: NA | GN20: NA | GO20: 95.55555556 | GP20: 87.5 | GQ20: 100 | GR20: NA | GS20: NA | GT20: NA | GU20: 88.88888889 | GV20: 21.82227597 | GW20: 41.23122156 | GX20: NA | GY20: NA | GZ20: NA | HA20: 32.1920463 | HB20: NA | HC20: NA | HD20: NA | HE20: NA | HF20: NA | HG20: NA | HH20: 0.3108418055 | HI20: 0.2158437438 | HJ20: NA | HK20: NA | HL20: NA | HM20: 0.2567170583 | HN20: 48.33531773 | HO20: 51.93477931 | HP20: NA | HQ20: NA | HR20: NA | HS20: 48.62885061 | HT20: 12.26302679 | HU20: 15.77904211 | HV20: NA | HW20: NA | HX20: NA | HY20: 14.48541833 | HZ20: 60.59834451 | IA20: 67.71382142 | IB20: NA | IC20: NA | ID20: NA | IE20: 63.11426895 | IF20: NA | IG20: NA | IH20: 64.95190134 | II20: 0.1566819048 | IJ20: 51.32918117 | IK20: NA | IL20: NA | IM20: 43.5098994 | IN20: 0 | IO20: 41.67448839 | IP20: NA | IQ20: NA | IR20: 62.93982469 | IS20: 0.1787663053 | IT20: 43.01238581 | IU20: NA | IV20: NA
A21: 68 | B21: 68 | C21: SANTANDER | D21: 2 | E21: SANTANDERES | F21: NA | G21: NA | H21: 2 | I21: NA | J21: 565227.586 | K21: 1287221.726 | L21: 486974.7434 | M21: 1112699.913 | P21: 4028657.502 | Q21: 4049521.567 | R21: 251687.271 | S21: 592803.698 | T21: -155140.135 | U21: 1287221.726 | V21: 153017.6686 | W21: 141630.5168 | X21: 156477.2296 | Y21: 237860.452 | Z21: 70 | AA21: 34.5 | AB21: 56.08933763 | AC21: 66.68786565 | AD21: 60 | AE21: 0.5152229582 | AF21: 60 | AG21: 100 | AH21: 40 | AI21: 35.5 | AJ21: 100 | AK21: 38.09993711 | AL21: 16 | AM21: 43.91066237 | AN21: 43.76514616 | AO21: 36 | AP21: 99.48477704 | AQ21: 42.45710205 | AR21: -12.05232415 | AS21: 108.0400412 | AT21: 65.78530744 | AU21: 35.5 | AV21: NA | AW21: 0 | AX21: 47.62492138 | AY21: 80 | AZ21: 54.09993711 | BA21: 2. Riesgo (>=40 y <60) | BB21: 604771.2095 | BC21: 1339611.744 | BD21: 316588.1717 | BE21: 1154148.893 | BF21: 163499 | BG21: 585478 | BH21: 4028657.502 | BI21: 4049521.567 | BJ21: 210013.4108 | BK21: 595970.7966 | BL21: -82736.67399 | BM21: 1339611.744 | BN21: 549784.9165 | BO21: 545012.607 | BP21: 835678.9967 | BQ21: 1036391.033 | BR21: 60 | BS21: 29.76598306 | BT21: 54.85473967 | BU21: 46.66979768 | BV21: 80 | BW21: 0.5152229582 | BX21: 35.23887614 | BY21: 80 | BZ21: 100 | CA21: 80 | CB21: 30.23401694 | CC21: 100 | CD21: 39.63715153 | CE21: 18.66666667 | CF21: 45.14526033 | CG21: 27.43044451 | CH21: 27.92572906 | CI21: 99.48477704 | CJ21: 35.23887614 | CK21: -6.176168157 | CL21: 100.8756329 | CM21: 80.63356112 | CN21: 30.23401694 | CO21: NA | CP21: 0 | CQ21: 49.54643941 | CR21: 93.33333333 | CS21: 58.30381819 | CT21: 2. Riesgo (>=40 y <60) | CU21: 660228.8201 | CV21: 1485708.775 | CW21: 568046.0088 | CX21: 1495632.438 | CY21: 295252.41 | CZ21: 615936.2593 | DA21: 4084909.192 | DB21: 4019308.127 | DC21: 259178.4272 | DD21: 662484.0448 | DE21: -285639.9989 | DF21: 1485708.775 | DG21: 591313.4368 | DH21: 516648.6975 | DI21: 1064647.063 | DJ21: 1368043.157 | DK21: 60 | DL21: 33.37711041 | DM21: 55.56135691 | DN21: 67.06385515 | DO21: 60 | DP21: 0 | DQ21: 39.12221423 | DR21: 40 | DS21: 80 | DT21: 60 | DU21: 26.62288959 | DV21: 100 | DW21: 34.89965684 | DX21: 16 | DY21: 44.43864309 | DZ21: 37.98032153 | EA21: 47.93554618 | EB21: 101.6321482 | EC21: 39.12221423 | ED21: -19.22584046 | EE21: 114.4517425 | EF21: 77.82262258 | EG21: 26.62288959 | EH21: NA | EI21: 0 | EJ21: 43.62457105 | EK21: 80 | EL21: 50.89965684 | EM21: 2. Riesgo (>=40 y <60) | EN21: 28 | EO21: 2 | EP21: NA | EQ21: NA | ER21: NA | ES21: 9 | ET21: 32 | EU21: 2 | EV21: NA | EW21: NA | EX21: NA | EY21: 9 | EZ21: 39.19212543 | FA21: 45.9002701 | FB21: NA | FC21: NA | FD21: NA | FE21: 44.54741736 | FF21: 48.11297454 | FG21: 48.71627491 | FH21: NA | FI21: NA | FJ21: NA | FK21: 42.17611394 | FL21: 87.5 | FM21: 70 | FN21: NA | FO21: NA | FP21: NA | FQ21: 86.66666667 | FR21: 62.84994595 | FS21: 46.10203131 | FT21: NA | FU21: NA | FV21: NA | FW21: 63.84180029 | FX21: 48.60983704 | FY21: 46.01484689 | FZ21: NA | GA21: NA | GB21: NA | GC21: 49.70660357 | GD21: 76.25 | GE21: 70 | GF21: NA | GG21: NA | GH21: NA | GI21: 77.77777778 | GJ21: 73.75 | GK21: 90 | GL21: NA | GM21: NA | GN21: NA | GO21: 95.55555556 | GP21: 87.5 | GQ21: 80 | GR21: NA | GS21: NA | GT21: NA | GU21: 88.88888889 | GV21: 21.82227597 | GW21: 99.97702469 | GX21: NA | GY21: NA | GZ21: NA | HA21: 32.1920463 | HB21: NA | HC21: NA | HD21: NA | HE21: NA | HF21: NA | HG21: NA | HH21: 0.3108418055 | HI21: 0.1957088096 | HJ21: NA | HK21: NA | HL21: NA | HM21: 0.2567170583 | HN21: 48.33531773 | HO21: 43.56445643 | HP21: NA | HQ21: NA | HR21: NA | HS21: 48.62885061 | HT21: 12.26302679 | HU21: 18 | HV21: NA | HW21: NA | HX21: NA | HY21: 14.48541833 | HZ21: 60.59834451 | IA21: 61.56445643 | IB21: NA | IC21: NA | ID21: NA | IE21: 63.11426895 | IF21: NA | IG21: NA | IH21: 42.45710205 | II21: 0 | IJ21: 43.91066237 | IK21: NA | IL21: NA | IM21: 35.23887614 | IN21: 0 | IO21: 45.14526033 | IP21: NA | IQ21: NA | IR21: 39.12221423 | IS21: 0 | IT21: 44.43864309 | IU21: NA | IV21: NA
A22: 70 | B22: 70 | C22: SUCRE | D22: 2 | E22: CARIBE | F22: NA | G22: NA | H22: 3 | I22: NA | J22: 445207.324 | K22: 564824.589 | L22: 51061.65671 | M22: 483807.1427 | P22: 109820.6916 | Q22: 971641.8205 | R22: 60764.431 | S22: 114098.306 | T22: 32646.695 | U22: 564824.589 | V22: 12518.35175 | W22: 10814.03763 | X22: 134020.8052 | Y22: 157423.8314 | Z22: 70 | AA22: 70.2 | AB22: 21.17777224 | AC22: 16.08203713 | AD22: 100 | AE22: 88.69740996 | AF22: 80 | AG22: 80 | AH22: 80 | AI22: 18.4 | AJ22: 0 | AK22: 47.89512362 | AL22: 10.66666667 | AM22: 78.82222776 | AN22: 10.55413453 | AO22: 0 | AP22: 11.30259004 | AQ22: 53.25620785 | AR22: 5.779970567 | AS22: 115.7602015 | AT22: 85.1337463 | AU22: 0 | AV22: NA | AW22: 0 | AX22: 59.86890453 | AY22: 53.33333333 | AZ22: 58.56179029 | BA22: 2. Riesgo (>=40 y <60) | BB22: 428506.0255 | BC22: 536368.3429 | BD22: 55284.24351 | BE22: 537228.5657 | BF22: 0 | BG22: 123127 | BH22: 109820.6916 | BI22: 971641.8205 | BJ22: 46660.49998 | BK22: 103852.5317 | BL22: -51781.43645 | BM22: 536368.3429 | BN22: 103362.7486 | BO22: 130559.2755 | BP22: 482119.6582 | BQ22: 530957.7477 | BR22: 70 | BS22: 61.70400825 | BT22: 20.10974712 | BU22: 17.50835513 | BV22: 100 | BW22: 88.69740996 | BX22: 44.92957392 | BY22: 80 | BZ22: 60 | CA22: 100 | CB22: 24.81301135 | CC22: 33.43403841 | CD22: 46.83267815 | CE22: 12.89560256 | CF22: 79.89025288 | CG22: 10.29063736 | CH22: 0 | CI22: 11.30259004 | CJ22: 44.92957392 | CK22: -9.654081404 | CL22: 79.16921123 | CM22: 90.80188778 | CN22: 8.295991747 | CO22: NA | CP22: 0 | CQ22: 58.54084769 | CR22: 64.4780128 | CS22: 59.72828071 | CT22: 2. Riesgo (>=40 y <60) | CU22: 482066.4517 | CV22: 679780.9727 | CW22: 168529.5034 | CX22: 690412.4636 | CY22: 0 | CZ22: 141639.1074 | DA22: 121407.1531 | DB22: 952546.8803 | DC22: 63517.7681 | DD22: 124086.0624 | DE22: -16038.42044 | DF22: 679780.9727 | DG22: 160990.7736 | DH22: 139575.2507 | DI22: 613336.0824 | DJ22: 635251.0989 | DK22: 70 | DL22: 62.30444622 | DM22: 29.08503312 | DN22: 43.10197755 | DO22: 100 | DP22: 87.25446951 | DQ22: 51.1884791 | DR22: 100 | DS22: 80 | DT22: 100 | DU22: 0 | DV22: 0 | DW22: 54.75066124 | DX22: 12 | DY22: 70.91496688 | DZ22: 24.40997408 | EA22: 0 | EB22: 12.74553049 | EC22: 51.1884791 | ED22: -2.359351186 | EE22: 115.3433526 | EF22: 96.55018046 | EG22: 0 | EH22: NA | EI22: 0 | EJ22: 68.43832655 | EK22: 60 | EL22: 66.75066124 | EM22: 3. Vulnerable (>=60 y <70) | EN22: 9 | EO22: 3 | EP22: NA | EQ22: NA | ER22: NA | ES22: 1 | ET22: 32 | EU22: 7 | EV22: NA | EW22: NA | EX22: NA | EY22: 4 | EZ22: 39.19212543 | FA22: 37.0814882 | FB22: NA | FC22: NA | FD22: NA | FE22: 36.53875227 | FF22: 48.11297454 | FG22: 49.49263109 | FH22: NA | FI22: NA | FJ22: NA | FK22: 48.41012594 | FL22: 87.5 | FM22: 85.71428571 | FN22: NA | FO22: NA | FP22: NA | FQ22: 100 | FR22: 62.84994595 | FS22: 62.97660963 | FT22: NA | FU22: NA | FV22: NA | FW22: 82.58242014 | FX22: 48.60983704 | FY22: 51.83074711 | FZ22: NA | GA22: NA | GB22: NA | GC22: 48.1704612 | GD22: 76.25 | GE22: 85.71428571 | GF22: NA | GG22: NA | GH22: NA | GI22: 75 | GJ22: 73.75 | GK22: 88.57142857 | GL22: NA | GM22: NA | GN22: NA | GO22: 70 | GP22: 87.5 | GQ22: 94.28571429 | GR22: NA | GS22: NA | GT22: NA | GU22: 90 | GV22: 21.82227597 | GW22: 14.28571429 | GX22: NA | GY22: NA | GZ22: NA | HA22: 0 | HB22: NA | HC22: NA | HD22: NA | HE22: NA | HF22: NA | HG22: NA | HH22: 0.3108418055 | HI22: 0.1023209302 | HJ22: NA | HK22: NA | HL22: NA | HM22: 0.08260840697 | HN22: 48.33531773 | HO22: 49.70800633 | HP22: NA | HQ22: NA | HR22: NA | HS22: 52.09356794 | HT22: 12.26302679 | HU22: 13.16332133 | HV22: NA | HW22: NA | HX22: NA | HY22: 10.68318835 | HZ22: 60.59834451 | IA22: 62.87132766 | IB22: NA | IC22: NA | ID22: NA | IE22: 62.77675629 | IF22: NA | IG22: NA | IH22: 53.25620785 | II22: 0 | IJ22: 78.82222776 | IK22: NA | IL22: NA | IM22: 44.92957392 | IN22: 0 | IO22: 79.89025288 | IP22: NA | IQ22: NA | IR22: 51.1884791 | IS22: 0 | IT22: 70.91496688 | IU22: NA | IV22: NA
A23: 73 | B23: 73 | C23: TOLIMA | D23: 2 | E23: CENTRAL | F23: NA | G23: NA | H23: 2 | I23: NA | J23: 557266.169 | K23: 1003640.04 | L23: 196817.944 | M23: 876585.0931 | P23: 32494.74112 | Q23: 525414.0277 | R23: 97730.989 | S23: 260949.963 | T23: -36164.02707 | U23: 1003640.04 | V23: 10693.85823 | W23: 8911.714381 | X23: 99741.01326 | Y23: 136291.2694 | Z23: 70 | AA23: 41.3 | AB23: 44.47549452 | AC23: 34.21283357 | AD23: 100 | AE23: 93.81540282 | AF23: 100 | AG23: 80 | AH23: 60 | AI23: 34.2 | AJ23: 83.91812865 | AK23: 54.66076457 | AL23: 14.92787524 | AM23: 55.52450548 | AN23: 22.45280527 | AO23: 4 | AP23: 6.184597176 | AQ23: 37.45200339 | AR23: -3.6032866 | AS23: 119.9977667 | AT23: 73.18224691 | AU23: 28.7 | AV23: NA | AW23: 0 | AX23: 68.32595572 | AY23: 74.63937622 | AZ23: 69.58863982 | BA23: 3. Vulnerable (>=60 y <70) | BB23: 571365.3688 | BC23: 953211.4215 | BD23: 135512.3848 | BE23: 853974.5674 | BF23: 9383 | BG23: 348872 | BH23: 32494.74112 | BI23: 525414.0277 | BJ23: 93082.48162 | BK23: 268999.3913 | BL23: -18207.07214 | BM23: 953211.4215 | BN23: 247429.0234 | BO23: 252024.717 | BP23: 724341.9066 | BQ23: 795501.584 | BR23: 60 | BS23: 53.64016055 | BT23: 40.05890447 | BU23: 26.99834383 | BV23: 100 | BW23: 93.81540282 | BX23: 34.60323132 | BY23: 100 | BZ23: 100 | CA23: 100 | CB23: 21.43473544 | CC23: 29.67071589 | CD23: 52.73011766 | CE23: 15.31138106 | CF23: 59.94109553 | CG23: 15.86843331 | CH23: 2.689525098 | CI23: 6.184597176 | CJ23: 34.60323132 | CK23: -1.910077002 | CL23: 98.17649092 | CM23: 91.05474095 | CN23: 6.359839455 | CO23: NA | CP23: 0 | CQ23: 65.91264707 | CR23: 76.5569053 | CS23: 68.04149872 | CT23: 3. Vulnerable (>=60 y <70) | CU23: 622659.6519 | CV23: 990085.5151 | CW23: 151245.8715 | CX23: 869314.6488 | CY23: 3035.858 | CZ23: 487110.6327 | DA23: 27202.60345 | DB23: 637999.3333 | DC23: 122570.1234 | DD23: 306909.31 | DE23: -63568.32026 | DF23: 990085.5151 | DG23: 281871.0097 | DH23: 274317.946 | DI23: 780233.7745 | DJ23: 869314.6488 | DK23: 60 | DL23: 52.74038527 | DM23: 37.11051799 | DN23: 30.72107501 | DO23: 100 | DP23: 95.7362646 | DQ23: 39.93691929 | DR23: 80 | DS23: 100 | DT23: 80 | DU23: 26.62288959 | DV23: 0 | DW23: 51.13397025 | DX23: 12.04258443 | DY23: 62.88948201 | DZ23: 17.3982886 | EA23: 0.623237884 | EB23: 4.263735404 | EC23: 39.93691929 | ED23: -6.420487856 | EE23: 102.7533976 | EF23: 89.75274667 | EG23: 0 | EH23: NA | EI23: 0.2129221398 | EJ23: 63.91746282 | EK23: 60.21292214 | EL23: 63.17655468 | EM23: 3. Vulnerable (>=60 y <70) | EN23: 16 | EO23: 3 | EP23: NA | EQ23: NA | ER23: NA | ES23: 6 | ET23: 32 | EU23: 4 | EV23: NA | EW23: NA | EX23: NA | EY23: 9 | EZ23: 39.19212543 | FA23: 45.82331044 | FB23: NA | FC23: NA | FD23: NA | FE23: 44.54741736 | FF23: 48.11297454 | FG23: 47.41717216 | FH23: NA | FI23: NA | FJ23: NA | FK23: 42.17611394 | FL23: 87.5 | FM23: 80 | FN23: NA | FO23: NA | FP23: NA | FQ23: 86.66666667 | FR23: 62.84994595 | FS23: 62.73009973 | FT23: NA | FU23: NA | FV23: NA | FW23: 63.84180029 | FX23: 48.60983704 | FY23: 51.10010106 | FZ23: NA | GA23: NA | GB23: NA | GC23: 49.70660357 | GD23: 76.25 | GE23: 90 | GF23: NA | GG23: NA | GH23: NA | GI23: 77.77777778 | GJ23: 73.75 | GK23: 95 | GL23: NA | GM23: NA | GN23: NA | GO23: 95.55555556 | GP23: 87.5 | GQ23: 85 | GR23: NA | GS23: NA | GT23: NA | GU23: 88.88888889 | GV23: 21.82227597 | GW23: 33.35847382 | GX23: NA | GY23: NA | GZ23: NA | HA23: 32.1920463 | HB23: NA | HC23: NA | HD23: NA | HE23: NA | HF23: NA | HG23: NA | HH23: 0.3108418055 | HI23: 0.1759640756 | HJ23: NA | HK23: NA | HL23: NA | HM23: 0.2567170583 | HN23: 48.33531773 | HO23: 50.27609112 | HP23: NA | HQ23: NA | HR23: NA | HS23: 48.62885061 | HT23: 12.26302679 | HU23: 14.25909107 | HV23: NA | HW23: NA | HX23: NA | HY23: 14.48541833 | HZ23: 60.59834451 | IA23: 64.53518219 | IB23: NA | IC23: NA | ID23: NA | IE23: 63.11426895 | IF23: NA | IG23: NA | IH23: 37.45200339 | II23: 0 | IJ23: 55.52450548 | IK23: NA | IL23: NA | IM23: 34.60323132 | IN23: 0 | IO23: 59.94109553 | IP23: NA | IQ23: NA | IR23: 39.93691929 | IS23: 0.2129221398 | IT23: 62.88948201 | IU23: NA | IV23: NA
A24: 76 | B24: 76 | C24: VALLE | D24: 2 | E24: PACÍFICO | F24: NA | G24: NA | H24: E | I24: NA | J24: 600477.269 | K24: 1778310.436 | L24: 597624.4737 | M24: 1509953.433 | P24: 211997.7047 | Q24: 1243679.277 | R24: 566566.433 | S24: 1001643.08 | T24: -166112.4265 | U24: 1778310.436 | V24: 24508.20545 | W24: 16871.80215 | X24: 181893.0599 | Y24: 215886.5566 | Z24: 70 | AA24: 61.9 | AB24: 66.23327081 | AC24: 60.30915661 | AD24: 100 | AE24: 82.95398914 | AF24: 80 | AG24: 20 | AH24: 80 | AI24: 25.1 | AJ24: 32.27091633 | AK24: 59.47468282 | AL24: 8.818061089 | AM24: 33.76672919 | AN24: 39.57900029 | AO24: 6 | AP24: 17.04601086 | AQ24: 56.56370461 | AR24: -9.341025232 | AS24: 145.2613374 | AT24: 84.25400025 | AU24: 8.1 | AV24: NA | AW24: 0 | AX24: 74.34335353 | AY24: 44.09030544 | AZ24: 68.29274391 | BA24: 3. Vulnerable (>=60 y <70) | BB24: 600936.6555 | BC24: 2007946.898 | BD24: 487087.796 | BE24: 1664887.966 | BF24: 177907 | BG24: 1310530 | BH24: 211997.7047 | BI24: 1243679.277 | BJ24: 672539.1874 | BK24: 1110043.945 | BL24: -33515.92078 | BM24: 2007946.898 | BN24: 1060897.48 | BO24: 1079103.473 | BP24: 1460169.503 | BQ24: 1603958.061 | BR24: 55 | BS24: 43.34862291 | BT24: 70.07208428 | BU24: 49.77660898 | BV24: 100 | BW24: 82.95398914 | BX24: 60.58671733 | BY24: 100 | BZ24: 100 | CA24: 100 | CB24: 14.60592087 | CC24: 79.77160217 | CD24: 61.7852533 | CE24: 18.65144014 | CF24: 29.92791572 | CG24: 29.25649089 | CH24: 13.57519477 | CI24: 17.04601086 | CJ24: 60.58671733 | CK24: -1.669163702 | CL24: 98.31285934 | CM24: 91.03539164 | CN24: 11.65137709 | CO24: NA | CP24: 0 | CQ24: 77.23156662 | CR24: 93.25720072 | CS24: 80.43669344 | CT24: 5. Sostenible (>=80) | CU24: 651500.592 | CV24: 2284676.371 | CW24: 321270.0127 | CX24: 1906629.641 | CY24: 275707.977 | CZ24: 1423195.779 | DA24: 707138.6502 | DB24: 1037489.725 | DC24: 764796.7342 | DD24: 1266578.568 | DE24: -55977.34137 | DF24: 2284676.371 | DG24: 1196279.513 | DH24: 1167926.991 | DI24: 1633024.573 | DJ24: 1838871.879 | DK24: 50 | DL24: 39.01288942 | DM24: 71.48390029 | DN24: 29.7532032 | DO24: 100 | DP24: 31.84138282 | DQ24: 60.38288927 | DR24: 100 | DS24: 100 | DT24: 80 | DU24: 19.4067622 | DV24: 0 | DW24: 52.46151674 | DX24: 12.08144959 | DY24: 28.51609971 | DZ24: 16.85015306 | EA24: 19.37245606 | EB24: 68.15861718 | EC24: 60.38288927 | ED24: -2.450121255 | EE24: 102.4275936 | EF24: 88.80578315 | EG24: 0 | EH24: NA | EI24: 0.4072479394 | EJ24: 65.57689593 | EK24: 60.40724794 | EL24: 64.54296633 | EM24: 3. Vulnerable (>=60 y <70) | EN24: 12 | EO24: 2 | EP24: NA | EQ24: NA | ER24: NA | ES24: 2 | ET24: 32 | EU24: 4 | EV24: NA | EW24: NA | EX24: NA | EY24: 3 | EZ24: 39.19212543 | FA24: 36.89303215 | FB24: NA | FC24: NA | FD24: NA | FE24: 67.47588608 | FF24: 48.11297454 | FG24: 28.88676438 | FH24: NA | FI24: NA | FJ24: NA | FK24: 51.44057922 | FL24: 87.5 | FM24: 90 | FN24: NA | FO24: NA | FP24: NA | FQ24: 66.66666667 | FR24: 62.84994595 | FS24: 65.53456904 | FT24: NA | FU24: NA | FV24: NA | FW24: 27.87798585 | FX24: 48.60983704 | FY24: 43.02354738 | FZ24: NA | GA24: NA | GB24: NA | GC24: 60.05440638 | GD24: 76.25 | GE24: 90 | GF24: NA | GG24: NA | GH24: NA | GI24: 100 | GJ24: 73.75 | GK24: 80 | GL24: NA | GM24: NA | GN24: NA | GO24: 100 | GP24: 87.5 | GQ24: 95 | GR24: NA | GS24: NA | GT24: NA | GU24: 93.33333333 | GV24: 21.82227597 | GW24: 0 | GX24: NA | GY24: NA | GZ24: NA | HA24: 59.71843483 | HB24: NA | HC24: NA | HD24: NA | HE24: NA | HF24: NA | HG24: NA | HH24: 0.3108418055 | HI24: 0.2350654419 | HJ24: NA | HK24: NA | HL24: NA | HM24: 0.2608788909 | HN24: 48.33531773 | HO24: 47.24505506 | HP24: NA | HQ24: NA | HR24: NA | HS24: 49.80206989 | HT24: 12.26302679 | HU24: 11.71367976 | HV24: NA | HW24: NA | HX24: NA | HY24: 16.90512733 | HZ24: 60.59834451 | IA24: 58.95873482 | IB24: NA | IC24: NA | ID24: NA | IE24: 66.70719722 | IF24: NA | IG24: NA | IH24: 56.56370461 | II24: 0 | IJ24: 33.76672919 | IK24: NA | IL24: NA | IM24: 60.58671733 | IN24: 0 | IO24: 29.92791572 | IP24: NA | IQ24: NA | IR24: 60.38288927 | IS24: 0.4072479394 | IT24: 28.51609971 | IU24: NA | IV24: NA
A25: 81 | B25: 81 | C25: ARAUCA | D25: 2 | E25: LLANOS Y ORINOQUÍA | F25: NA | G25: NA | H25: 4 | I25: NA | J25: 188133.374 | K25: 412269.947 | L25: 167104.7977 | M25: 417277.1261 | P25: 73143.49713 | Q25: 1310321.334 | R25: 23313.938 | S25: 62546.422 | T25: -43939.74148 | U25: 412269.947 | V25: 313593.916 | W25: 345793.2772 | X25: 2919060.882 | Y25: 3348017.201 | Z25: 55 | AA25: 66.4 | AB25: 54.36645931 | AC25: 61.02148539 | AD25: 100 | AE25: 94.41789619 | AF25: 60 | AG25: 100 | AH25: 80 | AI25: 27.6 | AJ25: 0 | AK25: 54.27739412 | AL25: 12 | AM25: 45.63354069 | AN25: 40.04647923 | AO25: 0 | AP25: 5.58210381 | AQ25: 37.27461501 | AR25: -10.65800255 | AS25: 90.68826281 | AT25: 87.18775046 | AU25: 0 | AV25: NA | AW25: 0 | AX25: 67.84674265 | AY25: 60 | AZ25: 66.27739412 | BA25: 3. Vulnerable (>=60 y <70) | BB25: 205483.0708 | BC25: 357059.6026 | BD25: 185549.9006 | BE25: 519462.4917 | BF25: 0 | BG25: 89624 | BH25: 73143.49713 | BI25: 1310321.334 | BJ25: -27808.37384 | BK25: 71086.911 | BL25: -25168.04697 | BM25: 357059.6026 | BN25: 48416.414 | BO25: 39803.23368 | BP25: 306038.5055 | BQ25: 423962.0602 | BR25: 70 | BS25: 68.78951096 | BT25: 42.45132485 | BU25: 60.77285014 | BV25: 100 | BW25: 94.41789619 | BX25: 0 | BY25: 80 | BZ25: 60 | CA25: 60 | CB25: 35.19024193 | CC25: 3.439842896 | CD25: 50.35227616 | CE25: 8.22932286 | CF25: 57.54867515 | CG25: 35.71959546 | CH25: 0 | CI25: 5.58210381 | CJ25: -39.1188384 | CK25: -7.048696292 | CL25: 121.6393984 | CM25: 72.18535199 | CN25: 1.210489037 | CO25: NA | CP25: 0 | CQ25: 62.9403452 | CR25: 41.1466143 | CS25: 58.58159902 | CT25: 2. Riesgo (>=40 y <60) | CU25: 237056.7198 | CV25: 345679.2982 | CW25: 229469.0081 | CX25: 587005.482 | CY25: 0 | CZ25: 99852.23735 | DA25: 83989.38544 | DB25: 1011491.541 | DC25: 37674.82342 | DD25: 81845.0269 | DE25: -181980.9686 | DF25: 345679.2982 | DG25: 56361.95592 | DH25: 46618.18815 | DI25: 392339.1217 | DJ25: 483490.0633 | DK25: 70 | DL25: 75.64142033 | DM25: 31.4229342 | DN25: 69.02584937 | DO25: 100 | DP25: 91.69648168 | DQ25: 46.03190304 | DR25: 0 | DS25: 60 | DT25: 80 | DU25: 5.801157982 | DV25: 0 | DW25: 45.0902891 | DX25: 9.333333333 | DY25: 68.5770658 | DZ25: 39.09145913 | EA25: 0 | EB25: 8.303518322 | EC25: 46.03190304 | ED25: -52.64445095 | EE25: 120.9012151 | EF25: 81.14729784 | EG25: 0 | EH25: NA | EI25: 0 | EJ25: 56.36286138 | EK25: 46.66666667 | EL25: 54.42362244 | EM25: 2. Riesgo (>=40 y <60) | EN25: 25 | EO25: 4 | EP25: NA | EQ25: NA | ER25: NA | ES25: 5 | ET25: 32 | EU25: 4 | EV25: NA | EW25: NA | EX25: NA | EY25: 10 | EZ25: 39.19212543 | FA25: 39.9721239 | FB25: NA | FC25: NA | FD25: NA | FE25: 22.53890792 | FF25: 48.11297454 | FG25: 71.85207651 | FH25: NA | FI25: NA | FJ25: NA | FK25: 52.39217328 | FL25: 87.5 | FM25: 95 | FN25: NA | FO25: NA | FP25: NA | FQ25: 94 | FR25: 62.84994595 | FS25: 89.31524442 | FT25: NA | FU25: NA | FV25: NA | FW25: 60.14770097 | FX25: 48.60983704 | FY25: 51.51777799 | FZ25: NA | GA25: NA | GB25: NA | GC25: 42.39898516 | GD25: 76.25 | GE25: 40 | GF25: NA | GG25: NA | GH25: NA | GI25: 64 | GJ25: 73.75 | GK25: 40 | GL25: NA | GM25: NA | GN25: NA | GO25: 40 | GP25: 87.5 | GQ25: 75 | GR25: NA | GS25: NA | GT25: NA | GU25: 84 | GV25: 21.82227597 | GW25: 0 | GX25: NA | GY25: NA | GZ25: NA | HA25: 10 | HB25: NA | HC25: NA | HD25: NA | HE25: NA | HF25: NA | HG25: NA | HH25: 0.3108418055 | HI25: 0.05144558657 | HJ25: NA | HK25: NA | HL25: NA | HM25: 0.5389893082 | HN25: 48.33531773 | HO25: 51.68762971 | HP25: NA | HQ25: NA | HR25: NA | HS25: 44.73036898 | HT25: 12.26302679 | HU25: 7.676955784 | HV25: NA | HW25: NA | HX25: NA | HY25: 9.041131195 | HZ25: 60.59834451 | IA25: 59.36458549 | IB25: NA | IC25: NA | ID25: NA | IE25: 53.77150017 | IF25: NA | IG25: NA | IH25: 37.27461501 | II25: 0 | IJ25: 45.63354069 | IK25: NA | IL25: NA | IM25: -39.1188384 | IN25: 0 | IO25: 57.54867515 | IP25: NA | IQ25: NA | IR25: 46.03190304 | IS25: 0 | IT25: 68.5770658 | IU25: NA | IV25: NA
A26: 85 | B26: 85 | C26: CASANARE | D26: 2 | E26: LLANOS Y ORINOQUÍA | F26: NA | G26: NA | H26: 3 | I26: NA | J26: 192918.627 | K26: 359425.877 | L26: 252644.5964 | M26: 513547.4393 | P26: 181815.696 | Q26: 1233750.826 | R26: 41333.038 | S26: 116561.487 | T26: -106668.2249 | U26: 359425.877 | V26: 207805.5633 | W26: 184572.8487 | X26: 2592762.517 | Y26: 2863460.092 | Z26: 55 | AA26: 46.8 | AB26: 46.32589378 | AC26: 74.96315916 | AD26: 80 | AE26: 85.26317533 | AF26: 20 | AG26: 80 | AH26: 100 | AI26: 27.6 | AJ26: 29.71014493 | AK26: 45.60166872 | AL26: 13.98067633 | AM26: 53.67410622 | AN26: 49.19596069 | AO26: 31 | AP26: 14.73682467 | AQ26: 35.46028715 | AR26: -29.67739157 | AS26: 112.5872872 | AT26: 90.5464869 | AU26: 8.2 | AV26: NA | AW26: 0 | AX26: 57.0020859 | AY26: 69.90338164 | AZ26: 59.58234505 | BA26: 2. Riesgo (>=40 y <60) | BB26: 179774.2182 | BC26: 382784.8894 | BD26: 190869.4301 | BE26: 579449.5201 | BF26: 16469 | BG26: 47687 | BH26: 181815.696 | BI26: 1233750.826 | BJ26: 60240.64842 | BK26: 126769.7118 | BL26: -68510.78325 | BM26: 382784.8894 | BN26: 105771.1532 | BO26: 91690.194 | BP26: 324427.5121 | BQ26: 429175.3339 | BR26: 70 | BS26: 64.34672587 | BT26: 53.03518421 | BU26: 56.04331835 | BV26: 80 | BW26: 85.26317533 | BX26: 47.51974865 | BY26: 40 | BZ26: 80 | CA26: 60 | CB26: 35.19024193 | CC26: 16.06489135 | CD26: 48.2481902 | CE26: 10.40432609 | CF26: 46.96481579 | CG26: 32.93978569 | CH26: 34.53561767 | CI26: 14.73682467 | CJ26: 47.51974865 | CK26: -17.8979853 | CL26: 115.3571048 | CM26: 75.59323345 | CN26: 5.653274134 | CO26: NA | CP26: 0 | CQ26: 60.31023776 | CR26: 52.02163045 | CS26: 58.6525163 | CT26: 2. Riesgo (>=40 y <60) | CU26: 224235.5933 | CV26: 401289.1053 | CW26: 503760.7396 | CX26: 889516.8842 | CY26: 0 | CZ26: 164910.3411 | DA26: 301407.3938 | DB26: 1238950.516 | DC26: 76040.33939 | DD26: 144264.4148 | DE26: -200793.5006 | DF26: 401289.1053 | DG26: 123604.4798 | DH26: 85855.859 | DI26: 422721.848 | DJ26: 533858.5304 | DK26: 70 | DL26: 62.65805706 | DM26: 44.12118586 | DN26: 100 | DO26: 100 | DP26: 75.67236221 | DQ26: 52.70900622 | DR26: 0 | DS26: 20 | DT26: 60 | DU26: 0 | DV26: 0 | DW26: 49.66700724 | DX26: 5.333333333 | DY26: 55.87881414 | DZ26: 56.63307224 | EA26: 0 | EB26: 24.32763779 | EC26: 52.70900622 | ED26: -50.03711736 | EE26: 143.9674371 | EF26: 79.1823721 | EG26: 0 | EH26: NA | EI26: 0 | EJ26: 62.08375905 | EK26: 26.66666667 | EL26: 55.00034057 | EM26: 2. Riesgo (>=40 y <60) | EN26: 24 | EO26: 3 | EP26: NA | EQ26: NA | ER26: NA | ES26: 4 | ET26: 32 | EU26: 4 | EV26: NA | EW26: NA | EX26: NA | EY26: 4 | EZ26: 39.19212543 | FA26: 39.9721239 | FB26: NA | FC26: NA | FD26: NA | FE26: 36.53875227 | FF26: 48.11297454 | FG26: 71.85207651 | FH26: NA | FI26: NA | FJ26: NA | FK26: 48.41012594 | FL26: 87.5 | FM26: 95 | FN26: NA | FO26: NA | FP26: NA | FQ26: 100 | FR26: 62.84994595 | FS26: 89.31524442 | FT26: NA | FU26: NA | FV26: NA | FW26: 82.58242014 | FX26: 48.60983704 | FY26: 51.51777799 | FZ26: NA | GA26: NA | GB26: NA | GC26: 48.1704612 | GD26: 76.25 | GE26: 40 | GF26: NA | GG26: NA | GH26: NA | GI26: 75 | GJ26: 73.75 | GK26: 40 | GL26: NA | GM26: NA | GN26: NA | GO26: 70 | GP26: 87.5 | GQ26: 75 | GR26: NA | GS26: NA | GT26: NA | GU26: 90 | GV26: 21.82227597 | GW26: 0 | GX26: NA | GY26: NA | GZ26: NA | HA26: 0 | HB26: NA | HC26: NA | HD26: NA | HE26: NA | HF26: NA | HG26: NA | HH26: 0.3108418055 | HI26: 0.05144558657 | HJ26: NA | HK26: NA | HL26: NA | HM26: 0.08260840697 | HN26: 48.33531773 | HO26: 51.68762971 | HP26: NA | HQ26: NA | HR26: NA | HS26: 52.09356794 | HT26: 12.26302679 | HU26: 7.676955784 | HV26: NA | HW26: NA | HX26: NA | HY26: 10.68318835 | HZ26: 60.59834451 | IA26: 59.36458549 | IB26: NA | IC26: NA | ID26: NA | IE26: 62.77675629 | IF26: NA | IG26: NA | IH26: 35.46028715 | II26: 0 | IJ26: 53.67410622 | IK26: NA | IL26: NA | IM26: 47.51974865 | IN26: 0 | IO26: 46.96481579 | IP26: NA | IQ26: NA | IR26: 52.70900622 | IS26: 0 | IT26: 55.87881414 | IU26: NA | IV26: NA
A27: 86 | B27: 86 | C27: PUTUMAYO | D27: 2 | E27: AMAZONÍA | F27: NA | G27: NA | H27: 4 | I27: NA | J27: 284717.08 | K27: 351362.593 | L27: 57173.35855 | M27: 322024.1336 | P27: 30170.30451 | Q27: 500154.6917 | R27: 10392.101 | S27: 54403.372 | T27: -5092.500024 | U27: 351362.593 | V27: 966782.619 | W27: 865299.1472 | X27: 5488591.348 | Y27: 6091530.206 | Z27: 55 | AA27: 48.1 | AB27: 18.96773143 | AC27: 27.0535162 | AD27: 100 | AE27: 93.96780536 | AF27: 100 | AG27: 80 | AH27: 100 | AI27: 27.6 | AJ27: 25 | AK27: 47.87879944 | AL27: 13.66666667 | AM27: 81.03226857 | AN27: 17.75437074 | AO27: 0 | AP27: 6.032194642 | AQ27: 19.1019428 | AR27: -1.44935748 | AS27: 111.7281373 | AT27: 90.10201316 | AU27: 6.9 | AV27: NA | AW27: 0 | AX27: 59.8484993 | AY27: 68.33333333 | AZ27: 61.54546611 | BA27: 3. Vulnerable (>=60 y <70) | BB27: 288940.0581 | BC27: 382122.596 | BD27: 46221.24784 | BE27: 397591.546 | BF27: 0 | BG27: 87652 | BH27: 30170.30451 | BI27: 500154.6917 | BJ27: 15210.07486 | BK27: 66491.0284 | BL27: 23541.74102 | BM27: 382122.596 | BN27: 45797.80392 | BO27: 41328.66771 | BP27: 284579.5039 | BQ27: 307299.9014 | BR27: 70 | BS27: 62.82876847 | BT27: 24.38550845 | BU27: 19.77914878 | BV27: 100 | BW27: 93.96780536 | BX27: 22.87537917 | BY27: 80 | BZ27: 80 | CA27: 100 | CB27: 35.19024193 | CC27: 20.37846612 | CD27: 45.46771223 | CE27: 13.36809146 | CF27: 75.61449155 | CG27: 11.62530952 | CH27: 0 | CI27: 6.032194642 | CJ27: 22.87537917 | CK27: 6.160782238 | CL27: 110.813647 | CM27: 92.60644166 | CN27: 7.171231531 | CO27: NA | CP27: 0.04763527179 | CQ27: 56.83464029 | CR27: 66.84045731 | CS27: 58.8358037 | CT27: 2. Riesgo (>=40 y <60) | CU27: 322619.6422 | CV27: 426318.1535 | CW27: 110993.6131 | CX27: 490369.403 | CY27: 0 | CZ27: 102766.1404 | DA27: 0 | DB27: 0 | DC27: 17618.20555 | DD27: 73963.64148 | DE27: -12436.67149 | DF27: 426318.1535 | DG27: 54188.33951 | DH27: 41632.06708 | DI27: 332826.9473 | DJ27: 382409.3891 | DK27: 70 | DL27: 70.8928722 | DM27: 24.32420727 | DN27: 39.9672717 | DO27: 100 | DP27: 0 | DQ27: 23.82008944 | DR27: 100 | DS27: 40 | DT27: 80 | DU27: 5.801157982 | DV27: 0 | DW27: 38.41487579 | DX27: 8.090308478 | DY27: 75.67579273 | DZ27: 22.63469385 | EA27: 0 | EB27: nd | EC27: 23.82008944 | ED27: -2.917227753 | EE27: 130.1600985 | EF27: 87.03419864 | EG27: 0 | EH27: NA | EI27: 0.4515423898 | EJ27: 48.01859473 | EK27: 40.45154239 | EL27: 46.50518427 | EM27: 2. Riesgo (>=40 y <60) | EN27: 31 | EO27: 6 | EP27: NA | EQ27: NA | ER27: NA | ES27: 9 | ET27: 32 | EU27: 6 | EV27: NA | EW27: NA | EX27: NA | EY27: 10 | EZ27: 39.19212543 | FA27: 21.78816164 | FB27: NA | FC27: NA | FD27: NA | FE27: 22.53890792 | FF27: 48.11297454 | FG27: 51.96666134 | FH27: NA | FI27: NA | FJ27: NA | FK27: 52.39217328 | FL27: 87.5 | FM27: 96.66666667 | FN27: NA | FO27: NA | FP27: NA | FQ27: 94 | FR27: 62.84994595 | FS27: 46.86921324 | FT27: NA | FU27: NA | FV27: NA | FW27: 60.14770097 | FX27: 48.60983704 | FY27: 42.68525603 | FZ27: NA | GA27: NA | GB27: NA | GC27: 42.39898516 | GD27: 76.25 | GE27: 66.66666667 | GF27: NA | GG27: NA | GH27: NA | GI27: 64 | GJ27: 73.75 | GK27: 36.66666667 | GL27: NA | GM27: NA | GN27: NA | GO27: 40 | GP27: 87.5 | GQ27: 80 | GR27: NA | GS27: NA | GT27: NA | GU27: 84 | GV27: 21.82227597 | GW27: 16.66666667 | GX27: NA | GY27: NA | GZ27: NA | HA27: 10 | HB27: NA | HC27: NA | HD27: NA | HE27: NA | HF27: NA | HG27: NA | HH27: 0.3108418055 | HI27: 0.879466645 | HJ27: NA | HK27: NA | HL27: NA | HM27: 0.5389893082 | HN27: 48.33531773 | HO27: 43.55235008 | HP27: NA | HQ27: NA | HR27: NA | HS27: 44.73036898 | HT27: 12.26302679 | HU27: 9.064782218 | HV27: NA | HW27: NA | HX27: NA | HY27: 9.041131195 | HZ27: 60.59834451 | IA27: 52.6171323 | IB27: NA | IC27: NA | ID27: NA | IE27: 53.77150017 | IF27: NA | IG27: NA | IH27: 19.1019428 | II27: 0 | IJ27: 81.03226857 | IK27: NA | IL27: NA | IM27: 22.87537917 | IN27: 0.04763527179 | IO27: 75.61449155 | IP27: NA | IQ27: NA | IR27: 23.82008944 | IS27: 0.4515423898 | IT27: 75.67579273 | IU27: NA | IV27: NA
A28: 88 | B28: 88 | C28: SAN ANDRES | D28: 2 | E28: SEAFLOWER REGION | F28: NA | G28: NA | H28: 2 | I28: NA | J28: 147972.472 | K28: 341649.641 | L28: 141507.7581 | M28: 215624.788 | P28: 71925.33075 | Q28: 431607.5666 | R28: 144374.883 | S28: 277558.985 | T28: 2808.328136 | U28: 341649.641 | V28: 31009.23529 | W28: 33263.124 | X28: 522708.9555 | Y28: 591156.6333 | Z28: 70 | AA28: 60.4 | AB28: 56.68882556 | AC28: 100 | AD28: 100 | AE28: 83.33547966 | AF28: 100 | AG28: 100 | AH28: 80 | AI28: 18.4 | AJ28: 52.17391304 | AK28: 65.60536449 | AL28: 15.47826087 | AM28: 43.31117444 | AN28: 65.6268509 | AO28: 0 | AP28: 16.66452034 | AQ28: 52.01592843 | AR28: 0.8219906591 | AS28: 93.22406184 | AT28: 88.42139732 | AU28: 9.6 | AV28: 2 | AW28: 0 | AX28: 82.00670561 | AY28: 77.39130435 | AZ28: 81.08362536 | BA28: 5. Sostenible (>=80) | BB28: 57464.92975 | BC28: 344744.8456 | BD28: 62515.43253 | BE28: 172369.9942 | BF28: 0 | BG28: 291613 | BH28: 71925.33075 | BI28: 431607.5666 | BJ28: 114406.3278 | BK28: 260454.0993 | BL28: 59928.60466 | BM28: 344744.8456 | BN28: 151846.1021 | BO28: 148560.6374 | BP28: 97744.08236 | BQ28: 141378.4936 | BR28: 70 | BS28: 45.18698865 | BT28: 83.33117072 | BU28: 61.70617776 | BV28: 100 | BW28: 83.33547966 | BX28: 43.92571594 | BY28: 40 | BZ28: 100 | CA28: 40 | CB28: 24.81301135 | CC28: 100 | CD28: 54.97313921 | CE28: 16.4 | CF28: 16.66882928 | CG28: 36.26816419 | CH28: 0 | CI28: 16.66452034 | CJ28: 43.92571594 | CK28: 17.38346648 | CL28: 102.2115311 | CM28: 69.13645764 | CN28: 24.81301135 | CO28: 2 | CP28: 0 | CQ28: 68.71642401 | CR28: 82 | CS28: 71.37313921 | CT28: 4. Solvente (>=70 y <80) | CU28: 188418.9014 | CV28: 426389.8159 | CW28: 34622.05661 | CX28: 230288.7259 | CY28: 0 | CZ28: 279490.127 | DA28: 327587.4104 | DB28: 688283.8681 | DC28: 147718.5038 | DD28: 305114.2508 | DE28: 42762.9106 | DF28: 426389.8159 | DG28: 152971.0533 | DH28: 156472.1663 | DI28: 191785.6566 | DJ28: 226231.1583 | DK28: 60 | DL28: 43.76460261 | DM28: 55.81064687 | DN28: 26.54667073 | DO28: 100 | DP28: 52.40518839 | DQ28: 48.41416073 | DR28: 60 | DS28: 100 | DT28: 80 | DU28: 26.62288959 | DV28: 0 | DW28: 45.7568889 | DX28: 12.16983968 | DY28: 44.18935313 | DZ28: 15.03419521 | EA28: 0 | EB28: 47.59481161 | EC28: 48.41416073 | ED28: 10.02906472 | EE28: 97.76246916 | EF28: 84.77420089 | EG28: 0 | EH28: 0 | EI28: 0.8491983834 | EJ28: 57.19611112 | EK28: 60.84919838 | EL28: 57.92672857 | EM28: 2. Riesgo (>=40 y <60) | EN28: 22 | EO28: 1 | EP28: NA | EQ28: NA | ER28: NA | ES28: 7 | ET28: 32 | EU28: 1 | EV28: NA | EW28: NA | EX28: NA | EY28: 9 | EZ28: 39.19212543 | FA28: 55.81064687 | FB28: NA | FC28: NA | FD28: NA | FE28: 44.54741736 | FF28: 48.11297454 | FG28: 26.54667073 | FH28: NA | FI28: NA | FJ28: NA | FK28: 42.17611394 | FL28: 87.5 | FM28: 100 | FN28: NA | FO28: NA | FP28: NA | FQ28: 86.66666667 | FR28: 62.84994595 | FS28: 52.40518839 | FT28: NA | FU28: NA | FV28: NA | FW28: 63.84180029 | FX28: 48.60983704 | FY28: 48.41416073 | FZ28: NA | GA28: NA | GB28: NA | GC28: 49.70660357 | GD28: 76.25 | GE28: 60 | GF28: NA | GG28: NA | GH28: NA | GI28: 77.77777778 | GJ28: 73.75 | GK28: 100 | GL28: NA | GM28: NA | GN28: NA | GO28: 95.55555556 | GP28: 87.5 | GQ28: 80 | GR28: NA | GS28: NA | GT28: NA | GU28: 88.88888889 | GV28: 21.82227597 | GW28: 0 | GX28: NA | GY28: NA | GZ28: NA | HA28: 32.1920463 | HB28: NA | HC28: NA | HD28: NA | HE28: NA | HF28: NA | HG28: NA | HH28: 0.3108418055 | HI28: 0.8491983834 | HJ28: NA | HK28: NA | HL28: NA | HM28: 0.2567170583 | HN28: 48.33531773 | HO28: 45.7568889 | HP28: NA | HQ28: NA | HR28: NA | HS28: 48.62885061 | HT28: 12.26302679 | HU28: 12.16983968 | HV28: NA | HW28: NA | HX28: NA | HY28: 14.48541833 | HZ28: 60.59834451 | IA28: 57.92672857 | IB28: NA | IC28: NA | ID28: NA | IE28: 63.11426895 | IF28: NA | IG28: NA | IH28: 52.01592843 | II28: 0 | IJ28: 43.31117444 | IK28: NA | IL28: NA | IM28: 43.92571594 | IN28: 0 | IO28: 16.66882928 | IP28: NA | IQ28: NA | IR28: 48.41416073 | IS28: 0.8491983834 | IT28: 44.18935313 | IU28: NA | IV28: NA
A29: 91 | B29: 91 | C29: AMAZONAS | D29: 2 | E29: AMAZONÍA | F29: NA | G29: NA | H29: 4 | I29: NA | J29: 99640.662 | K29: 135642.319 | L29: 31765.5775 | M29: 145414.2407 | P29: 300745.7708 | Q29: 221090.2045 | R29: 8649.276 | S29: 33015.676 | T29: -31394.31123 | U29: 135642.319 | V29: 1350747.011 | W29: 1238770.232 | X29: 10677566 | Y29: 11582741.78 | Z29: 50 | AA29: 40.4 | AB29: 26.54161125 | AC29: 33.28650901 | AD29: 100 | AE29: 0 | AF29: 20 | AG29: 100 | AH29: 100 | AI29: 27.6 | AJ29: 34.7826087 | AK29: 27.47008039 | AL29: 15.65217391 | AM29: 73.45838875 | AN29: 21.84488764 | AO29: 0 | AP29: 136.0285371 | AQ29: 26.19748267 | AR29: -23.1449237 | AS29: 109.0393502 | AT29: 92.18513374 | AU29: 9.6 | AV29: NA | AW29: 0 | AX29: 34.33760049 | AY29: 78.26086957 | AZ29: 43.1222543 | BA29: 2. Riesgo (>=40 y <60) | BB29: 92034.27352 | BC29: 145763.0535 | BD29: 22914.77235 | BE29: 144043.6684 | BF29: 0 | BG29: 46097 | BH29: 300745.7708 | BI29: 221090.2045 | BJ29: 11360.79741 | BK29: 36057.57789 | BL29: -1902.690675 | BM29: 145763.0535 | BN29: 16739.29399 | BO29: 14437.03038 | BP29: 114751.6744 | BQ29: 122968.9637 | BR29: 70 | BS29: 61.01198546 | BT29: 36.8603557 | BU29: 27.066023 | BV29: 100 | BW29: 0 | BX29: 31.50737813 | BY29: 100 | BZ29: 80 | CA29: 100 | CB29: 35.19024193 | CC29: 25.54121269 | CD29: 39.39116758 | CE29: 13.70274751 | CF29: 63.1396443 | CG29: 15.90821214 | CH29: 0 | CI29: 136.0285371 | CJ29: 31.50737813 | CK29: -1.305331241 | CL29: 115.9469334 | CM29: 93.31759079 | CN29: 8.988014537 | CO29: NA | CP29: 0 | CQ29: 49.23895947 | CR29: 68.51373756 | CS29: 53.09391509 | CT29: 2. Riesgo (>=40 y <60) | CU29: 132600.2972 | CV29: 158154.8898 | CW29: 44377.6669 | CX29: 174300.7652 | CY29: 17196.15 | CZ29: 60029.59498 | DA29: 18995.31054 | DB29: 230473.3031 | DC29: 15924.52104 | DD29: 41231.02978 | DE29: -18736.02883 | DF29: 158154.8898 | DG29: 17997.11815 | DH29: 13479.81361 | DI29: 139211.9448 | DJ29: 151584.4099 | DK29: 70 | DL29: 56.71397321 | DM29: 16.15795287 | DN29: 44.95676477 | DO29: 80 | DP29: 91.75812978 | DQ29: 38.62266143 | DR29: 60 | DS29: 40 | DT29: 100 | DU29: 5.801157982 | DV29: 0 | DW29: 44.19940118 | DX29: 9.553627185 | DY29: 83.84204713 | DZ29: 25.46039707 | EA29: 28.64612031 | EB29: 8.24187022 | EC29: 38.62266143 | ED29: -11.84663266 | EE29: 133.5116246 | EF29: 91.837904 | EG29: 0 | EH29: NA | EI29: 1.101469256 | EJ29: 55.24925147 | EK29: 47.76813592 | EL29: 53.75302836 | EM29: 2. Riesgo (>=40 y <60) | EN29: 26 | EO29: 3 | EP29: NA | EQ29: NA | ER29: NA | ES29: 6 | ET29: 32 | EU29: 6 | EV29: NA | EW29: NA | EX29: NA | EY29: 10 | EZ29: 39.19212543 | FA29: 21.78816164 | FB29: NA | FC29: NA | FD29: NA | FE29: 22.53890792 | FF29: 48.11297454 | FG29: 51.96666134 | FH29: NA | FI29: NA | FJ29: NA | FK29: 52.39217328 | FL29: 87.5 | FM29: 96.66666667 | FN29: NA | FO29: NA | FP29: NA | FQ29: 94 | FR29: 62.84994595 | FS29: 46.86921324 | FT29: NA | FU29: NA | FV29: NA | FW29: 60.14770097 | FX29: 48.60983704 | FY29: 42.68525603 | FZ29: NA | GA29: NA | GB29: NA | GC29: 42.39898516 | GD29: 76.25 | GE29: 66.66666667 | GF29: NA | GG29: NA | GH29: NA | GI29: 64 | GJ29: 73.75 | GK29: 36.66666667 | GL29: NA | GM29: NA | GN29: NA | GO29: 40 | GP29: 87.5 | GQ29: 80 | GR29: NA | GS29: NA | GT29: NA | GU29: 84 | GV29: 21.82227597 | GW29: 16.66666667 | GX29: NA | GY29: NA | GZ29: NA | HA29: 10 | HB29: NA | HC29: NA | HD29: NA | HE29: NA | HF29: NA | HG29: NA | HH29: 0.3108418055 | HI29: 0.879466645 | HJ29: NA | HK29: NA | HL29: NA | HM29: 0.5389893082 | HN29: 48.33531773 | HO29: 43.55235008 | HP29: NA | HQ29: NA | HR29: NA | HS29: 44.73036898 | HT29: 12.26302679 | HU29: 9.064782218 | HV29: NA | HW29: NA | HX29: NA | HY29: 9.041131195 | HZ29: 60.59834451 | IA29: 52.6171323 | IB29: NA | IC29: NA | ID29: NA | IE29: 53.77150017 | IF29: NA | IG29: NA | IH29: 26.19748267 | II29: 0 | IJ29: 73.45838875 | IK29: NA | IL29: NA | IM29: 31.50737813 | IN29: 0 | IO29: 63.1396443 | IP29: NA | IQ29: NA | IR29: 38.62266143 | IS29: 1.101469256 | IT29: 83.84204713 | IU29: NA | IV29: NA
A30: 94 | B30: 94 | C30: GUAINIA | D30: 2 | E30: AMAZONÍA | F30: NA | G30: NA | H30: 4 | I30: NA | J30: 90502.83 | K30: 120095.243 | L30: 36271.545 | M30: 106811.547 | P30: 149848.5526 | Q30: 424123.2098 | R30: 17539.911 | S30: 29849.106 | T30: 974.501 | U30: 120095.243 | V30: 258978.0518 | W30: 264586.8424 | X30: 1349138.968 | Y30: 1613370.086 | Z30: 55 | AA30: 52.8 | AB30: 24.64078698 | AC30: 51.74474899 | AD30: 100 | AE30: 64.66862715 | AF30: 100 | AG30: 100 | AH30: 80 | AI30: 27.6 | AJ30: 7.971014493 | AK30: 53.30881252 | AL30: 12.53140097 | AM30: 75.35921302 | AN30: 33.95844927 | AO30: 0 | AP30: 35.33137285 | AQ30: 58.76193076 | AR30: 0.8114401334 | AS30: 97.88017024 | AT30: 83.62241121 | AU30: 2.2 | AV30: NA | AW30: 0 | AX30: 66.63601565 | AY30: 62.65700483 | AZ30: 65.84021348 | BA30: 3. Vulnerable (>=60 y <70) | BB30: 79539.65004 | BC30: 119520.9953 | BD30: 72743.03406 | BE30: 172606.0988 | BF30: 0 | BG30: 52321 | BH30: 149848.5526 | BI30: 424123.2098 | BJ30: 15671.37936 | BK30: 30663.32326 | BL30: -19527.91072 | BM30: 119520.9953 | BN30: 13686.75457 | BO30: 10047.23807 | BP30: 90938.14891 | BQ30: 124056.9622 | BR30: 70 | BS30: 52.74280067 | BT30: 33.45131554 | BU30: 71.70316851 | BV30: 100 | BW30: 64.66862715 | BX30: 51.107896 | BY30: 40 | BZ30: 40 | CA30: 60 | CB30: 35.19024193 | CC30: 49.03972915 | CD30: 48.12413429 | CE30: 9.935981944 | CF30: 66.54868446 | CG30: 42.14395354 | CH30: 0 | CI30: 35.33137285 | CJ30: 51.107896 | CK30: -16.33847733 | CL30: 136.2240495 | CM30: 73.30354326 | CN30: 17.25719933 | CO30: NA | CP30: 0 | CQ30: 60.15516787 | CR30: 49.67990972 | CS30: 58.06011624 | CT30: 2. Riesgo (>=40 y <60) | CU30: 119210.7282 | CV30: 147199.4588 | CW30: 67361.41586 | CX30: 177086.3729 | CY30: 0 | CZ30: 60861.04887 | DA30: 158628.9076 | DB30: 469608.4517 | DC30: 26047.04344 | DD30: 41104.14405 | DE30: 1445.337225 | DF30: 147199.4588 | DG30: 18924.81999 | DH30: 12424.54409 | DI30: 99114.39027 | DJ30: 130697.021 | DK30: 70 | DL30: 41.06925895 | DM30: 19.01415317 | DN30: 67.16699863 | DO30: 100 | DP30: 66.22102796 | DQ30: 63.36841222 | DR30: 100 | DS30: 0 | DT30: 60 | DU30: 5.801157982 | DV30: 0 | DW30: 55.43607893 | DX30: 4.292158743 | DY30: 80.98584683 | DZ30: 38.03873485 | EA30: 0 | EB30: 33.77897204 | EC30: 63.36841222 | ED30: 0.9818903117 | EE30: 152.3180235 | EF30: 75.83523291 | EG30: 0 | EH30: NA | EI30: 1.460793715 | EJ30: 69.29509866 | EK30: 21.46079371 | EL30: 59.72823767 | EM30: 2. Riesgo (>=40 y <60) | EN30: 20 | EO30: 1 | EP30: NA | EQ30: NA | ER30: NA | ES30: 3 | ET30: 32 | EU30: 6 | EV30: NA | EW30: NA | EX30: NA | EY30: 10 | EZ30: 39.19212543 | FA30: 21.78816164 | FB30: NA | FC30: NA | FD30: NA | FE30: 22.53890792 | FF30: 48.11297454 | FG30: 51.96666134 | FH30: NA | FI30: NA | FJ30: NA | FK30: 52.39217328 | FL30: 87.5 | FM30: 96.66666667 | FN30: NA | FO30: NA | FP30: NA | FQ30: 94 | FR30: 62.84994595 | FS30: 46.86921324 | FT30: NA | FU30: NA | FV30: NA | FW30: 60.14770097 | FX30: 48.60983704 | FY30: 42.68525603 | FZ30: NA | GA30: NA | GB30: NA | GC30: 42.39898516 | GD30: 76.25 | GE30: 66.66666667 | GF30: NA | GG30: NA | GH30: NA | GI30: 64 | GJ30: 73.75 | GK30: 36.66666667 | GL30: NA | GM30: NA | GN30: NA | GO30: 40 | GP30: 87.5 | GQ30: 80 | GR30: NA | GS30: NA | GT30: NA | GU30: 84 | GV30: 21.82227597 | GW30: 16.66666667 | GX30: NA | GY30: NA | GZ30: NA | HA30: 10 | HB30: NA | HC30: NA | HD30: NA | HE30: NA | HF30: NA | HG30: NA | HH30: 0.3108418055 | HI30: 0.879466645 | HJ30: NA | HK30: NA | HL30: NA | HM30: 0.5389893082 | HN30: 48.33531773 | HO30: 43.55235008 | HP30: NA | HQ30: NA | HR30: NA | HS30: 44.73036898 | HT30: 12.26302679 | HU30: 9.064782218 | HV30: NA | HW30: NA | HX30: NA | HY30: 9.041131195 | HZ30: 60.59834451 | IA30: 52.6171323 | IB30: NA | IC30: NA | ID30: NA | IE30: 53.77150017 | IF30: NA | IG30: NA | IH30: 58.76193076 | II30: 0 | IJ30: 75.35921302 | IK30: NA | IL30: NA | IM30: 51.107896 | IN30: 0 | IO30: 66.54868446 | IP30: NA | IQ30: NA | IR30: 63.36841222 | IS30: 1.460793715 | IT30: 80.98584683 | IU30: NA | IV30: NA
A31: 95 | B31: 95 | C31: GUAVIARE | D31: 2 | E31: AMAZONÍA | F31: NA | G31: NA | H31: 4 | I31: NA | J31: 92956.907 | K31: 150745.841 | L31: 58022.34974 | M31: 157425.6539 | P31: 31717.36591 | Q31: 137713.6429 | R31: 20714.081 | S31: 44280.218 | T31: -9521.865152 | U31: 150745.841 | V31: 208631.6048 | W31: 209499.1769 | X31: 2000418.774 | Y31: 2179288.214 | Z31: 60 | AA31: 44.9 | AB31: 38.3353422 | AC31: 56.16144087 | AD31: 100 | AE31: 76.9686102 | AF31: 80 | AG31: 100 | AH31: 100 | AI31: 27.6 | AJ31: 54.71014493 | AK31: 53.09932405 | AL31: 16.98067633 | AM31: 61.6646578 | AN31: 36.85698506 | AO31: 7 | AP31: 23.0313898 | AQ31: 46.77953708 | AR31: -6.316502723 | AS31: 99.58588281 | AT31: 91.79229995 | AU31: 15.1 | AV31: NA | AW31: 0 | AX31: 66.37415506 | AY31: 84.90338164 | AZ31: 70.08000038 | BA31: 4. Solvente (>=70 y <80) | BB31: 79169.8319 | BC31: 147873.9885 | BD31: 55819.13661 | BE31: 188485.6346 | BF31: 3776 | BG31: 45635 | BH31: 31717.36591 | BI31: 137713.6429 | BJ31: 26009.53077 | BK31: 49908.10163 | BL31: -5146.574984 | BM31: 147873.9885 | BN31: 26732.63627 | BO31: 20651.00507 | BP31: 110956.6353 | BQ31: 129797.5865 | BR31: 70 | BS31: 53.62797791 | BT31: 46.46128591 | BU31: 50.38577364 | BV31: 100 | BW31: 76.9686102 | BX31: 52.11484693 | BY31: 100 | BZ31: 60 | CA31: 80 | CB31: 35.19024193 | CC31: 46.52432376 | CD31: 56.79073556 | CE31: 12.43495492 | CF31: 53.53871409 | CG31: 29.61453095 | CH31: 8.274350827 | CI31: 23.0313898 | CJ31: 52.11484693 | CK31: -3.480378826 | CL31: 129.4495652 | CM31: 85.48435937 | CN31: 16.37202209 | CO31: NA | CP31: 0 | CQ31: 70.98841945 | CR31: 62.17477459 | CS31: 69.22569048 | CT31: 3. Vulnerable (>=60 y <70) | CU31: 117876.9393 | CV31: 158518.2974 | CW31: 79141.57384 | CX31: 218430.2685 | CY31: 6033.923 | CZ31: 55482.7764 | DA31: 65424.32592 | DB31: 118449.8006 | DC31: 23237.20588 | DD31: 51939.89419 | DE31: -21123.77055 | DF31: 158518.2974 | DG31: 29159.24046 | DH31: 20157.87454 | DI31: 130650.3783 | DJ31: 150939.3797 | DK31: 70 | DL31: 64.19884202 | DM31: 25.63827568 | DN31: 63.97668618 | DO31: 100 | DP31: 44.76620003 | DQ31: 44.73864693 | DR31: 60 | DS31: 20 | DT31: 80 | DU31: 5.801157982 | DV31: 100 | DW31: 45.21597451 | DX31: 13.48584401 | DY31: 74.36172432 | DZ31: 36.2319629 | EA31: 10.87530832 | EB31: 55.23379997 | EC31: 44.73864693 | ED31: -13.32576169 | EE31: 144.6543405 | EF31: 86.55817894 | EG31: 5.801157982 | EH31: NA | EI31: 0.7625533857 | EJ31: 56.51996814 | EK31: 67.42922005 | EL31: 58.70181852 | EM31: 2. Riesgo (>=40 y <60) | EN31: 21 | EO31: 2 | EP31: NA | EQ31: NA | ER31: NA | ES31: 4 | ET31: 32 | EU31: 6 | EV31: NA | EW31: NA | EX31: NA | EY31: 10 | EZ31: 39.19212543 | FA31: 21.78816164 | FB31: NA | FC31: NA | FD31: NA | FE31: 22.53890792 | FF31: 48.11297454 | FG31: 51.96666134 | FH31: NA | FI31: NA | FJ31: NA | FK31: 52.39217328 | FL31: 87.5 | FM31: 96.66666667 | FN31: NA | FO31: NA | FP31: NA | FQ31: 94 | FR31: 62.84994595 | FS31: 46.86921324 | FT31: NA | FU31: NA | FV31: NA | FW31: 60.14770097 | FX31: 48.60983704 | FY31: 42.68525603 | FZ31: NA | GA31: NA | GB31: NA | GC31: 42.39898516 | GD31: 76.25 | GE31: 66.66666667 | GF31: NA | GG31: NA | GH31: NA | GI31: 64 | GJ31: 73.75 | GK31: 36.66666667 | GL31: NA | GM31: NA | GN31: NA | GO31: 40 | GP31: 87.5 | GQ31: 80 | GR31: NA | GS31: NA | GT31: NA | GU31: 84 | GV31: 21.82227597 | GW31: 16.66666667 | GX31: NA | GY31: NA | GZ31: NA | HA31: 10 | HB31: NA | HC31: NA | HD31: NA | HE31: NA | HF31: NA | HG31: NA | HH31: 0.3108418055 | HI31: 0.879466645 | HJ31: NA | HK31: NA | HL31: NA | HM31: 0.5389893082 | HN31: 48.33531773 | HO31: 43.55235008 | HP31: NA | HQ31: NA | HR31: NA | HS31: 44.73036898 | HT31: 12.26302679 | HU31: 9.064782218 | HV31: NA | HW31: NA | HX31: NA | HY31: 9.041131195 | HZ31: 60.59834451 | IA31: 52.6171323 | IB31: NA | IC31: NA | ID31: NA | IE31: 53.77150017 | IF31: NA | IG31: NA | IH31: 46.77953708 | II31: 0 | IJ31: 61.6646578 | IK31: NA | IL31: NA | IM31: 52.11484693 | IN31: 0 | IO31: 53.53871409 | IP31: NA | IQ31: NA | IR31: 44.73864693 | IS31: 0.7625533857 | IT31: 74.36172432 | IU31: NA | IV31: NA
A32: 97 | B32: 97 | C32: VAUPES | D32: 2 | E32: AMAZONÍA | F32: NA | G32: NA | H32: 4 | I32: NA | J32: 69188.774 | K32: 101103.157 | L32: 30381.32197 | M32: 93223.92122 | P32: 78541.8467 | Q32: 222836.2351 | R32: 14617.369 | S32: 26725.932 | T32: 585.348744 | U32: 101103.157 | V32: 8103.832921 | W32: 6351.674895 | X32: 95960.02778 | Y32: 114400.3102 | Z32: 70 | AA32: 42.4 | AB32: 31.56615871 | AC32: 49.65897322 | AD32: 100 | AE32: 64.75355696 | AF32: 100 | AG32: 60 | AH32: 80 | AI32: 27.6 | AJ32: 100 | AK32: 53.42296919 | AL32: 16 | AM32: 68.43384129 | AN32: 32.58962031 | AO32: 0 | AP32: 35.24644304 | AQ32: 54.69358 | AR32: 0.5789618854 | AS32: 127.5857637 | AT32: 83.88091568 | AU32: 27.6 | AV32: NA | AW32: 0 | AX32: 66.77871148 | AY32: 80 | AZ32: 69.42296919 | BA32: 3. Vulnerable (>=60 y <70) | BB32: 57366.6506 | BC32: 95730.92199 | BD32: 25032.05603 | BE32: 101807.0344 | BF32: 0 | BG32: 52084 | BH32: 78541.8467 | BI32: 222836.2351 | BJ32: 21548.04473 | BK32: 34493.90742 | BL32: -5901.448533 | BM32: 95730.92199 | BN32: 10028.39859 | BO32: 6772.135733 | BP32: 79676.23708 | BQ32: 90085.62512 | BR32: 70 | BS32: 34.80975807 | BT32: 40.07510906 | BU32: 41.83326949 | BV32: 100 | BW32: 64.75355696 | BX32: 62.46913248 | BY32: 80 | BZ32: 20 | CA32: 80 | CB32: 35.19024193 | CC32: 100 | CD32: 51.8841424 | CE32: 13.33333333 | CF32: 59.92489094 | CG32: 24.58774699 | CH32: 0 | CI32: 35.24644304 | CJ32: 62.46913248 | CK32: -6.164621013 | CL32: 148.0832485 | CM32: 88.4450066 | CN32: 35.19024193 | CO32: NA | CP32: 0 | CQ32: 64.855178 | CR32: 66.66666667 | CS32: 65.21747573 | CT32: 3. Vulnerable (>=60 y <70) | CU32: 86805.21158 | CV32: 106680.9825 | CW32: 26592.33736 | CX32: 114650.7915 | CY32: 0 | CZ32: 44471.39459 | DA32: 47581.23678 | DB32: 220998.9021 | DC32: 12415.2228 | DD32: 27737.67908 | DE32: -23292.26529 | DF32: 106680.9825 | DG32: 8094.761842 | DH32: 5737.93888 | DI32: 94010.36197 | DJ32: 114274.1889 | DK32: 70 | DL32: 46.84752757 | DM32: 18.63103476 | DN32: 40.95522654 | DO32: 100 | DP32: 78.46992165 | DQ32: 44.75941468 | DR32: 20 | DS32: 20 | DT32: 80 | DU32: 5.801157982 | DV32: 0 | DW32: 40.37541302 | DX32: 6.910151691 | DY32: 81.36896524 | DZ32: 23.19420303 | EA32: 0 | EB32: 21.53007835 | EC32: 44.75941468 | ED32: -21.83356841 | EE32: 141.0743825 | EF32: 82.26736315 | EG32: 0 | EH32: NA | EI32: 1.21742512 | EJ32: 50.46926627 | EK32: 34.55075845 | EL32: 47.28556471 | EM32: 2. Riesgo (>=40 y <60) | EN32: 30 | EO32: 5 | EP32: NA | EQ32: NA | ER32: NA | ES32: 8 | ET32: 32 | EU32: 6 | EV32: NA | EW32: NA | EX32: NA | EY32: 10 | EZ32: 39.19212543 | FA32: 21.78816164 | FB32: NA | FC32: NA | FD32: NA | FE32: 22.53890792 | FF32: 48.11297454 | FG32: 51.96666134 | FH32: NA | FI32: NA | FJ32: NA | FK32: 52.39217328 | FL32: 87.5 | FM32: 96.66666667 | FN32: NA | FO32: NA | FP32: NA | FQ32: 94 | FR32: 62.84994595 | FS32: 46.86921324 | FT32: NA | FU32: NA | FV32: NA | FW32: 60.14770097 | FX32: 48.60983704 | FY32: 42.68525603 | FZ32: NA | GA32: NA | GB32: NA | GC32: 42.39898516 | GD32: 76.25 | GE32: 66.66666667 | GF32: NA | GG32: NA | GH32: NA | GI32: 64 | GJ32: 73.75 | GK32: 36.66666667 | GL32: NA | GM32: NA | GN32: NA | GO32: 40 | GP32: 87.5 | GQ32: 80 | GR32: NA | GS32: NA | GT32: NA | GU32: 84 | GV32: 21.82227597 | GW32: 16.66666667 | GX32: NA | GY32: NA | GZ32: NA | HA32: 10 | HB32: NA | HC32: NA | HD32: NA | HE32: NA | HF32: NA | HG32: NA | HH32: 0.3108418055 | HI32: 0.879466645 | HJ32: NA | HK32: NA | HL32: NA | HM32: 0.5389893082 | HN32: 48.33531773 | HO32: 43.55235008 | HP32: NA | HQ32: NA | HR32: NA | HS32: 44.73036898 | HT32: 12.26302679 | HU32: 9.064782218 | HV32: NA | HW32: NA | HX32: NA | HY32: 9.041131195 | HZ32: 60.59834451 | IA32: 52.6171323 | IB32: NA | IC32: NA | ID32: NA | IE32: 53.77150017 | IF32: NA | IG32: NA | IH32: 54.69358 | II32: 0 | IJ32: 68.43384129 | IK32: NA | IL32: NA | IM32: 62.46913248 | IN32: 0 | IO32: 59.92489094 | IP32: NA | IQ32: NA | IR32: 44.75941468 | IS32: 1.21742512 | IT32: 81.36896524 | IU32: NA | IV32: NA
A33: 99 | B33: 99 | C33: VICHADA | D33: 2 | E33: LLANOS Y ORINOQUÍA | F33: NA | G33: NA | H33: 4 | I33: NA | J33: 87215.602 | K33: 119431.83 | L33: 55515.86679 | M33: 131357.7968 | P33: 9306.823964 | Q33: 42571.33301 | R33: 12233.248 | S33: 31914.351 | T33: -5347.708 | U33: 119431.83 | V33: 8529.969914 | W33: 7144.862308 | X33: 179634.7716 | Y33: 201129.0121 | Z33: 70 | AA33: 66.5 | AB33: 26.97457453 | AC33: 64.3990861 | AD33: 100 | AE33: 78.1382839 | AF33: 100 | AG33: 80 | AH33: 80 | AI33: 27.6 | AJ33: 12.68115942 | AK33: 54.37912533 | AL33: 11.51207729 | AM33: 73.02542547 | AN33: 42.26309222 | AO33: 7 | AP33: 21.8617161 | AQ33: 38.33149545 | AR33: -4.477623762 | AS33: 119.3860644 | AT33: 89.31320734 | AU33: 3.5 | AV33: NA | AW33: 0 | AX33: 67.97390666 | AY33: 57.56038647 | AZ33: 65.89120263 | BA33: 3. Vulnerable (>=60 y <70) | BB33: 66971.38736 | BC33: 126670.1564 | BD33: 34949.06055 | BE33: 161243.5543 | BF33: 2287 | BG33: 44839 | BH33: 9306.823964 | BI33: 42571.33301 | BJ33: 21246.25799 | BK33: 36884.10685 | BL33: -4407.718793 | BM33: 126670.1564 | BN33: 13061.02638 | BO33: 8034.6284 | BP33: 92589.49785 | BQ33: 115440.0264 | BR33: 70 | BS33: 39.30784032 | BT33: 47.12930872 | BU33: 36.87705374 | BV33: 100 | BW33: 78.1382839 | BX33: 57.60274493 | BY33: 100 | BZ33: 0 | CA33: 80 | CB33: 35.19024193 | CC33: 87.21781378 | CD33: 55.96631884 | CE33: 11.14785425 | CF33: 52.87069128 | CG33: 21.67470241 | CH33: 5.100470572 | CI33: 21.8617161 | CJ33: 57.60274493 | CK33: -3.479682126 | CL33: 162.5591842 | CM33: 80.20571439 | CN33: 30.69215968 | CO33: NA | CP33: 0 | CQ33: 69.95789855 | CR33: 55.73927126 | CS33: 67.11417309 | CT33: 3. Vulnerable (>=60 y <70) | CU33: 109383.777 | CV33: 139256.8478 | CW33: 57870.62744 | CX33: 175357.8755 | CY33: 1313 | CZ33: 58095.41508 | DA33: 6145.588826 | DB33: 169602.6325 | DC33: 23071.98756 | DD33: 44920.37663 | DE33: -9054.702406 | DF33: 139256.8478 | DG33: 21184.2326 | DH33: 8956.688 | DI33: 107010.8992 | DJ33: 126463.1611 | DK33: 70 | DL33: 49.1813705 | DM33: 21.45177871 | DN33: 58.27238504 | DO33: 100 | DP33: 96.37647793 | DQ33: 51.36196376 | DR33: 80 | DS33: 0 | DT33: 80 | DU33: 5.801157982 | DV33: 0 | DW33: 54.32834739 | DX33: 5.333333333 | DY33: 78.54822129 | DZ33: 33.00144191 | EA33: 2.260075082 | EB33: 3.623522075 | EC33: 51.36196376 | ED33: -6.502159534 | EE33: 236.5185948 | EF33: 84.61823839 | EG33: 0 | EH33: NA | EI33: 0 | EJ33: 67.91043424 | EK33: 26.66666667 | EL33: 59.66168072 | EM33: 2. Riesgo (>=40 y <60) | EN33: 19 | EO33: 2 | EP33: NA | EQ33: NA | ER33: NA | ES33: 2 | ET33: 32 | EU33: 4 | EV33: NA | EW33: NA | EX33: NA | EY33: 10 | EZ33: 39.19212543 | FA33: 39.9721239 | FB33: NA | FC33: NA | FD33: NA | FE33: 22.53890792 | FF33: 48.11297454 | FG33: 71.85207651 | FH33: NA | FI33: NA | FJ33: NA | FK33: 52.39217328 | FL33: 87.5 | FM33: 95 | FN33: NA | FO33: NA | FP33: NA | FQ33: 94 | FR33: 62.84994595 | FS33: 89.31524442 | FT33: NA | FU33: NA | FV33: NA | FW33: 60.14770097 | FX33: 48.60983704 | FY33: 51.51777799 | FZ33: NA | GA33: NA | GB33: NA | GC33: 42.39898516 | GD33: 76.25 | GE33: 40 | GF33: NA | GG33: NA | GH33: NA | GI33: 64 | GJ33: 73.75 | GK33: 40 | GL33: NA | GM33: NA | GN33: NA | GO33: 40 | GP33: 87.5 | GQ33: 75 | GR33: NA | GS33: NA | GT33: NA | GU33: 84 | GV33: 21.82227597 | GW33: 0 | GX33: NA | GY33: NA | GZ33: NA | HA33: 10 | HB33: NA | HC33: NA | HD33: NA | HE33: NA | HF33: NA | HG33: NA | HH33: 0.3108418055 | HI33: 0.05144558657 | HJ33: NA | HK33: NA | HL33: NA | HM33: 0.5389893082 | HN33: 48.33531773 | HO33: 51.68762971 | HP33: NA | HQ33: NA | HR33: NA | HS33: 44.73036898 | HT33: 12.26302679 | HU33: 7.676955784 | HV33: NA | HW33: NA | HX33: NA | HY33: 9.041131195 | HZ33: 60.59834451 | IA33: 59.36458549 | IB33: NA | IC33: NA | ID33: NA | IE33: 53.77150017 | IF33: NA | IG33: NA | IH33: 38.33149545 | II33: 0 | IJ33: 73.02542547 | IK33: NA | IL33: NA | IM33: 57.60274493 | IN33: 0 | IO33: 52.87069128 | IP33: NA | IQ33: NA | IR33: 51.36196376 | IS33: 0 | IT33: 78.54822129 | IU33: NA | IV33: NA
A34: 05001 | B34: 05001 | C34: MEDELLÍN | D34: 1 | E34: EJE CAFETERO Y ANTIOQUIA | F34: ANTIOQUIA | G34: Valle del aburra | H34: E | I34: Ciudades | J34: 1312597.88 | K34: 5217852.488 | L34: 1272515.375 | M34: 4561797.625 | P34: 500000 | Q34: 4000000 | R34: 1401075.542 | S34: 2068184.261 | T34: -11053.85931 | U34: 5217852.488 | V34: 1838612.964 | W34: 1686799.664 | X34: 4475930.467 | Y34: 4561797.629 | Z34: 50 | AA34: 35.96253449 | AB34: =IFERROR(100-AM34,"N.D") -> 74.84409758 | AC34: =IFERROR((AN34/(MAX($AN$34:$AN$1134))*100),"N.D") -> 36.09126009 | AD34: =IFERROR(IF(AND(AO34>=0,AO34<=20),100,IF(AND(AO34>20,AO34<=35),80,IF(AND(AO34>35,AO34<=50),60,IF(AND(AO34>50,AO34<=65),40,IF(AND(AO34>65,AO34<=80),20,0))))),"N.D") -> 100 | AE34: =IFERROR(IF(AP34<100,100-AP34,0),"N.D") -> 87.5 | AF34: =IFERROR(IF(AND(ABS(AR34)<=5),100,IF(AND(ABS(AR34)>5,ABS(AR34)<=10),80,IF(AND(ABS(AR34)>10,ABS(AR34)<=15),60,IF(AND(ABS(AR34)>15,ABS(AR34)<=20),40,IF(AND(ABS(AR34)>20,ABS(AR34)<30),20,0))))),"N.D") -> 100 | AG34: =IFERROR(IF(AND(ABS(100-AS34)>=0,ABS(100-AS34)<=10),100,IF(AND(ABS(100-AS34)>10,ABS(100-AS34)<=20),80,IF(AND(ABS(100-AS34)>20,ABS(100-AS34)<=30),60,IF(AND(ABS(100-AS34)>30,ABS(100-AS34)<=40),40,IF(AND(ABS(100-AS34)>40,ABS(100-AS34)<=50),20,IF(ABS(100-AS34)>50,0)))))),"N.D") -> 100 | AH34: =IFERROR(IF(AND(ABS(100-AT34)>=0,ABS(100-AT34)<=10),100,IF(AND(ABS(100-AT34)>10,ABS(100-AT34)<=20),80,IF(AND(ABS(100-AT34)>20,ABS(100-AT34)<=30),60,IF(AND(ABS(100-AT34)>30,ABS(100-AT34)<=40),40,IF(AND(ABS(100-AT34)>40,ABS(100-AT34)<=50),20,IF(ABS(100-AT34)>50,0)))))),"N.D") -> 100 | AI34: =_xlfn.MAXIFS($AU$34:$AU$1134,$H$34:$H$1134,$H$34:$H$1134) -> 23.31384758 | AJ34: =IFERROR(IF(AU34*100/AI34>0,AU34*100/AI34,0),"N.D") -> 60.21084875 | AK34: =AX34*0.8 -> 62.15727861 | AL34: =AY34*0.2 -> 17.74738992 | AM34: =IFERROR((J34/K34)*100,"N.D") -> 25.15590242 | AN34: =IFERROR((L34/M34)*100,"N.D") -> 27.89504225 | AO34: 0.1113934399 | AP34: =IFERROR((P34/Q34)*100,"N.D") -> 12.5 | AQ34: =IFERROR(IF(((R34/S34)*100)>0,(R34/S34)*100,0),0) -> 67.74423191 | AR34: =IFERROR((T34/U34)*100,"N.D") -> -0.2118469109 | AS34: =IFERROR((V34/W34)*100,"N.D") -> 109.0000789 | AT34: =(X34/Y34)*100 -> 98.11769025 | AU34: =IFERROR(Z34-AA34,"N.D") -> 14.03746551 | AV34: 2 | AW34: 0 | AX34: =AVERAGE(AB34,AC34,AD34,AE34,AQ34,AF34) -> 77.69659827 | AY34: =AVERAGE(AG34,AH34,AJ34)+AW34+AV34 -> 88.73694958 | AZ34: =AK34+AL34 -> 79.90466853 | BA34: =IF(OR(AZ34=999),"6. Sin info.",IF(AZ34=8888,"0. No evaluado",IF(AZ34<40,"1. Deterioro (<40)",IF(AND(AZ34>=40,AZ34<60),"2. Riesgo (>=40 y <60)",IF(AND(AZ34>=60,AZ34<70),"3. Vulnerable (>=60 y <70)",IF(AND(AZ34>=70,AZ34<80),"4. Solvente (>=70 y <80)","5. Sostenible (>=80)")))))) -> 4. Solvente (>=70 y <80) | BB34: 1412599.078 | BC34: 5379906.718 | BD34: 1579017.83 | BE34: 5122500.854 | BF34: 1838791.25 | BG34: 2915053.766 | BH34: 1327925.525 | BI34: 4686871.331 | BJ34: 1453163.325 | BK34: 2175644.754 | BL34: -465075.5244 | BM34: 5379906.718 | BN34: 1969306.389 | BO34: 1918995.162 | BP34: 5122500.813 | BQ34: 4903179.585 | BR34: 50 | BS34: 36.91936367 | BT34: =IFERROR(100-CF34,"N.D") -> 73.74305629 | BU34: =IFERROR((CG34/MAX($CG$34:$CG$1134))*100,0) -> 32.98456243 | BV34: =IFERROR(IF(AND(CH34>=0,CH34<=20),100,IF(AND(CH34>20,CH34<=35),80,IF(AND(CH34>35,CH34<=50),60,IF(AND(CH34>50,CH34<=65),40,IF(AND(CH34>65,CH34<=80),20,0))))),"N.D") -> 40 | BW34: =IFERROR(IF(100-CI34>=0,100-CI34,0),0) -> 71.66712224 | BX34: =IFERROR(IF(CJ34>0,CJ34,0),"N.D") -> 66.79230705 | BY34: =IFERROR(IF(AND(ABS(CK34)<=5),100,IF(AND(ABS(CK34)>5,ABS(CK34)<=10),80,IF(AND(ABS(CK34)>10,ABS(CK34)<=15),60,IF(AND(ABS(CK34)>15,ABS(CK34)<=20),40,IF(AND(ABS(CK34)>20,ABS(CK34)<30),20,0))))),"N.D") -> 80 | BZ34: =IFERROR(IF(AND(ABS(100-CL34)>=0,ABS(100-CL34)<=10),100,IF(AND(ABS(100-CL34)>10,ABS(100-CL34)<=20),80,IF(AND(ABS(100-CL34)>20,ABS(100-CL34)<=30),60,IF(AND(ABS(100-CL34)>30,ABS(100-CL34)<=40),40,IF(AND(ABS(100-CL34)>40,ABS(100-CL34)<=50),20,IF(ABS(100-CL34)>50,0)))))),0) -> 100 | CA34: =IFERROR(IF(AND(ABS(100-CM34)>=0,ABS(100-CM34)<=10),100,IF(AND(ABS(100-CM34)>10,ABS(100-CM34)<=20),80,IF(AND(ABS(100-CM34)>20,ABS(100-CM34)<=30),60,IF(AND(ABS(100-CM34)>30,ABS(100-CM34)<=40),40,IF(AND(ABS(100-CM34)>40,ABS(100-CM34)<=50),20,IF(ABS(100-CM34)>50,0)))))),0) -> 100 | CB34: =_xlfn.MAXIFS($CN$34:$CN$1134,$H$34:$H$1134,$H$34:$H$1134) -> 25.80944925 | CC34: =IF(CN34*100/CB34>0,CN34*100/CB34,0) -> 50.68157868 | CD34: =CQ34*0.8 -> 48.6916064 | CE34: =CR34*0.2 -> 16.72417487 | CF34: =IFERROR((BB34/BC34)*100,"N.D") -> 26.25694371 | CG34: =IFERROR((BD34/BE34)*100,"N.D") -> 30.82513552 | CH34: =IFERROR((BF34/BG34)*100,"N.D") -> 63.07915386 | CI34: =IFERROR((BH34/BI34)*100,"N.D") -> 28.33287776 | CJ34: =IFERROR((IF(BJ34/BK34*100<0,0*100,BJ34/BK34*100)),0) -> 66.79230705 | CK34: =IFERROR((BL34/BM34)*100,"N.D") -> -8.644676363 | CL34: =IFERROR((BN34/BO34)*100,"N.D") -> 102.6217485 | CM34: =IFERROR((BP34/BQ34)*100,0) -> 104.4730409 | CN34: =IFERROR(IF(BR34-BS34>0,BR34-BS34,0),0) -> 13.08063633 | CO34: 0 | CP34: 0.06034812157 | CQ34: =AVERAGE(BT34,BU34,BV34,BW34,BX34,BY34) -> 60.864508 | CR34: =AVERAGE(BZ34,CA34,CC34)+CO34+CP34 -> 83.62087435 | CS34: =CD34+CE34 -> 65.41578127 | CT34: =IF(OR(CS34=999),"6. Sin info.",IF(CS34=8888,"0. No evaluado",IF(CS34<40,"1. Deterioro (<40)",IF(AND(CS34>=40,CS34<60),"2. Riesgo (>=40 y <60)",IF(AND(CS34>=60,CS34<70),"3. Vulnerable (>=60 y <70)",IF(AND(CS34>=70,CS34<80),"4. Solvente (>=70 y <80)","5. Sostenible (>=80)")))))) -> 3. Vulnerable (>=60 y <70) | CU34: 1545603.038 | CV34: 5537990.892 | CW34: 992833.8491 | CX34: 4812313.722 | CY34: 1912321.25 | CZ34: 2733359.732 | DA34: 1371249.836 | DB34: 4208052.444 | DC34: 1584541.373 | DD34: 2374424.224 | DE34: -64205.6814 | DF34: 5537990.892 | DG34: 2228857.877 | DH34: 2069571.732 | DI34: 4714145.134 | DJ34: 4812313.722 | DK34: 50 | DL34: 35.89849495 | DM34: =IFERROR(100-DY34,0) -> 72.09090682 | DN34: =IFERROR((DZ34/MAX($DZ$34:$DZ$1134))*100,0) -> 26.23341179 | DO34: =IFERROR(IF(AND(EA34>=0,EA34<=20),100,IF(AND(EA34>20,EA34<=35),80,IF(AND(EA34>35,EA34<=50),60,IF(AND(EA34>50,EA34<=65),40,IF(AND(EA34>65,EA34<=80),20,0))))),"N.D") -> 20 | DP34: =IFERROR(IF(100-EB34>=0,100-EB34,0),0) -> 67.41367047 | DQ34: =IFERROR(IF(EC34>0,EC34,0),"N.D") -> 66.73370988 | DR34: =IFERROR(IF(AND(ABS(ED34)<=5),100,IF(AND(ABS(ED34)>5,ABS(ED34)<=10),80,IF(AND(ABS(ED34)>10,ABS(ED34)<=15),60,IF(AND(ABS(ED34)>15,ABS(ED34)<=20),40,IF(AND(ABS(ED34)>20,ABS(ED34)<30),20,0))))),0) -> 100 | DS34: =IFERROR(IF(AND(ABS(100-EE34)>=0,ABS(100-EE34)<=10),100,IF(AND(ABS(100-EE34)>10,ABS(100-EE34)<=20),80,IF(AND(ABS(100-EE34)>20,ABS(100-EE34)<=30),60,IF(AND(ABS(100-EE34)>30,ABS(100-EE34)<=40),40,IF(AND(ABS(100-EE34)>40,ABS(100-EE34)<=50),20,IF(ABS(100-EE34)>50,0)))))),0) -> 100 | DT34: =IFERROR(IF(AND(ABS(100-EF34)>=0,ABS(100-EF34)<=10),100,IF(AND(ABS(100-EF34)>10,ABS(100-EF34)<=20),80,IF(AND(ABS(100-EF34)>20,ABS(100-EF34)<=30),60,IF(AND(ABS(100-EF34)>30,ABS(100-EF34)<=40),40,IF(AND(ABS(100-EF34)>40,ABS(100-EF34)<=50),20,IF(ABS(100-EF34)>50,0)))))),0) -> 100 | DU34: =_xlfn.MAXIFS($EG$34:$EG$1134,$H$34:$H$1134,$H$34:$H$1134) -> 24.39916525 | DV34: =IF(EG34*100/DU34>0,EG34*100/DU34,0) -> 57.79503073 | DW34: =EJ34*0.8 -> 46.99622653 | DX34: =EK34*0.2 -> 17.59367106 | DY34: =IFERROR((CU34/CV34)*100,"N.D") -> 27.90909318 | DZ34: =IFERROR((CW34/CX34)*100,"N.D") -> 20.63111232 | EA34: =IFERROR((CY34/CZ34)*100,"N.D") -> 69.96229685 | EB34: =IFERROR((DA34/DB34)*100,"N.D") -> 32.58632953 | EC34: 66.73370988 | ED34: =IFERROR((DE34/DF34)*100,"N.D") -> -1.159367768 | EE34: =IFERROR((DG34/DH34)*100,"N.D") -> 107.6965752 | EF34: =IFERROR((DI34/DJ34)*100,0) -> 97.96005427 | EG34: 14.10150505 | EH34: 2 | EI34: 0.03667838729 | EJ34: =AVERAGE(DM34,DN34,DO34,DP34,DQ34,DR34) -> 58.74528316 | EK34: =AVERAGE(DS34,DT34,DV34)+EH34+EI34 -> 87.9683553 | EL34: =DW34+DX34 -> 64.58989759 | EM34: =IF(OR(EL34=999),"6. Sin info.",IF(EL34=8888,"0. No evaluado",IF(EL34<40,"1. Deterioro (<40)",IF(AND(EL34>=40,EL34<60),"2. Riesgo (>=40 y <60)",IF(AND(EL34>=60,EL34<70),"3. Vulnerable (>=60 y <70)",IF(AND(EL34>=70,EL34<80),"4. Solvente (>=70 y <80)","5. Sostenible (>=80)")))))) -> 3. Vulnerable (>=60 y <70) | EN34: 128 | EO34: =+COUNTIFS($E$34:$E$1134,E34,$EN$34:$EN$1134,"<"&EN34)+1 -> 41 | EP34: =+COUNTIFS($F:$F,F34,$EN:$EN,"<"&EN34)+1 -> 30 | EQ34: =+COUNTIFS($G:$G,G34,F:F,F34,$EN:$EN,"<"&EN34)+1 -> 6 | ER34: =+COUNTIFS($I:$I,I34,$EN:$EN,"<"&EN34)+1 -> 5 | ES34: =+COUNTIFS($H$34:$H$1134,H34,$EN$34:$EN$1134,"<"&EN34)+1 -> 4 | ET34: 1101 | EU34: =+COUNTIFS($ET:$ET,$ET34,$E:$E,$E34) -> 178 | EV34: =+COUNTIFS($ET:$ET,$ET34,$F:$F,$F34) -> 125 | EW34: =+COUNTIFS($ET:$ET,$ET34,F:F,F34,$G:$G,$G34) -> 10 | EX34: =+COUNTIFS($ET:$ET,$ET34,$I:$I,$I34) -> 13 | EY34: 6 | EZ34: =+AVERAGEIFS($DM:$DM,$ET:$ET,$ET34) -> 32.91133784 | FA34: =+AVERAGEIFS($DM$34:$DM$1134,$E$34:$E$1134,E34) -> 45.15494366 | FB34: =+AVERAGEIFS($DM$34:$DM$1134,$F$34:$F$1134,F34) -> 49.09189476 | FC34: =+AVERAGEIFS($DM$34:$DM$1134,$F$34:$F$1134,F34,$G$34:$G$1134,G34) -> 72.925618 | FD34: =+AVERAGEIFS($DM$34:$DM$1134,$I$34:$I$1134,I34) -> 47.50497933 | FE34: =+AVERAGEIFS($DM$34:$DM$1134,$H$34:$H$1134,H34) -> 60.06071216 | FF34: =+AVERAGEIFS($DN:$DN,$ET:$ET,$ET34) -> 42.37982436 | FG34: =+AVERAGEIFS($DN$34:$DN$1134,$E$34:$E$1134,E34) -> 43.36907865 | FH34: =+AVERAGEIFS($DN$34:$DN$1134,$F$34:$F$1134,F34) -> 48.47201748 | FI34: =+AVERAGEIFS($DN$34:$DN$1134,$F$34:$F$1134,F34,$G$34:$G$1134,G34) -> 39.13467353 | FJ34: =+AVERAGEIFS($DN$34:$DN$1134,$I$34:$I$1134,I34) -> 29.63731037 | FK34: =+AVERAGEIFS($DN$34:$DN$1134,$H$34:$H$1134,H34) -> 33.68005846 | FL34: =+AVERAGEIFS($DO:$DO,$ET:$ET,$ET34) -> 57.98365123 | FM34: =+AVERAGEIFS($DO$34:$DO$1134,$E$34:$E$1134,E34) -> 69.21348315 | FN34: =+AVERAGEIFS($DO$34:$DO$1134,$F$34:$F$1134,F34) -> 69.44 | FO34: =+AVERAGEIFS($DO$34:$DO$1134,$F$34:$F$1134,F34,$G$34:$G$1134,G34) -> 74 | FP34: =+AVERAGEIFS($DO$34:$DO$1134,$I$34:$I$1134,I34) -> 64.61538462 | FQ34: =+AVERAGEIFS($DO$34:$DO$1134,$H$34:$H$1134,H34) -> 60 | FR34: =+AVERAGEIFS($DP:$DP,$ET:$ET,$ET34) -> 53.93537353 | FS34: =+AVERAGEIFS($DP$34:$DP$1134,$E$34:$E$1134,E34) -> 61.75989739 | FT34: =+AVERAGEIFS($DP$34:$DP$1134,$F$34:$F$1134,F34) -> 63.19829714 | FU34: =+AVERAGEIFS($DP$34:$DP$1134,$F$34:$F$1134,F34,$G$34:$G$1134,G34) -> 62.05411453 | FV34: =+AVERAGEIFS($DP$34:$DP$1134,$I$34:$I$1134,I34) -> 49.46298533 | FW34: =+AVERAGEIFS($DP$34:$DP$1134,$H$34:$H$1134,H34) -> 58.31577249 | FX34: =+AVERAGEIFS($DQ:$DQ,$ET:$ET,$ET34) -> 48.24141258 | FY34: =+AVERAGEIFS($DQ$34:$DQ$1134,$E$34:$E$1134,E34) -> 46.68707224 | FZ34: =+AVERAGEIFS($DQ$34:$DQ$1134,$F$34:$F$1134,F34) -> 47.25643939 | GA34: =+AVERAGEIFS($DQ$34:$DQ$1134,$F$34:$F$1134,F34,$G$34:$G$1134,G34) -> 59.38168566 | GB34: =+AVERAGEIFS($DQ$34:$DQ$1134,$I$34:$I$1134,I34) -> 58.74416017 | GC34: =+AVERAGEIFS($DQ$34:$DQ$1134,$H$34:$H$1134,H34) -> 62.5977388 | GD34: =+AVERAGEIFS($DR:$DR,$ET:$ET,$ET34) -> 70.35422343 | GE34: =+AVERAGEIFS($DR$34:$DR$1134,$E$34:$E$1134,E34) -> 75.95505618 | GF34: =+AVERAGEIFS($DR$34:$DR$1134,$F$34:$F$1134,F34) -> 72.96 | GG34: =+AVERAGEIFS($DR$34:$DR$1134,$F$34:$F$1134,F34,$G$34:$G$1134,G34) -> 88 | GH34: =+AVERAGEIFS($DR$34:$DR$1134,$I$34:$I$1134,I34) -> 76.92307692 | GI34: =+AVERAGEIFS($DR$34:$DR$1134,$H$34:$H$1134,H34) -> 80 | GJ34: =+AVERAGEIFS($DS:$DS,$ET:$ET,$ET34) -> 42.01634877 | GK34: =+AVERAGEIFS($DS$34:$DS$1134,$E$34:$E$1134,E34) -> 53.48314607 | GL34: =+AVERAGEIFS($DS$34:$DS$1134,$F$34:$F$1134,F34) -> 47.36 | GM34: =+AVERAGEIFS($DS$34:$DS$1134,$F$34:$F$1134,F34,$G$34:$G$1134,G34) -> 86 | GN34: =+AVERAGEIFS($DS$34:$DS$1134,$I$34:$I$1134,I34) -> 86.15384615 | GO34: =+AVERAGEIFS($DS$34:$DS$1134,$H$34:$H$1134,H34) -> 93.33333333 | GP34: =+AVERAGEIFS($DT:$DT,$ET:$ET,$ET34) -> 86.86648501 | GQ34: =+AVERAGEIFS($DT$34:$DT$1134,$E$34:$E$1134,E34) -> 85.73033708 | GR34: =+AVERAGEIFS($DT$34:$DT$1134,$F$34:$F$1134,F34) -> 82.4 | GS34: =+AVERAGEIFS($DT$34:$DT$1134,$F$34:$F$1134,F34,$G$34:$G$1134,G34) -> 80 | GT34: =+AVERAGEIFS($DT$34:$DT$1134,$I$34:$I$1134,I34) -> 86.15384615 | GU34: =+AVERAGEIFS($DT$34:$DT$1134,$H$34:$H$1134,H34) -> 80 | GV34: =+AVERAGEIFS($DV:$DV,$ET:$ET,$ET34) -> 32.97064838 | GW34: =+AVERAGEIFS($DV$34:$DV$1134,$E$34:$E$1134,E34) -> 28.05891941 | GX34: =+AVERAGEIFS($DV$34:$DV$1134,$F$34:$F$1134,F34) -> 26.57864346 | GY34: =+AVERAGEIFS($DV$34:$DV$1134,$F$34:$F$1134,F34,$G$34:$G$1134,G34) -> 47.10506971 | GZ34: =+AVERAGEIFS($DV$34:$DV$1134,$I$34:$I$1134,I34) -> 43.81430529 | HA34: =+AVERAGEIFS($DV$34:$DV$1134,$H$34:$H$1134,H34) -> 45.27068047 | HB34: =+AVERAGEIFS($EH:$EH,$ET:$ET,$ET34) -> 0.08900999092 | HC34: =+AVERAGEIFS($EH$34:$EH$1134,$E$34:$E$1134,E34) -> 0.1348314607 | HD34: =+AVERAGEIFS($EH$34:$EH$1134,$F$34:$F$1134,F34) -> 0.192 | HE34: =+AVERAGEIFS($EH$34:$EH$1134,$F$34:$F$1134,F34,$G$34:$G$1134,G34) -> 0.4 | HF34: =+AVERAGEIFS($EH$34:$EH$1134,$I$34:$I$1134,I34) -> 0.7692307692 | HG34: =+AVERAGEIFS($EH$34:$EH$1134,$H$34:$H$1134,H34) -> 1.666666667 | HH34: =+AVERAGEIFS($EI:$EI,$ET:$ET,$ET34) -> 0.1349688475 | HI34: =+AVERAGEIFS($EI$34:$EI$1134,$E$34:$E$1134,E34) -> 0.1108662042 | HJ34: =+AVERAGEIFS($EI$34:$EI$1134,$F$34:$F$1134,F34) -> 0.1244854929 | HK34: =+AVERAGEIFS($EI$34:$EI$1134,$F$34:$F$1134,F34,$G$34:$G$1134,G34) -> 0.03402654203 | HL34: =+AVERAGEIFS($EI$34:$EI$1134,$I$34:$I$1134,I34) -> 0.03198442538 | HM34: =+AVERAGEIFS($EI$34:$EI$1134,$H$34:$H$1134,H34) -> 0.02324033712 | HN34: =+AVERAGEIFS($DW:$DW,$ET:$ET,$ET34) -> 40.76266087 | HO34: =+AVERAGEIFS($DW$34:$DW$1134,$E$34:$E$1134,E34) -> 45.56189325 | HP34: =+AVERAGEIFS($DW$34:$DW$1134,$F$34:$F$1134,F34) -> 46.63990818 | HQ34: =+AVERAGEIFS($DW$34:$DW$1134,$F$34:$F$1134,F34,$G$34:$G$1134,G34) -> 52.73281223 | HR34: =+AVERAGEIFS($DW$34:$DW$1134,$I$34:$I$1134,I34) -> 43.5850529 | HS34: =+AVERAGEIFS($DW$34:$DW$1134,$H$34:$H$1134,H34) -> 47.28723759 | HT34: =+AVERAGEIFS($DX:$DX,$ET:$ET,$ET34) -> 10.83502791 | HU34: =+AVERAGEIFS($DX$34:$DX$1134,$E$34:$E$1134,E34) -> 11.20063304 | HV34: =+AVERAGEIFS($DX$34:$DX$1134,$F$34:$F$1134,F34) -> 10.48587333 | HW34: =+AVERAGEIFS($DX$34:$DX$1134,$F$34:$F$1134,F34,$G$34:$G$1134,G34) -> 14.29380996 | HX34: =+AVERAGEIFS($DX$34:$DX$1134,$I$34:$I$1134,I34) -> 14.56837621 | HY34: =+AVERAGEIFS($DW$34:$DW$1134,$H$34:$H$1134,H34) -> 47.28723759 | HZ34: =+AVERAGEIFS($EL:$EL,$ET:$ET,$ET34) -> 51.59768878 | IA34: =+AVERAGEIFS($EL$34:$EL$1134,$E$34:$E$1134,E34) -> 56.76252629 | IB34: =+AVERAGEIFS($EL$34:$EL$1134,$F$34:$F$1134,F34) -> 57.12578151 | IC34: =+AVERAGEIFS($EL$34:$EL$1134,$F$34:$F$1134,F34,$G$34:$G$1134,G34) -> 67.02662219 | ID34: =+AVERAGEIFS($EL$34:$EL$1134,$I$34:$I$1134,I34) -> 58.15342911 | IE34: =+AVERAGEIFS($EL$34:$EL$1134,$H$34:$H$1134,H34) -> 62.19881991 | IF34: 6.810175715 | IG34: 0.5 | IH34: 67.74423191 | II34: 0 | IJ34: 25.15590242 | IK34: 7.278695649 | IL34: 0.5 | IM34: 66.79230705 | IN34: 0.06034812157 | IO34: 26.25694371 | IP34: 11.41790315 | IQ34: 0.5 | IR34: 66.73370988 | IS34: 0.03667838729 | IT34: 27.90909318
A35: 05002 | B35: 05002 | C35: ABEJORRAL | D35: 1 | E35: EJE CAFETERO Y ANTIOQUIA | F35: ANTIOQUIA | G35: Oriente | H35: 6 | I35: G3- Nivel Medio | J35: 14015.69982 | K35: 20452.7942 | L35: 4761.444824 | M35: 19188.51611 | P35: 1300 | Q35: 9500 | R35: 1526.347818 | S35: 4154.144695 | T35: -1339.167789 | U35: 20452.7942 | V35: 2798.666487 | W35: 2421.135239 | X35: 18228.69051 | Y35: 19164.16511 | Z35: 80 | AA35: 56.31081048 | AB35: 31.4729338 | AC35: 32.10497874 | AD35: 100 | AE35: 86.31578947 | AF35: 80 | AG35: 80 | AH35: 100 | AI35: 62.12644379 | AJ35: 38.13060603 | AK35: 48.88486289 | AL35: 14.5420404 | AM35: 68.5270662 | AN35: 24.81403354 | AO35: 4.881270746 | AP35: 13.68421053 | AQ35: 36.74276969 | AR35: -6.54760311 | AS35: 115.5931499 | AT35: 95.11862588 | AU35: 23.68918952 | AV35: 0 | AW35: 0 | AX35: 61.10607862 | AY35: 72.71020201 | AZ35: 63.4269033 | BA35: 3. Vulnerable (>=60 y <70) | BB35: 13778.07994 | BC35: 24906.19179 | BD35: 5265.301504 | BE35: 21470.61965 | BF35: 351.717374 | BG35: 11867.35792 | BH35: 1465.954354 | BI35: N.D | BJ35: 1745.005542 | BK35: 4334.389397 | BL35: 846.188562 | BM35: 24906.19179 | BN35: 2823.262537 | BO35: 2555.973561 | BP35: 21470.61937 | BQ35: 19426.8918 | BR35: 80 | BS35: 57.87407496 | BT35: 44.6801018 | BU35: 26.24124276 | BV35: 100 | BW35: 0 | BX35: 40.25954713 | BY35: 100 | BZ35: 80 | CA35: 80 | CB35: 63.22976281 | CC35: 34.99289583 | CD35: 41.49078556 | CE35: 12.99952639 | CF35: 55.3198982 | CG35: 24.52328619 | CH35: 2.963737813 | CI35: N.D | CJ35: 40.25954713 | CK35: 3.397502794 | CL35: 110.4574234 | CM35: 110.5200955 | CN35: 22.12592504 | CO35: 0 | CP35: 0 | CQ35: 51.86348195 | CR35: 64.99763194 | CS35: 54.49031195 | CT35: 2. Riesgo (>=40 y <60) | CU35: 17376.36853 | CV35: 25433.18052 | CW35: 6983.202823 | CX35: 25489.75762 | CY35: 1005.284698 | CZ35: 8819.970209 | DA35: 1267.330735 | DB35: 11985.04496 | DC35: 2496.060084 | DD35: 5604.598609 | DE35: -956.765593 | DF35: 25433.18052 | DG35: 3627.913908 | DH35: 2791.272665 | DI35: 23005.00759 | DJ35: 23281.40759 | DK35: 80 | DL35: 69.46809805 | DM35: 31.67835019 | DN35: 34.83542258 | DO35: 100 | DP35: 89.42573232 | DQ35: 44.53592948 | DR35: 100 | DS35: 60 | DT35: 100 | DU35: 68.02831008 | DV35: 15.48164571 | DW35: 53.39672461 | DX35: 11.69877638 | DY35: 68.32164981 | DZ35: 27.39611308 | EA35: 11.39782419 | EB35: 10.57426768 | EC35: 44.53592948 | ED35: -3.761879456 | EE35: 129.9734689 | EF35: 98.81278656 | EG35: 10.53190195 | EH35: 0 | EI35: 0 | EJ35: 66.74590576 | EK35: 58.4938819 | EL35: 65.09550099 | EM35: 3. Vulnerable (>=60 y <70) | EN35: 119 | EO35: 39 | EP35: 28 | EQ35: 13 | ER35: 16 | ES35: 77 | ET35: 1101 | EU35: 178 | EV35: 125 | EW35: 23 | EX35: 218 | EY35: 7 | EZ35: 32.91133784 | FA35: 45.15494366 | FB35: 49.09189476 | FC35: 57.8245438 | FD35: 31.4008209 | FE35: 30.25881461 | FF35: 42.37982436 | FG35: 43.36907865 | FH35: 48.47201748 | FI35: 55.23779052 | FJ35: 42.5280922 | FK35: 42.86648234 | FL35: 57.98365123 | FM35: 69.21348315 | FN35: 69.44 | FO35: 90.43478261 | FP35: 57.98165138 | FQ35: 56.85625646 | FR35: 53.93537353 | FS35: 61.75989739 | FT35: 63.19829714 | FU35: 82.86392132 | FV35: 56.50096502 | FW35: 53.45239572 | FX35: 48.24141258 | FY35: 46.68707224 | FZ35: 47.25643939 | GA35: 52.06402448 | GB35: 45.88563088 | GC35: 47.16081261 | GD35: 70.35422343 | GE35: 75.95505618 | GF35: 72.96 | GG35: 77.39130435 | GH35: 71.10091743 | GI35: 69.47259566 | GJ35: 42.01634877 | GK35: 53.48314607 | GL35: 47.36 | GM35: 50.43478261 | GN35: 41.9266055 | GO35: 37.68355739 | GP35: 86.86648501 | GQ35: 85.73033708 | GR35: 82.4 | GS35: 85.2173913 | GT35: 87.1559633 | GU35: 87.15615305 | GV35: 32.97064838 | GW35: 28.05891941 | GX35: 26.57864346 | GY35: 37.78384207 | GZ35: 29.67333351 | HA35: 31.00052897 | HB35: 0.08900999092 | HC35: 0.1348314607 | HD35: 0.192 | HE35: 0 | HF35: 0.05504587156 | HG35: 0.07032057911 | HH35: 0.1349688475 | HI35: 0.1108662042 | HJ35: 0.1244854929 | HK35: 0.1143490631 | HL35: 0.118743477 | HM35: 0.1448803714 | HN35: 40.76266087 | HO35: 45.56189325 | HP35: 46.63990818 | HQ35: 55.44218228 | HR35: 40.6935018 | HS35: 39.99669061 | HT35: 10.83502791 | HU35: 11.20063304 | HV35: 10.48587333 | HW35: 11.58527088 | HX35: 10.61848469 | HY35: 39.99669061 | HZ35: 51.59768878 | IA35: 56.76252629 | IB35: 57.12578151 | IC35: 67.02745315 | ID35: 51.31198649 | IE35: 50.42908009 | IF35: 4.416684118 | IG35: 0.5 | IH35: 36.74276969 | II35: 0 | IJ35: 68.5270662 | IK35: 4.551242149 | IL35: 0.5 | IM35: 40.25954713 | IN35: 0 | IO35: 55.3198982 | IP35: 4.072127162 | IQ35: 0.5 | IR35: 44.53592948 | IS35: 0 | IT35: 68.32164981
A36: 05004 | B36: 05004 | C36: ABRIAQUÍ | D36: 1 | E36: EJE CAFETERO Y ANTIOQUIA | F36: ANTIOQUIA | G36: Occidente | H36: 6 | I36: G3- Nivel Medio | J36: 3062.399999 | K36: 7036.801439 | L36: 2246.337158 | M36: 4812.698486 | P36: 480 | Q36: 3300 | R36: 284.043215 | S36: 1252.366287 | T36: 1720.379794 | U36: 7036.801439 | V36: 591.585226 | W36: 369.690535 | X36: 4348.098573 | Y36: 4348.098573 | Z36: 80 | AA36: 69.14091657 | AB36: 56.48022719 | AC36: 60.3894826 | AD36: 20 | AE36: 85.45454545 | AF36: 20 | AG36: 0 | AH36: 100 | AI36: 62.12644379 | AJ36: 17.47900374 | AK36: 35.33397034 | AL36: 7.831933583 | AM36: 43.51977281 | AN36: 46.67521069 | AO36: 75.38945909 | AP36: 14.54545455 | AQ36: 22.6805223 | AR36: 24.44832086 | AS36: 160.0217398 | AT36: 100 | AU36: 10.85908343 | AV36: 0 | AW36: 0 | AX36: 44.16746293 | AY36: 39.15966791 | AZ36: 43.16590392 | BA36: 2. Riesgo (>=40 y <60) | BB36: 3068.585267 | BC36: 5128.70799 | BD36: 1435.674624 | BE36: 4367.60704 | BF36: 1200.022542 | BG36: 3384.345482 | BH36: 24.41361927 | BI36: 2145.758623 | BJ36: 305.8361234 | BK36: 1383.9493 | BL36: -29.45010986 | BM36: 5416.270174 | BN36: 686.195675 | BO36: 469.673234 | BP36: 4367.607107 | BQ36: 4088.104865 | BR36: 80 | BS36: 71.31351655 | BT36: 40.16845427 | BU36: 35.17371167 | BV36: 60 | BW36: 98.86223832 | BX36: 22.09879533 | BY36: 100 | BZ36: 20 | CA36: 100 | CB36: 63.22976281 | CC36: 13.73796621 | CD36: 47.50709328 | CE36: 8.974465395 | CF36: 59.83154573 | CG36: 32.87096597 | CH36: 35.45803903 | CI36: 1.137761676 | CJ36: 22.09879533 | CK36: -0.5437341364 | CL36: 146.1006558 | CM36: 106.8369636 | CN36: 8.686483452 | CO36: 0 | CP36: 0.2930049016 | CQ36: 59.3838666 | CR36: 44.87232697 | CS36: 56.48155867 | CT36: 2. Riesgo (>=40 y <60) | CU36: 3786.813263 | CV36: 6803.319776 | CW36: 3442.717673 | CX36: 6904.661966 | CY36: 1271.211943 | CZ36: 3280.171989 | DA36: 115.047652 | DB36: 2450.31744 | DC36: 707.9282186 | DD36: 1853.656866 | DE36: -867.7893307 | DF36: 6803.319776 | DG36: 904.380062 | DH36: 492.750281 | DI36: 6046.793579 | DJ36: 6525.380459 | DK36: 80 | DL36: 58.40205339 | DM36: 44.33874361 | DN36: 63.40027191 | DO36: 60 | DP36: 95.30478582 | DQ36: 38.19089885 | DR36: 60 | DS36: 0 | DT36: 100 | DU36: 68.02831008 | DV36: 31.74846852 | DW36: 48.16462669 | DX36: 8.822620372 | DY36: 55.66125639 | DZ36: 49.86077073 | EA36: 38.75442956 | EB36: 4.695214184 | EC36: 38.19089885 | ED36: -12.7553806 | EE36: 183.5371986 | EF36: 92.66576282 | EG36: 21.59794661 | EH36: 0 | EI36: 0.1969456881 | EJ36: 60.20578337 | EK36: 44.11310186 | EL36: 56.98724706 | EM36: 2. Riesgo (>=40 y <60) | EN36: 376 | EO36: 99 | EP36: 70 | EQ36: 8 | ER36: 66 | ES36: 290 | ET36: 1101 | EU36: 178 | EV36: 125 | EW36: 18 | EX36: 218 | EY36: 8 | EZ36: 32.91133784 | FA36: 45.15494366 | FB36: 49.09189476 | FC36: 44.22207127 | FD36: 31.4008209 | FE36: 30.25881461 | FF36: 42.37982436 | FG36: 43.36907865 | FH36: 48.47201748 | FI36: 56.74691413 | FJ36: 42.5280922 | FK36: 42.86648234 | FL36: 57.98365123 | FM36: 69.21348315 | FN36: 69.44 | FO36: 53.33333333 | FP36: 57.98165138 | FQ36: 56.85625646 | FR36: 53.93537353 | FS36: 61.75989739 | FT36: 63.19829714 | FU36: 64.60586577 | FV36: 56.50096502 | FW36: 53.45239572 | FX36: 48.24141258 | FY36: 46.68707224 | FZ36: 47.25643939 | GA36: 44.67806847 | GB36: 45.88563088 | GC36: 47.16081261 | GD36: 70.35422343 | GE36: 75.95505618 | GF36: 72.96 | GG36: 63.33333333 | GH36: 71.10091743 | GI36: 69.47259566 | GJ36: 42.01634877 | GK36: 53.48314607 | GL36: 47.36 | GM36: 25.55555556 | GN36: 41.9266055 | GO36: 37.68355739 | GP36: 86.86648501 | GQ36: 85.73033708 | GR36: 82.4 | GS36: 78.88888889 | GT36: 87.1559633 | GU36: 87.15615305 | GV36: 32.97064838 | GW36: 28.05891941 | GX36: 26.57864346 | GY36: 24.57545815 | GZ36: 29.67333351 | HA36: 31.00052897 | HB36: 0.08900999092 | HC36: 0.1348314607 | HD36: 0.192 | HE36: 0.2222222222 | HF36: 0.05504587156 | HG36: 0.07032057911 | HH36: 0.1349688475 | HI36: 0.1108662042 | HJ36: 0.1244854929 | HK36: 0.2531761204 | HL36: 0.118743477 | HM36: 0.1448803714 | HN36: 40.76266087 | HO36: 45.56189325 | HP36: 46.63990818 | HQ36: 43.58927817 | HR36: 40.6935018 | HS36: 39.99669061 | HT36: 10.83502791 | HU36: 11.20063304 | HV36: 10.48587333 | HW36: 8.696406508 | HX36: 10.61848469 | HY36: 39.99669061 | HZ36: 51.59768878 | IA36: 56.76252629 | IB36: 57.12578151 | IC36: 52.28568468 | ID36: 51.31198649 | IE36: 50.42908009 | IF36: 2.635187841 | IG36: 0.5 | IH36: 22.6805223 | II36: 0 | IJ36: 43.51977281 | IK36: 3.549458411 | IL36: 0.5 | IM36: 22.09879533 | IN36: 0.2930049016 | IO36: 59.83154573 | IP36: 2.736639378 | IQ36: 0.5 | IR36: 38.19089885 | IS36: 0.1969456881 | IT36: 55.66125639
A37: 05021 | B37: 05021 | C37: ALEJANDRÍA | D37: 1 | E37: EJE CAFETERO Y ANTIOQUIA | F37: ANTIOQUIA | G37: Oriente | H37: 6 | I37: G2- Nivel Medio Alto | J37: 4894.106981 | K37: 10375.34147 | L37: 3116.769531 | M37: 8462.969727 | P37: 310 | Q37: 13000 | R37: 1188.292613 | S37: 2822.166741 | T37: 278.497523 | U37: 10375.34147 | V37: 1761.971424 | W37: 690.101002 | X37: 7053.535314 | Y37: 8462.96982 | Z37: 80 | AA37: 51.02652742 | AB37: 52.82943704 | AC37: 47.64934379 | AD37: 100 | AE37: 97.61538462 | AF37: 100 | AG37: 0 | AH37: 80 | AI37: 62.12644379 | AJ37: 46.63629657 | AK37: 58.69331327 | AL37: 8.842419772 | AM37: 47.17056296 | AN37: 36.82831951 | AO37: 0.0282976415 | AP37: 2.384615385 | AQ37: 42.10568411 | AR37: 2.684225129 | AS37: 255.3208036 | AT37: 83.34586397 | AU37: 28.97347258 | AV37: 2 | AW37: 0 | AX37: 73.36664159 | AY37: 44.21209886 | AZ37: 67.53573305 | BA37: 3. Vulnerable (>=60 y <70) | BB37: 6936.592195 | BC37: 10086.0846 | BD37: 2733.664512 | BE37: 8059.568896 | BF37: 480.277248 | BG37: 7377.043022 | BH37: 9604.567773 | BI37: 7943.419813 | BJ37: 691.913404 | BK37: 2461.664362 | BL37: 831.594477 | BM37: 10086.0846 | BN37: 1214.161448 | BO37: 824.55 | BP37: 7484.739164 | BQ37: 7009.497071 | BR37: 80 | BS37: 76.8652708 | BT37: 31.22611528 | BU37: 36.29435938 | BV37: 100 | BW37: 0 | BX37: 28.10754442 | BY37: 80 | BZ37: 20 | CA37: 100 | CB37: 63.22976281 | CC37: 4.957679835 | CD37: 36.75040254 | CE37: 8.330511989 | CF37: 68.77388472 | CG37: 33.91824733 | CH37: 6.510430352 | CI37: 120.9122519 | CJ37: 28.10754442 | CK37: 8.244968291 | CL37: 147.2514036 | CM37: 106.7799742 | CN37: 3.1347292 | CO37: 0 | CP37: 0 | CQ37: 45.93800318 | CR37: 41.65255994 | CS37: 45.08091453 | CT37: 2. Riesgo (>=40 y <60) | CU37: 7206.365037 | CV37: 13437.88526 | CW37: 7258.47976 | CX37: 14018.65848 | CY37: 1532.407145 | CZ37: 6885.53407 | DA37: 11329.39519 | DB37: 17373.86822 | DC37: 932.929151 | DD37: 2791.14147 | DE37: -2190.958376 | DF37: 13437.88526 | DG37: 1394.769967 | DH37: 1193.66493 | DI37: 9689.575279 | DJ37: 13770.63131 | DK37: 80 | DL37: 74.7711743 | DM37: 46.37277444 | DN37: 65.83719927 | DO37: 80 | DP37: 34.79060017 | DQ37: 33.42464583 | DR37: 40 | DS37: 80 | DT37: 60 | DU37: 68.02831008 | DV37: 7.686249584 | DW37: 40.05669596 | DX37: 9.845749972 | DY37: 53.62722556 | DZ37: 51.77727791 | EA37: 22.25545803 | EB37: 65.20939983 | EC37: 33.42464583 | ED37: -16.30433907 | EE37: 116.8476959 | EF37: 70.36406 | EG37: 5.2288257 | EH37: 0 | EI37: 0 | EJ37: 50.07086995 | EK37: 49.22874986 | EL37: 49.90244593 | EM37: 2. Riesgo (>=40 y <60) | EN37: 630 | EO37: 134 | EP37: 97 | EQ37: 23 | ER37: 146 | ES37: 522 | ET37: 1101 | EU37: 178 | EV37: 125 | EW37: 23 | EX37: 217 | EY37: 9 | EZ37: 32.91133784 | FA37: 45.15494366 | FB37: 49.09189476 | FC37: 57.8245438 | FD37: 38.82609223 | FE37: 30.25881461 | FF37: 42.37982436 | FG37: 43.36907865 | FH37: 48.47201748 | FI37: 55.23779052 | FJ37: 48.81973373 | FK37: 42.86648234 | FL37: 57.98365123 | FM37: 69.21348315 | FN37: 69.44 | FO37: 90.43478261 | FP37: 61.10599078 | FQ37: 56.85625646 | FR37: 53.93537353 | FS37: 61.75989739 | FT37: 63.19829714 | FU37: 82.86392132 | FV37: 56.41124514 | FW37: 53.45239572 | FX37: 48.24141258 | FY37: 46.68707224 | FZ37: 47.25643939 | GA37: 52.06402448 | GB37: 50.03123093 | GC37: 47.16081261 | GD37: 70.35422343 | GE37: 75.95505618 | GF37: 72.96 | GG37: 77.39130435 | GH37: 66.17511521 | GI37: 69.47259566 | GJ37: 42.01634877 | GK37: 53.48314607 | GL37: 47.36 | GM37: 50.43478261 | GN37: 48.66359447 | GO37: 37.68355739 | GP37: 86.86648501 | GQ37: 85.73033708 | GR37: 82.4 | GS37: 85.2173913 | GT37: 84.60829493 | GU37: 87.15615305 | GV37: 32.97064838 | GW37: 28.05891941 | GX37: 26.57864346 | GY37: 37.78384207 | GZ37: 34.361037 | HA37: 31.00052897 | HB37: 0.08900999092 | HC37: 0.1348314607 | HD37: 0.192 | HE37: 0 | HF37: 0.1290322581 | HG37: 0.07032057911 | HH37: 0.1349688475 | HI37: 0.1108662042 | HJ37: 0.1244854929 | HK37: 0.1143490631 | HL37: 0.1236753445 | HM37: 0.1448803714 | HN37: 40.76266087 | HO37: 45.56189325 | HP37: 46.63990818 | HQ37: 55.44218228 | HR37: 42.83813686 | HS37: 39.99669061 | HT37: 10.83502791 | HU37: 11.20063304 | HV37: 10.48587333 | HW37: 11.58527088 | HX37: 11.22606995 | HY37: 39.99669061 | HZ37: 51.59768878 | IA37: 56.76252629 | IB37: 57.12578151 | IC37: 67.02745315 | ID37: 54.06420681 | IE37: 50.42908009 | IF37: 2.027093253 | IG37: 0.5 | IH37: 42.10568411 | II37: 0 | IJ37: 47.17056296 | IK37: 2.801830383 | IL37: 0.5 | IM37: 28.10754442 | IN37: 0 | IO37: 68.77388472 | IP37: 3.115988517 | IQ37: 0.5 | IR37: 33.42464583 | IS37: 0 | IT37: 53.62722556
A38: 05030 | B38: 05030 | C38: AMAGÁ | D38: 1 | E38: EJE CAFETERO Y ANTIOQUIA | F38: ANTIOQUIA | G38: Suroeste | H38: 6 | I38: G2- Nivel Medio Alto | J38: 12222.05919 | K38: 23605.21483 | L38: 5277.457031 | M38: 19416.98828 | P38: 800 | Q38: 15000 | R38: 5411.537652 | S38: 10118.18078 | T38: -14.544723 | U38: 23605.21483 | V38: 9125.094266 | W38: 6953.356402 | X38: 17697.11867 | Y38: 18913.11643 | Z38: 80 | AA38: 45.14862307 | AB38: 48.22305463 | AC38: 35.16558603 | AD38: 80 | AE38: 94.66666667 | AF38: 100 | AG38: 40 | AH38: 100 | AI38: 62.12644379 | AJ38: 56.09749214 | AK38: 54.8718152 | AL38: 13.07316614 | AM38: 51.77694537 | AN38: 27.17958601 | AO38: 28.56098993 | AP38: 5.333333333 | AQ38: 53.48330666 | AR38: -0.06161656697 | AS38: 131.2329433 | AT38: 93.57061136 | AU38: 34.85137693 | AV38: 0 | AW38: 0 | AX38: 68.589769 | AY38: 65.36583071 | AZ38: 67.94498134 | BA38: 3. Vulnerable (>=60 y <70) | BB38: 11965.7779 | BC38: 29098.93378 | BD38: 9757.942784 | BE38: 24904.68147 | BF38: 5172.09128 | BG38: 20565.22791 | BH38: 698.584595 | BI38: 18008.697 | BJ38: 6147.010386 | BK38: 11428.24118 | BL38: -1041.170993 | BM38: 29098.93378 | BN38: 10290.44391 | BO38: 7585.4653 | BP38: 24858.87397 | BQ38: 21436.66057 | BR38: 80 | BS38: 51.55805393 | BT38: 58.87898164 | BU38: 41.92595928 | BV38: 80 | BW38: 96.12084875 | BX38: 53.78789517 | BY38: 100 | BZ38: 40 | CA38: 80 | CB38: 63.22976281 | CC38: 44.98189587 | CD38: 57.42849131 | CE38: 10.99879306 | CF38: 41.12101836 | CG38: 39.18115875 | CH38: 25.14969103 | CI38: 3.879151251 | CJ38: 53.78789517 | CK38: -3.578038292 | CL38: 135.6600222 | CM38: 115.9643028 | CN38: 28.44194607 | CO38: 0 | CP38: 0 | CQ38: 71.78561414 | CR38: 54.99396529 | CS38: 68.42728437 | CT38: 3. Vulnerable (>=60 y <70) | CU38: 13973.57793 | CV38: 30748.05493 | CW38: 9582.184984 | CX38: 26814.21236 | CY38: 4727.753389 | CZ38: 19523.02752 | DA38: 779.324785 | DB38: 15790.61259 | DC38: 6935.590008 | DD38: 13081.29467 | DE38: -2211.862091 | DF38: 30748.05493 | DG38: 11841.75746 | DH38: 10188.315 | DI38: 22641.02801 | DJ38: 26814.21236 | DK38: 80 | DL38: 51.6580583 | DM38: 54.55459551 | DN38: 45.43930072 | DO38: 80 | DP38: 95.06463235 | DQ38: 53.01914057 | DR38: 80 | DS38: 80 | DT38: 80 | DU38: 68.02831008 | DV38: 41.66198112 | DW38: 54.41035589 | DX38: 13.46428982 | DY38: 45.44540449 | DZ38: 35.73547064 | EA38: 24.21629219 | EB38: 4.935367648 | EC38: 53.01914057 | ED38: -7.193502472 | EE38: 116.2288117 | EF38: 84.43667003 | EG38: 28.3419417 | EH38: 0 | EI38: 0.1007887119 | EJ38: 68.01294486 | EK38: 67.32144908 | EL38: 67.8746457 | EM38: 3. Vulnerable (>=60 y <70) | EN38: 63 | EO38: 19 | EP38: 19 | EQ38: 2 | ER38: 16 | ES38: 31 | ET38: 1101 | EU38: 178 | EV38: 125 | EW38: 24 | EX38: 217 | EY38: 10 | EZ38: 32.91133784 | FA38: 45.15494366 | FB38: 49.09189476 | FC38: 44.96708715 | FD38: 38.82609223 | FE38: 30.25881461 | FF38: 42.37982436 | FG38: 43.36907865 | FH38: 48.47201748 | FI38: 45.39738038 | FJ38: 48.81973373 | FK38: 42.86648234 | FL38: 57.98365123 | FM38: 69.21348315 | FN38: 69.44 | FO38: 81.66666667 | FP38: 61.10599078 | FQ38: 56.85625646 | FR38: 53.93537353 | FS38: 61.75989739 | FT38: 63.19829714 | FU38: 57.47827476 | FV38: 56.41124514 | FW38: 53.45239572 | FX38: 48.24141258 | FY38: 46.68707224 | FZ38: 47.25643939 | GA38: 40.43999897 | GB38: 50.03123093 | GC38: 47.16081261 | GD38: 70.35422343 | GE38: 75.95505618 | GF38: 72.96 | GG38: 67.5 | GH38: 66.17511521 | GI38: 69.47259566 | GJ38: 42.01634877 | GK38: 53.48314607 | GL38: 47.36 | GM38: 49.16666667 | GN38: 48.66359447 | GO38: 37.68355739 | GP38: 86.86648501 | GQ38: 85.73033708 | GR38: 82.4 | GS38: 81.66666667 | GT38: 84.60829493 | GU38: 87.15615305 | GV38: 32.97064838 | GW38: 28.05891941 | GX38: 26.57864346 | GY38: 18.96228296 | GZ38: 34.361037 | HA38: 31.00052897 | HB38: 0.08900999092 | HC38: 0.1348314607 | HD38: 0.192 | HE38: 0.08333333333 | HF38: 0.1290322581 | HG38: 0.07032057911 | HH38: 0.1349688475 | HI38: 0.1108662042 | HJ38: 0.1244854929 | HK38: 0.0938160867 | HL38: 0.1236753445 | HM38: 0.1448803714 | HN38: 40.76266087 | HO38: 45.56189325 | HP38: 46.63990818 | HQ38: 44.99589938 | HR38: 42.83813686 | HS38: 39.99669061 | HT38: 10.83502791 | HU38: 11.20063304 | HV38: 10.48587333 | HW38: 10.0218043 | HX38: 11.22606995 | HY38: 39.99669061 | HZ38: 51.59768878 | IA38: 56.76252629 | IB38: 57.12578151 | IC38: 55.01770369 | ID38: 54.06420681 | IE38: 50.42908009 | IF38: 5.426640528 | IG38: 0.5 | IH38: 53.48330666 | II38: 0 | IJ38: 51.77694537 | IK38: 5.332805289 | IL38: 0.5 | IM38: 53.78789517 | IN38: 0 | IO38: 41.12101836 | IP38: 5.22679813 | IQ38: 0.5 | IR38: 53.01914057 | IS38: 0.1007887119 | IT38: 45.44540449
A39: 05031 | B39: 05031 | C39: AMALFI | D39: 1 | E39: EJE CAFETERO Y ANTIOQUIA | F39: ANTIOQUIA | G39: Nordeste | H39: 6 | I39: G2- Nivel Medio Alto | J39: 16067.39602 | K39: 30992.49517 | L39: 9215.921875 | M39: 28414.87109 | P39: 2300 | Q39: 16000 | R39: 2704.887611 | S39: 7970.53866 | T39: -2688.028256 | U39: 30992.49517 | V39: 5836.210324 | W39: 5211.293183 | X39: 26913.39579 | Y39: 28414.87238 | Z39: 80 | AA39: 69.43664468 | AB39: 48.15713957 | AC39: 41.96315335 | AD39: 40 | AE39: 85.625 | AF39: 80 | AG39: 80 | AH39: 100 | AI39: 62.12644379 | AJ39: 17.00299369 | AK39: 43.95751511 | AL39: 13.53353291 | AM39: 51.84286043 | AN39: 32.43344601 | AO39: 61.18854651 | AP39: 14.375 | AQ39: 33.9360704 | AR39: -8.673158585 | AS39: 111.9915944 | AT39: 94.71587778 | AU39: 10.56335532 | AV39: 2 | AW39: 0 | AX39: 54.94689389 | AY39: 67.66766456 | AZ39: 57.49104802 | BA39: 2. Riesgo (>=40 y <60) | BB39: 16373.67296 | BC39: 37638.89462 | BD39: 12515.3321 | BE39: 32505.35834 | BF39: 4456.175982 | BG39: 17174.15294 | BH39: 5206.765441 | BI39: 18916.63006 | BJ39: 3037.192131 | BK39: 9335.210341 | BL39: 1658.614501 | BM39: 37679.80973 | BN39: 6835.965132 | BO39: 5912.917601 | BP39: 29723.17702 | BQ39: 28514.35997 | BR39: 80 | BS39: 71.50487317 | BT39: 56.49799729 | BU39: 41.19961452 | BV39: 80 | BW39: 72.47519551 | BX39: 32.53480125 | BY39: 100 | BZ39: 80 | CA39: 100 | CB39: 63.22976281 | CC39: 13.43532927 | CD39: 51.02768114 | CE39: 12.89568862 | CF39: 43.50200271 | CG39: 38.50236618 | CH39: 25.94699138 | CI39: 27.52480449 | CJ39: 32.53480125 | CK39: 4.401865382 | CL39: 115.610695 | CM39: 104.2393273 | CN39: 8.49512683 | CO39: 0 | CP39: 0 | CQ39: 63.78460143 | CR39: 64.47844309 | CS39: 63.92336976 | CT39: 3. Vulnerable (>=60 y <70) | CU39: 18785.92175 | CV39: 36551.90116 | CW39: 11917.39459 | CX39: 35816.33978 | CY39: N.D. | CZ39: 12859.6074 | DA39: 4421.467742 | DB39: 15660.24488 | DC39: 3170.192854 | DD39: 9612.953015 | DE39: -5707.198783 | DF39: 36551.90116 | DG39: 7236.891812 | DH39: 6271.3448 | DI39: 34374.18394 | DJ39: 35816.33978 | DK39: 80 | DL39: 66.97334325 | DM39: 48.60480262 | DN39: 42.30895032 | DO39: 0 | DP39: 71.76629245 | DQ39: 32.97834546 | DR39: 40 | DS39: 80 | DT39: 100 | DU39: 68.02831008 | DV39: 19.14887602 | DW39: 31.42111878 | DX39: 13.27659173 | DY39: 51.39519738 | DZ39: 33.27362499 | EA39: N.D | EB39: 28.23370755 | EC39: 32.97834546 | ED39: -15.61395879 | EE39: 115.3961717 | EF39: 95.97346952 | EG39: 13.02665675 | EH39: 0 | EI39: 0 | EJ39: 39.27639848 | EK39: 66.38295867 | EL39: 44.69771052 | EM39: 2. Riesgo (>=40 y <60) | EN39: 816 | EO39: 158 | EP39: 110 | EQ39: 10 | ER39: 180 | ES39: 693 | ET39: 1101 | EU39: 178 | EV39: 125 | EW39: 10 | EX39: 217 | EY39: 11 | EZ39: 32.91133784 | FA39: 45.15494366 | FB39: 49.09189476 | FC39: 46.09255508 | FD39: 38.82609223 | FE39: 30.25881461 | FF39: 42.37982436 | FG39: 43.36907865 | FH39: 48.47201748 | FI39: 55.56003565 | FJ39: 48.81973373 | FK39: 42.86648234 | FL39: 57.98365123 | FM39: 69.21348315 | FN39: 69.44 | FO39: 56 | FP39: 61.10599078 | FQ39: 56.85625646 | FR39: 53.93537353 | FS39: 61.75989739 | FT39: 63.19829714 | FU39: 70.87709769 | FV39: 56.41124514 | FW39: 53.45239572 | FX39: 48.24141258 | FY39: 46.68707224 | FZ39: 47.25643939 | GA39: 52.52494958 | GB39: 50.03123093 | GC39: 47.16081261 | GD39: 70.35422343 | GE39: 75.95505618 | GF39: 72.96 | GG39: 78 | GH39: 66.17511521 | GI39: 69.47259566 | GJ39: 42.01634877 | GK39: 53.48314607 | GL39: 47.36 | GM39: 42 | GN39: 48.66359447 | GO39: 37.68355739 | GP39: 86.86648501 | GQ39: 85.73033708 | GR39: 82.4 | GS39: 88 | GT39: 84.60829493 | GU39: 87.15615305 | GV39: 32.97064838 | GW39: 28.05891941 | GX39: 26.57864346 | GY39: 34.39519971 | GZ39: 34.361037 | HA39: 31.00052897 | HB39: 0.08900999092 | HC39: 0.1348314607 | HD39: 0.192 | HE39: 0.6 | HF39: 0.1290322581 | HG39: 0.07032057911 | HH39: 0.1349688475 | HI39: 0.1108662042 | HJ39: 0.1244854929 | HK39: 0.2140615807 | HL39: 0.1236753445 | HM39: 0.1448803714 | HN39: 40.76266087 | HO39: 45.56189325 | HP39: 46.63990818 | HQ39: 47.87395174 | HR39: 42.83813686 | HS39: 39.99669061 | HT39: 10.83502791 | HU39: 11.20063304 | HV39: 10.48587333 | HW39: 11.1224923 | HX39: 11.22606995 | HY39: 39.99669061 | HZ39: 51.59768878 | IA39: 56.76252629 | IB39: 57.12578151 | IC39: 58.99644403 | ID39: 54.06420681 | IE39: 50.42908009 | IF39: 2.969846584 | IG39: 0.5 | IH39: 33.9360704 | II39: 0 | IJ39: 51.84286043 | IK39: 3.061488357 | IL39: 0.5 | IM39: 32.53480125 | IN39: 0 | IO39: 43.50200271 | IP39: 3.762008449 | IQ39: 0.5 | IR39: 32.97834546 | IS39: 0 | IT39: 51.39519738
A40: 05034 | B40: 05034 | C40: ANDES | D40: 1 | E40: EJE CAFETERO Y ANTIOQUIA | F40: ANTIOQUIA | G40: Suroeste | H40: 6 | I40: G3- Nivel Medio | J40: 29793.9404 | K40: 41817.32786 | L40: 7750.702637 | M40: 34969.521 | P40: 1400 | Q40: 11000 | R40: 3720.080466 | S40: 12279.35325 | T40: -1711.465859 | U40: 41817.32786 | V40: 10273.8419 | W40: 9805.006358 | X40: 30326.03051 | Y40: 34969.52094 | Z40: 80 | AA40: 67.69019129 | AB40: 28.75216585 | AC40: 28.67651778 | AD40: 100 | AE40: 87.27272727 | AF40: 100 | AG40: 100 | AH40: 80 | AI40: 62.12644379 | AJ40: 19.81412094 | AK40: 49.99957618 | AL40: 13.3209414 | AM40: 71.24783415 | AN40: 22.16416587 | AO40: 0 | AP40: 12.72727273 | AQ40: 30.29541044 | AR40: -4.092719326 | AS40: 104.7815935 | AT40: 86.72132102 | AU40: 12.30980871 | AV40: 0 | AW40: 0 | AX40: 62.49947022 | AY40: 66.60470698 | AZ40: 63.32051757 | BA40: 3. Vulnerable (>=60 y <70) | BB40: 30240.28309 | BC40: 44824.57822 | BD40: 7644.063744 | BE40: 41619.80211 | BF40: N.D | BG40: 19600.07808 | BH40: 2323.935938 | BI40: 13318.23397 | BJ40: 2141.624906 | BK40: 10037.90926 | BL40: -3606.356268 | BM40: 44824.57822 | BN40: 7859.328599 | BO40: 8346.884219 | BP40: 40534.65013 | BQ40: 35603.06478 | BR40: 80 | BS40: 73.20893022 | BT40: 32.53638007 | BU40: 19.65305282 | BV40: 0 | BW40: 82.55071999 | BX40: 21.33536825 | BY40: 80 | BZ40: 100 | CA40: 80 | CB40: 63.22976281 | CC40: 10.74030563 | CD40: 31.47673615 | CE40: 12.71602038 | CF40: 67.46361993 | CG40: 18.36641059 | CH40: N.D | CI40: 17.44928001 | CJ40: 21.33536825 | CK40: -8.045488459 | CL40: 94.15883092 | CM40: 113.8515754 | CN40: 6.791069775 | CO40: 0 | CP40: 0 | CQ40: 39.34592019 | CR40: 63.58010188 | CS40: 44.19275653 | CT40: 2. Riesgo (>=40 y <60) | CU40: 30251.8352 | CV40: 57550.68416 | CW40: 5624.594935 | CX40: 47781.89914 | CY40: 3089.35605 | CZ40: 16639.38064 | DA40: 2968.705728 | DB40: 15693.64718 | DC40: 11001.08403 | DD40: 19663.67498 | DE40: 1106.194073 | DF40: 57550.68416 | DG40: 12073.44746 | DH40: 10800.78044 | DI40: 42900.5409 | DJ40: 47781.89914 | DK40: 80 | DL40: 70.24440268 | DM40: 47.43444732 | DN40: 14.96786913 | DO40: 100 | DP40: 81.08339194 | DQ40: 55.94622594 | DR40: 100 | DS40: 80 | DT40: 80 | DU40: 68.02831008 | DV40: 14.34049634 | DW40: 53.25759124 | DX40: 11.62269976 | DY40: 52.56555268 | DZ40: 11.77139259 | EA40: 18.56653271 | EB40: 18.91660806 | EC40: 55.94622594 | ED40: 1.922121498 | EE40: 111.7831024 | EF40: 89.78408493 | EG40: 9.755597315 | EH40: 0 | EI40: 0 | EJ40: 66.57198906 | EK40: 58.11349878 | EL40: 64.880291 | EM40: 3. Vulnerable (>=60 y <70) | EN40: 123 | EO40: 40 | EP40: 29 | EQ40: 3 | ER40: 17 | ES40: 80 | ET40: 1101 | EU40: 178 | EV40: 125 | EW40: 24 | EX40: 218 | EY40: 12 | EZ40: 32.91133784 | FA40: 45.15494366 | FB40: 49.09189476 | FC40: 44.96708715 | FD40: 31.4008209 | FE40: 30.25881461 | FF40: 42.37982436 | FG40: 43.36907865 | FH40: 48.47201748 | FI40: 45.39738038 | FJ40: 42.5280922 | FK40: 42.86648234 | FL40: 57.98365123 | FM40: 69.21348315 | FN40: 69.44 | FO40: 81.66666667 | FP40: 57.98165138 | FQ40: 56.85625646 | FR40: 53.93537353 | FS40: 61.75989739 | FT40: 63.19829714 | FU40: 57.47827476 | FV40: 56.50096502 | FW40: 53.45239572 | FX40: 48.24141258 | FY40: 46.68707224 | FZ40: 47.25643939 | GA40: 40.43999897 | GB40: 45.88563088 | GC40: 47.16081261 | GD40: 70.35422343 | GE40: 75.95505618 | GF40: 72.96 | GG40: 67.5 | GH40: 71.10091743 | GI40: 69.47259566 | GJ40: 42.01634877 | GK40: 53.48314607 | GL40: 47.36 | GM40: 49.16666667 | GN40: 41.9266055 | GO40: 37.68355739 | GP40: 86.86648501 | GQ40: 85.73033708 | GR40: 82.4 | GS40: 81.66666667 | GT40: 87.1559633 | GU40: 87.15615305 | GV40: 32.97064838 | GW40: 28.05891941 | GX40: 26.57864346 | GY40: 18.96228296 | GZ40: 29.67333351 | HA40: 31.00052897 | HB40: 0.08900999092 | HC40: 0.1348314607 | HD40: 0.192 | HE40: 0.08333333333 | HF40: 0.05504587156 | HG40: 0.07032057911 | HH40: 0.1349688475 | HI40: 0.1108662042 | HJ40: 0.1244854929 | HK40: 0.0938160867 | HL40: 0.118743477 | HM40: 0.1448803714 | HN40: 40.76266087 | HO40: 45.56189325 | HP40: 46.63990818 | HQ40: 44.99589938 | HR40: 40.6935018 | HS40: 39.99669061 | HT40: 10.83502791 | HU40: 11.20063304 | HV40: 10.48587333 | HW40: 10.0218043 | HX40: 10.61848469 | HY40: 39.99669061 | HZ40: 51.59768878 | IA40: 56.76252629 | IB40: 57.12578151 | IC40: 55.01770369 | ID40: 51.31198649 | IE40: 50.42908009 | IF40: 5.419554263 | IG40: 0.5 | IH40: 30.29541044 | II40: 0 | IJ40: 71.24783415 | IK40: 5.408788575 | IL40: 0.5 | IM40: 21.33536825 | IN40: 0 | IO40: 67.46361993 | IP40: 0 | IQ40: 0.25 | IR40: 55.94622594 | IS40: 0 | IT40: 52.56555268
A41: 05036 | B41: 05036 | C41: ANGELÓPOLIS | D41: 1 | E41: EJE CAFETERO Y ANTIOQUIA | F41: ANTIOQUIA | G41: Suroeste | H41: 6 | I41: G3- Nivel Medio | J41: 5345.309084 | K41: 8299.256431 | L41: 1480.370605 | M41: 6271.143066 | P41: 630 | Q41: 7000 | R41: 1440.485331 | S41: 2709.579377 | T41: 759.0196032 | U41: 8299.256431 | V41: 1679.767622 | W41: 1179.775 | X41: 5569.584905 | Y41: 6271.142782 | Z41: 80 | AA41: 67.40390436 | AB41: 35.59291572 | AC41: 30.54209096 | AD41: 100 | AE41: 91 | AF41: 80 | AG41: 20 | AH41: 80 | AI41: 62.12644379 | AJ41: 20.27493427 | AK41: 52.03969312 | AL41: 8.018328951 | AM41: 64.40708428 | AN41: 23.60607292 | AO41: 6.788872144 | AP41: 9 | AQ41: 53.16269173 | AR41: 9.145633824 | AS41: 142.3803371 | AT41: 88.81291813 | AU41: 12.59609564 | AV41: 0 | AW41: 0 | AX41: 65.0496164 | AY41: 40.09164476 | AZ41: 60.05802207 | BA41: 3. Vulnerable (>=60 y <70) | BB41: 4489.151292 | BC41: 8740.013706 | BD41: 4043.6096 | BE41: 8352.722944 | BF41: 565.358798 | BG41: 5094.171037 | BH41: 8083.084501 | BI41: 5543.359554 | BJ41: 783.2130945 | BK41: 2330.188105 | BL41: -1146.371473 | BM41: 8740.013706 | BN41: 1400.79931 | BO41: 1485.047409 | BP41: 8339.410168 | BQ41: 5929.331612 | BR41: 80 | BS41: 62.23468292 | BT41: 48.63679345 | BU41: 51.80204145 | BV41: 100 | BW41: 0 | BX41: 33.61158237 | BY41: 60 | BZ41: 100 | CA41: 20 | CB41: 63.22976281 | CC41: 28.09644745 | CD41: 39.2067223 | CE41: 9.873096497 | CF41: 51.36320655 | CG41: 48.4106755 | CH41: 11.09815108 | CI41: 145.8156272 | CJ41: 33.61158237 | CK41: -13.11635784 | CL41: 94.32690847 | CM41: 140.6467156 | CN41: 17.76531708 | CO41: 0 | CP41: 0 | CQ41: 49.00840288 | CR41: 49.36548248 | CS41: 49.0798188 | CT41: 2. Riesgo (>=40 y <60) | CU41: 4533.46088 | CV41: 10868.18985 | CW41: 7133.895501 | CX41: 11954.2966 | CY41: 451.714909 | CZ41: 5066.759953 | DA41: 7720.245657 | DB41: 7784.514391 | DC41: 1265.517509 | DD41: 2905.795078 | DE41: -2697.386949 | DF41: 10868.18985 | DG41: 1989.993966 | DH41: 1479.995053 | DI41: 6574.210231 | DJ41: 11925.29923 | DK41: 80 | DL41: 68.38452212 | DM41: 58.28688177 | DN41: 75.8813152 | DO41: 100 | DP41: 0.8255972125 | DQ41: 43.5515057 | DR41: 20 | DS41: 40 | DT41: 20 | DU41: 68.02831008 | DV41: 17.0744766 | DW41: 39.80603998 | DX41: 5.13829844 | DY41: 41.71311823 | DZ41: 59.67641377 | EA41: 8.91526169 | EB41: 99.17440279 | EC41: 43.5515057 | ED41: -24.81910039 | EE41: 134.4595012 | EF41: 55.12826224 | EG41: 11.61547788 | EH41: 0 | EI41: 0 | EJ41: 49.75754998 | EK41: 25.6914922 | EL41: 44.94433842 | EM41: 2. Riesgo (>=40 y <60) | EN41: 810 | EO41: 157 | EP41: 109 | EQ41: 22 | ER41: 171 | ES41: 687 | ET41: 1101 | EU41: 178 | EV41: 125 | EW41: 24 | EX41: 218 | EY41: 13 | EZ41: 32.91133784 | FA41: 45.15494366 | FB41: 49.09189476 | FC41: 44.96708715 | FD41: 31.4008209 | FE41: 30.25881461 | FF41: 42.37982436 | FG41: 43.36907865 | FH41: 48.47201748 | FI41: 45.39738038 | FJ41: 42.5280922 | FK41: 42.86648234 | FL41: 57.98365123 | FM41: 69.21348315 | FN41: 69.44 | FO41: 81.66666667 | FP41: 57.98165138 | FQ41: 56.85625646 | FR41: 53.93537353 | FS41: 61.75989739 | FT41: 63.19829714 | FU41: 57.47827476 | FV41: 56.50096502 | FW41: 53.45239572 | FX41: 48.24141258 | FY41: 46.68707224 | FZ41: 47.25643939 | GA41: 40.43999897 | GB41: 45.88563088 | GC41: 47.16081261 | GD41: 70.35422343 | GE41: 75.95505618 | GF41: 72.96 | GG41: 67.5 | GH41: 71.10091743 | GI41: 69.47259566 | GJ41: 42.01634877 | GK41: 53.48314607 | GL41: 47.36 | GM41: 49.16666667 | GN41: 41.9266055 | GO41: 37.68355739 | GP41: 86.86648501 | GQ41: 85.73033708 | GR41: 82.4 | GS41: 81.66666667 | GT41: 87.1559633 | GU41: 87.15615305 | GV41: 32.97064838 | GW41: 28.05891941 | GX41: 26.57864346 | GY41: 18.96228296 | GZ41: 29.67333351 | HA41: 31.00052897 | HB41: 0.08900999092 | HC41: 0.1348314607 | HD41: 0.192 | HE41: 0.08333333333 | HF41: 0.05504587156 | HG41: 0.07032057911 | HH41: 0.1349688475 | HI41: 0.1108662042 | HJ41: 0.1244854929 | HK41: 0.0938160867 | HL41: 0.118743477 | HM41: 0.1448803714 | HN41: 40.76266087 | HO41: 45.56189325 | HP41: 46.63990818 | HQ41: 44.99589938 | HR41: 40.6935018 | HS41: 39.99669061 | HT41: 10.83502791 | HU41: 11.20063304 | HV41: 10.48587333 | HW41: 10.0218043 | HX41: 10.61848469 | HY41: 39.99669061 | HZ41: 51.59768878 | IA41: 56.76252629 | IB41: 57.12578151 | IC41: 55.01770369 | ID41: 51.31198649 | IE41: 50.42908009 | IF41: 4.432517953 | IG41: 0.5 | IH41: 53.16269173 | II41: 0 | IJ41: 64.40708428 | IK41: 10.77729398 | IL41: 0.25 | IM41: 33.61158237 | IN41: 0 | IO41: 51.36320655 | IP41: 6.443565331 | IQ41: 0.25 | IR41: 43.5515057 | IS41: 0 | IT41: 41.71311823
A42: 05038 | B42: 05038 | C42: ANGOSTURA | D42: 1 | E42: EJE CAFETERO Y ANTIOQUIA | F42: ANTIOQUIA | G42: Norte | H42: 6 | I42: G3- Nivel Medio | J42: 10044.23014 | K42: 15885.9045 | L42: 2753.592773 | M42: 12109.92676 | P42: 1400 | Q42: 5600 | R42: 1230.711912 | S42: 3768.457139 | T42: 1238.232271 | U42: 15885.9045 | V42: 2106.567645 | W42: 1794.750999 | X42: 11343.57346 | Y42: 12109.927 | Z42: 80 | AA42: 77.58862538 | AB42: 36.77268965 | AC42: 29.41935985 | AD42: 0 | AE42: 75 | AF42: 80 | AG42: 80 | AH42: 100 | AI42: 62.12644379 | AJ42: 3.881398117 | AK42: 33.84670575 | AL42: 12.25875987 | AM42: 63.22731035 | AN42: 22.73831071 | AO42: - | AP42: 25 | AQ42: 32.65824359 | AR42: 7.794534272 | AS42: 117.373811 | AT42: 93.67169145 | AU42: 2.411374619 | AV42: 0 | AW42: 0 | AX42: 42.30838218 | AY42: 61.29379937 | AZ42: 46.10546562 | BA42: 2. Riesgo (>=40 y <60) | BB42: 11387.07567 | BC42: 18308.2473 | BD42: 3942.218496 | BE42: 15954.75021 | BF42: 200 | BG42: 8535.172854 | BH42: 668.0363907 | BI42: 5301.46572 | BJ42: 1234.88172 | BK42: 4759.256101 | BL42: -1001.554073 | BM42: 18308.2473 | BN42: 2484.658489 | BO42: 2091.654448 | BP42: 15785.42699 | BQ42: 14056.06045 | BR42: 80 | BS42: 74.26578642 | BT42: 37.80357298 | BU42: 26.43969339 | BV42: 100 | BW42: 87.39902461 | BX42: 25.9469483 | BY42: 80 | BZ42: 80 | CA42: 80 | CB42: 63.22976281 | CC42: 9.068851946 | CD42: 47.67856524 | CE42: 11.2712568 | CF42: 62.19642702 | CG42: 24.7087447 | CH42: 2.34324487 | CI42: 12.60097539 | CJ42: 25.9469483 | CK42: -5.47050767 | CL42: 118.7891476 | CM42: 112.3033516 | CN42: 5.734213576 | CO42: 0 | CP42: 0 | CQ42: 59.59820655 | CR42: 56.35628398 | CS42: 58.94982203 | CT42: 2. Riesgo (>=40 y <60) | CU42: 12198.57666 | CV42: 19047.68171 | CW42: 6261.244003 | CX42: 17509.47092 | CY42: N.D. | CZ42: 6984.204503 | DA42: 896.7879367 | DB42: 7506.018527 | DC42: 2781.334869 | DD42: 5763.256408 | DE42: -131.9895826 | DF42: 19047.68171 | DG42: 3044.509797 | DH42: 2342.268 | DI42: 15309.18579 | DJ42: 16197.74976 | DK42: 80 | DL42: 75.59000436 | DM42: 35.95768324 | DN42: 45.46945394 | DO42: 0 | DP42: 88.05241509 | DQ42: 48.2597801 | DR42: 100 | DS42: 60 | DT42: 100 | DU42: 68.02831008 | DV42: 6.482588848 | DW42: 42.36524431 | DX42: 11.13119885 | DY42: 64.04231676 | DZ42: 35.75918446 | EA42: N.D | EB42: 11.94758491 | EC42: 48.2597801 | ED42: -0.6929430288 | EE42: 129.9812744 | EF42: 94.51427523 | EG42: 4.409995642 | EH42: 0 | EI42: 0.1617979717 | EJ42: 52.95655539 | EK42: 55.65599425 | EL42: 53.49644317 | EM42: 2. Riesgo (>=40 y <60) | EN42: 501 | EO42: 122 | EP42: 89 | EQ42: 12 | ER42: 91 | ES42: 405 | ET42: 1101 | EU42: 178 | EV42: 125 | EW42: 17 | EX42: 218 | EY42: 14 | EZ42: 32.91133784 | FA42: 45.15494366 | FB42: 49.09189476 | FC42: 53.90871548 | FD42: 31.4008209 | FE42: 30.25881461 | FF42: 42.37982436 | FG42: 43.36907865 | FH42: 48.47201748 | FI42: 52.88869096 | FJ42: 42.5280922 | FK42: 42.86648234 | FL42: 57.98365123 | FM42: 69.21348315 | FN42: 69.44 | FO42: 63.52941176 | FP42: 57.98165138 | FQ42: 56.85625646 | FR42: 53.93537353 | FS42: 61.75989739 | FT42: 63.19829714 | FU42: 50.08771895 | FV42: 56.50096502 | FW42: 53.45239572 | FX42: 48.24141258 | FY42: 46.68707224 | FZ42: 47.25643939 | GA42: 41.34179755 | GB42: 45.88563088 | GC42: 47.16081261 | GD42: 70.35422343 | GE42: 75.95505618 | GF42: 72.96 | GG42: 68.23529412 | GH42: 71.10091743 | GI42: 69.47259566 | GJ42: 42.01634877 | GK42: 53.48314607 | GL42: 47.36 | GM42: 50.58823529 | GN42: 41.9266055 | GO42: 37.68355739 | GP42: 86.86648501 | GQ42: 85.73033708 | GR42: 82.4 | GS42: 82.35294118 | GT42: 87.1559633 | GU42: 87.15615305 | GV42: 32.97064838 | GW42: 28.05891941 | GX42: 26.57864346 | GY42: 22.41381718 | GZ42: 29.67333351 | HA42: 31.00052897 | HB42: 0.08900999092 | HC42: 0.1348314607 | HD42: 0.192 | HE42: 0.2352941176 | HF42: 0.05504587156 | HG42: 0.07032057911 | HH42: 0.1349688475 | HI42: 0.1108662042 | HJ42: 0.1244854929 | HK42: 0.07518019867 | HL42: 0.118743477 | HM42: 0.1448803714 | HN42: 40.76266087 | HO42: 45.56189325 | HP42: 46.63990818 | HQ42: 43.73426075 | HR42: 40.6935018 | HS42: 39.99669061 | HT42: 10.83502791 | HU42: 11.20063304 | HV42: 10.48587333 | HW42: 10.41909444 | HX42: 10.61848469 | HY42: 39.99669061 | HZ42: 51.59768878 | IA42: 56.76252629 | IB42: 57.12578151 | IC42: 54.15335519 | ID42: 51.31198649 | IE42: 50.42908009 | IF42: 6.207291305 | IG42: 0.5 | IH42: 32.65824359 | II42: 0 | IJ42: 63.22731035 | IK42: 7.927865878 | IL42: 0.5 | IM42: 25.9469483 | IN42: 0 | IO42: 62.19642702 | IP42: 7.382858164 | IQ42: 0.5 | IR42: 48.2597801 | IS42: 0.1617979717 | IT42: 64.04231676
A43: 05040 | B43: 05040 | C43: ANORÍ | D43: 1 | E43: EJE CAFETERO Y ANTIOQUIA | F43: ANTIOQUIA | G43: Nordeste | H43: 6 | I43: G3- Nivel Medio | J43: 14294.80894 | K43: 24511.90184 | L43: 5231.496094 | M43: 19668.60156 | P43: 1800 | Q43: 8900 | R43: 1974.51672 | S43: 5117.299898 | T43: 1700.516574 | U43: 24511.90184 | V43: 3560.520657 | W43: 2622 | X43: 19093.18494 | Y43: 19668.60209 | Z43: 80 | AA43: 70.23774546 | AB43: 41.68217125 | AC43: 34.41338906 | AD43: 100 | AE43: 79.7752809 | AF43: 80 | AG43: 40 | AH43: 100 | AI43: 62.12644379 | AJ43: 15.71352542 | AK43: 49.92746257 | AL43: 10.78090169 | AM43: 58.31782875 | AN43: 26.59821074 | AO43: 13.44335782 | AP43: 20.2247191 | AQ43: 38.58512808 | AR43: 6.937513805 | AS43: 135.7940754 | AT43: 97.07443802 | AU43: 9.762254537 | AV43: 2 | AW43: 0 | AX43: 62.40932821 | AY43: 53.90450847 | AZ43: 60.70836427 | BA43: 3. Vulnerable (>=60 y <70) | BB43: 13682.88243 | BC43: 24695.9793 | BD43: 6646.910464 | BE43: 20704.34662 | BF43: 651.358026 | BG43: 12200.75717 | BH43: 3437.761419 | BI43: 9910.735222 | BJ43: 1379.868657 | BK43: 4625.768254 | BL43: 2264.946369 | BM43: 24695.9793 | BN43: 3060.752457 | BO43: 3002.06135 | BP43: 19185.13334 | BQ43: 19064.71435 | BR43: 80 | BS43: 74.65438567 | BT43: 44.5946959 | BU43: 34.35294953 | BV43: 100 | BW43: 65.31275085 | BX43: 29.83004295 | BY43: 80 | BZ43: 100 | CA43: 100 | CB43: 63.22976281 | CC43: 8.454269146 | CD43: 47.21205856 | CE43: 14.29695128 | CF43: 55.4053041 | CG43: 32.10393733 | CH43: 5.33866888 | CI43: 34.68724915 | CJ43: 29.83004295 | CK43: 9.171316274 | CL43: 101.9550269 | CM43: 100.6316328 | CN43: 5.345614329 | CO43: 2 | CP43: 0 | CQ43: 59.0150732 | CR43: 71.48475638 | CS43: 61.50900984 | CT43: 3. Vulnerable (>=60 y <70) | CU43: 16552.81046 | CV43: 26844.20006 | CW43: 9199.387583 | CX43: 24989.51459 | CY43: N.D. | CZ43: 7833.444232 | DA43: 3656.793404 | DB43: 11855.42959 | DC43: 2830.232325 | DD43: 6035.832096 | DE43: 298.2309236 | DF43: 26844.20006 | DG43: 3140.76155 | DH43: 1861.503932 | DI43: 23322.47553 | DJ43: 23340.36937 | DK43: 80 | DL43: 65.34103578 | DM43: 38.33747914 | DN43: 46.80941672 | DO43: 0 | DP43: 69.15511685 | DQ43: 46.89050788 | DR43: 100 | DS43: 0 | DT43: 100 | DU43: 68.02831008 | DV43: 21.54832923 | DW43: 40.15900275 | DX43: 8.103221949 | DY43: 61.66252086 | DZ43: 36.81299031 | EA43: N.D | EB43: 30.84488315 | EC43: 46.89050788 | ED43: 1.11096968 | EE43: 168.7217253 | EF43: 99.92333524 | EG43: 14.65896422 | EH43: 0 | EI43: 0 | EJ43: 50.19875343 | EK43: 40.51610974 | EL43: 48.26222469 | EM43: 2. Riesgo (>=40 y <60) | EN43: 707 | EO43: 144 | EP43: 101 | EQ43: 9 | ER43: 142 | ES43: 595 | ET43: 1101 | EU43: 178 | EV43: 125 | EW43: 10 | EX43: 218 | EY43: 15 | EZ43: 32.91133784 | FA43: 45.15494366 | FB43: 49.09189476 | FC43: 46.09255508 | FD43: 31.4008209 | FE43: 30.25881461 | FF43: 42.37982436 | FG43: 43.36907865 | FH43: 48.47201748 | FI43: 55.56003565 | FJ43: 42.5280922 | FK43: 42.86648234 | FL43: 57.98365123 | FM43: 69.21348315 | FN43: 69.44 | FO43: 56 | FP43: 57.98165138 | FQ43: 56.85625646 | FR43: 53.93537353 | FS43: 61.75989739 | FT43: 63.19829714 | FU43: 70.87709769 | FV43: 56.50096502 | FW43: 53.45239572 | FX43: 48.24141258 | FY43: 46.68707224 | FZ43: 47.25643939 | GA43: 52.52494958 | GB43: 45.88563088 | GC43: 47.16081261 | GD43: 70.35422343 | GE43: 75.95505618 | GF43: 72.96 | GG43: 78 | GH43: 71.10091743 | GI43: 69.47259566 | GJ43: 42.01634877 | GK43: 53.48314607 | GL43: 47.36 | GM43: 42 | GN43: 41.9266055 | GO43: 37.68355739 | GP43: 86.86648501 | GQ43: 85.73033708 | GR43: 82.4 | GS43: 88 | GT43: 87.1559633 | GU43: 87.15615305 | GV43: 32.97064838 | GW43: 28.05891941 | GX43: 26.57864346 | GY43: 34.39519971 | GZ43: 29.67333351 | HA43: 31.00052897 | HB43: 0.08900999092 | HC43: 0.1348314607 | HD43: 0.192 | HE43: 0.6 | HF43: 0.05504587156 | HG43: 0.07032057911 | HH43: 0.1349688475 | HI43: 0.1108662042 | HJ43: 0.1244854929 | HK43: 0.2140615807 | HL43: 0.118743477 | HM43: 0.1448803714 | HN43: 40.76266087 | HO43: 45.56189325 | HP43: 46.63990818 | HQ43: 47.87395174 | HR43: 40.6935018 | HS43: 39.99669061 | HT43: 10.83502791 | HU43: 11.20063304 | HV43: 10.48587333 | HW43: 11.1224923 | HX43: 10.61848469 | HY43: 39.99669061 | HZ43: 51.59768878 | IA43: 56.76252629 | IB43: 57.12578151 | IC43: 58.99644403 | ID43: 51.31198649 | IE43: 50.42908009 | IF43: 2.064962744 | IG43: 0.5 | IH43: 38.58512808 | II43: 0 | IJ43: 58.31782875 | IK43: 2.800306412 | IL43: 0.5 | IM43: 29.83004295 | IN43: 0 | IO43: 55.4053041 | IP43: 2.430966861 | IQ43: 0.5 | IR43: 46.89050788 | IS43: 0 | IT43: 61.66252086
A44: 05042 | B44: 05042 | C44: SANTAFÉ DE ANTIOQUIA | D44: 1 | E44: EJE CAFETERO Y ANTIOQUIA | F44: ANTIOQUIA | G44: Occidente | H44: 5 | I44: G1- Nivel Alto | J44: 17041.10611 | K44: 35982.15461 | L44: 10652.44141 | M44: 31133.99414 | P44: 5200 | Q44: 13000 | R44: 6913.18817 | S44: 16296.14988 | T44: -4204.368025 | U44: 35982.15461 | V44: 13548.20295 | W44: 11357.30131 | X44: 27500.44292 | Y44: 30803.56093 | Z44: 80 | AA44: 65.36991635 | AB44: 52.64011758 | AC44: 44.26794243 | AD44: 80 | AE44: 60 | AF44: 60 | AG44: 80 | AH44: 80 | AI44: 62.12644379 | AJ44: 23.54888315 | AK44: 45.24403702 | AL44: 12.23659221 | AM44: 47.35988242 | AN44: 34.21482434 | AO44: 31.64551086 | AP44: 40 | AQ44: 42.42221764 | AR44: -11.68459218 | AS44: 119.2906887 | AT44: 89.27683065 | AU44: 14.63008365 | AV44: 0 | AW44: 0 | AX44: 56.55504628 | AY44: 61.18296105 | AZ44: 57.48062923 | BA44: 2. Riesgo (>=40 y <60) | BB44: 15135.24713 | BC44: 43932.78408 | BD44: 19801.28051 | BE44: 41495.60115 | BF44: 6035.479046 | BG44: 24579.28806 | BH44: 5760.429818 | BI44: 19794.08247 | BJ44: 6476.285939 | BK44: 17338.75751 | BL44: -5467.965253 | BM44: 43932.78408 | BN44: 15147.01487 | BO44: 13735.33013 | BP44: 38538.27776 | BQ44: 30725.06142 | BR44: 80 | BS44: 64.46644595 | BT44: 65.54908265 | BU44: 51.06189732 | BV44: 80 | BW44: 70.89822261 | BX44: 37.35149959 | BY44: 60 | BZ44: 80 | CA44: 60 | CB44: 53.51909037 | CC44: 29.02432375 | CD44: 48.64809362 | CE44: 11.28156242 | CF44: 34.45091735 | CG44: 47.71898698 | CH44: 24.55514184 | CI44: 29.10177739 | CJ44: 37.35149959 | CK44: -12.44620701 | CL44: 110.2777634 | CM44: 125.4294572 | CN44: 15.53355405 | CO44: 0 | CP44: 0.06637083269 | CQ44: 60.81011703 | CR44: 56.40781208 | CS44: 59.92965604 | CT44: 2. Riesgo (>=40 y <60) | CU44: 18331.9998 | CV44: 45333.67617 | CW44: 11218.70742 | CX44: 34120.69745 | CY44: N.D. | CZ44: 21639.19639 | DA44: 6495.805057 | DB44: 16588.07524 | DC44: 7586.568652 | DD44: 19006.67372 | DE44: -207.126356 | DF44: 45333.67617 | DG44: 16192.0978 | DH44: 15273.9 | DI44: 30651.84111 | DJ44: 34120.69745 | DK44: 80 | DL44: 64.42967092 | DM44: 59.56207097 | DN44: 41.80777501 | DO44: 0 | DP44: 60.84051366 | DQ44: 39.9152885 | DR44: 100 | DS44: 100 | DT44: 80 | DU44: 56.81275321 | DV44: 27.40639769 | DW44: 40.28341975 | DX44: 13.8395386 | DY44: 40.43792903 | DZ44: 32.87947861 | EA44: N.D | EB44: 39.15948634 | EC44: 39.9152885 | ED44: -0.4568929183 | EE44: 106.0115478 | EF44: 89.8335714 | EG44: 15.57032908 | EH44: 0 | EI44: 0.06222708135 | EJ44: 50.35427469 | EK44: 69.19769298 | EL44: 54.12295835 | EM44: 2. Riesgo (>=40 y <60) | EN44: 479 | EO44: 118 | EP44: 86 | EQ44: 10 | ER44: 147 | ES44: 30 | ET44: 1101 | EU44: 178 | EV44: 125 | EW44: 18 | EX44: 217 | EY44: 16 | EZ44: 32.91133784 | FA44: 45.15494366 | FB44: 49.09189476 | FC44: 44.22207127 | FD44: 51.19972592 | FE44: 51.80449922 | FF44: 42.37982436 | FG44: 43.36907865 | FH44: 48.47201748 | FI44: 56.74691413 | FJ44: 47.23529361 | FK44: 43.61771893 | FL44: 57.98365123 | FM44: 69.21348315 | FN44: 69.44 | FO44: 53.33333333 | FP44: 64.88479263 | FQ44: 66.66666667 | FR44: 53.93537353 | FS44: 61.75989739 | FT44: 63.19829714 | FU44: 64.60586577 | FV44: 60.4783994 | FW44: 61.45536811 | FX44: 48.24141258 | FY44: 46.68707224 | FZ44: 47.25643939 | GA44: 44.67806847 | GB44: 54.86117289 | GC44: 54.82323045 | GD44: 70.35422343 | GE44: 75.95505618 | GF44: 72.96 | GG44: 63.33333333 | GH44: 67.37327189 | GI44: 75.71428571 | GJ44: 42.01634877 | GK44: 53.48314607 | GL44: 47.36 | GM44: 25.55555556 | GN44: 57.51152074 | GO44: 64.76190476 | GP44: 86.86648501 | GQ44: 85.73033708 | GR44: 82.4 | GS44: 78.88888889 | GT44: 83.77880184 | GU44: 85.23809524 | GV44: 32.97064838 | GW44: 28.05891941 | GX44: 26.57864346 | GY44: 24.57545815 | GZ44: 41.80027715 | HA44: 47.91316668 | HB44: 0.08900999092 | HC44: 0.1348314607 | HD44: 0.192 | HE44: 0.2222222222 | HF44: 0.1290322581 | HG44: 0.1904761905 | HH44: 0.1349688475 | HI44: 0.1108662042 | HJ44: 0.1244854929 | HK44: 0.2531761204 | HL44: 0.07874045284 | HM44: 0.0790597641 | HN44: 40.76266087 | HO44: 45.56189325 | HP44: 46.63990818 | HQ44: 43.58927817 | HR44: 46.13768751 | HS44: 47.21090254 | HT44: 10.83502791 | HU44: 11.20063304 | HV44: 10.48587333 | HW44: 8.696406508 | HX44: 12.24759452 | HY44: 47.21090254 | HZ44: 51.59768878 | IA44: 56.76252629 | IB44: 57.12578151 | IC44: 52.28568468 | ID44: 58.38528204 | IE44: 60.45902085 | IF44: 4.99241652 | IG44: 0.5 | IH44: 42.42221764 | II44: 0 | IJ44: 47.35988242 | IK44: 5.468438867 | IL44: 0.5 | IM44: 37.35149959 | IN44: 0.06637083269 | IO44: 34.45091735 | IP44: 5.629950906 | IQ44: 0.5 | IR44: 39.9152885 | IS44: 0.06222708135 | IT44: 40.43792903
A45: 05044 | B45: 05044 | C45: ANZA | D45: 1 | E45: EJE CAFETERO Y ANTIOQUIA | F45: ANTIOQUIA | G45: Occidente | H45: 6 | I45: G4- Nivel Medio Bajo | J45: 8043.157451 | K45: 10718.59815 | L45: 2645.413818 | M45: 9401.546143 | P45: 510 | Q45: 5300 | R45: 590.312576 | S45: 2415.163464 | T45: -507.798906 | U45: 10718.59815 | V45: 1134.983363 | W45: 731.091108 | X45: 8993.083012 | Y45: 9401.546172 | Z45: 80 | AA45: 74.90479138 | AB45: 24.96073334 | AC45: 36.40569762 | AD45: 100 | AE45: 90.37735849 | AF45: 100 | AG45: 0 | AH45: 100 | AI45: 62.12644379 | AJ45: 8.201352445 | AK45: 50.158096 | AL45: 7.213423496 | AM45: 75.03926666 | AN45: 28.13807195 | AO45: 8.118409125 | AP45: 9.622641509 | AQ45: 24.44193053 | AR45: -4.737549619 | AS45: 155.245133 | AT45: 95.65536187 | AU45: 5.095208617 | AV45: 0 | AW45: 0 | AX45: 62.69762 | AY45: 36.06711748 | AZ45: 57.37151949 | BA45: 2. Riesgo (>=40 y <60) | BB45: 7130.983028 | BC45: 16283.80431 | BD45: 6104.756736 | BE45: 12778.88205 | BF45: 403.098049 | BG45: 6730.695107 | BH45: 684.980404 | BI45: 9005.253357 | BJ45: 445.741094 | BK45: 2424.553588 | BL45: 1526.109672 | BM45: 16283.80431 | BN45: 1189.435962 | BO45: 1346.931853 | BP45: 12778.88214 | BQ45: 9798.833161 | BR45: 80 | BS45: 75.24309882 | BT45: 56.20812623 | BU45: 51.11886866 | BV45: 100 | BW45: 92.39354656 | BX45: 18.38446039 | BY45: 80 | BZ45: 80 | CA45: 40 | CB45: 63.22976281 | CC45: 7.523199463 | CD45: 53.08066691 | CE45: 8.501546631 | CF45: 43.79187377 | CG45: 47.77222853 | CH45: 5.988951254 | CI45: 7.606453443 | CJ45: 18.38446039 | CK45: 9.371947998 | CL45: 88.30706315 | CM45: 130.4122841 | CN45: 4.756901177 | CO45: 0 | CP45: 0 | CQ45: 66.35083364 | CR45: 42.50773315 | CS45: 61.58221354 | CT45: 3. Vulnerable (>=60 y <70) | CU45: 8349.292991 | CV45: 12064.17788 | CW45: 8518.917191 | CX45: 16813.93557 | CY45: 1521.455846 | CZ45: 6258.17973 | DA45: 1383.301825 | DB45: 4516.570763 | DC45: 1144.654279 | DD45: 3238.012869 | DE45: -6843.116282 | DF45: 12064.17788 | DG45: 1935.381021 | DH45: 1115.975551 | DI45: 13220.11461 | DJ45: 16813.93557 | DK45: 80 | DL45: 75.31310235 | DM45: 30.79268992 | DN45: 64.42392061 | DO45: 80 | DP45: 69.37274101 | DQ45: 35.35051667 | DR45: 0 | DS45: 0 | DT45: 60 | DU45: 68.02831008 | DV45: 6.889628217 | DW45: 37.32531576 | DX45: 4.459308548 | DY45: 69.20731008 | DZ45: 50.66581323 | EA45: 24.31147573 | EB45: 30.62725899 | EC45: 35.35051667 | ED45: -56.72260764 | EE45: 173.4250378 | EF45: 78.62593833 | EG45: 4.686897646 | EH45: 0 | EI45: 0 | EJ45: 46.6566447 | EK45: 22.29654274 | EL45: 41.78462431 | EM45: 2. Riesgo (>=40 y <60) | EN45: 886 | EO45: 163 | EP45: 114 | EQ45: 16 | ER45: 163 | ES45: 759 | ET45: 1101 | EU45: 178 | EV45: 125 | EW45: 18 | EX45: 218 | EY45: 17 | EZ45: 32.91133784 | FA45: 45.15494366 | FB45: 49.09189476 | FC45: 44.22207127 | FD45: 25.11960132 | FE45: 30.25881461 | FF45: 42.37982436 | FG45: 43.36907865 | FH45: 48.47201748 | FI45: 56.74691413 | FJ45: 38.40556192 | FK45: 42.86648234 | FL45: 57.98365123 | FM45: 69.21348315 | FN45: 69.44 | FO45: 53.33333333 | FP45: 59.08256881 | FQ45: 56.85625646 | FR45: 53.93537353 | FS45: 61.75989739 | FT45: 63.19829714 | FU45: 64.60586577 | FV45: 50.35899729 | FW45: 53.45239572 | FX45: 48.24141258 | FY45: 46.68707224 | FZ45: 47.25643939 | GA45: 44.67806847 | GB45: 45.1751324 | GC45: 47.16081261 | GD45: 70.35422343 | GE45: 75.95505618 | GF45: 72.96 | GG45: 63.33333333 | GH45: 72.93577982 | GI45: 69.47259566 | GJ45: 42.01634877 | GK45: 53.48314607 | GL45: 47.36 | GM45: 25.55555556 | GN45: 33.39449541 | GO45: 37.68355739 | GP45: 86.86648501 | GQ45: 85.73033708 | GR45: 82.4 | GS45: 78.88888889 | GT45: 89.63302752 | GU45: 87.15615305 | GV45: 32.97064838 | GW45: 28.05891941 | GX45: 26.57864346 | GY45: 24.57545815 | GZ45: 28.09304872 | HA45: 31.00052897 | HB45: 0.08900999092 | HC45: 0.1348314607 | HD45: 0.192 | HE45: 0.2222222222 | HF45: 0.05504587156 | HG45: 0.07032057911 | HH45: 0.1349688475 | HI45: 0.1108662042 | HJ45: 0.1244854929 | HK45: 0.2531761204 | HL45: 0.1119701085 | HM45: 0.1448803714 | HN45: 40.76266087 | HO45: 45.56189325 | HP45: 46.63990818 | HQ45: 43.58927817 | HR45: 38.79240638 | HS45: 39.99669061 | HT45: 10.83502791 | HU45: 11.20063304 | HV45: 10.48587333 | HW45: 8.696406508 | HX45: 10.10810797 | HY45: 39.99669061 | HZ45: 51.59768878 | IA45: 56.76252629 | IB45: 57.12578151 | IC45: 52.28568468 | ID45: 48.90051435 | IE45: 50.42908009 | IF45: 2.760702996 | IG45: 0.5 | IH45: 24.44193053 | II45: 0 | IJ45: 75.03926666 | IK45: 2.53581076 | IL45: 0.5 | IM45: 18.38446039 | IN45: 0 | IO45: 43.79187377 | IP45: 2.63108588 | IQ45: 0.5 | IR45: 35.35051667 | IS45: 0 | IT45: 69.20731008
A46: 05045 | B46: 05045 | C46: APARTADÓ | D46: 1 | E46: EJE CAFETERO Y ANTIOQUIA | F46: ANTIOQUIA | G46: Uraba | H46: 3 | I46: G1- Nivel Alto | J46: 105723.6746 | K46: 163120.8667 | L46: 44210.10156 | M46: 157549.5 | P46: 50000 | Q46: 140000 | R46: 17024.05939 | S46: 37532.14508 | T46: -14936.71775 | U46: 163120.8667 | V46: 33734.46073 | W46: 51006.24782 | X46: 135170.2373 | Y46: 157549.4988 | Z46: 70 | AA46: 53.97513634 | AB46: 35.18690974 | AC46: 36.30609211 | AD46: 20 | AE46: 64.28571429 | AF46: 80 | AG46: 40 | AH46: 80 | AI46: 52.5148559 | AJ46: 30.51491504 | AK46: 37.48497685 | AL46: 10.03432767 | AM46: 64.81309026 | AN46: 28.06108656 | AO46: 70.16427632 | AP46: 35.71428571 | AQ46: 45.35861022 | AR46: -9.156840599 | AS46: 66.13789912 | AT46: 85.79540929 | AU46: 16.02486366 | AV46: 0 | AW46: 0 | AX46: 46.85622106 | AY46: 50.17163835 | AZ46: 47.51930452 | BA46: 2. Riesgo (>=40 y <60) | BB46: 115327.9465 | BC46: 166722.443 | BD46: 45243.89171 | BE46: 163907.1744 | BF46: 32305.57346 | BG46: 83922.15174 | BH46: 10102.76478 | BI46: 70017.13751 | BJ46: 19689.61767 | BK46: 41759.26586 | BL46: -19130.37728 | BM46: 166722.443 | BN46: 38240.54713 | BO46: 39449.34408 | BP46: 163783.1721 | BQ46: 141533.9887 | BR46: 70 | BS46: 59.16348797 | BT46: 30.82638164 | BU46: 29.53709115 | BV46: 60 | BW46: 85.57101141 | BX46: 47.15029651 | BY46: 60 | BZ46: 100 | CA46: 80 | CB46: 51.55894724 | CC46: 21.01771391 | CD46: 41.74463743 | CE46: 13.40118093 | CF46: 69.17361836 | CG46: 27.60336262 | CH46: 38.49469156 | CI46: 14.42898859 | CJ46: 47.15029651 | CK46: -11.47438637 | CL46: 96.93582496 | CM46: 115.7200285 | CN46: 10.83651203 | CO46: 0 | CP46: 0 | CQ46: 52.18079678 | CR46: 67.00590464 | CS46: 55.14581836 | CT46: 2. Riesgo (>=40 y <60) | CU46: 123943.755 | CV46: 192585.8212 | CW46: 41314.37903 | CX46: 175674.5112 | CY46: 40303.9571 | CZ46: 66850.41274 | DA46: 61254.36273 | DB46: 49241.2093 | DC46: 26368.65263 | DD46: 49900.05852 | DE46: -6620.09593 | DF46: 192585.8212 | DG46: 42852.55978 | DH46: 52369.40637 | DI46: 165370.387 | DJ46: 175674.5112 | DK46: 70 | DL46: 57.5190598 | DM46: 35.64232597 | DN46: 29.90367808 | DO46: 40 | DP46: 0 | DQ46: 52.84292928 | DR46: 100 | DS46: 80 | DT46: 100 | DU46: 53.89867416 | DV46: 23.15630281 | DW46: 34.45185778 | DX46: 13.56644605 | DY46: 64.35767403 | DZ46: 23.51757164 | EA46: 60.28976553 | EB46: 124.3965443 | EC46: 52.84292928 | ED46: -3.437478361 | EE46: 81.82746903 | EF46: 94.13453656 | EG46: 12.4809402 | EH46: 0 | EI46: 0.1134626624 | EJ46: 43.06482222 | EK46: 67.83223027 | EL46: 48.01830383 | EM46: 2. Riesgo (>=40 y <60) | EN46: 713 | EO46: 145 | EP46: 102 | EQ46: 8 | ER46: 177 | ES46: 16 | ET46: 1101 | EU46: 178 | EV46: 125 | EW46: 11 | EX46: 217 | EY46: 18 | EZ46: 32.91133784 | FA46: 45.15494366 | FB46: 49.09189476 | FC46: 34.27153546 | FD46: 51.19972592 | FE46: 65.48422581 | FF46: 42.37982436 | FG46: 43.36907865 | FH46: 48.47201748 | FI46: 36.04748216 | FJ46: 47.23529361 | FK46: 44.98771487 | FL46: 57.98365123 | FM46: 69.21348315 | FN46: 69.44 | FO46: 56.36363636 | FP46: 64.88479263 | FQ46: 81.25 | FR46: 53.93537353 | FS46: 61.75989739 | FT46: 63.19829714 | FU46: 50.88104659 | FV46: 60.4783994 | FW46: 66.0229361 | FX46: 48.24141258 | FY46: 46.68707224 | FZ46: 47.25643939 | GA46: 48.29427328 | GB46: 54.86117289 | GC46: 58.42665867 | GD46: 70.35422343 | GE46: 75.95505618 | GF46: 72.96 | GG46: 83.63636364 | GH46: 67.37327189 | GI46: 71.25 | GJ46: 42.01634877 | GK46: 53.48314607 | GL46: 47.36 | GM46: 47.27272727 | GN46: 57.51152074 | GO46: 82.5 | GP46: 86.86648501 | GQ46: 85.73033708 | GR46: 82.4 | GS46: 92.72727273 | GT46: 83.77880184 | GU46: 87.5 | GV46: 32.97064838 | GW46: 28.05891941 | GX46: 26.57864346 | GY46: 14.80491309 | GZ46: 41.80027715 | HA46: 48.12290361 | HB46: 0.08900999092 | HC46: 0.1348314607 | HD46: 0.192 | HE46: 0 | HF46: 0.1290322581 | HG46: 0.375 | HH46: 0.1349688475 | HI46: 0.1108662042 | HJ46: 0.1244854929 | HK46: 0.1506850936 | HL46: 0.07874045284 | HM46: 0.05635244266 | HN46: 40.76266087 | HO46: 45.56189325 | HP46: 46.63990818 | HQ46: 41.26591167 | HR46: 46.13768751 | HS46: 51.65620473 | HT46: 10.83502791 | HU46: 11.20063304 | HV46: 10.48587333 | HW46: 10.35046456 | HX46: 12.24759452 | HY46: 51.65620473 | HZ46: 51.59768878 | IA46: 56.76252629 | IB46: 57.12578151 | IC46: 51.61637623 | ID46: 58.38528204 | IE46: 66.28400212 | IF46: 4.939457462 | IG46: 0.75 | IH46: 45.35861022 | II46: 0 | IJ46: 64.81309026 | IK46: 5.017144123 | IL46: 1 | IM46: 47.15029651 | IN46: 0 | IO46: 69.17361836 | IP46: 5.117468507 | IQ46: 1 | IR46: 52.84292928 | IS46: 0.1134626624 | IT46: 64.35767403
A47: 05051 | B47: 05051 | C47: ARBOLETES | D47: 1 | E47: EJE CAFETERO Y ANTIOQUIA | F47: ANTIOQUIA | G47: Uraba | H47: 6 | I47: G4- Nivel Medio Bajo | J47: 29358.0535 | K47: 38092.73174 | L47: 4877.159668 | M47: 31986.06787 | P47: 3100 | Q47: 9000 | R47: 3622.505007 | S47: 7292.028063 | T47: 2437.140778 | U47: 38092.73174 | V47: 3845.989696 | W47: 3408.675742 | X47: 29382.74418 | Y47: 31986.06791 | Z47: 80 | AA47: 70.18916979 | AB47: 22.93003898 | AC47: 19.72791286 | AD47: 100 | AE47: 65.55555556 | AF47: 80 | AG47: 80 | AH47: 100 | AI47: 62.12644379 | AJ47: 15.79171383 | AK47: 45.05214852 | AL47: 13.05278092 | AM47: 77.06996102 | AN47: 15.24776252 | AO47: 0 | AP47: 34.44444444 | AQ47: 49.67760649 | AR47: 6.397915472 | AS47: 112.8294384 | AT47: 91.86106985 | AU47: 9.810830213 | AV47: 0 | AW47: 0 | AX47: 56.31518565 | AY47: 65.26390461 | AZ47: 58.10492944 | BA47: 2. Riesgo (>=40 y <60) | BB47: 27639.68818 | BC47: 37330.88488 | BD47: 9786.10688 | BE47: 39149.50758 | BF47: N.D | BG47: 9226.463539 | BH47: 305.736575 | BI47: 10111.07057 | BJ47: 5732.676443 | BK47: 9767.975733 | BL47: -3515.528405 | BM47: 37330.88488 | BN47: 3875.459565 | BO47: 2829.965218 | BP47: 36811.11399 | BQ47: 34650.27499 | BR47: 80 | BS47: 69.31275087 | BT47: 25.96026514 | BU47: 26.74788105 | BV47: 0 | BW47: 96.97621955 | BX47: 58.68847957 | BY47: 80 | BZ47: 40 | CA47: 100 | CB47: 63.22976281 | CC47: 16.90224453 | CD47: 38.44971271 | CE47: 10.46014964 | CF47: 74.03973486 | CG47: 24.99675598 | CH47: N.D | CI47: 3.023780448 | CJ47: 58.68847957 | CK47: -9.417211557 | CL47: 136.9437172 | CM47: 106.2361381 | CN47: 10.68724913 | CO47: 0 | CP47: 0 | CQ47: 48.06214088 | CR47: 52.30074818 | CS47: 48.90986234 | CT47: 2. Riesgo (>=40 y <60) | CU47: 36677.19942 | CV47: 51793.34683 | CW47: 9617.051788 | CX47: 54521.33774 | CY47: N.D. | CZ47: 11314.00894 | DA47: 1048.342458 | DB47: 6326.117606 | DC47: 10402.58584 | DD47: 14086.61842 | DE47: -6080.500176 | DF47: 51793.34683 | DG47: 5266.922324 | DH47: 3529.299 | DI47: 44246.99484 | DJ47: 54189.81442 | DK47: 80 | DL47: 70.49417498 | DM47: 29.18550032 | DN47: 22.42887986 | DO47: 0 | DP47: 83.42834384 | DQ47: 73.84728918 | DR47: 60 | DS47: 20 | DT47: 80 | DU47: 68.02831008 | DV47: 13.973337 | DW47: 35.85200176 | DX47: 7.598222467 | DY47: 70.81449968 | DZ47: 17.63906057 | EA47: N.D | EB47: 16.57165616 | EC47: 73.84728918 | ED47: -11.7399252 | EE47: 149.2342339 | EF47: 81.65186633 | EG47: 9.505825024 | EH47: 0 | EI47: 0 | EJ47: 44.8150022 | EK47: 37.99111233 | EL47: 43.45022423 | EM47: 2. Riesgo (>=40 y <60) | EN47: 846 | EO47: 160 | EP47: 112 | EQ47: 9 | ER47: 154 | ES47: 720 | ET47: 1101 | EU47: 178 | EV47: 125 | EW47: 11 | EX47: 218 | EY47: 19 | EZ47: 32.91133784 | FA47: 45.15494366 | FB47: 49.09189476 | FC47: 34.27153546 | FD47: 25.11960132 | FE47: 30.25881461 | FF47: 42.37982436 | FG47: 43.36907865 | FH47: 48.47201748 | FI47: 36.04748216 | FJ47: 38.40556192 | FK47: 42.86648234 | FL47: 57.98365123 | FM47: 69.21348315 | FN47: 69.44 | FO47: 56.36363636 | FP47: 59.08256881 | FQ47: 56.85625646 | FR47: 53.93537353 | FS47: 61.75989739 | FT47: 63.19829714 | FU47: 50.88104659 | FV47: 50.35899729 | FW47: 53.45239572 | FX47: 48.24141258 | FY47: 46.68707224 | FZ47: 47.25643939 | GA47: 48.29427328 | GB47: 45.1751324 | GC47: 47.16081261 | GD47: 70.35422343 | GE47: 75.95505618 | GF47: 72.96 | GG47: 83.63636364 | GH47: 72.93577982 | GI47: 69.47259566 | GJ47: 42.01634877 | GK47: 53.48314607 | GL47: 47.36 | GM47: 47.27272727 | GN47: 33.39449541 | GO47: 37.68355739 | GP47: 86.86648501 | GQ47: 85.73033708 | GR47: 82.4 | GS47: 92.72727273 | GT47: 89.63302752 | GU47: 87.15615305 | GV47: 32.97064838 | GW47: 28.05891941 | GX47: 26.57864346 | GY47: 14.80491309 | GZ47: 28.09304872 | HA47: 31.00052897 | HB47: 0.08900999092 | HC47: 0.1348314607 | HD47: 0.192 | HE47: 0 | HF47: 0.05504587156 | HG47: 0.07032057911 | HH47: 0.1349688475 | HI47: 0.1108662042 | HJ47: 0.1244854929 | HK47: 0.1506850936 | HL47: 0.1119701085 | HM47: 0.1448803714 | HN47: 40.76266087 | HO47: 45.56189325 | HP47: 46.63990818 | HQ47: 41.26591167 | HR47: 38.79240638 | HS47: 39.99669061 | HT47: 10.83502791 | HU47: 11.20063304 | HV47: 10.48587333 | HW47: 10.35046456 | HX47: 10.10810797 | HY47: 39.99669061 | HZ47: 51.59768878 | IA47: 56.76252629 | IB47: 57.12578151 | IC47: 51.61637623 | ID47: 48.90051435 | IE47: 50.42908009 | IF47: 2.587811006 | IG47: 0.75 | IH47: 49.67760649 | II47: 0 | IJ47: 77.06996102 | IK47: 1.486171206 | IL47: 0.75 | IM47: 58.68847957 | IN47: 0 | IO47: 74.03973486 | IP47: 1.467172326 | IQ47: 0.5 | IR47: 73.84728918 | IS47: 0 | IT47: 70.81449968
A48: 05055 | B48: 05055 | C48: ARGELIA | D48: 1 | E48: EJE CAFETERO Y ANTIOQUIA | F48: ANTIOQUIA | G48: Oriente | H48: 6 | I48: G5- Nivel Bajo | J48: 7426.058276 | K48: 10461.87814 | L48: 2537.243164 | M48: 10016.43164 | P48: 5700 | Q48: 3500 | R48: 402.590594 | S48: 1713.860681 | T48: -854.038175 | U48: 10461.87814 | V48: 665.517769 | W48: 605.933745 | X48: 8180.093262 | Y48: 10004.64623 | Z48: 80 | AA48: 78.88013151 | AB48: 29.01792418 | AC48: 32.77359491 | AD48: 100 | AE48: 0 | AF48: 80 | AG48: 100 | AH48: 80 | AI48: 62.12644379 | AJ48: 1.802563319 | AK48: 35.37090593 | AL48: 12.12017089 | AM48: 70.98207582 | AN48: 25.33080897 | AO48: 0 | AP48: 162.8571429 | AQ48: 23.4902754 | AR48: -8.163335142 | AS48: 109.8334223 | AT48: 81.76294367 | AU48: 1.119868487 | AV48: 0 | AW48: 0 | AX48: 44.21363241 | AY48: 60.60085444 | AZ48: 47.49107682 | BA48: 2. Riesgo (>=40 y <60) | BB48: 8299.339266 | BC48: 11023.05509 | BD48: 1689.743232 | BE48: 8999.975296 | BF48: N.D | BG48: 5407.4636 | BH48: 480.878044 | BI48: 4080.743179 | BJ48: 487.398887 | BK48: 1767.520709 | BL48: 742.958167 | BM48: 11023.05509 | BN48: 656.381131 | BO48: 671.399683 | BP48: 8999.975099 | BQ48: 8336.117651 | BR48: 80 | BS48: 66.22868603 | BT48: 24.70926436 | BU48: 20.09024027 | BV48: 0 | BW48: 88.21591992 | BX48: 27.5752858 | BY48: 80 | BZ48: 100 | CA48: 100 | CB48: 63.22976281 | CC48: 21.77979697 | CD48: 32.07876138 | CE48: 14.7853198 | CF48: 75.29073564 | CG48: 18.77497634 | CH48: N.D | CI48: 11.78408008 | CJ48: 27.5752858 | CK48: 6.740038592 | CL48: 97.76309814 | CM48: 107.9636286 | CN48: 13.77131397 | CO48: 0 | CP48: 0 | CQ48: 40.09845172 | CR48: 73.92659899 | CS48: 46.86408118 | CT48: 2. Riesgo (>=40 y <60) | CU48: 8305.173585 | CV48: 16260.21125 | CW48: 4426.638632 | CX48: 13991.10938 | CY48: 178.540761 | CZ48: 4581.524009 | DA48: 272.790642 | DB48: 11778.7155 | DC48: 760.8621972 | DD48: 2278.887136 | DE48: 760.6926968 | DF48: 16260.21125 | DG48: 1130.79975 | DH48: 692.865323 | DI48: 11762.32671 | DJ48: 13981.49362 | DK48: 80 | DL48: 75.30624223 | DM48: 48.92333527 | DN48: 40.23037225 | DO48: 100 | DP48: 97.68403743 | DQ48: 33.38744536 | DR48: 100 | DS48: 0 | DT48: 80 | DU48: 68.02831008 | DV48: 6.899712431 | DW48: 56.03002538 | DX48: 5.793314162 | DY48: 51.07666473 | DZ48: 31.6389395 | EA48: 3.896973161 | EB48: 2.315962569 | EC48: 33.38744536 | ED48: 4.678246088 | EE48: 163.2062844 | EF48: 84.12782661 | EG48: 4.693757767 | EH48: 0 | EI48: 0 | EJ48: 70.03753172 | EK48: 28.96657081 | EL48: 61.82333954 | EM48: 3. Vulnerable (>=60 y <70) | EN48: 217 | EO48: 57 | EP48: 41 | EQ48: 16 | ER48: 11 | ES48: 151 | ET48: 1101 | EU48: 178 | EV48: 125 | EW48: 23 | EX48: 218 | EY48: 20 | EZ48: 32.91133784 | FA48: 45.15494366 | FB48: 49.09189476 | FC48: 57.8245438 | FD48: 17.25120941 | FE48: 30.25881461 | FF48: 42.37982436 | FG48: 43.36907865 | FH48: 48.47201748 | FI48: 55.23779052 | FJ48: 35.72212868 | FK48: 42.86648234 | FL48: 57.98365123 | FM48: 69.21348315 | FN48: 69.44 | FO48: 90.43478261 | FP48: 46.51376147 | FQ48: 56.85625646 | FR48: 53.93537353 | FS48: 61.75989739 | FT48: 63.19829714 | FU48: 82.86392132 | FV48: 46.23533391 | FW48: 53.45239572 | FX48: 48.24141258 | FY48: 46.68707224 | FZ48: 47.25643939 | GA48: 52.06402448 | GB48: 44.64690338 | GC48: 47.16081261 | GD48: 70.35422343 | GE48: 75.95505618 | GF48: 72.96 | GG48: 77.39130435 | GH48: 73.76146789 | GI48: 69.47259566 | GJ48: 42.01634877 | GK48: 53.48314607 | GL48: 47.36 | GM48: 50.43478261 | GN48: 26.05504587 | GO48: 37.68355739 | GP48: 86.86648501 | GQ48: 85.73033708 | GR48: 82.4 | GS48: 85.2173913 | GT48: 89.17431193 | GU48: 87.15615305 | GV48: 32.97064838 | GW48: 28.05891941 | GX48: 26.57864346 | GY48: 37.78384207 | GZ48: 30.32578621 | HA48: 31.00052897 | HB48: 0.08900999092 | HC48: 0.1348314607 | HD48: 0.192 | HE48: 0 | HF48: 0.03669724771 | HG48: 0.07032057911 | HH48: 0.1349688475 | HI48: 0.1108662042 | HJ48: 0.1244854929 | HK48: 0.1143490631 | HL48: 0.2475463941 | HM48: 0.1448803714 | HN48: 40.76266087 | HO48: 45.56189325 | HP48: 46.63990818 | HQ48: 55.44218228 | HR48: 35.21744063 | HS48: 39.99669061 | HT48: 10.83502791 | HU48: 11.20063304 | HV48: 10.48587333 | HW48: 11.58527088 | HX48: 9.760524996 | HY48: 39.99669061 | HZ48: 51.59768878 | IA48: 56.76252629 | IB48: 57.12578151 | IC48: 67.02745315 | ID48: 44.97796563 | IE48: 50.42908009 | IF48: 3.142597337 | IG48: 0.5 | IH48: 23.4902754 | II48: 0 | IJ48: 70.98207582 | IK48: 3.082621294 | IL48: 0.5 | IM48: 27.5752858 | IN48: 0 | IO48: 75.29073564 | IP48: 2.632754314 | IQ48: 0.5 | IR48: 33.38744536 | IS48: 0 | IT48: 51.07666473
A49: 05059 | B49: 05059 | C49: ARMENIA | D49: 1 | E49: EJE CAFETERO Y ANTIOQUIA | F49: ANTIOQUIA | G49: Occidente | H49: 6 | I49: G3- Nivel Medio | J49: 5030.286583 | K49: 7094.62953 | L49: 1488.255127 | M49: 5721.768311 | P49: 1100 | Q49: 6000 | R49: 542.947134 | S49: 1608.103528 | T49: 307.7047494 | U49: 7094.62953 | V49: 682.529716 | W49: 773.565767 | X49: 5303.209637 | Y49: 5721.768387 | Z49: 80 | AA49: 70.64530483 | AB49: 29.09726207 | AC49: 33.65287257 | AD49: 0 | AE49: 81.66666667 | AF49: 100 | AG49: 80 | AH49: 100 | AI49: 62.12644379 | AJ49: 15.05750949 | AK49: 37.09066621 | AL49: 13.40383397 | AM49: 70.90273793 | AN49: 26.01040528 | AO49: - | AP49: 18.33333333 | AQ49: 33.76319525 | AR49: 4.337150349 | AS49: 88.23163396 | AT49: 92.68480089 | AU49: 9.354695172 | AV49: 2 | AW49: 0 | AX49: 46.36333276 | AY49: 67.01916983 | AZ49: 50.49450017 | BA49: 2. Riesgo (>=40 y <60) | BB49: 5054.720834 | BC49: 7367.19335 | BD49: 1036.170624 | BE49: 5646.330752 | BF49: 136.117758 | BG49: 5659.563097 | BH49: 252.4049439 | BI49: 3733.816901 | BJ49: 884.4606221 | BK49: 2057.040395 | BL49: 548.2827808 | BM49: 7367.19335 | BN49: 1058.251517 | BO49: 921.631958 | BP49: 5646.330796 | BQ49: 5460.30401 | BR49: 80 | BS49: 61.22652907 | BT49: 31.38878547 | BU49: 19.63679894 | BV49: 100 | BW49: 93.24002889 | BX49: 42.99675516 | BY49: 80 | BZ49: 80 | CA49: 100 | CB49: 63.22976281 | CC49: 29.69087672 | CD49: 48.96831579 | CE49: 14.43004715 | CF49: 68.61121453 | CG49: 18.35122081 | CH49: 2.405093037 | CI49: 6.759971112 | CJ49: 42.99675516 | CK49: 7.442220596 | CL49: 114.8236569 | CM49: 103.4068943 | CN49: 18.77347093 | CO49: 2 | CP49: 0.2532768434 | CQ49: 61.21039474 | CR49: 72.15023575 | CS49: 63.39836294 | CT49: 3. Vulnerable (>=60 y <70) | CU49: 5756.516409 | CV49: 9563.648534 | CW49: 1714.763629 | CX49: 6725.08955 | CY49: N.D. | CZ49: 4189.707088 | DA49: 413.5541786 | DB49: 4274.709414 | DC49: 811.5461423 | DD49: 2136.687768 | DE49: 1513.417358 | DF49: 9563.648534 | DG49: 831.8072236 | DH49: 933.2346 | DI49: 6277.932649 | DJ49: 6725.08955 | DK49: 80 | DL49: 75.13634477 | DM49: 39.80836509 | DN49: 32.42188975 | DO49: 0 | DP49: 90.32556044 | DQ49: 37.98150364 | DR49: 40 | DS49: 80 | DT49: 100 | DU49: 68.02831008 | DV49: 7.149457663 | DW49: 32.07164252 | DX49: 12.87663051 | DY49: 60.19163491 | DZ49: 25.49800439 | EA49: N.D | EB49: 9.67443956 | EC49: 37.98150364 | ED49: 15.82468608 | EE49: 89.13163139 | EF49: 93.35091529 | EG49: 4.863655228 | EH49: 2 | EI49: 0 | EJ49: 40.08955315 | EK49: 64.38315255 | EL49: 44.94827303 | EM49: 2. Riesgo (>=40 y <60) | EN49: 809 | EO49: 156 | EP49: 108 | EQ49: 14 | ER49: 170 | ES49: 686 | ET49: 1101 | EU49: 178 | EV49: 125 | EW49: 18 | EX49: 218 | EY49: 21 | EZ49: 32.91133784 | FA49: 45.15494366 | FB49: 49.09189476 | FC49: 44.22207127 | FD49: 31.4008209 | FE49: 30.25881461 | FF49: 42.37982436 | FG49: 43.36907865 | FH49: 48.47201748 | FI49: 56.74691413 | FJ49: 42.5280922 | FK49: 42.86648234 | FL49: 57.98365123 | FM49: 69.21348315 | FN49: 69.44 | FO49: 53.33333333 | FP49: 57.98165138 | FQ49: 56.85625646 | FR49: 53.93537353 | FS49: 61.75989739 | FT49: 63.19829714 | FU49: 64.60586577 | FV49: 56.50096502 | FW49: 53.45239572 | FX49: 48.24141258 | FY49: 46.68707224 | FZ49: 47.25643939 | GA49: 44.67806847 | GB49: 45.88563088 | GC49: 47.16081261 | GD49: 70.35422343 | GE49: 75.95505618 | GF49: 72.96 | GG49: 63.33333333 | GH49: 71.10091743 | GI49: 69.47259566 | GJ49: 42.01634877 | GK49: 53.48314607 | GL49: 47.36 | GM49: 25.55555556 | GN49: 41.9266055 | GO49: 37.68355739 | GP49: 86.86648501 | GQ49: 85.73033708 | GR49: 82.4 | GS49: 78.88888889 | GT49: 87.1559633 | GU49: 87.15615305 | GV49: 32.97064838 | GW49: 28.05891941 | GX49: 26.57864346 | GY49: 24.57545815 | GZ49: 29.67333351 | HA49: 31.00052897 | HB49: 0.08900999092 | HC49: 0.1348314607 | HD49: 0.192 | HE49: 0.2222222222 | HF49: 0.05504587156 | HG49: 0.07032057911 | HH49: 0.1349688475 | HI49: 0.1108662042 | HJ49: 0.1244854929 | HK49: 0.2531761204 | HL49: 0.118743477 | HM49: 0.1448803714 | HN49: 40.76266087 | HO49: 45.56189325 | HP49: 46.63990818 | HQ49: 43.58927817 | HR49: 40.6935018 | HS49: 39.99669061 | HT49: 10.83502791 | HU49: 11.20063304 | HV49: 10.48587333 | HW49: 8.696406508 | HX49: 10.61848469 | HY49: 39.99669061 | HZ49: 51.59768878 | IA49: 56.76252629 | IB49: 57.12578151 | IC49: 52.28568468 | ID49: 51.31198649 | IE49: 50.42908009 | IF49: 5.454397916 | IG49: 0.5 | IH49: 33.76319525 | II49: 0 | IJ49: 70.90273793 | IK49: 4.778428802 | IL49: 0.5 | IM49: 42.99675516 | IN49: 0.2532768434 | IO49: 68.61121453 | IP49: 4.674187743 | IQ49: 0.25 | IR49: 37.98150364 | IS49: 0 | IT49: 60.19163491
A50: 05079 | B50: 05079 | C50: BARBOSA | D50: 1 | E50: EJE CAFETERO Y ANTIOQUIA | F50: ANTIOQUIA | G50: Valle del aburra | H50: 4 | I50: G1- Nivel Alto | J50: 19119.66735 | K50: 53231.76785 | L50: 16070.51855 | M50: 44403.33691 | P50: 2900 | Q50: 29000 | R50: 15779.61944 | S50: 27152.71492 | T50: -2544.66574 | U50: 53231.76785 | V50: 25256.11656 | W50: 20540.817 | X50: 40338.32945 | Y50: 44403.3381 | Z50: 80 | AA50: 57.44580904 | AB50: 64.0822236 | AC50: 46.82624183 | AD50: 100 | AE50: 90 | AF50: 100 | AG50: 60 | AH50: 100 | AI50: 53.17891539 | AJ50: 42.41190478 | AK50: 61.20303992 | AL50: 13.49412699 | AM50: 35.9177764 | AN50: 36.19214156 | AO50: 0.07496813103 | AP50: 10 | AQ50: 58.11433398 | AR50: -4.78035174 | AS50: 122.9557547 | AT50: 90.8452634 | AU50: 22.55419096 | AV50: 0 | AW50: 0 | AX50: 76.5037999 | AY50: 67.47063493 | AZ50: 74.69716691 | BA50: 4. Solvente (>=70 y <80) | BB50: 22478.17997 | BC50: 53826.90714 | BD50: 24338.90714 | BE50: 52892.13542 | BF50: 12227.4297 | BG50: 35393.70124 | BH50: 1622.22615 | BI50: N.D | BJ50: 13772.23561 | BK50: 26249.09106 | BL50: -11486.81286 | BM50: 53826.90714 | BN50: 22520.28526 | BO50: 22587.136 | BP50: 52836.86454 | BQ50: 35933.36929 | BR50: 80 | BS50: 61.68115862 | BT50: 58.23988195 | BU50: 49.23973477 | BV50: 80 | BW50: 0 | BX50: 52.4674762 | BY50: 20 | BZ50: 100 | CA50: 20 | CB50: 52.92190371 | CC50: 34.61485717 | CD50: 34.65961239 | CE50: 10.30765714 | CF50: 41.76011805 | CG50: 46.01611741 | CH50: 34.54690884 | CI50: N.D | CJ50: 52.4674762 | CK50: -21.3402803 | CL50: 99.70403181 | CM50: 147.0412199 | CN50: 18.31884138 | CO50: 0 | CP50: 0 | CQ50: 43.32451549 | CR50: 51.53828572 | CS50: 44.96726953 | CT50: 2. Riesgo (>=40 y <60) | CU50: 21077.74142 | CV50: 58697.47927 | CW50: 17989.35909 | CX50: 49221.44256 | CY50: 14091.67413 | CZ50: 33270.58792 | DA50: 1912.987037 | DB50: 29960.64823 | DC50: 11588.84164 | DD50: 29247.34976 | DE50: -8182.471411 | DF50: 58697.47927 | DG50: 25378.02433 | DH50: 24132.01823 | DI50: 37621.60737 | DJ50: 49221.44256 | DK50: 80 | DL50: 70.39665327 | DM50: 64.09089167 | DN50: 46.47222715 | DO50: 60 | DP50: 93.61500118 | DQ50: 39.62356158 | DR50: 60 | DS50: 100 | DT50: 60 | DU50: 44.74935664 | DV50: 21.46030122 | DW50: 48.50689088 | DX50: 12.09735341 | DY50: 35.90910833 | DZ50: 36.54780956 | EA50: 42.35474938 | EB50: 6.384998824 | EC50: 39.62356158 | ED50: -13.94007292 | EE50: 105.1632901 | EF50: 76.43337012 | EG50: 9.603346728 | EH50: 0 | EI50: 0 | EJ50: 60.6336136 | EK50: 60.48676707 | EL50: 60.60424429 | EM50: 3. Vulnerable (>=60 y <70) | EN50: 262 | EO50: 71 | EP50: 53 | EQ50: 10 | ER50: 104 | ES50: 12 | ET50: 1101 | EU50: 178 | EV50: 125 | EW50: 10 | EX50: 217 | EY50: 22 | EZ50: 32.91133784 | FA50: 45.15494366 | FB50: 49.09189476 | FC50: 72.925618 | FD50: 51.19972592 | FE50: 43.55498256 | FF50: 42.37982436 | FG50: 43.36907865 | FH50: 48.47201748 | FI50: 39.13467353 | FJ50: 47.23529361 | FK50: 37.6989562 | FL50: 57.98365123 | FM50: 69.21348315 | FN50: 69.44 | FO50: 74 | FP50: 64.88479263 | FQ50: 56 | FR50: 53.93537353 | FS50: 61.75989739 | FT50: 63.19829714 | FU50: 62.05411453 | FV50: 60.4783994 | FW50: 56.8725643 | FX50: 48.24141258 | FY50: 46.68707224 | FZ50: 47.25643939 | GA50: 59.38168566 | GB50: 54.86117289 | GC50: 53.01829564 | GD50: 70.35422343 | GE50: 75.95505618 | GF50: 72.96 | GG50: 88 | GH50: 67.37327189 | GI50: 80.8 | GJ50: 42.01634877 | GK50: 53.48314607 | GL50: 47.36 | GM50: 86 | GN50: 57.51152074 | GO50: 62.4 | GP50: 86.86648501 | GQ50: 85.73033708 | GR50: 82.4 | GS50: 80 | GT50: 83.77880184 | GU50: 88.8 | GV50: 32.97064838 | GW50: 28.05891941 | GX50: 26.57864346 | GY50: 47.10506971 | GZ50: 41.80027715 | HA50: 46.39455803 | HB50: 0.08900999092 | HC50: 0.1348314607 | HD50: 0.192 | HE50: 0.4 | HF50: 0.1290322581 | HG50: 0.16 | HH50: 0.1349688475 | HI50: 0.1108662042 | HJ50: 0.1244854929 | HK50: 0.03402654203 | HL50: 0.07874045284 | HM50: 0.08129239643 | HN50: 40.76266087 | HO50: 45.56189325 | HP50: 46.63990818 | HQ50: 52.73281223 | HR50: 46.13768751 | HS50: 43.72597316 | HT50: 10.83502791 | HU50: 11.20063304 | HV50: 10.48587333 | HW50: 14.29380996 | HX50: 12.24759452 | HY50: 43.72597316 | HZ50: 51.59768878 | IA50: 56.76252629 | IB50: 57.12578151 | IC50: 67.02662219 | ID50: 58.38528204 | IE50: 56.94720218 | IF50: 5.114402554 | IG50: 0.5 | IH50: 58.11433398 | II50: 0 | IJ50: 35.9177764 | IK50: 5.984376748 | IL50: 0.5 | IM50: 52.4674762 | IN50: 0 | IO50: 41.76011805 | IP50: 5.81173231 | IQ50: 0.5 | IR50: 39.62356158 | IS50: 0 | IT50: 35.90910833
A51: 05086 | B51: 05086 | C51: BELMIRA | D51: 1 | E51: EJE CAFETERO Y ANTIOQUIA | F51: ANTIOQUIA | G51: Norte | H51: 6 | I51: G3- Nivel Medio | J51: 4281.897138 | K51: 8831.09767 | L51: 1861.961182 | M51: 6545.08374 | P51: 3500 | Q51: 4100 | R51: 1038.879306 | S51: 2521.235894 | T51: 803.657176 | U51: 8831.09767 | V51: 1399.705921 | W51: 1163.169284 | X51: 5780.757577 | Y51: 6545.083906 | Z51: 80 | AA51: 56.95392505 | AB51: 51.51342112 | AC51: 36.80700133 | AD51: 100 | AE51: 14.63414634 | AF51: 80 | AG51: 60 | AH51: 80 | AI51: 62.12644379 | AJ51: 37.0954356 | AK51: 43.22129729 | AL51: 12.20636237 | AM51: 48.48657888 | AN51: 28.44824078 | AO51: 0.07188901207 | AP51: 85.36585366 | AQ51: 41.20516087 | AR51: 9.100308999 | AS51: 120.3355299 | AT51: 88.32213093 | AU51: 23.04607495 | AV51: 2 | AW51: 0 | AX51: 54.02662161 | AY51: 61.03181187 | AZ51: 55.42765966 | BA51: 2. Riesgo (>=40 y <60) | BB51: 4973.990389 | BC51: 9970.790012 | BD51: 1197.869568 | BE51: 6558.685696 | BF51: 904.538689 | BG51: 4934.743836 | BH51: 4240.743231 | BI51: 14569.498 | BJ51: 717.625291 | BK51: 2480.502503 | BL51: 1649.227088 | BM51: 9970.790012 | BN51: 1412.557832 | BO51: 1268.85 | BP51: 6558.685712 | BQ51: 6014.506998 | BR51: 80 | BS51: 73.49686212 | BT51: 50.11438027 | BU51: 19.54332458 | BV51: 100 | BW51: 70.89300378 | BX51: 28.93064168 | BY51: 40 | BZ51: 80 | CA51: 100 | CB51: 63.22976281 | CC51: 10.28493164 | CD51: 41.26418004 | CE51: 13.08566211 | CF51: 49.88561973 | CG51: 18.26386602 | CH51: 18.33000292 | CI51: 29.10699622 | CJ51: 28.93064168 | CK51: 16.54058591 | CL51: 111.325833 | CM51: 109.0477692 | CN51: 6.503137882 | CO51: 2 | CP51: 0 | CQ51: 51.58022505 | CR51: 65.42831055 | CS51: 54.34984215 | CT51: 2. Riesgo (>=40 y <60) | CU51: 6281.170036 | CV51: 16937.82108 | CW51: 10247.97283 | CX51: 18410.02778 | CY51: 1616.722366 | CZ51: 6103.925639 | DA51: 8705.108998 | DB51: 15621.96991 | DC51: 1571.147946 | DD51: 3582.212001 | DE51: -3483.270759 | DF51: 16937.82108 | DG51: 2258.743306 | DH51: 1451.15 | DI51: 13816.74349 | DJ51: 18410.02778 | DK51: 80 | DL51: 63.66458606 | DM51: 62.91630424 | DN51: 70.78083056 | DO51: 80 | DP51: 44.27649619 | DQ51: 43.8597142 | DR51: 20 | DS51: 0 | DT51: 60 | DU51: 68.02831008 | DV51: 24.01267049 | DW51: 42.91111269 | DX51: 5.600844699 | DY51: 37.08369576 | DZ51: 55.66516765 | EA51: 26.48659996 | EB51: 55.72350381 | EC51: 43.8597142 | ED51: -20.56504637 | EE51: 155.6519523 | EF51: 75.05009582 | EG51: 16.33541394 | EH51: 0 | EI51: 0 | EJ51: 53.63889086 | EK51: 28.0042235 | EL51: 48.51195739 | EM51: 2. Riesgo (>=40 y <60) | EN51: 701 | EO51: 142 | EP51: 99 | EQ51: 14 | ER51: 141 | ES51: 589 | ET51: 1101 | EU51: 178 | EV51: 125 | EW51: 17 | EX51: 218 | EY51: 23 | EZ51: 32.91133784 | FA51: 45.15494366 | FB51: 49.09189476 | FC51: 53.90871548 | FD51: 31.4008209 | FE51: 30.25881461 | FF51: 42.37982436 | FG51: 43.36907865 | FH51: 48.47201748 | FI51: 52.88869096 | FJ51: 42.5280922 | FK51: 42.86648234 | FL51: 57.98365123 | FM51: 69.21348315 | FN51: 69.44 | FO51: 63.52941176 | FP51: 57.98165138 | FQ51: 56.85625646 | FR51: 53.93537353 | FS51: 61.75989739 | FT51: 63.19829714 | FU51: 50.08771895 | FV51: 56.50096502 | FW51: 53.45239572 | FX51: 48.24141258 | FY51: 46.68707224 | FZ51: 47.25643939 | GA51: 41.34179755 | GB51: 45.88563088 | GC51: 47.16081261 | GD51: 70.35422343 | GE51: 75.95505618 | GF51: 72.96 | GG51: 68.23529412 | GH51: 71.10091743 | GI51: 69.47259566 | GJ51: 42.01634877 | GK51: 53.48314607 | GL51: 47.36 | GM51: 50.58823529 | GN51: 41.9266055 | GO51: 37.68355739 | GP51: 86.86648501 | GQ51: 85.73033708 | GR51: 82.4 | GS51: 82.35294118 | GT51: 87.1559633 | GU51: 87.15615305 | GV51: 32.97064838 | GW51: 28.05891941 | GX51: 26.57864346 | GY51: 22.41381718 | GZ51: 29.67333351 | HA51: 31.00052897 | HB51: 0.08900999092 | HC51: 0.1348314607 | HD51: 0.192 | HE51: 0.2352941176 | HF51: 0.05504587156 | HG51: 0.07032057911 | HH51: 0.1349688475 | HI51: 0.1108662042 | HJ51: 0.1244854929 | HK51: 0.07518019867 | HL51: 0.118743477 | HM51: 0.1448803714 | HN51: 40.76266087 | HO51: 45.56189325 | HP51: 46.63990818 | HQ51: 43.73426075 | HR51: 40.6935018 | HS51: 39.99669061 | HT51: 10.83502791 | HU51: 11.20063304 | HV51: 10.48587333 | HW51: 10.41909444 | HX51: 10.61848469 | HY51: 39.99669061 | HZ51: 51.59768878 | IA51: 56.76252629 | IB51: 57.12578151 | IC51: 54.15335519 | ID51: 51.31198649 | IE51: 50.42908009 | IF51: 3.565371935 | IG51: 0.5 | IH51: 41.20516087 | II51: 0 | IJ51: 48.48657888 | IK51: 4.482213949 | IL51: 0.5 | IM51: 28.93064168 | IN51: 0 | IO51: 49.88561973 | IP51: 4.967355049 | IQ51: 0.5 | IR51: 43.8597142 | IS51: 0 | IT51: 37.08369576
A52: 05088 | B52: 05088 | C52: BELLO | D52: 1 | E52: EJE CAFETERO Y ANTIOQUIA | F52: ANTIOQUIA | G52: Valle del aburra | H52: 1 | I52: G1- Nivel Alto | J52: 230578.7032 | K52: 427275.909 | L52: 45622.58203 | M52: 320965.5195 | P52: 200000 | Q52: 320000 | R52: 86996.18967 | S52: 162714.3876 | T52: 30592.17423 | U52: 427275.909 | V52: 137468.71 | W52: 136011.0102 | X52: 287829.2765 | Y52: 320965.5369 | Z52: 65 | AA52: 49.48713224 | AB52: 46.03517346 | AC52: 18.39062558 | AD52: 0 | AE52: 37.5 | AF52: 80 | AG52: 100 | AH52: 80 | AI52: 44.99398789 | AJ52: 34.47764575 | AK52: 31.38551709 | AL52: 14.29850972 | AM52: 53.96482654 | AN52: 14.2141692 | AO52: 85.06115156 | AP52: 62.5 | AQ52: 53.46557914 | AR52: 7.159817248 | AS52: 101.0717513 | AT52: 89.67606905 | AU52: 15.51286776 | AV52: 0 | AW52: 0 | AX52: 39.23189636 | AY52: 71.49254858 | AZ52: 45.68402681 | BA52: 2. Riesgo (>=40 y <60) | BB52: 226520.1043 | BC52: 424582.4529 | BD52: 30579.2471 | BE52: 320771.1805 | BF52: 76149.42554 | BG52: 223899.0886 | BH52: 75381.83887 | BI52: 302481.2058 | BJ52: 92272.7115 | BK52: 169888.1701 | BL52: 26195.81004 | BM52: 424582.4529 | BN52: 144971.2787 | BO52: 163649.1359 | BP52: 320771.1842 | BQ52: 288927.2044 | BR52: 65 | BS52: 49.3622269 | BT52: 46.64873625 | BU52: 10.20086919 | BV52: 80 | BW52: 75.0788355 | BX52: 54.31379444 | BY52: 80 | BZ52: 80 | CA52: 80 | CB52: 42.93785473 | CC52: 36.41954914 | CD52: 46.16563138 | CE52: 13.10245302 | CF52: 53.35126375 | CG52: 9.533040672 | CH52: 34.01060094 | CI52: 24.9211645 | CJ52: 54.31379444 | CK52: 6.169781596 | CL52: 88.5866448 | CM52: 111.0214543 | CN52: 15.6377731 | CO52: 0 | CP52: 0.0390820487 | CQ52: 57.70703923 | CR52: 65.5122651 | CS52: 59.2680844 | CT52: 2. Riesgo (>=40 y <60) | CU52: 260976.6086 | CV52: 486670.2869 | CW52: 46277.44916 | CX52: 368921.2748 | CY52: 52844.40888 | CZ52: 222334.7594 | DA52: 92783.39354 | DB52: 294701.6911 | DC52: 113115.9838 | DD52: 196137.8944 | DE52: 34727.10147 | DF52: 486670.2869 | DG52: 181177.8021 | DH52: 170022.6613 | DI52: 325236.4309 | DJ52: 368921.2748 | DK52: 65 | DL52: 49.30885461 | DM52: 46.37506838 | DN52: 15.95026287 | DO52: 80 | DP52: 68.51616522 | DQ52: 57.67166212 | DR52: 80 | DS52: 100 | DT52: 80 | DU52: 42.2074509 | DV52: 37.17624507 | DW52: 46.46842114 | DX52: 14.49068696 | DY52: 53.62493162 | DZ52: 12.54399036 | EA52: 23.7679475 | EB52: 31.48383478 | EC52: 57.67166212 | ED52: 7.135652702 | EE52: 106.5609729 | EF52: 88.15876262 | EG52: 15.69114539 | EH52: 0 | EI52: 0.06135312048 | EJ52: 58.08552643 | EK52: 72.45343481 | EL52: 60.95910811 | EM52: 3. Vulnerable (>=60 y <70) | EN52: 250 | EO52: 66 | EP52: 48 | EQ52: 9 | ER52: 102 | ES52: 13 | ET52: 1101 | EU52: 178 | EV52: 125 | EW52: 10 | EX52: 217 | EY52: 24 | EZ52: 32.91133784 | FA52: 45.15494366 | FB52: 49.09189476 | FC52: 72.925618 | FD52: 51.19972592 | FE52: 51.35008148 | FF52: 42.37982436 | FG52: 43.36907865 | FH52: 48.47201748 | FI52: 39.13467353 | FJ52: 47.23529361 | FK52: 33.51844121 | FL52: 57.98365123 | FM52: 69.21348315 | FN52: 69.44 | FO52: 74 | FP52: 64.88479263 | FQ52: 65.92592593 | FR52: 53.93537353 | FS52: 61.75989739 | FT52: 63.19829714 | FU52: 62.05411453 | FV52: 60.4783994 | FW52: 52.04308233 | FX52: 48.24141258 | FY52: 46.68707224 | FZ52: 47.25643939 | GA52: 59.38168566 | GB52: 54.86117289 | GC52: 58.1483774 | GD52: 70.35422343 | GE52: 75.95505618 | GF52: 72.96 | GG52: 88 | GH52: 67.37327189 | GI52: 74.81481481 | GJ52: 42.01634877 | GK52: 53.48314607 | GL52: 47.36 | GM52: 86 | GN52: 57.51152074 | GO52: 82.22222222 | GP52: 86.86648501 | GQ52: 85.73033708 | GR52: 82.4 | GS52: 80 | GT52: 83.77880184 | GU52: 81.48148148 | GV52: 32.97064838 | GW52: 28.05891941 | GX52: 26.57864346 | GY52: 47.10506971 | GZ52: 41.80027715 | HA52: 45.44909704 | HB52: 0.08900999092 | HC52: 0.1348314607 | HD52: 0.192 | HE52: 0.4 | HF52: 0.1290322581 | HG52: 0.07407407407 | HH52: 0.1349688475 | HI52: 0.1108662042 | HJ52: 0.1244854929 | HK52: 0.03402654203 | HL52: 0.07874045284 | HM52: 0.05265667145 | HN52: 40.76266087 | HO52: 45.56189325 | HP52: 46.63990818 | HQ52: 52.73281223 | HR52: 46.13768751 | HS52: 44.77342975 | HT52: 10.83502791 | HU52: 11.20063304 | HV52: 10.48587333 | HW52: 14.29380996 | HX52: 12.24759452 | HY52: 44.77342975 | HZ52: 51.59768878 | IA52: 56.76252629 | IB52: 57.12578151 | IC52: 67.02662219 | ID52: 58.38528204 | IE52: 58.74229595 | IF52: 6.033605855 | IG52: 0.5 | IH52: 53.46557914 | II52: 0 | IJ52: 53.96482654 | IK52: 6.472766824 | IL52: 0.5 | IM52: 54.31379444 | IN52: 0.0390820487 | IO52: 53.35126375 | IP52: 6.589781969 | IQ52: 0.5 | IR52: 57.67166212 | IS52: 0.06135312048 | IT52: 53.62493162
A53: 05091 | B53: 05091 | C53: BETANIA | D53: 1 | E53: EJE CAFETERO Y ANTIOQUIA | F53: ANTIOQUIA | G53: Suroeste | H53: 6 | I53: G3- Nivel Medio | J53: 7501.732675 | K53: 10889.52096 | L53: 790.8390503 | M53: 7815.194031 | P53: 670 | Q53: 4900 | R53: 271.973988 | S53: 2684.109114 | T53: 662.192079 | U53: 10889.52096 | V53: 1590.782085 | W53: 1437.997534 | X53: 7417.449189 | Y53: 7815.193759 | Z53: 80 | AA53: 69.3717949 | AB53: 31.11053553 | AC53: 13.09252352 | AD53: 40 | AE53: 86.32653061 | AF53: 80 | AG53: 80 | AH53: 100 | AI53: 62.12644379 | AJ53: 17.10737724 | AK53: 34.75497823 | AL53: 13.14049182 | AM53: 68.88946447 | AN53: 10.11925036 | AO53: 64.47968408 | AP53: 13.67346939 | AQ53: 10.13274708 | AR53: 6.081002839 | AS53: 110.6248131 | AT53: 94.91062433 | AU53: 10.6282051 | AV53: 0 | AW53: 0 | AX53: 43.44372279 | AY53: 65.70245908 | AZ53: 47.89547005 | BA53: 2. Riesgo (>=40 y <60) | BB53: 6948.044143 | BC53: 11595.37875 | BD53: 3467.544576 | BE53: 11037.50195 | BF53: 1852.899734 | BG53: 6156.459347 | BH53: 987.690386 | BI53: 5147.429594 | BJ53: 462.193172 | BK53: 2918.452677 | BL53: -1287.906181 | BM53: 11595.37875 | BN53: 1867.425866 | BO53: 2146.762087 | BP53: 10427.02542 | BQ53: 8704.298513 | BR53: 80 | BS53: 71.70342181 | BT53: 40.07919626 | BU53: 33.6168481 | BV53: 80 | BW53: 80.811969 | BX53: 15.83692536 | BY53: 60 | BZ53: 80 | CA53: 80 | CB53: 63.22976281 | CC53: 13.1213179 | CD53: 41.37932516 | CE53: 11.54142119 | CF53: 59.92080374 | CG53: 31.41602684 | CH53: 30.09684024 | CI53: 19.188031 | CJ53: 15.83692536 | CK53: -11.10706437 | CL53: 86.98802151 | CM53: 119.79168 | CN53: 8.296578187 | CO53: 0 | CP53: 0 | CQ53: 51.72415645 | CR53: 57.70710597 | CS53: 52.92074636 | CT53: 2. Riesgo (>=40 y <60) | CU53: 8082.086071 | CV53: 14945.03839 | CW53: 6836.524556 | CX53: 15209.80787 | CY53: 2164.224519 | CZ53: 4621.558302 | DA53: 1197.134743 | DB53: 5589.987542 | DC53: 540.4463853 | DD53: 3112.166658 | DE53: -1497.784511 | DF53: 14945.03839 | DG53: 1994.836849 | DH53: 2146.762087 | DI53: 11515.19988 | DJ53: 13871.10263 | DK53: 80 | DL53: 75.79796335 | DM53: 45.92127595 | DN53: 57.15362527 | DO53: 60 | DP53: 78.58430392 | DQ53: 17.36559911 | DR53: 60 | DS53: 100 | DT53: 80 | DU53: 68.02831008 | DV53: 6.176894063 | DW53: 42.53664057 | DX53: 12.42798186 | DY53: 54.07872405 | DZ53: 44.94813224 | EA53: 46.82889142 | EB53: 21.41569608 | EC53: 17.36559911 | ED53: -10.02195158 | EE53: 92.92305192 | EF53: 83.01574997 | EG53: 4.202036646 | EH53: 0 | EI53: 0.08094460462 | EJ53: 53.17080071 | EK53: 62.13990929 | EL53: 54.96462242 | EM53: 2. Riesgo (>=40 y <60) | EN53: 449 | EO53: 115 | EP53: 83 | EQ53: 15 | ER53: 79 | ES53: 357 | ET53: 1101 | EU53: 178 | EV53: 125 | EW53: 24 | EX53: 218 | EY53: 25 | EZ53: 32.91133784 | FA53: 45.15494366 | FB53: 49.09189476 | FC53: 44.96708715 | FD53: 31.4008209 | FE53: 30.25881461 | FF53: 42.37982436 | FG53: 43.36907865 | FH53: 48.47201748 | FI53: 45.39738038 | FJ53: 42.5280922 | FK53: 42.86648234 | FL53: 57.98365123 | FM53: 69.21348315 | FN53: 69.44 | FO53: 81.66666667 | FP53: 57.98165138 | FQ53: 56.85625646 | FR53: 53.93537353 | FS53: 61.75989739 | FT53: 63.19829714 | FU53: 57.47827476 | FV53: 56.50096502 | FW53: 53.45239572 | FX53: 48.24141258 | FY53: 46.68707224 | FZ53: 47.25643939 | GA53: 40.43999897 | GB53: 45.88563088 | GC53: 47.16081261 | GD53: 70.35422343 | GE53: 75.95505618 | GF53: 72.96 | GG53: 67.5 | GH53: 71.10091743 | GI53: 69.47259566 | GJ53: 42.01634877 | GK53: 53.48314607 | GL53: 47.36 | GM53: 49.16666667 | GN53: 41.9266055 | GO53: 37.68355739 | GP53: 86.86648501 | GQ53: 85.73033708 | GR53: 82.4 | GS53: 81.66666667 | GT53: 87.1559633 | GU53: 87.15615305 | GV53: 32.97064838 | GW53: 28.05891941 | GX53: 26.57864346 | GY53: 18.96228296 | GZ53: 29.67333351 | HA53: 31.00052897 | HB53: 0.08900999092 | HC53: 0.1348314607 | HD53: 0.192 | HE53: 0.08333333333 | HF53: 0.05504587156 | HG53: 0.07032057911 | HH53: 0.1349688475 | HI53: 0.1108662042 | HJ53: 0.1244854929 | HK53: 0.0938160867 | HL53: 0.118743477 | HM53: 0.1448803714 | HN53: 40.76266087 | HO53: 45.56189325 | HP53: 46.63990818 | HQ53: 44.99589938 | HR53: 40.6935018 | HS53: 39.99669061 | HT53: 10.83502791 | HU53: 11.20063304 | HV53: 10.48587333 | HW53: 10.0218043 | HX53: 10.61848469 | HY53: 39.99669061 | HZ53: 51.59768878 | IA53: 56.76252629 | IB53: 57.12578151 | IC53: 55.01770369 | ID53: 51.31198649 | IE53: 50.42908009 | IF53: 4.562041597 | IG53: 0.5 | IH53: 10.13274708 | II53: 0 | IJ53: 68.88946447 | IK53: 3.929741352 | IL53: 0.5 | IM53: 15.83692536 | IN53: 0 | IO53: 59.92080374 | IP53: 3.836317244 | IQ53: 0.5 | IR53: 17.36559911 | IS53: 0.08094460462 | IT53: 54.07872405
A54: 05093 | B54: 05093 | C54: BETULIA | D54: 1 | E54: EJE CAFETERO Y ANTIOQUIA | F54: ANTIOQUIA | G54: Suroeste | H54: 6 | I54: G4- Nivel Medio Bajo | J54: 13355.2534 | K54: 19589.69938 | L54: 3087.58252 | M54: 16189.98682 | P54: 1200 | Q54: 12000 | R54: 535.694932 | S54: 3307.99195 | T54: 627.4157072 | U54: 19589.69938 | V54: 2038.279982 | W54: 1836.804942 | X54: 14926.1111 | Y54: 16189.98666 | Z54: 80 | AA54: 77.7464607 | AB54: 31.82512329 | AC54: 24.67442837 | AD54: 100 | AE54: 90 | AF54: 100 | AG54: 80 | AH54: 100 | AI54: 62.12644379 | AJ54: 3.627343151 | AK54: 48.35913504 | AL54: 12.24182288 | AM54: 68.17487671 | AN54: 19.07093906 | AO54: 6.692827467 | AP54: 10 | AQ54: 16.19396117 | AR54: 3.202783744 | AS54: 110.9687771 | AT54: 92.19347379 | AU54: 2.253539304 | AV54: 0 | AW54: 0 | AX54: 60.4489188 | AY54: 61.20911438 | AZ54: 60.60095792 | BA54: 3. Vulnerable (>=60 y <70) | BB54: 12960.39953 | BC54: 20572.74734 | BD54: 8412.616192 | BE54: 21979.52358 | BF54: 692.653734 | BG54: 6846.313924 | BH54: 2116.204785 | BI54: 14039.77829 | BJ54: 964.9158642 | BK54: 3533.451254 | BL54: -3975.31168 | BM54: 20572.74734 | BN54: 2014.833751 | BO54: 1529.448483 | BP54: 21979.52363 | BQ54: 16815.27062 | BR54: 80 | BS54: 71.61172721 | BT54: 37.00209646 | BU54: 40.95609422 | BV54: 100 | BW54: 84.92707832 | BX54: 27.30802818 | BY54: 40 | BZ54: 40 | CA54: 40 | CB54: 63.22976281 | CC54: 13.266336 | CD54: 44.02577296 | CE54: 6.217755733 | CF54: 62.99790354 | CG54: 38.27478862 | CH54: 10.11717753 | CI54: 15.07292168 | CJ54: 27.30802818 | CK54: -19.32319303 | CL54: 131.7359671 | CM54: 130.7116854 | CN54: 8.388272788 | CO54: 0 | CP54: 0 | CQ54: 55.0322162 | CR54: 31.08877867 | CS54: 50.24352869 | CT54: 2. Riesgo (>=40 y <60) | CU54: 15345.59461 | CV54: 22824.65472 | CW54: 5333.066781 | CX54: 20720.33812 | CY54: 1304.301778 | CZ54: 8044.983765 | DA54: 2259.927338 | DB54: 26466.7654 | DC54: 1335.050294 | DD54: 4042.522769 | DE54: 79.562599 | DF54: 22824.65472 | DG54: 2532.076456 | DH54: 1466.743157 | DI54: 19385.99742 | DJ54: 20037.61965 | DK54: 80 | DL54: 69.7832407 | DM54: 32.76746223 | DN54: 32.72746122 | DO54: 100 | DP54: 91.46126357 | DQ54: 33.02517686 | DR54: 100 | DS54: 0 | DT54: 100 | DU54: 68.02831008 | DV54: 15.0183935 | DW54: 51.99751518 | DX54: 7.6678929 | DY54: 67.23253777 | DZ54: 25.73831928 | EA54: 16.2126092 | EB54: 8.538736428 | EC54: 33.02517686 | ED54: 0.3485818295 | EE54: 172.6325733 | EF54: 96.7480058 | EG54: 10.2167593 | EH54: 0 | EI54: 0 | EJ54: 64.99689398 | EK54: 38.3394645 | EL54: 59.66540808 | EM54: 2. Riesgo (>=40 y <60) | EN54: 290 | EO54: 78 | EP54: 58 | EQ54: 8 | ER54: 32 | ES54: 215 | ET54: 1101 | EU54: 178 | EV54: 125 | EW54: 24 | EX54: 218 | EY54: 26 | EZ54: 32.91133784 | FA54: 45.15494366 | FB54: 49.09189476 | FC54: 44.96708715 | FD54: 25.11960132 | FE54: 30.25881461 | FF54: 42.37982436 | FG54: 43.36907865 | FH54: 48.47201748 | FI54: 45.39738038 | FJ54: 38.40556192 | FK54: 42.86648234 | FL54: 57.98365123 | FM54: 69.21348315 | FN54: 69.44 | FO54: 81.66666667 | FP54: 59.08256881 | FQ54: 56.85625646 | FR54: 53.93537353 | FS54: 61.75989739 | FT54: 63.19829714 | FU54: 57.47827476 | FV54: 50.35899729 | FW54: 53.45239572 | FX54: 48.24141258 | FY54: 46.68707224 | FZ54: 47.25643939 | GA54: 40.43999897 | GB54: 45.1751324 | GC54: 47.16081261 | GD54: 70.35422343 | GE54: 75.95505618 | GF54: 72.96 | GG54: 67.5 | GH54: 72.93577982 | GI54: 69.47259566 | GJ54: 42.01634877 | GK54: 53.48314607 | GL54: 47.36 | GM54: 49.16666667 | GN54: 33.39449541 | GO54: 37.68355739 | GP54: 86.86648501 | GQ54: 85.73033708 | GR54: 82.4 | GS54: 81.66666667 | GT54: 89.63302752 | GU54: 87.15615305 | GV54: 32.97064838 | GW54: 28.05891941 | GX54: 26.57864346 | GY54: 18.96228296 | GZ54: 28.09304872 | HA54: 31.00052897 | HB54: 0.08900999092 | HC54: 0.1348314607 | HD54: 0.192 | HE54: 0.08333333333 | HF54: 0.05504587156 | HG54: 0.07032057911 | HH54: 0.1349688475 | HI54: 0.1108662042 | HJ54: 0.1244854929 | HK54: 0.0938160867 | HL54: 0.1119701085 | HM54: 0.1448803714 | HN54: 40.76266087 | HO54: 45.56189325 | HP54: 46.63990818 | HQ54: 44.99589938 | HR54: 38.79240638 | HS54: 39.99669061 | HT54: 10.83502791 | HU54: 11.20063304 | HV54: 10.48587333 | HW54: 10.0218043 | HX54: 10.10810797 | HY54: 39.99669061 | HZ54: 51.59768878 | IA54: 56.76252629 | IB54: 57.12578151 | IC54: 55.01770369 | ID54: 48.90051435 | IE54: 50.42908009 | IF54: 4.228828061 | IG54: 0.5 | IH54: 16.19396117 | II54: 0 | IJ54: 68.17487671 | IK54: 4.26899955 | IL54: 0.5 | IM54: 27.30802818 | IN54: 0 | IO54: 62.99790354 | IP54: 4.14824836 | IQ54: 0.5 | IR54: 33.02517686 | IS54: 0 | IT54: 67.23253777
A55: 05101 | B55: 05101 | C55: CIUDAD BOLÍVAR | D55: 1 | E55: EJE CAFETERO Y ANTIOQUIA | F55: ANTIOQUIA | G55: Suroeste | H55: 6 | I55: G2- Nivel Medio Alto | J55: 16701.28213 | K55: 27869.22373 | L55: 6373.562988 | M55: 26091.84229 | P55: 3500 | Q55: 12000 | R55: 4366.122358 | S55: 7811.724739 | T55: -1668.220974 | U55: 27869.22373 | V55: 6837.922845 | W55: 6066.352501 | X55: 24142.00662 | Y55: 26091.84232 | Z55: 80 | AA55: 69.02954236 | AB55: 40.07266834 | AC55: 31.60476455 | AD55: 60 | AE55: 70.83333333 | AF55: 80 | AG55: 80 | AH55: 100 | AI55: 62.12644379 | AJ55: 17.65827395 | AK55: 45.12035717 | AL55: 13.57721826 | AM55: 59.92733166 | AN55: 24.4274165 | AO55: 49.44735514 | AP55: 29.16666667 | AQ55: 55.89191252 | AR55: -5.985889632 | AS55: 112.7188511 | AT55: 92.52702941 | AU55: 10.97045764 | AV55: 2 | AW55: 0 | AX55: 56.40044646 | AY55: 67.88609132 | AZ55: 58.69757543 | BA55: 2. Riesgo (>=40 y <60) | BB55: 16247.34489 | BC55: 31050.74702 | BD55: 5950.262784 | BE55: 26258.85542 | BF55: 3607.117396 | BG55: 18077.54016 | BH55: 30206.93406 | BI55: 36003.25598 | BJ55: 4335.323319 | BK55: 8512.103873 | BL55: 1624.363936 | BM55: 31050.74702 | BN55: 7467.150319 | BO55: 6751.994544 | BP55: 25249.60253 | BQ55: 24234.05659 | BR55: 80 | BS55: 50.21203344 | BT55: 47.67486631 | BU55: 24.24745078 | BV55: 100 | BW55: 16.09943811 | BX55: 50.93127838 | BY55: 80 | BZ55: 80 | CA55: 100 | CB55: 63.22976281 | CC55: 47.11067263 | CD55: 42.52707114 | CE55: 15.15918138 | CF55: 52.32513369 | CG55: 22.6600234 | CH55: 19.9535853 | CI55: 83.90056189 | CJ55: 50.93127838 | CK55: 5.23131999 | CL55: 110.5917706 | CM55: 104.1905734 | CN55: 29.78796656 | CO55: 0 | CP55: 0.09234934747 | CQ55: 53.15883893 | CR55: 75.79590689 | CS55: 57.68625252 | CT55: 2. Riesgo (>=40 y <60) | CU55: 19576.43179 | CV55: 36659.26507 | CW55: 16881.57519 | CX55: 39838.4399 | CY55: 4852.583319 | CZ55: 12905.8522 | DA55: 32620.71472 | DB55: 32537.97118 | DC55: 3935.289606 | DD55: 9520.537957 | DE55: -7326.82966 | DF55: 36659.26507 | DG55: 8283.155208 | DH55: 7456.651736 | DI55: 35982.40147 | DJ55: 38400.84638 | DK55: 80 | DL55: 60.82692687 | DM55: 46.59895186 | DN55: 53.88188463 | DO55: 60 | DP55: 0 | DQ55: 41.33473995 | DR55: 40 | DS55: 80 | DT55: 100 | DU55: 68.02831008 | DV55: 28.1839621 | DW55: 32.24207686 | DX55: 13.89163422 | DY55: 53.40104814 | DZ55: 42.37509107 | EA55: 37.59986745 | EB55: 100.2542984 | EC55: 41.33473995 | ED55: -19.98629718 | EE55: 111.0841099 | EF55: 93.70210518 | EG55: 19.17307313 | EH55: 0 | EI55: 0.06351705888 | EJ55: 40.30259607 | EK55: 69.45817109 | EL55: 46.13371108 | EM55: 2. Riesgo (>=40 y <60) | EN55: 774 | EO55: 151 | EP55: 106 | EQ55: 21 | ER55: 172 | ES55: 655 | ET55: 1101 | EU55: 178 | EV55: 125 | EW55: 24 | EX55: 217 | EY55: 27 | EZ55: 32.91133784 | FA55: 45.15494366 | FB55: 49.09189476 | FC55: 44.96708715 | FD55: 38.82609223 | FE55: 30.25881461 | FF55: 42.37982436 | FG55: 43.36907865 | FH55: 48.47201748 | FI55: 45.39738038 | FJ55: 48.81973373 | FK55: 42.86648234 | FL55: 57.98365123 | FM55: 69.21348315 | FN55: 69.44 | FO55: 81.66666667 | FP55: 61.10599078 | FQ55: 56.85625646 | FR55: 53.93537353 | FS55: 61.75989739 | FT55: 63.19829714 | FU55: 57.47827476 | FV55: 56.41124514 | FW55: 53.45239572 | FX55: 48.24141258 | FY55: 46.68707224 | FZ55: 47.25643939 | GA55: 40.43999897 | GB55: 50.03123093 | GC55: 47.16081261 | GD55: 70.35422343 | GE55: 75.95505618 | GF55: 72.96 | GG55: 67.5 | GH55: 66.17511521 | GI55: 69.47259566 | GJ55: 42.01634877 | GK55: 53.48314607 | GL55: 47.36 | GM55: 49.16666667 | GN55: 48.66359447 | GO55: 37.68355739 | GP55: 86.86648501 | GQ55: 85.73033708 | GR55: 82.4 | GS55: 81.66666667 | GT55: 84.60829493 | GU55: 87.15615305 | GV55: 32.97064838 | GW55: 28.05891941 | GX55: 26.57864346 | GY55: 18.96228296 | GZ55: 34.361037 | HA55: 31.00052897 | HB55: 0.08900999092 | HC55: 0.1348314607 | HD55: 0.192 | HE55: 0.08333333333 | HF55: 0.1290322581 | HG55: 0.07032057911 | HH55: 0.1349688475 | HI55: 0.1108662042 | HJ55: 0.1244854929 | HK55: 0.0938160867 | HL55: 0.1236753445 | HM55: 0.1448803714 | HN55: 40.76266087 | HO55: 45.56189325 | HP55: 46.63990818 | HQ55: 44.99589938 | HR55: 42.83813686 | HS55: 39.99669061 | HT55: 10.83502791 | HU55: 11.20063304 | HV55: 10.48587333 | HW55: 10.0218043 | HX55: 11.22606995 | HY55: 39.99669061 | HZ55: 51.59768878 | IA55: 56.76252629 | IB55: 57.12578151 | IC55: 55.01770369 | ID55: 54.06420681 | IE55: 50.42908009 | IF55: 4.990955306 | IG55: 0.5 | IH55: 55.89191252 | II55: 0 | IJ55: 59.92733166 | IK55: 5.907167796 | IL55: 0.5 | IM55: 50.93127838 | IN55: 0.09234934747 | IO55: 52.32513369 | IP55: 5.731603689 | IQ55: 0.5 | IR55: 41.33473995 | IS55: 0.06351705888 | IT55: 53.40104814
A56: 05107 | B56: 05107 | C56: BRICEÑO | D56: 1 | E56: EJE CAFETERO Y ANTIOQUIA | F56: ANTIOQUIA | G56: Norte | H56: 5 | I56: G2- Nivel Medio Alto | J56: 9167.008685 | K56: 24203.26694 | L56: 11599.27832 | M56: 21165.78809 | P56: 290 | Q56: 12000 | R56: 9192.19297 | S56: 12731.86804 | T56: -502.1964186 | U56: 24203.26694 | V56: 10936.57841 | W56: 8246 | X56: 17078.46365 | Y56: 21165.78828 | Z56: 80 | AA56: 30.58958844 | AB56: 62.12491186 | AC56: 70.90413243 | AD56: 100 | AE56: 97.58333333 | AF56: 100 | AG56: 40 | AH56: 80 | AI56: 62.12644379 | AJ56: 79.53201334 | AK56: 67.0414244 | AL56: 13.30213422 | AM56: 37.87508814 | AN56: 54.8020148 | AO56: 0.7562309927 | AP56: 2.416666667 | AQ56: 72.19830538 | AR56: -2.074911704 | AS56: 132.6288917 | AT56: 80.68900352 | AU56: 49.41041156 | AV56: 0 | AW56: 0 | AX56: 83.8017805 | AY56: 66.51067111 | AZ56: 80.34355862 | BA56: 5. Sostenible (>=80) | BB56: 8565.259078 | BC56: 24241.29059 | BD56: 15925.27155 | BE56: 26766.51418 | BF56: 4340.394807 | BG56: 15680.28808 | BH56: 5520.852996 | BI56: 21368.63925 | BJ56: 6627.741925 | BK56: 10961.61741 | BL56: -6399.19132 | BM56: 24241.29059 | BN56: 9274.446417 | BO56: 8535.047 | BP56: 26306.60642 | BQ56: 21555.39715 | BR56: 80 | BS56: 41.71278578 | BT56: 64.66665401 | BU56: 63.66500281 | BV56: 80 | BW56: 74.16375965 | BX56: 60.46317504 | BY56: 20 | BZ56: 100 | CA56: 60 | CB56: 63.22976281 | CC56: 60.55251912 | CD56: 48.39447887 | CE56: 14.70350127 | CF56: 35.33334599 | CG56: 59.49699482 | CH56: 27.68058078 | CI56: 25.83624035 | CJ56: 60.46317504 | CK56: -26.39789864 | CL56: 108.6630972 | CM56: 122.0418545 | CN56: 38.28721422 | CO56: 0 | CP56: 0 | CQ56: 60.49309858 | CR56: 73.51750637 | CS56: 63.09798014 | CT56: 3. Vulnerable (>=60 y <70) | CU56: 9992.884325 | CV56: 22691.66655 | CW56: 8265.65544 | CX56: 17840.52963 | CY56: 5107.000776 | CZ56: 14614.01825 | DA56: 319.629741 | DB56: 13364.6521 | DC56: 6679.155066 | DD56: 11583.22369 | DE56: -52.93170555 | DF56: 22691.66655 | DG56: 9749.733017 | DH56: 3947 | DI56: 16269.51004 | DJ56: 17840.52963 | DK56: 80 | DL56: 45.54004156 | DM56: 55.96231636 | DN56: 58.91171795 | DO56: 80 | DP56: 97.6083946 | DQ56: 57.66231616 | DR56: 100 | DS56: 0 | DT56: 100 | DU56: 56.81275321 | DV56: 60.65532206 | DW56: 60.01929934 | DX56: 10.7103548 | DY56: 44.03768364 | DZ56: 46.33077388 | EA56: 34.94590393 | EB56: 2.391605398 | EC56: 57.66231616 | ED56: -0.2332649541 | EE56: 247.0162913 | EF56: 91.19409785 | EG56: 34.45995844 | EH56: 0 | EI56: 0 | EJ56: 75.02412418 | EK56: 53.55177402 | EL56: 70.72965415 | EM56: 4. Solvente (>=70 y <80) | EN56: 37 | EO56: 13 | EP56: 13 | EQ56: 1 | ER56: 9 | ES56: 9 | ET56: 1101 | EU56: 178 | EV56: 125 | EW56: 17 | EX56: 217 | EY56: 28 | EZ56: 32.91133784 | FA56: 45.15494366 | FB56: 49.09189476 | FC56: 53.90871548 | FD56: 38.82609223 | FE56: 51.80449922 | FF56: 42.37982436 | FG56: 43.36907865 | FH56: 48.47201748 | FI56: 52.88869096 | FJ56: 48.81973373 | FK56: 43.61771893 | FL56: 57.98365123 | FM56: 69.21348315 | FN56: 69.44 | FO56: 63.52941176 | FP56: 61.10599078 | FQ56: 66.66666667 | FR56: 53.93537353 | FS56: 61.75989739 | FT56: 63.19829714 | FU56: 50.08771895 | FV56: 56.41124514 | FW56: 61.45536811 | FX56: 48.24141258 | FY56: 46.68707224 | FZ56: 47.25643939 | GA56: 41.34179755 | GB56: 50.03123093 | GC56: 54.82323045 | GD56: 70.35422343 | GE56: 75.95505618 | GF56: 72.96 | GG56: 68.23529412 | GH56: 66.17511521 | GI56: 75.71428571 | GJ56: 42.01634877 | GK56: 53.48314607 | GL56: 47.36 | GM56: 50.58823529 | GN56: 48.66359447 | GO56: 64.76190476 | GP56: 86.86648501 | GQ56: 85.73033708 | GR56: 82.4 | GS56: 82.35294118 | GT56: 84.60829493 | GU56: 85.23809524 | GV56: 32.97064838 | GW56: 28.05891941 | GX56: 26.57864346 | GY56: 22.41381718 | GZ56: 34.361037 | HA56: 47.91316668 | HB56: 0.08900999092 | HC56: 0.1348314607 | HD56: 0.192 | HE56: 0.2352941176 | HF56: 0.1290322581 | HG56: 0.1904761905 | HH56: 0.1349688475 | HI56: 0.1108662042 | HJ56: 0.1244854929 | HK56: 0.07518019867 | HL56: 0.1236753445 | HM56: 0.0790597641 | HN56: 40.76266087 | HO56: 45.56189325 | HP56: 46.63990818 | HQ56: 43.73426075 | HR56: 42.83813686 | HS56: 47.21090254 | HT56: 10.83502791 | HU56: 11.20063304 | HV56: 10.48587333 | HW56: 10.41909444 | HX56: 11.22606995 | HY56: 47.21090254 | HZ56: 51.59768878 | IA56: 56.76252629 | IB56: 57.12578151 | IC56: 54.15335519 | ID56: 54.06420681 | IE56: 60.45902085 | IF56: 4.007393681 | IG56: 0.25 | IH56: 72.19830538 | II56: 0 | IJ56: 37.87508814 | IK56: 3.13818953 | IL56: 0.25 | IM56: 60.46317504 | IN56: 0 | IO56: 35.33334599 | IP56: 9.378534659 | IQ56: 0.25 | IR56: 57.66231616 | IS56: 0 | IT56: 44.03768364
A57: 05113 | B57: 05113 | C57: BURITICÁ | D57: 1 | E57: EJE CAFETERO Y ANTIOQUIA | F57: ANTIOQUIA | G57: Occidente | H57: 6 | I57: G3- Nivel Medio | J57: 10102.40004 | K57: 13505.93018 | L57: 3131.611816 | M57: 12004.92041 | P57: 170 | Q57: 6900 | R57: 1031.874167 | S57: 2562.86755 | T57: -29.983318 | U57: 13505.93018 | V57: 723.79175 | W57: 757.0259 | X57: 10464.53515 | Y57: 12004.92012 | Z57: 80 | AA57: 71.94947627 | AB57: 25.20026456 | AC57: 33.750768 | AD57: 100 | AE57: 97.53623188 | AF57: 100 | AG57: 100 | AH57: 80 | AI57: 62.12644379 | AJ57: 12.95828835 | AK57: 52.89996661 | AL57: 12.86388589 | AM57: 74.79973544 | AN57: 26.08606896 | AO57: 0 | AP57: 2.463768116 | AQ57: 40.26248516 | AR57: -0.2220011328 | AS57: 95.60990582 | AT57: 87.16871961 | AU57: 8.050523728 | AV57: 0 | AW57: 0 | AX57: 66.12495827 | AY57: 64.31942945 | AZ57: 65.7638525 | BA57: 3. Vulnerable (>=60 y <70) | BB57: 9169.580321 | BC57: 12917.92809 | BD57: 3983.0464 | BE57: 12574.46067 | BF57: N.D | BG57: 9826.145534 | BH57: 5339.792578 | BI57: 6727.783313 | BJ57: 1132.892529 | BK57: 3024.102118 | BL57: -1206.702424 | BM57: 12917.92809 | BN57: 1387.53967 | BO57: 657.183503 | BP57: 12233.42092 | BQ57: 10332.73918 | BR57: 80 | BS57: 79.87274808 | BT57: 29.01663286 | BU57: 33.89469507 | BV57: 0 | BW57: 20.63072888 | BX57: 37.46211222 | BY57: 80 | BZ57: 0 | CA57: 80 | CB57: 63.22976281 | CC57: 0.2012532014 | CD57: 26.80055587 | CE57: 5.346750213 | CF57: 70.98336714 | CG57: 31.67568378 | CH57: N.D | CI57: 79.36927112 | CJ57: 37.46211222 | CK57: -9.341300058 | CL57: 211.1342819 | CM57: 118.3947519 | CN57: 0.1272519219 | CO57: 0 | CP57: 0 | CQ57: 33.50069484 | CR57: 26.73375107 | CS57: 32.14730608 | CT57: 1. Deterioro (<40) | CU57: 9530.918763 | CV57: 19043.48967 | CW57: 9743.718838 | CX57: 19600.9061 | CY57: 1225.347744 | CZ57: 9286.187741 | DA57: 6652.062267 | DB57: 10335.23629 | DC57: 4502.997039 | DD57: 6525.452074 | DE57: -1025.110496 | DF57: 19043.48967 | DG57: 3409.682301 | DH57: 657.090851 | DI57: 14229.95711 | DJ57: 18046.14513 | DK57: 80 | DL57: 40.47461299 | DM57: 49.95182642 | DN57: 63.20926328 | DO57: 100 | DP57: 35.63705675 | DQ57: 69.00666786 | DR57: 80 | DS57: 0 | DT57: 60 | DU57: 68.02831008 | DV57: 58.10138009 | DW57: 53.04064191 | DX57: 8.095953915 | DY57: 50.04817358 | DZ57: 49.71055312 | EA57: 13.19537983 | EB57: 64.36294325 | EC57: 69.00666786 | ED57: -5.382997098 | EE57: 518.9057641 | EF57: 78.85316785 | EG57: 39.52538701 | EH57: 0 | EI57: 1.112642877 | EJ57: 66.30080239 | EK57: 40.47976957 | EL57: 61.13659582 | EM57: 3. Vulnerable (>=60 y <70) | EN57: 244 | EO57: 63 | EP57: 45 | EQ57: 3 | ER57: 39 | ES57: 173 | ET57: 1101 | EU57: 178 | EV57: 125 | EW57: 18 | EX57: 218 | EY57: 29 | EZ57: 32.91133784 | FA57: 45.15494366 | FB57: 49.09189476 | FC57: 44.22207127 | FD57: 31.4008209 | FE57: 30.25881461 | FF57: 42.37982436 | FG57: 43.36907865 | FH57: 48.47201748 | FI57: 56.74691413 | FJ57: 42.5280922 | FK57: 42.86648234 | FL57: 57.98365123 | FM57: 69.21348315 | FN57: 69.44 | FO57: 53.33333333 | FP57: 57.98165138 | FQ57: 56.85625646 | FR57: 53.93537353 | FS57: 61.75989739 | FT57: 63.19829714 | FU57: 64.60586577 | FV57: 56.50096502 | FW57: 53.45239572 | FX57: 48.24141258 | FY57: 46.68707224 | FZ57: 47.25643939 | GA57: 44.67806847 | GB57: 45.88563088 | GC57: 47.16081261 | GD57: 70.35422343 | GE57: 75.95505618 | GF57: 72.96 | GG57: 63.33333333 | GH57: 71.10091743 | GI57: 69.47259566 | GJ57: 42.01634877 | GK57: 53.48314607 | GL57: 47.36 | GM57: 25.55555556 | GN57: 41.9266055 | GO57: 37.68355739 | GP57: 86.86648501 | GQ57: 85.73033708 | GR57: 82.4 | GS57: 78.88888889 | GT57: 87.1559633 | GU57: 87.15615305 | GV57: 32.97064838 | GW57: 28.05891941 | GX57: 26.57864346 | GY57: 24.57545815 | GZ57: 29.67333351 | HA57: 31.00052897 | HB57: 0.08900999092 | HC57: 0.1348314607 | HD57: 0.192 | HE57: 0.2222222222 | HF57: 0.05504587156 | HG57: 0.07032057911 | HH57: 0.1349688475 | HI57: 0.1108662042 | HJ57: 0.1244854929 | HK57: 0.2531761204 | HL57: 0.118743477 | HM57: 0.1448803714 | HN57: 40.76266087 | HO57: 45.56189325 | HP57: 46.63990818 | HQ57: 43.58927817 | HR57: 40.6935018 | HS57: 39.99669061 | HT57: 10.83502791 | HU57: 11.20063304 | HV57: 10.48587333 | HW57: 8.696406508 | HX57: 10.61848469 | HY57: 39.99669061 | HZ57: 51.59768878 | IA57: 56.76252629 | IB57: 57.12578151 | IC57: 52.28568468 | ID57: 51.31198649 | IE57: 50.42908009 | IF57: 0 | IG57: 0.25 | IH57: 40.26248516 | II57: 0 | IJ57: 74.79973544 | IK57: 0 | IL57: 0.25 | IM57: 37.46211222 | IN57: 0 | IO57: 70.98336714 | IP57: 2.617013591 | IQ57: 0.5 | IR57: 69.00666786 | IS57: 1.112642877 | IT57: 50.04817358
